Workbook

Sheet Table
C2: Efficiency | E2: System Flux | H2: Current Display Range [A]
C3: Optical | D3: Driver | E3: Target | F3: Require | H3: Min. | I3: Max. | J3: Interval | P3: Lighting | Q3: 1
C4: 100.0% | D4: 100.0% | E4: 160 | F4: =E4/C4 -> 160 | H4: 0.020 | I4: 2.000 | J4: 0.010
C6: SSC | D6: LED #1 | H6: SSC | I6: LED #2 | M6: SSC | N6: LED #3 | R6: SSC | S6: LED #4
C7: 3528 | D7: STW8A12D-E2 | H7: 3528 | I7: STW8A2PD-B2 | M7: Z5M4 | N7: SZ5-M4-Wx-C7 | R7: 5050 | S7: STW0L8SA-E1H1C100
C8: CRI 80 | D8: 5000 | E8: =IF(D7="","",VLOOKUP(D7,Parameter!$A:$F,6,0)) -> 3.5 x2.8 x 0.7 | H8: CRI 80 | I8: 5000 | J8: =IF(I7="","",VLOOKUP(I7,Parameter!$A:$F,6,0)) -> 3.5 x 2.8 x 0.7 | M8: CRI 70 | N8: 5000 | O8: =IF(N7="","",VLOOKUP(N7,Parameter!$A:$F,6,0)) -> 3.5 x 3.5 x 2.29 | R8: CRI 70 | S8: 5000 | T8: =IF(S7="","",VLOOKUP(S7,Parameter!$A:$F,6,0)) -> 5.0 x 5.0 x 0.7
C9: Pd Group | D9: Rth [℃/W] | E9: IFBin | F9: IFMAX | H9: Pd Group | I9: Rth [℃/W] | J9: IFBin | K9: IFMAX | M9: Pd Group | N9: Rth [℃/W] | O9: IFBin | P9: IFMAX | R9: Pd Group | S9: Rth [℃/W] | T9: IFBin | U9: IFMAX
C10: Mid | D10: =IF(D7="","",VLOOKUP(D7,Parameter!$A:$F,5,0)) -> 20 | E10: =IF(D7="","",VLOOKUP(D7,Parameter!$A:$F,3,0)) -> 65 | F10: =IF(D7="","",VLOOKUP(D7,Parameter!$A:$F,4,0)) -> 200 | H10: Mid | I10: =IF(I7="","",VLOOKUP(I7,Parameter!$A:$F,5,0)) -> 15 | J10: =IF(I7="","",VLOOKUP(I7,Parameter!$A:$F,3,0)) -> 65 | K10: =IF(I7="","",VLOOKUP(I7,Parameter!$A:$F,4,0)) -> 200 | M10: High | N10: =IF(N7="","",VLOOKUP(N7,Parameter!$A:$F,5,0)) -> 3 | O10: =IF(N7="","",VLOOKUP(N7,Parameter!$A:$F,3,0)) -> 700 | P10: =IF(N7="","",VLOOKUP(N7,Parameter!$A:$F,4,0)) -> 2000 | R10: High | S10: =IF(S7="","",VLOOKUP(S7,Parameter!$A:$F,5,0)) -> 2 | T10: =IF(S7="","",VLOOKUP(S7,Parameter!$A:$F,3,0)) -> 160 | U10: =IF(S7="","",VLOOKUP(S7,Parameter!$A:$F,4,0)) -> 200
C12: Binning | H12: Binning | M12: Binning | R12: Binning
C13: Flux | E13: VF | H13: =C13 -> Flux | J13: VF | M13: =C13 -> Flux | O13: VF | R13: =C13 -> Flux | T13: VF
C14: U0 | D14: min | E14: Y2 | F14: typ | H14: U3 | I14: typ | J14: Y1 | K14: typ | M14: W8 | N14: typ | O14: G | P14: typ | R14: W3 | S14: typ | T14: Z240 | U14: typ
C15: =IFERROR(OFFSET(List!$H$1,MATCH($P$3&C6&C10&C7&C8&D7&C13&C14,List!$M:$M,0)-1,VLOOKUP(Table!D14,tblindex!$A$3:$B$5,2,FALSE)),"Error") -> 34.10 | E15: =IFERROR(OFFSET(List!$H$1,MATCH($P$3&C6&C10&C7&C8&D7&E13&E14,List!$M:$M,0)-1,VLOOKUP(Table!F14,tblindex!$A$3:$B$5,2,FALSE)),"Error") -> 2.850 | H15: =IFERROR(OFFSET(List!$H$1,MATCH($P$3&H6&H10&H7&H8&I7&H13&H14,List!$M:$M,0)-1,VLOOKUP(Table!I14,tblindex!$A$3:$B$5,2,FALSE)),"Error") -> 34.50 | J15: =IFERROR(OFFSET(List!$H$1,MATCH($P$3&H6&H10&H7&H8&I7&J13&J14,List!$M:$M,0)-1,VLOOKUP(Table!K14,tblindex!$A$3:$B$5,2,FALSE)),"Error") -> 2.750 | M15: =IFERROR(OFFSET(List!$H$1,MATCH($P$3&M6&M10&M7&M8&N7&M13&M14,List!$M:$M,0)-1,VLOOKUP(Table!N14,tblindex!$A$3:$B$5,2,FALSE)),"Error") -> 347.50 | O15: =IFERROR(OFFSET(List!$H$1,MATCH($P$3&M6&M10&M7&M8&N7&O13&O14,List!$M:$M,0)-1,VLOOKUP(Table!P14,tblindex!$A$3:$B$5,2,FALSE)),"Error") -> 2.850 | R15: =IFERROR(OFFSET(List!$H$1,MATCH($P$3&R6&R10&R7&R8&S7&R13&R14,List!$M:$M,0)-1,VLOOKUP(Table!S14,tblindex!$A$3:$B$5,2,FALSE)),"Error") -> 675.00 | T15: =IFERROR(OFFSET(List!$H$1,MATCH($P$3&R6&R10&R7&R8&S7&T13&T14,List!$M:$M,0)-1,VLOOKUP(Table!U14,tblindex!$A$3:$B$5,2,FALSE)),"Error") -> 24.300
C17: Condition | E17: LED Performance | H17: Condition | J17: LED Performance | M17: Condition | O17: LED Performance | R17: Condition | T17: LED Performance
C18: Ts [℃] | D18: 25 | E18: Flux [lm] | F18: =IFERROR(C$15*(led1FTA1*EXP(-D18/led1FTt1)+led1FTy0)*(led1FCA1*EXP(-D20/led1FCt1)+led1FCy0),"") -> 72.77 | H18: Ts [℃] | I18: 25 | J18: =E18 -> Flux [lm] | K18: =IFERROR(H$15*(led2FTA1*EXP(-I18/led2FTt1)+led2FTy0)*(led2FCA1*EXP(-I20/led2FCt1)+led2FCy0),"") -> 74.03 | M18: Ts [℃] | N18: 85 | O18: =E18 -> Flux [lm] | P18: =IFERROR(M$15*(led3FTA1*EXP(-N18/led3FTt1)+led3FTy0)*(led3FCA1*EXP(-N20/led3FCt1)+led3FCy0),"") -> 347.50 | R18: Ts [℃] | S18: 25 | T18: =E18 -> Flux [lm] | U18: =IFERROR(R$15*(led4FTA1*EXP(-S18/led4FTt1)+led4FTy0)*(led4FCA1*EXP(-S20/led4FCt1)+led4FCy0),"") -> 675.00
E19: Vf [V] | F19: =IFERROR(E$15*(led1VTA1*EXP(-D18/led1VTt1)+led1VTy0)*(led1VCA1*EXP(-D20/led1VCt1)+led1VCy0),"") -> 3.10 | J19: Vf [V] | K19: =IFERROR(J$15*(led2VTA1*EXP(-I18/led2VTt1)+led2VTy0)*(led2VCA1*EXP(-I20/led2VCt1)+led2VCy0),"") -> 2.92 | O19: Vf [V] | P19: =IFERROR(O$15*(led3VTA1*EXP(-N18/led3VTt1)+led3VTy0)*(led3VCA1*EXP(-N20/led3VCt1)+led3VCy0),"") -> 2.85 | T19: Vf [V] | U19: =IFERROR(T$15*(led4VTA1*EXP(-S18/led4VTt1)+led4VTy0)*(led4VCA1*EXP(-S20/led4VCt1)+led4VCy0),"") -> 24.30
C20: IOPPR. [mA] | D20: 150 | E20: Pd [W] | F20: =IFERROR(F19*D20/1000,"") -> 0.464 | H20: IOPPR. [mA] | I20: 150 | J20: =E20 -> Pd [W] | K20: =IFERROR(K19*I20/1000,"") -> 0.438 | M20: IOPPR. [mA] | N20: 700 | O20: =E20 -> Pd [W] | P20: =IFERROR(P19*N20/1000,"") -> 1.995 | R20: IOPPR. [mA] | S20: 160 | T20: =E20 -> Pd [W] | U20: =IFERROR(U19*S20/1000,"") -> 3.888
E21: lm/W | F21: =IFERROR(F18/F20,"") -> 156.7 | J21: =E21 -> lm/W | K21: =IFERROR(K18/K20,"") -> 169.0 | O21: =E21 -> lm/W | P21: =IFERROR(P18/P20,"") -> 174.2 | T21: =E21 -> lm/W | U21: =IFERROR(U18/U20,"") -> 173.6
C22: Price [$] | D22: 0.000 | E22: lm/$ | F22: =IFERROR(F18/D22,"") ->  | H22: Price [$] | I22: 0.000 | J22: =E22 -> lm/$ | K22: =IFERROR(K18/I22,"") ->  | M22: Price [$] | N22: 0.000 | O22: =E22 -> lm/$ | P22: =IFERROR(P18/N22,"") ->  | R22: Price [$] | S22: 0.000 | T22: =E22 -> lm/$ | U22: =IFERROR(U18/S22,"") -> 
E23: #LEDs [ea] | F23: =IFERROR(ROUNDUP(($F$4/F18),0),"") -> 3 | J23: #LEDs [ea] | K23: =IFERROR(ROUNDUP(($F$4/K18),0),"") -> 3 | O23: #LEDs [ea] | P23: =IFERROR(ROUNDUP(($F$4/P18),0),"") -> 1 | T23: #LEDs [ea] | U23: =IFERROR(ROUNDUP(($F$4/U18),0),"") -> 1
C25: Designer | H25: Designer | M25: Designer | R25: Designer
C26: Crosstalk | D26: 100% | E26: Flux/LED [lm/s] | F26: =IFERROR(+F18*D26,"") -> 72.77 | H26: =C26 -> Crosstalk | I26: 100% | J26: =E26 -> Flux/LED [lm/s] | K26: =IFERROR(+K18*I26,"") -> 74.03 | M26: =C26 -> Crosstalk | N26: 100% | O26: =E26 -> Flux/LED [lm/s] | P26: =IFERROR(+P18*N26,"") -> 347.50 | R26: =C26 -> Crosstalk | S26: 100% | T26: =E26 -> Flux/LED [lm/s] | U26: =IFERROR(+U18*S26,"") -> 675.00
C27: LED Quantity | D27: =IFERROR(ROUNDUP($F4/F26,0),"") -> 3 | E27: Series | F27: 1 | H27: =C27 -> LED Quantity | I27: =IFERROR(ROUNDUP($F4/K26,0),"") -> 3 | J27: =E27 -> Series | K27: 1 | M27: =C27 -> LED Quantity | N27: =IFERROR(ROUNDUP($F4/P26,0),"") -> 1 | O27: =E27 -> Series | P27: 1 | R27: =C27 -> LED Quantity | S27: =IFERROR(ROUNDUP($F4/U26,0),"") -> 1 | T27: =E27 -> Series | U27: 1
C28: MD Series | D28: 1 | E28: Mod Parallel | F28: 1 | H28: MD Series | I28: 1 | J28: Mod Parallel | K28: 1 | M28: MD Series | N28: 1 | O28: Mod Parallel | P28: 1 | R28: MD Series | S28: 1 | T28: Mod Parallel | U28: 1
C29: Tot. I [mA] | D29: =IFERROR(+F28*D20,"") -> 150 | E29: #LEDs [ea] | F29: =IFERROR(+D28*F28,"") -> 1 | H29: Tot. I [mA] | I29: =IFERROR(+K28*I20,"") -> 150 | J29: #LEDs [ea] | K29: =IFERROR(+I28*K28,"") -> 1 | M29: Tot. I [mA] | N29: =IFERROR(+P28*N20,"") -> 700 | O29: #LEDs [ea] | P29: =IFERROR(+N28*P28,"") -> 1 | R29: Tot. I [mA] | S29: =IFERROR(+U28*S20,"") -> 160 | T29: #LEDs [ea] | U29: =IFERROR(+S28*U28,"") -> 1
C30: Vf [V] | D30: =IFERROR(+F19*D28,"") -> 3.10 | E30: Cost [$] | F30: =IFERROR(+D22*F29,"") -> 0.00 | H30: Vf [V] | I30: =IFERROR(+K19*I28,"") -> 2.9 | J30: Cost [$] | K30: =IFERROR(+I22*K29,"") -> 0.00 | M30: Vf [V] | N30: =IFERROR(+P19*N28,"") -> 2.9 | O30: Cost [$] | P30: =IFERROR(+N22*P29,"") -> 0.00 | R30: Vf [V] | S30: =IFERROR(+U19*S28,"") -> 24.3 | T30: Cost [$] | U30: =IFERROR(+S22*U29,"") -> 0.00
C31: Pd [W] | D31: =IFERROR(D29*D30/1000,"") -> 0.5 | E31: lm/W | F31: =IFERROR(+D32/D31,"") -> 156.73 | H31: Pd [W] | I31: =IFERROR(I29*I30/1000,"") -> 0.4 | J31: lm/W | K31: =IFERROR(+I32/I31,"") -> 168.96 | M31: Pd [W] | N31: =IFERROR(N29*N30/1000,"") -> 2.0 | O31: lm/W | P31: =IFERROR(+N32/N31,"") -> 174.19 | R31: Pd [W] | S31: =IFERROR(S29*S30/1000,"") -> 3.9 | T31: lm/W | U31: =IFERROR(+S32/S31,"") -> 173.61
C32: Flux [lm] | D32: =IFERROR(+F26*D28*F28,"") -> 72.77 | E32: lm/$ | F32: =IFERROR(+D32/F30,"") ->  | H32: Flux [lm] | I32: =IFERROR(+K26*I28*K28,"") -> 74.03 | J32: lm/$ | K32: =IFERROR(+I32/K30,"") ->  | M32: Flux [lm] | N32: =IFERROR(+P26*N28*P28,"") -> 347.50 | O32: lm/$ | P32: =IFERROR(+N32/P30,"") ->  | R32: Flux [lm] | S32: =IFERROR(+U26*S28*U28,"") -> 675.00 | T32: lm/$ | U32: =IFERROR(+S32/U30,"") -> 
C34: Total LEDs | D34: Parallel | E34: Series | H34: Total LEDs | I34: Parallel | J34: Series | M34: Total LEDs | N34: Parallel | O34: Series | R34: Total LEDs | S34: Parallel | T34: Series
C35: 90.0 | D35: 2.0 | E35: 30.0 | H35: 140.0 | I35: =+$H$35/J35 -> 140.0 | J35: 1.0 | M35: =+N27 -> 1.0 | N35: =+$C$35/O35 -> 90.0 | O35: 1.0 | R35: =+S27 -> 1.0 | S35: =+$C$35/T35 -> 90.0 | T35: 1.0
D36: 30.0 | E36: 6.0 | I36: 70.0 | J36: 2.0 | N36: 45.0 | O36: 2.0 | S36: 45.0 | T36: 2.0
D37: =+$C$35/E37 -> 8.2 | E37: 11.0 | I37: 46.7 | J37: 3.0 | N37: 30.0 | O37: 3.0 | S37: 30.0 | T37: 3.0
D38: =+$C$35/E38 -> 7.5 | E38: 12.0 | I38: 35.0 | J38: 4.0 | N38: 22.5 | O38: 4.0 | S38: 22.5 | T38: 4.0
D39: =+$C$35/E39 -> 6.9 | E39: 13.0 | I39: 28.0 | J39: 5.0 | N39: 18.0 | O39: 5.0 | S39: 18.0 | T39: 5.0
D40: =+$C$35/E40 -> 6.4 | E40: 14.0 | I40: 23.3 | J40: 6.0 | N40: 15.0 | O40: 6.0 | S40: 15.0 | T40: 6.0
C42: System Performance | H42: System Performance | M42: System Performance | R42: System Performance
C43: Series | D43: =D28 -> 1 | E43: Parallel | F43: =F28 -> 1 | H43: =C43 -> Series | I43: =I28 -> 1 | J43: =E43 -> Parallel | K43: =K28 -> 1 | M43: =C43 -> Series | N43: =N28 -> 1 | O43: =E43 -> Parallel | P43: =P28 -> 1 | R43: =C43 -> Series | S43: =S28 -> 1 | T43: =E43 -> Parallel | U43: =U28 -> 1
C44: Tot. I [mA] | D44: =D29 -> 150 | E44: #LEDs [ea] | F44: =IFERROR(F43*D43,"") -> 1 | H44: Tot. I [mA] | I44: =I29 -> 150 | J44: #LEDs [ea] | K44: =IFERROR(K43*I43,"") -> 1 | M44: Tot. I [mA] | N44: =N29 -> 700 | O44: #LEDs [ea] | P44: =IFERROR(P43*N43,"") -> 1 | R44: Tot. I [mA] | S44: =S29 -> 160 | T44: #LEDs [ea] | U44: =IFERROR(U43*S43,"") -> 1
C45: Vf [V] | D45: =D30 -> 3.1 | E45: Cost [$] | F45: =IFERROR(F44*D22,"") -> 0.00 | H45: Vf [V] | I45: =I30 -> 2.9 | J45: Cost [$] | K45: =IFERROR(K44*I22,"") -> 0.00 | M45: Vf [V] | N45: =N30 -> 2.9 | O45: Cost [$] | P45: =IFERROR(P44*N22,"") -> 0.00 | R45: Vf [V] | S45: =S30 -> 24.3 | T45: Cost [$] | U45: =IFERROR(U44*S22,"") -> 0.00
C46: Pd [W] | D46: =IFERROR(D31/$D$4,"") -> 0.5 | E46: LpW | F46: =IFERROR(D47/D46,"") -> 156.7 | H46: Pd [W] | I46: =IFERROR(I31/$D$4,"") -> 0.4 | J46: LpW | K46: =IFERROR(I47/I46,"") -> 169.0 | M46: Pd [W] | N46: =IFERROR(N31/$D$4,"") -> 2.0 | O46: LpW | P46: =IFERROR(N47/N46,"") -> 174.2 | R46: Pd [W] | S46: =IFERROR(S31/$D$4,"") -> 3.9 | T46: LpW | U46: =IFERROR(S47/S46,"") -> 173.6
C47: Flux [lm] | D47: =IFERROR(D32*$C$4,"") -> 73 | E47: LpD | F47: =IFERROR(D47/F45,"") ->  | H47: Flux [lm] | I47: =IFERROR(I32*$C$4,"") -> 74 | J47: LpD | K47: =IFERROR(I47/K45,"") ->  | M47: Flux [lm] | N47: =IFERROR(N32*$C$4,"") -> 348 | O47: LpD | P47: =IFERROR(N47/P45,"") ->  | R47: Flux [lm] | S47: =IFERROR(S32*$C$4,"") -> 675 | T47: LpD | U47: =IFERROR(S47/U45,"") -> 
C48: =VLOOKUP(C52,tblindex!$E:$F,2,0) -> 2 | D48: =VLOOKUP(D52,tblindex!$E:$F,2,0) -> 6 | E48: =VLOOKUP(E52,tblindex!$E:$F,2,0) -> 3 | F48: =VLOOKUP(F52,tblindex!$E:$F,2,0) -> 8 | H48: =VLOOKUP(H52,tblindex!$E:$F,2,0) -> 2 | I48: =VLOOKUP(I52,tblindex!$E:$F,2,0) -> 4 | J48: =VLOOKUP(J52,tblindex!$E:$F,2,0) -> 6 | K48: =VLOOKUP(K52,tblindex!$E:$F,2,0) -> 8 | M48: =VLOOKUP(M52,tblindex!$E:$F,2,0) -> 2 | N48: =VLOOKUP(N52,tblindex!$E:$F,2,0) -> 2 | O48: =VLOOKUP(O52,tblindex!$E:$F,2,0) -> 3 | P48: =VLOOKUP(P52,tblindex!$E:$F,2,0) -> 6 | R48: =VLOOKUP(R52,tblindex!$E:$F,2,0) -> 2 | S48: =VLOOKUP(S52,tblindex!$E:$F,2,0) -> 2 | T48: =VLOOKUP(T52,tblindex!$E:$F,2,0) -> 3 | U48: =VLOOKUP(U52,tblindex!$E:$F,2,0) -> 6
B52: IF | C52: Flux | D52: lm/W | E52: VF | F52: # LEDs | H52: Flux | I52: PD | J52: lm/W | K52: # LEDs | M52: Flux | N52: Flux | O52: VF | P52: lm/W | R52: Flux | S52: Flux | T52: VF | U52: lm/W
B53: =$H$4 -> 0.020 | C53: =IFERROR(VLOOKUP($B53,'LED #1'!$A$14:$S$300,C$48,0),"") -> 11.18 | D53: =IFERROR(VLOOKUP($B53,'LED #1'!$A$14:$S$300,D$48,0),"") -> 207.48 | E53: =IFERROR(VLOOKUP($B53,'LED #1'!$A$14:$S$300,E$48,0),"") -> 2.69 | F53: =IFERROR(VLOOKUP($B53,'LED #1'!$A$14:$S$300,F$48,0),"") -> 15.00 | H53: =IFERROR(VLOOKUP($B53,'LED #2'!$A$14:$S$300,H$48,0),"") -> 10.97 | I53: =IFERROR(VLOOKUP($B53,'LED #2'!$A$14:$S$300,I$48,0),"") -> 0.05 | J53: =IFERROR(VLOOKUP($B53,'LED #2'!$A$14:$S$300,J$48,0),"") -> 208.80 | K53: =IFERROR(VLOOKUP($B53,'LED #2'!$A$14:$S$300,K$48,0),"") -> 15.00 | M53: =IFERROR(VLOOKUP($B53,'LED #3'!$A$14:$S$300,M$48,0),"") -> 7.86 | N53: =IFERROR(VLOOKUP($B53,'LED #3'!$A$14:$S$300,N$48,0),"") -> 7.86 | O53: =IFERROR(VLOOKUP($B53,'LED #3'!$A$14:$S$300,O$48,0),"") -> 2.49 | P53: =IFERROR(VLOOKUP($B53,'LED #3'!$A$14:$S$300,P$48,0),"") -> 157.65 | R53: =IFERROR(VLOOKUP($B53,'LED #4'!$A$14:$S$300,R$48,0),"") -> 117.21 | S53: =IFERROR(VLOOKUP($B53,'LED #4'!$A$14:$S$300,S$48,0),"") -> 117.21 | T53: =IFERROR(VLOOKUP($B53,'LED #4'!$A$14:$S$300,T$48,0),"") -> 21.63 | U53: =IFERROR(VLOOKUP($B53,'LED #4'!$A$14:$S$300,U$48,0),"") -> 270.98
B54: =ROUND(B53+$J$4,3) -> 0.030 | C54: =IFERROR(VLOOKUP($B54,'LED #1'!$A$14:$S$300,C$48,0),"") -> 16.43 | D54: =IFERROR(VLOOKUP($B54,'LED #1'!$A$14:$S$300,D$48,0),"") -> 200.57 | E54: =IFERROR(VLOOKUP($B54,'LED #1'!$A$14:$S$300,E$48,0),"") -> 2.73 | F54: =IFERROR(VLOOKUP($B54,'LED #1'!$A$14:$S$300,F$48,0),"") -> 10.00 | H54: =IFERROR(VLOOKUP($B54,'LED #2'!$A$14:$S$300,H$48,0),"") -> 16.37 | I54: =IFERROR(VLOOKUP($B54,'LED #2'!$A$14:$S$300,I$48,0),"") -> 0.08 | J54: =IFERROR(VLOOKUP($B54,'LED #2'!$A$14:$S$300,J$48,0),"") -> 205.36 | K54: =IFERROR(VLOOKUP($B54,'LED #2'!$A$14:$S$300,K$48,0),"") -> 10.00 | M54: =IFERROR(VLOOKUP($B54,'LED #3'!$A$14:$S$300,M$48,0),"") -> 13.43 | N54: =IFERROR(VLOOKUP($B54,'LED #3'!$A$14:$S$300,N$48,0),"") -> 13.43 | O54: =IFERROR(VLOOKUP($B54,'LED #3'!$A$14:$S$300,O$48,0),"") -> 2.50 | P54: =IFERROR(VLOOKUP($B54,'LED #3'!$A$14:$S$300,P$48,0),"") -> 179.11 | R54: =IFERROR(VLOOKUP($B54,'LED #4'!$A$14:$S$300,R$48,0),"") -> 164.97 | S54: =IFERROR(VLOOKUP($B54,'LED #4'!$A$14:$S$300,S$48,0),"") -> 164.97 | T54: =IFERROR(VLOOKUP($B54,'LED #4'!$A$14:$S$300,T$48,0),"") -> 21.86 | U54: =IFERROR(VLOOKUP($B54,'LED #4'!$A$14:$S$300,U$48,0),"") -> 251.59
B55: 0.040 | C55: =IFERROR(VLOOKUP($B55,'LED #1'!$A$14:$S$300,C$48,0),"") -> 21.59 | D55: =IFERROR(VLOOKUP($B55,'LED #1'!$A$14:$S$300,D$48,0),"") -> 195.14 | E55: =IFERROR(VLOOKUP($B55,'LED #1'!$A$14:$S$300,E$48,0),"") -> 2.77 | F55: =IFERROR(VLOOKUP($B55,'LED #1'!$A$14:$S$300,F$48,0),"") -> 8.00 | H55: =IFERROR(VLOOKUP($B55,'LED #2'!$A$14:$S$300,H$48,0),"") -> 21.66 | I55: =IFERROR(VLOOKUP($B55,'LED #2'!$A$14:$S$300,I$48,0),"") -> 0.11 | J55: =IFERROR(VLOOKUP($B55,'LED #2'!$A$14:$S$300,J$48,0),"") -> 201.74 | K55: =IFERROR(VLOOKUP($B55,'LED #2'!$A$14:$S$300,K$48,0),"") -> 8.00 | M55: =IFERROR(VLOOKUP($B55,'LED #3'!$A$14:$S$300,M$48,0),"") -> 18.99 | N55: =IFERROR(VLOOKUP($B55,'LED #3'!$A$14:$S$300,N$48,0),"") -> 18.99 | O55: =IFERROR(VLOOKUP($B55,'LED #3'!$A$14:$S$300,O$48,0),"") -> 2.51 | P55: =IFERROR(VLOOKUP($B55,'LED #3'!$A$14:$S$300,P$48,0),"") -> 189.39 | R55: =IFERROR(VLOOKUP($B55,'LED #4'!$A$14:$S$300,R$48,0),"") -> 211.36 | S55: =IFERROR(VLOOKUP($B55,'LED #4'!$A$14:$S$300,S$48,0),"") -> 211.36 | T55: =IFERROR(VLOOKUP($B55,'LED #4'!$A$14:$S$300,T$48,0),"") -> 22.08 | U55: =IFERROR(VLOOKUP($B55,'LED #4'!$A$14:$S$300,U$48,0),"") -> 239.32
B56: 0.050 | C56: =IFERROR(VLOOKUP($B56,'LED #1'!$A$14:$S$300,C$48,0),"") -> 26.66 | D56: =IFERROR(VLOOKUP($B56,'LED #1'!$A$14:$S$300,D$48,0),"") -> 190.41 | E56: =IFERROR(VLOOKUP($B56,'LED #1'!$A$14:$S$300,E$48,0),"") -> 2.80 | F56: =IFERROR(VLOOKUP($B56,'LED #1'!$A$14:$S$300,F$48,0),"") -> 7.00 | H56: =IFERROR(VLOOKUP($B56,'LED #2'!$A$14:$S$300,H$48,0),"") -> 26.87 | I56: =IFERROR(VLOOKUP($B56,'LED #2'!$A$14:$S$300,I$48,0),"") -> 0.14 | J56: =IFERROR(VLOOKUP($B56,'LED #2'!$A$14:$S$300,J$48,0),"") -> 198.16 | K56: =IFERROR(VLOOKUP($B56,'LED #2'!$A$14:$S$300,K$48,0),"") -> 6.00 | M56: =IFERROR(VLOOKUP($B56,'LED #3'!$A$14:$S$300,M$48,0),"") -> 24.52 | N56: =IFERROR(VLOOKUP($B56,'LED #3'!$A$14:$S$300,N$48,0),"") -> 24.52 | O56: =IFERROR(VLOOKUP($B56,'LED #3'!$A$14:$S$300,O$48,0),"") -> 2.51 | P56: =IFERROR(VLOOKUP($B56,'LED #3'!$A$14:$S$300,P$48,0),"") -> 195.19 | R56: =IFERROR(VLOOKUP($B56,'LED #4'!$A$14:$S$300,R$48,0),"") -> 256.43 | S56: =IFERROR(VLOOKUP($B56,'LED #4'!$A$14:$S$300,S$48,0),"") -> 256.43 | T56: =IFERROR(VLOOKUP($B56,'LED #4'!$A$14:$S$300,T$48,0),"") -> 22.29 | U56: =IFERROR(VLOOKUP($B56,'LED #4'!$A$14:$S$300,U$48,0),"") -> 230.03
B57: 0.060 | C57: =IFERROR(VLOOKUP($B57,'LED #1'!$A$14:$S$300,C$48,0),"") -> 31.64 | D57: =IFERROR(VLOOKUP($B57,'LED #1'!$A$14:$S$300,D$48,0),"") -> 186.10 | E57: =IFERROR(VLOOKUP($B57,'LED #1'!$A$14:$S$300,E$48,0),"") -> 2.83 | F57: =IFERROR(VLOOKUP($B57,'LED #1'!$A$14:$S$300,F$48,0),"") -> 6.00 | H57: =IFERROR(VLOOKUP($B57,'LED #2'!$A$14:$S$300,H$48,0),"") -> 31.98 | I57: =IFERROR(VLOOKUP($B57,'LED #2'!$A$14:$S$300,I$48,0),"") -> 0.16 | J57: =IFERROR(VLOOKUP($B57,'LED #2'!$A$14:$S$300,J$48,0),"") -> 194.69 | K57: =IFERROR(VLOOKUP($B57,'LED #2'!$A$14:$S$300,K$48,0),"") -> 6.00 | M57: =IFERROR(VLOOKUP($B57,'LED #3'!$A$14:$S$300,M$48,0),"") -> 30.03 | N57: =IFERROR(VLOOKUP($B57,'LED #3'!$A$14:$S$300,N$48,0),"") -> 30.03 | O57: =IFERROR(VLOOKUP($B57,'LED #3'!$A$14:$S$300,O$48,0),"") -> 2.52 | P57: =IFERROR(VLOOKUP($B57,'LED #3'!$A$14:$S$300,P$48,0),"") -> 198.77 | R57: =IFERROR(VLOOKUP($B57,'LED #4'!$A$14:$S$300,R$48,0),"") -> 300.21 | S57: =IFERROR(VLOOKUP($B57,'LED #4'!$A$14:$S$300,S$48,0),"") -> 300.21 | T57: =IFERROR(VLOOKUP($B57,'LED #4'!$A$14:$S$300,T$48,0),"") -> 22.50 | U57: =IFERROR(VLOOKUP($B57,'LED #4'!$A$14:$S$300,U$48,0),"") -> 222.33
B58: 0.070 | C58: =IFERROR(VLOOKUP($B58,'LED #1'!$A$14:$S$300,C$48,0),"") -> 36.54 | D58: =IFERROR(VLOOKUP($B58,'LED #1'!$A$14:$S$300,D$48,0),"") -> 182.11 | E58: =IFERROR(VLOOKUP($B58,'LED #1'!$A$14:$S$300,E$48,0),"") -> 2.87 | F58: =IFERROR(VLOOKUP($B58,'LED #1'!$A$14:$S$300,F$48,0),"") -> 5.00 | H58: =IFERROR(VLOOKUP($B58,'LED #2'!$A$14:$S$300,H$48,0),"") -> 37.00 | I58: =IFERROR(VLOOKUP($B58,'LED #2'!$A$14:$S$300,I$48,0),"") -> 0.19 | J58: =IFERROR(VLOOKUP($B58,'LED #2'!$A$14:$S$300,J$48,0),"") -> 191.35 | K58: =IFERROR(VLOOKUP($B58,'LED #2'!$A$14:$S$300,K$48,0),"") -> 5.00 | M58: =IFERROR(VLOOKUP($B58,'LED #3'!$A$14:$S$300,M$48,0),"") -> 35.53 | N58: =IFERROR(VLOOKUP($B58,'LED #3'!$A$14:$S$300,N$48,0),"") -> 35.53 | O58: =IFERROR(VLOOKUP($B58,'LED #3'!$A$14:$S$300,O$48,0),"") -> 2.52 | P58: =IFERROR(VLOOKUP($B58,'LED #3'!$A$14:$S$300,P$48,0),"") -> 201.08 | R58: =IFERROR(VLOOKUP($B58,'LED #4'!$A$14:$S$300,R$48,0),"") -> 342.75 | S58: =IFERROR(VLOOKUP($B58,'LED #4'!$A$14:$S$300,S$48,0),"") -> 342.75 | T58: =IFERROR(VLOOKUP($B58,'LED #4'!$A$14:$S$300,T$48,0),"") -> 22.71 | U58: =IFERROR(VLOOKUP($B58,'LED #4'!$A$14:$S$300,U$48,0),"") -> 215.62
B59: 0.080 | C59: =IFERROR(VLOOKUP($B59,'LED #1'!$A$14:$S$300,C$48,0),"") -> 41.35 | D59: =IFERROR(VLOOKUP($B59,'LED #1'!$A$14:$S$300,D$48,0),"") -> 178.37 | E59: =IFERROR(VLOOKUP($B59,'LED #1'!$A$14:$S$300,E$48,0),"") -> 2.90 | F59: =IFERROR(VLOOKUP($B59,'LED #1'!$A$14:$S$300,F$48,0),"") -> 4.00 | H59: =IFERROR(VLOOKUP($B59,'LED #2'!$A$14:$S$300,H$48,0),"") -> 41.93 | I59: =IFERROR(VLOOKUP($B59,'LED #2'!$A$14:$S$300,I$48,0),"") -> 0.22 | J59: =IFERROR(VLOOKUP($B59,'LED #2'!$A$14:$S$300,J$48,0),"") -> 188.15 | K59: =IFERROR(VLOOKUP($B59,'LED #2'!$A$14:$S$300,K$48,0),"") -> 4.00 | M59: =IFERROR(VLOOKUP($B59,'LED #3'!$A$14:$S$300,M$48,0),"") -> 41.01 | N59: =IFERROR(VLOOKUP($B59,'LED #3'!$A$14:$S$300,N$48,0),"") -> 41.01 | O59: =IFERROR(VLOOKUP($B59,'LED #3'!$A$14:$S$300,O$48,0),"") -> 2.53 | P59: =IFERROR(VLOOKUP($B59,'LED #3'!$A$14:$S$300,P$48,0),"") -> 202.59 | R59: =IFERROR(VLOOKUP($B59,'LED #4'!$A$14:$S$300,R$48,0),"") -> 384.08 | S59: =IFERROR(VLOOKUP($B59,'LED #4'!$A$14:$S$300,S$48,0),"") -> 384.08 | T59: =IFERROR(VLOOKUP($B59,'LED #4'!$A$14:$S$300,T$48,0),"") -> 22.91 | U59: =IFERROR(VLOOKUP($B59,'LED #4'!$A$14:$S$300,U$48,0),"") -> 209.59
B60: 0.090 | C60: =IFERROR(VLOOKUP($B60,'LED #1'!$A$14:$S$300,C$48,0),"") -> 46.08 | D60: =IFERROR(VLOOKUP($B60,'LED #1'!$A$14:$S$300,D$48,0),"") -> 174.83 | E60: =IFERROR(VLOOKUP($B60,'LED #1'!$A$14:$S$300,E$48,0),"") -> 2.93 | F60: =IFERROR(VLOOKUP($B60,'LED #1'!$A$14:$S$300,F$48,0),"") -> 4.00 | H60: =IFERROR(VLOOKUP($B60,'LED #2'!$A$14:$S$300,H$48,0),"") -> 46.77 | I60: =IFERROR(VLOOKUP($B60,'LED #2'!$A$14:$S$300,I$48,0),"") -> 0.25 | J60: =IFERROR(VLOOKUP($B60,'LED #2'!$A$14:$S$300,J$48,0),"") -> 185.07 | K60: =IFERROR(VLOOKUP($B60,'LED #2'!$A$14:$S$300,K$48,0),"") -> 4.00 | M60: =IFERROR(VLOOKUP($B60,'LED #3'!$A$14:$S$300,M$48,0),"") -> 46.47 | N60: =IFERROR(VLOOKUP($B60,'LED #3'!$A$14:$S$300,N$48,0),"") -> 46.47 | O60: =IFERROR(VLOOKUP($B60,'LED #3'!$A$14:$S$300,O$48,0),"") -> 2.54 | P60: =IFERROR(VLOOKUP($B60,'LED #3'!$A$14:$S$300,P$48,0),"") -> 203.58 | R60: =IFERROR(VLOOKUP($B60,'LED #4'!$A$14:$S$300,R$48,0),"") -> 424.22 | S60: =IFERROR(VLOOKUP($B60,'LED #4'!$A$14:$S$300,S$48,0),"") -> 424.22 | T60: =IFERROR(VLOOKUP($B60,'LED #4'!$A$14:$S$300,T$48,0),"") -> 23.10 | U60: =IFERROR(VLOOKUP($B60,'LED #4'!$A$14:$S$300,U$48,0),"") -> 204.06
B61: 0.100 | C61: =IFERROR(VLOOKUP($B61,'LED #1'!$A$14:$S$300,C$48,0),"") -> 50.72 | D61: =IFERROR(VLOOKUP($B61,'LED #1'!$A$14:$S$300,D$48,0),"") -> 171.46 | E61: =IFERROR(VLOOKUP($B61,'LED #1'!$A$14:$S$300,E$48,0),"") -> 2.96 | F61: =IFERROR(VLOOKUP($B61,'LED #1'!$A$14:$S$300,F$48,0),"") -> 4.00 | H61: =IFERROR(VLOOKUP($B61,'LED #2'!$A$14:$S$300,H$48,0),"") -> 51.52 | I61: =IFERROR(VLOOKUP($B61,'LED #2'!$A$14:$S$300,I$48,0),"") -> 0.28 | J61: =IFERROR(VLOOKUP($B61,'LED #2'!$A$14:$S$300,J$48,0),"") -> 182.11 | K61: =IFERROR(VLOOKUP($B61,'LED #2'!$A$14:$S$300,K$48,0),"") -> 4.00 | M61: =IFERROR(VLOOKUP($B61,'LED #3'!$A$14:$S$300,M$48,0),"") -> 51.91 | N61: =IFERROR(VLOOKUP($B61,'LED #3'!$A$14:$S$300,N$48,0),"") -> 51.91 | O61: =IFERROR(VLOOKUP($B61,'LED #3'!$A$14:$S$300,O$48,0),"") -> 2.54 | P61: =IFERROR(VLOOKUP($B61,'LED #3'!$A$14:$S$300,P$48,0),"") -> 204.20 | R61: =IFERROR(VLOOKUP($B61,'LED #4'!$A$14:$S$300,R$48,0),"") -> 463.23 | S61: =IFERROR(VLOOKUP($B61,'LED #4'!$A$14:$S$300,S$48,0),"") -> 463.23 | T61: =IFERROR(VLOOKUP($B61,'LED #4'!$A$14:$S$300,T$48,0),"") -> 23.29 | U61: =IFERROR(VLOOKUP($B61,'LED #4'!$A$14:$S$300,U$48,0),"") -> 198.93
B62: 0.110 | C62: =IFERROR(VLOOKUP($B62,'LED #1'!$A$14:$S$300,C$48,0),"") -> 55.29 | D62: =IFERROR(VLOOKUP($B62,'LED #1'!$A$14:$S$300,D$48,0),"") -> 168.26 | E62: =IFERROR(VLOOKUP($B62,'LED #1'!$A$14:$S$300,E$48,0),"") -> 2.99 | F62: =IFERROR(VLOOKUP($B62,'LED #1'!$A$14:$S$300,F$48,0),"") -> 3.00 | H62: =IFERROR(VLOOKUP($B62,'LED #2'!$A$14:$S$300,H$48,0),"") -> 56.19 | I62: =IFERROR(VLOOKUP($B62,'LED #2'!$A$14:$S$300,I$48,0),"") -> 0.31 | J62: =IFERROR(VLOOKUP($B62,'LED #2'!$A$14:$S$300,J$48,0),"") -> 179.27 | K62: =IFERROR(VLOOKUP($B62,'LED #2'!$A$14:$S$300,K$48,0),"") -> 3.00 | M62: =IFERROR(VLOOKUP($B62,'LED #3'!$A$14:$S$300,M$48,0),"") -> 57.34 | N62: =IFERROR(VLOOKUP($B62,'LED #3'!$A$14:$S$300,N$48,0),"") -> 57.34 | O62: =IFERROR(VLOOKUP($B62,'LED #3'!$A$14:$S$300,O$48,0),"") -> 2.55 | P62: =IFERROR(VLOOKUP($B62,'LED #3'!$A$14:$S$300,P$48,0),"") -> 204.56 | R62: =IFERROR(VLOOKUP($B62,'LED #4'!$A$14:$S$300,R$48,0),"") -> 501.12 | S62: =IFERROR(VLOOKUP($B62,'LED #4'!$A$14:$S$300,S$48,0),"") -> 501.12 | T62: =IFERROR(VLOOKUP($B62,'LED #4'!$A$14:$S$300,T$48,0),"") -> 23.47 | U62: =IFERROR(VLOOKUP($B62,'LED #4'!$A$14:$S$300,U$48,0),"") -> 194.13
B63: 0.120 | C63: =IFERROR(VLOOKUP($B63,'LED #1'!$A$14:$S$300,C$48,0),"") -> 59.77 | D63: =IFERROR(VLOOKUP($B63,'LED #1'!$A$14:$S$300,D$48,0),"") -> 165.19 | E63: =IFERROR(VLOOKUP($B63,'LED #1'!$A$14:$S$300,E$48,0),"") -> 3.02 | F63: =IFERROR(VLOOKUP($B63,'LED #1'!$A$14:$S$300,F$48,0),"") -> 3.00 | H63: =IFERROR(VLOOKUP($B63,'LED #2'!$A$14:$S$300,H$48,0),"") -> 60.77 | I63: =IFERROR(VLOOKUP($B63,'LED #2'!$A$14:$S$300,I$48,0),"") -> 0.34 | J63: =IFERROR(VLOOKUP($B63,'LED #2'!$A$14:$S$300,J$48,0),"") -> 176.54 | K63: =IFERROR(VLOOKUP($B63,'LED #2'!$A$14:$S$300,K$48,0),"") -> 3.00 | M63: =IFERROR(VLOOKUP($B63,'LED #3'!$A$14:$S$300,M$48,0),"") -> 62.74 | N63: =IFERROR(VLOOKUP($B63,'LED #3'!$A$14:$S$300,N$48,0),"") -> 62.74 | O63: =IFERROR(VLOOKUP($B63,'LED #3'!$A$14:$S$300,O$48,0),"") -> 2.55 | P63: =IFERROR(VLOOKUP($B63,'LED #3'!$A$14:$S$300,P$48,0),"") -> 204.72 | R63: =IFERROR(VLOOKUP($B63,'LED #4'!$A$14:$S$300,R$48,0),"") -> 537.94 | S63: =IFERROR(VLOOKUP($B63,'LED #4'!$A$14:$S$300,S$48,0),"") -> 537.94 | T63: =IFERROR(VLOOKUP($B63,'LED #4'!$A$14:$S$300,T$48,0),"") -> 23.64 | U63: =IFERROR(VLOOKUP($B63,'LED #4'!$A$14:$S$300,U$48,0),"") -> 189.60
B64: 0.130 | C64: =IFERROR(VLOOKUP($B64,'LED #1'!$A$14:$S$300,C$48,0),"") -> 64.18 | D64: =IFERROR(VLOOKUP($B64,'LED #1'!$A$14:$S$300,D$48,0),"") -> 162.26 | E64: =IFERROR(VLOOKUP($B64,'LED #1'!$A$14:$S$300,E$48,0),"") -> 3.04 | F64: =IFERROR(VLOOKUP($B64,'LED #1'!$A$14:$S$300,F$48,0),"") -> 3.00 | H64: =IFERROR(VLOOKUP($B64,'LED #2'!$A$14:$S$300,H$48,0),"") -> 65.27 | I64: =IFERROR(VLOOKUP($B64,'LED #2'!$A$14:$S$300,I$48,0),"") -> 0.38 | J64: =IFERROR(VLOOKUP($B64,'LED #2'!$A$14:$S$300,J$48,0),"") -> 173.92 | K64: =IFERROR(VLOOKUP($B64,'LED #2'!$A$14:$S$300,K$48,0),"") -> 3.00 | M64: =IFERROR(VLOOKUP($B64,'LED #3'!$A$14:$S$300,M$48,0),"") -> 68.13 | N64: =IFERROR(VLOOKUP($B64,'LED #3'!$A$14:$S$300,N$48,0),"") -> 68.13 | O64: =IFERROR(VLOOKUP($B64,'LED #3'!$A$14:$S$300,O$48,0),"") -> 2.56 | P64: =IFERROR(VLOOKUP($B64,'LED #3'!$A$14:$S$300,P$48,0),"") -> 204.74 | R64: =IFERROR(VLOOKUP($B64,'LED #4'!$A$14:$S$300,R$48,0),"") -> 573.70 | S64: =IFERROR(VLOOKUP($B64,'LED #4'!$A$14:$S$300,S$48,0),"") -> 573.70 | T64: =IFERROR(VLOOKUP($B64,'LED #4'!$A$14:$S$300,T$48,0),"") -> 23.82 | U64: =IFERROR(VLOOKUP($B64,'LED #4'!$A$14:$S$300,U$48,0),"") -> 185.31
B65: 0.140 | C65: =IFERROR(VLOOKUP($B65,'LED #1'!$A$14:$S$300,C$48,0),"") -> 68.51 | D65: =IFERROR(VLOOKUP($B65,'LED #1'!$A$14:$S$300,D$48,0),"") -> 159.44 | E65: =IFERROR(VLOOKUP($B65,'LED #1'!$A$14:$S$300,E$48,0),"") -> 3.07 | F65: =IFERROR(VLOOKUP($B65,'LED #1'!$A$14:$S$300,F$48,0),"") -> 3.00 | H65: =IFERROR(VLOOKUP($B65,'LED #2'!$A$14:$S$300,H$48,0),"") -> 69.69 | I65: =IFERROR(VLOOKUP($B65,'LED #2'!$A$14:$S$300,I$48,0),"") -> 0.41 | J65: =IFERROR(VLOOKUP($B65,'LED #2'!$A$14:$S$300,J$48,0),"") -> 171.39 | K65: =IFERROR(VLOOKUP($B65,'LED #2'!$A$14:$S$300,K$48,0),"") -> 3.00 | M65: =IFERROR(VLOOKUP($B65,'LED #3'!$A$14:$S$300,M$48,0),"") -> 73.50 | N65: =IFERROR(VLOOKUP($B65,'LED #3'!$A$14:$S$300,N$48,0),"") -> 73.50 | O65: =IFERROR(VLOOKUP($B65,'LED #3'!$A$14:$S$300,O$48,0),"") -> 2.57 | P65: =IFERROR(VLOOKUP($B65,'LED #3'!$A$14:$S$300,P$48,0),"") -> 204.63 | R65: =IFERROR(VLOOKUP($B65,'LED #4'!$A$14:$S$300,R$48,0),"") -> 608.45 | S65: =IFERROR(VLOOKUP($B65,'LED #4'!$A$14:$S$300,S$48,0),"") -> 608.45 | T65: =IFERROR(VLOOKUP($B65,'LED #4'!$A$14:$S$300,T$48,0),"") -> 23.98 | U65: =IFERROR(VLOOKUP($B65,'LED #4'!$A$14:$S$300,U$48,0),"") -> 181.23
B66: 0.150 | C66: =IFERROR(VLOOKUP($B66,'LED #1'!$A$14:$S$300,C$48,0),"") -> 72.77 | D66: =IFERROR(VLOOKUP($B66,'LED #1'!$A$14:$S$300,D$48,0),"") -> 156.73 | E66: =IFERROR(VLOOKUP($B66,'LED #1'!$A$14:$S$300,E$48,0),"") -> 3.10 | F66: =IFERROR(VLOOKUP($B66,'LED #1'!$A$14:$S$300,F$48,0),"") -> 3.00 | H66: =IFERROR(VLOOKUP($B66,'LED #2'!$A$14:$S$300,H$48,0),"") -> 74.03 | I66: =IFERROR(VLOOKUP($B66,'LED #2'!$A$14:$S$300,I$48,0),"") -> 0.44 | J66: =IFERROR(VLOOKUP($B66,'LED #2'!$A$14:$S$300,J$48,0),"") -> 168.96 | K66: =IFERROR(VLOOKUP($B66,'LED #2'!$A$14:$S$300,K$48,0),"") -> 3.00 | M66: =IFERROR(VLOOKUP($B66,'LED #3'!$A$14:$S$300,M$48,0),"") -> 78.85 | N66: =IFERROR(VLOOKUP($B66,'LED #3'!$A$14:$S$300,N$48,0),"") -> 78.85 | O66: =IFERROR(VLOOKUP($B66,'LED #3'!$A$14:$S$300,O$48,0),"") -> 2.57 | P66: =IFERROR(VLOOKUP($B66,'LED #3'!$A$14:$S$300,P$48,0),"") -> 204.44 | R66: =IFERROR(VLOOKUP($B66,'LED #4'!$A$14:$S$300,R$48,0),"") -> 642.21 | S66: =IFERROR(VLOOKUP($B66,'LED #4'!$A$14:$S$300,S$48,0),"") -> 642.21 | T66: =IFERROR(VLOOKUP($B66,'LED #4'!$A$14:$S$300,T$48,0),"") -> 24.14 | U66: =IFERROR(VLOOKUP($B66,'LED #4'!$A$14:$S$300,U$48,0),"") -> 177.33
B67: 0.160 | C67: =IFERROR(VLOOKUP($B67,'LED #1'!$A$14:$S$300,C$48,0),"") -> 76.95 | D67: =IFERROR(VLOOKUP($B67,'LED #1'!$A$14:$S$300,D$48,0),"") -> 154.13 | E67: =IFERROR(VLOOKUP($B67,'LED #1'!$A$14:$S$300,E$48,0),"") -> 3.12 | F67: =IFERROR(VLOOKUP($B67,'LED #1'!$A$14:$S$300,F$48,0),"") -> 3.00 | H67: =IFERROR(VLOOKUP($B67,'LED #2'!$A$14:$S$300,H$48,0),"") -> 78.30 | I67: =IFERROR(VLOOKUP($B67,'LED #2'!$A$14:$S$300,I$48,0),"") -> 0.47 | J67: =IFERROR(VLOOKUP($B67,'LED #2'!$A$14:$S$300,J$48,0),"") -> 166.62 | K67: =IFERROR(VLOOKUP($B67,'LED #2'!$A$14:$S$300,K$48,0),"") -> 3.00 | M67: =IFERROR(VLOOKUP($B67,'LED #3'!$A$14:$S$300,M$48,0),"") -> 84.19 | N67: =IFERROR(VLOOKUP($B67,'LED #3'!$A$14:$S$300,N$48,0),"") -> 84.19 | O67: =IFERROR(VLOOKUP($B67,'LED #3'!$A$14:$S$300,O$48,0),"") -> 2.58 | P67: =IFERROR(VLOOKUP($B67,'LED #3'!$A$14:$S$300,P$48,0),"") -> 204.17 | R67: =IFERROR(VLOOKUP($B67,'LED #4'!$A$14:$S$300,R$48,0),"") -> 675.00 | S67: =IFERROR(VLOOKUP($B67,'LED #4'!$A$14:$S$300,S$48,0),"") -> 675.00 | T67: =IFERROR(VLOOKUP($B67,'LED #4'!$A$14:$S$300,T$48,0),"") -> 24.30 | U67: =IFERROR(VLOOKUP($B67,'LED #4'!$A$14:$S$300,U$48,0),"") -> 173.61
B68: 0.170 | C68: =IFERROR(VLOOKUP($B68,'LED #1'!$A$14:$S$300,C$48,0),"") -> 81.07 | D68: =IFERROR(VLOOKUP($B68,'LED #1'!$A$14:$S$300,D$48,0),"") -> 151.62 | E68: =IFERROR(VLOOKUP($B68,'LED #1'!$A$14:$S$300,E$48,0),"") -> 3.14 | F68: =IFERROR(VLOOKUP($B68,'LED #1'!$A$14:$S$300,F$48,0),"") -> 2.00 | H68: =IFERROR(VLOOKUP($B68,'LED #2'!$A$14:$S$300,H$48,0),"") -> 82.48 | I68: =IFERROR(VLOOKUP($B68,'LED #2'!$A$14:$S$300,I$48,0),"") -> 0.50 | J68: =IFERROR(VLOOKUP($B68,'LED #2'!$A$14:$S$300,J$48,0),"") -> 164.35 | K68: =IFERROR(VLOOKUP($B68,'LED #2'!$A$14:$S$300,K$48,0),"") -> 2.00 | M68: =IFERROR(VLOOKUP($B68,'LED #3'!$A$14:$S$300,M$48,0),"") -> 89.51 | N68: =IFERROR(VLOOKUP($B68,'LED #3'!$A$14:$S$300,N$48,0),"") -> 89.51 | O68: =IFERROR(VLOOKUP($B68,'LED #3'!$A$14:$S$300,O$48,0),"") -> 2.58 | P68: =IFERROR(VLOOKUP($B68,'LED #3'!$A$14:$S$300,P$48,0),"") -> 203.84 | R68: =IFERROR(VLOOKUP($B68,'LED #4'!$A$14:$S$300,R$48,0),"") -> 706.86 | S68: =IFERROR(VLOOKUP($B68,'LED #4'!$A$14:$S$300,S$48,0),"") -> 706.86 | T68: =IFERROR(VLOOKUP($B68,'LED #4'!$A$14:$S$300,T$48,0),"") -> 24.45 | U68: =IFERROR(VLOOKUP($B68,'LED #4'!$A$14:$S$300,U$48,0),"") -> 170.04
B69: 0.180 | C69: =IFERROR(VLOOKUP($B69,'LED #1'!$A$14:$S$300,C$48,0),"") -> 85.10 | D69: =IFERROR(VLOOKUP($B69,'LED #1'!$A$14:$S$300,D$48,0),"") -> 149.21 | E69: =IFERROR(VLOOKUP($B69,'LED #1'!$A$14:$S$300,E$48,0),"") -> 3.17 | F69: =IFERROR(VLOOKUP($B69,'LED #1'!$A$14:$S$300,F$48,0),"") -> 2.00 | H69: =IFERROR(VLOOKUP($B69,'LED #2'!$A$14:$S$300,H$48,0),"") -> 86.59 | I69: =IFERROR(VLOOKUP($B69,'LED #2'!$A$14:$S$300,I$48,0),"") -> 0.53 | J69: =IFERROR(VLOOKUP($B69,'LED #2'!$A$14:$S$300,J$48,0),"") -> 162.17 | K69: =IFERROR(VLOOKUP($B69,'LED #2'!$A$14:$S$300,K$48,0),"") -> 2.00 | M69: =IFERROR(VLOOKUP($B69,'LED #3'!$A$14:$S$300,M$48,0),"") -> 94.81 | N69: =IFERROR(VLOOKUP($B69,'LED #3'!$A$14:$S$300,N$48,0),"") -> 94.81 | O69: =IFERROR(VLOOKUP($B69,'LED #3'!$A$14:$S$300,O$48,0),"") -> 2.59 | P69: =IFERROR(VLOOKUP($B69,'LED #3'!$A$14:$S$300,P$48,0),"") -> 203.47 | R69: =IFERROR(VLOOKUP($B69,'LED #4'!$A$14:$S$300,R$48,0),"") -> 737.81 | S69: =IFERROR(VLOOKUP($B69,'LED #4'!$A$14:$S$300,S$48,0),"") -> 737.81 | T69: =IFERROR(VLOOKUP($B69,'LED #4'!$A$14:$S$300,T$48,0),"") -> 24.60 | U69: =IFERROR(VLOOKUP($B69,'LED #4'!$A$14:$S$300,U$48,0),"") -> 166.62
B70: 0.190 | C70: =IFERROR(VLOOKUP($B70,'LED #1'!$A$14:$S$300,C$48,0),"") -> 89.07 | D70: =IFERROR(VLOOKUP($B70,'LED #1'!$A$14:$S$300,D$48,0),"") -> 146.88 | E70: =IFERROR(VLOOKUP($B70,'LED #1'!$A$14:$S$300,E$48,0),"") -> 3.19 | F70: =IFERROR(VLOOKUP($B70,'LED #1'!$A$14:$S$300,F$48,0),"") -> 2.00 | H70: =IFERROR(VLOOKUP($B70,'LED #2'!$A$14:$S$300,H$48,0),"") -> 90.63 | I70: =IFERROR(VLOOKUP($B70,'LED #2'!$A$14:$S$300,I$48,0),"") -> 0.57 | J70: =IFERROR(VLOOKUP($B70,'LED #2'!$A$14:$S$300,J$48,0),"") -> 160.05 | K70: =IFERROR(VLOOKUP($B70,'LED #2'!$A$14:$S$300,K$48,0),"") -> 2.00 | M70: =IFERROR(VLOOKUP($B70,'LED #3'!$A$14:$S$300,M$48,0),"") -> 100.09 | N70: =IFERROR(VLOOKUP($B70,'LED #3'!$A$14:$S$300,N$48,0),"") -> 100.09 | O70: =IFERROR(VLOOKUP($B70,'LED #3'!$A$14:$S$300,O$48,0),"") -> 2.59 | P70: =IFERROR(VLOOKUP($B70,'LED #3'!$A$14:$S$300,P$48,0),"") -> 203.05 | R70: =IFERROR(VLOOKUP($B70,'LED #4'!$A$14:$S$300,R$48,0),"") -> 767.88 | S70: =IFERROR(VLOOKUP($B70,'LED #4'!$A$14:$S$300,S$48,0),"") -> 767.88 | T70: =IFERROR(VLOOKUP($B70,'LED #4'!$A$14:$S$300,T$48,0),"") -> 24.74 | U70: =IFERROR(VLOOKUP($B70,'LED #4'!$A$14:$S$300,U$48,0),"") -> 163.33
B71: 0.200 | C71: =IFERROR(VLOOKUP($B71,'LED #1'!$A$14:$S$300,C$48,0),"") -> 92.98 | D71: =IFERROR(VLOOKUP($B71,'LED #1'!$A$14:$S$300,D$48,0),"") -> 144.62 | E71: =IFERROR(VLOOKUP($B71,'LED #1'!$A$14:$S$300,E$48,0),"") -> 3.21 | F71: =IFERROR(VLOOKUP($B71,'LED #1'!$A$14:$S$300,F$48,0),"") -> 2.00 | H71: =IFERROR(VLOOKUP($B71,'LED #2'!$A$14:$S$300,H$48,0),"") -> 94.59 | I71: =IFERROR(VLOOKUP($B71,'LED #2'!$A$14:$S$300,I$48,0),"") -> 0.60 | J71: =IFERROR(VLOOKUP($B71,'LED #2'!$A$14:$S$300,J$48,0),"") -> 158.01 | K71: =IFERROR(VLOOKUP($B71,'LED #2'!$A$14:$S$300,K$48,0),"") -> 2.00 | M71: =IFERROR(VLOOKUP($B71,'LED #3'!$A$14:$S$300,M$48,0),"") -> 105.35 | N71: =IFERROR(VLOOKUP($B71,'LED #3'!$A$14:$S$300,N$48,0),"") -> 105.35 | O71: =IFERROR(VLOOKUP($B71,'LED #3'!$A$14:$S$300,O$48,0),"") -> 2.60 | P71: =IFERROR(VLOOKUP($B71,'LED #3'!$A$14:$S$300,P$48,0),"") -> 202.61 | R71: =IFERROR(VLOOKUP($B71,'LED #4'!$A$14:$S$300,R$48,0),"") -> 797.10 | S71: =IFERROR(VLOOKUP($B71,'LED #4'!$A$14:$S$300,S$48,0),"") -> 797.10 | T71: =IFERROR(VLOOKUP($B71,'LED #4'!$A$14:$S$300,T$48,0),"") -> 24.88 | U71: =IFERROR(VLOOKUP($B71,'LED #4'!$A$14:$S$300,U$48,0),"") -> 160.16
B72: 0.210 | C72: =IFERROR(VLOOKUP($B72,'LED #1'!$A$14:$S$300,C$48,0),"") ->  | D72: =IFERROR(VLOOKUP($B72,'LED #1'!$A$14:$S$300,D$48,0),"") ->  | E72: =IFERROR(VLOOKUP($B72,'LED #1'!$A$14:$S$300,E$48,0),"") ->  | F72: =IFERROR(VLOOKUP($B72,'LED #1'!$A$14:$S$300,F$48,0),"") ->  | H72: =IFERROR(VLOOKUP($B72,'LED #2'!$A$14:$S$300,H$48,0),"") ->  | I72: =IFERROR(VLOOKUP($B72,'LED #2'!$A$14:$S$300,I$48,0),"") ->  | J72: =IFERROR(VLOOKUP($B72,'LED #2'!$A$14:$S$300,J$48,0),"") ->  | K72: =IFERROR(VLOOKUP($B72,'LED #2'!$A$14:$S$300,K$48,0),"") ->  | M72: =IFERROR(VLOOKUP($B72,'LED #3'!$A$14:$S$300,M$48,0),"") -> 110.60 | N72: =IFERROR(VLOOKUP($B72,'LED #3'!$A$14:$S$300,N$48,0),"") -> 110.60 | O72: =IFERROR(VLOOKUP($B72,'LED #3'!$A$14:$S$300,O$48,0),"") -> 2.61 | P72: =IFERROR(VLOOKUP($B72,'LED #3'!$A$14:$S$300,P$48,0),"") -> 202.13 | R72: =IFERROR(VLOOKUP($B72,'LED #4'!$A$14:$S$300,R$48,0),"") ->  | S72: =IFERROR(VLOOKUP($B72,'LED #4'!$A$14:$S$300,S$48,0),"") ->  | T72: =IFERROR(VLOOKUP($B72,'LED #4'!$A$14:$S$300,T$48,0),"") ->  | U72: =IFERROR(VLOOKUP($B72,'LED #4'!$A$14:$S$300,U$48,0),"") -> 
B73: 0.220 | C73: =IFERROR(VLOOKUP($B73,'LED #1'!$A$14:$S$300,C$48,0),"") ->  | D73: =IFERROR(VLOOKUP($B73,'LED #1'!$A$14:$S$300,D$48,0),"") ->  | E73: =IFERROR(VLOOKUP($B73,'LED #1'!$A$14:$S$300,E$48,0),"") ->  | F73: =IFERROR(VLOOKUP($B73,'LED #1'!$A$14:$S$300,F$48,0),"") ->  | H73: =IFERROR(VLOOKUP($B73,'LED #2'!$A$14:$S$300,H$48,0),"") ->  | I73: =IFERROR(VLOOKUP($B73,'LED #2'!$A$14:$S$300,I$48,0),"") ->  | J73: =IFERROR(VLOOKUP($B73,'LED #2'!$A$14:$S$300,J$48,0),"") ->  | K73: =IFERROR(VLOOKUP($B73,'LED #2'!$A$14:$S$300,K$48,0),"") ->  | M73: =IFERROR(VLOOKUP($B73,'LED #3'!$A$14:$S$300,M$48,0),"") -> 115.83 | N73: =IFERROR(VLOOKUP($B73,'LED #3'!$A$14:$S$300,N$48,0),"") -> 115.83 | O73: =IFERROR(VLOOKUP($B73,'LED #3'!$A$14:$S$300,O$48,0),"") -> 2.61 | P73: =IFERROR(VLOOKUP($B73,'LED #3'!$A$14:$S$300,P$48,0),"") -> 201.64 | R73: =IFERROR(VLOOKUP($B73,'LED #4'!$A$14:$S$300,R$48,0),"") ->  | S73: =IFERROR(VLOOKUP($B73,'LED #4'!$A$14:$S$300,S$48,0),"") ->  | T73: =IFERROR(VLOOKUP($B73,'LED #4'!$A$14:$S$300,T$48,0),"") ->  | U73: =IFERROR(VLOOKUP($B73,'LED #4'!$A$14:$S$300,U$48,0),"") -> 
B74: 0.230 | C74: =IFERROR(VLOOKUP($B74,'LED #1'!$A$14:$S$300,C$48,0),"") ->  | D74: =IFERROR(VLOOKUP($B74,'LED #1'!$A$14:$S$300,D$48,0),"") ->  | E74: =IFERROR(VLOOKUP($B74,'LED #1'!$A$14:$S$300,E$48,0),"") ->  | F74: =IFERROR(VLOOKUP($B74,'LED #1'!$A$14:$S$300,F$48,0),"") ->  | H74: =IFERROR(VLOOKUP($B74,'LED #2'!$A$14:$S$300,H$48,0),"") ->  | I74: =IFERROR(VLOOKUP($B74,'LED #2'!$A$14:$S$300,I$48,0),"") ->  | J74: =IFERROR(VLOOKUP($B74,'LED #2'!$A$14:$S$300,J$48,0),"") ->  | K74: =IFERROR(VLOOKUP($B74,'LED #2'!$A$14:$S$300,K$48,0),"") ->  | M74: =IFERROR(VLOOKUP($B74,'LED #3'!$A$14:$S$300,M$48,0),"") -> 121.04 | N74: =IFERROR(VLOOKUP($B74,'LED #3'!$A$14:$S$300,N$48,0),"") -> 121.04 | O74: =IFERROR(VLOOKUP($B74,'LED #3'!$A$14:$S$300,O$48,0),"") -> 2.62 | P74: =IFERROR(VLOOKUP($B74,'LED #3'!$A$14:$S$300,P$48,0),"") -> 201.12 | R74: =IFERROR(VLOOKUP($B74,'LED #4'!$A$14:$S$300,R$48,0),"") ->  | S74: =IFERROR(VLOOKUP($B74,'LED #4'!$A$14:$S$300,S$48,0),"") ->  | T74: =IFERROR(VLOOKUP($B74,'LED #4'!$A$14:$S$300,T$48,0),"") ->  | U74: =IFERROR(VLOOKUP($B74,'LED #4'!$A$14:$S$300,U$48,0),"") -> 
B75: 0.240 | C75: =IFERROR(VLOOKUP($B75,'LED #1'!$A$14:$S$300,C$48,0),"") ->  | D75: =IFERROR(VLOOKUP($B75,'LED #1'!$A$14:$S$300,D$48,0),"") ->  | E75: =IFERROR(VLOOKUP($B75,'LED #1'!$A$14:$S$300,E$48,0),"") ->  | F75: =IFERROR(VLOOKUP($B75,'LED #1'!$A$14:$S$300,F$48,0),"") ->  | H75: =IFERROR(VLOOKUP($B75,'LED #2'!$A$14:$S$300,H$48,0),"") ->  | I75: =IFERROR(VLOOKUP($B75,'LED #2'!$A$14:$S$300,I$48,0),"") ->  | J75: =IFERROR(VLOOKUP($B75,'LED #2'!$A$14:$S$300,J$48,0),"") ->  | K75: =IFERROR(VLOOKUP($B75,'LED #2'!$A$14:$S$300,K$48,0),"") ->  | M75: =IFERROR(VLOOKUP($B75,'LED #3'!$A$14:$S$300,M$48,0),"") -> 126.24 | N75: =IFERROR(VLOOKUP($B75,'LED #3'!$A$14:$S$300,N$48,0),"") -> 126.24 | O75: =IFERROR(VLOOKUP($B75,'LED #3'!$A$14:$S$300,O$48,0),"") -> 2.62 | P75: =IFERROR(VLOOKUP($B75,'LED #3'!$A$14:$S$300,P$48,0),"") -> 200.59 | R75: =IFERROR(VLOOKUP($B75,'LED #4'!$A$14:$S$300,R$48,0),"") ->  | S75: =IFERROR(VLOOKUP($B75,'LED #4'!$A$14:$S$300,S$48,0),"") ->  | T75: =IFERROR(VLOOKUP($B75,'LED #4'!$A$14:$S$300,T$48,0),"") ->  | U75: =IFERROR(VLOOKUP($B75,'LED #4'!$A$14:$S$300,U$48,0),"") -> 
B76: 0.250 | C76: =IFERROR(VLOOKUP($B76,'LED #1'!$A$14:$S$300,C$48,0),"") ->  | D76: =IFERROR(VLOOKUP($B76,'LED #1'!$A$14:$S$300,D$48,0),"") ->  | E76: =IFERROR(VLOOKUP($B76,'LED #1'!$A$14:$S$300,E$48,0),"") ->  | F76: =IFERROR(VLOOKUP($B76,'LED #1'!$A$14:$S$300,F$48,0),"") ->  | H76: =IFERROR(VLOOKUP($B76,'LED #2'!$A$14:$S$300,H$48,0),"") ->  | I76: =IFERROR(VLOOKUP($B76,'LED #2'!$A$14:$S$300,I$48,0),"") ->  | J76: =IFERROR(VLOOKUP($B76,'LED #2'!$A$14:$S$300,J$48,0),"") ->  | K76: =IFERROR(VLOOKUP($B76,'LED #2'!$A$14:$S$300,K$48,0),"") ->  | M76: =IFERROR(VLOOKUP($B76,'LED #3'!$A$14:$S$300,M$48,0),"") -> 131.41 | N76: =IFERROR(VLOOKUP($B76,'LED #3'!$A$14:$S$300,N$48,0),"") -> 131.41 | O76: =IFERROR(VLOOKUP($B76,'LED #3'!$A$14:$S$300,O$48,0),"") -> 2.63 | P76: =IFERROR(VLOOKUP($B76,'LED #3'!$A$14:$S$300,P$48,0),"") -> 200.04 | R76: =IFERROR(VLOOKUP($B76,'LED #4'!$A$14:$S$300,R$48,0),"") ->  | S76: =IFERROR(VLOOKUP($B76,'LED #4'!$A$14:$S$300,S$48,0),"") ->  | T76: =IFERROR(VLOOKUP($B76,'LED #4'!$A$14:$S$300,T$48,0),"") ->  | U76: =IFERROR(VLOOKUP($B76,'LED #4'!$A$14:$S$300,U$48,0),"") -> 
B77: 0.260 | C77: =IFERROR(VLOOKUP($B77,'LED #1'!$A$14:$S$300,C$48,0),"") ->  | D77: =IFERROR(VLOOKUP($B77,'LED #1'!$A$14:$S$300,D$48,0),"") ->  | E77: =IFERROR(VLOOKUP($B77,'LED #1'!$A$14:$S$300,E$48,0),"") ->  | F77: =IFERROR(VLOOKUP($B77,'LED #1'!$A$14:$S$300,F$48,0),"") ->  | H77: =IFERROR(VLOOKUP($B77,'LED #2'!$A$14:$S$300,H$48,0),"") ->  | I77: =IFERROR(VLOOKUP($B77,'LED #2'!$A$14:$S$300,I$48,0),"") ->  | J77: =IFERROR(VLOOKUP($B77,'LED #2'!$A$14:$S$300,J$48,0),"") ->  | K77: =IFERROR(VLOOKUP($B77,'LED #2'!$A$14:$S$300,K$48,0),"") ->  | M77: =IFERROR(VLOOKUP($B77,'LED #3'!$A$14:$S$300,M$48,0),"") -> 136.58 | N77: =IFERROR(VLOOKUP($B77,'LED #3'!$A$14:$S$300,N$48,0),"") -> 136.58 | O77: =IFERROR(VLOOKUP($B77,'LED #3'!$A$14:$S$300,O$48,0),"") -> 2.63 | P77: =IFERROR(VLOOKUP($B77,'LED #3'!$A$14:$S$300,P$48,0),"") -> 199.49 | R77: =IFERROR(VLOOKUP($B77,'LED #4'!$A$14:$S$300,R$48,0),"") ->  | S77: =IFERROR(VLOOKUP($B77,'LED #4'!$A$14:$S$300,S$48,0),"") ->  | T77: =IFERROR(VLOOKUP($B77,'LED #4'!$A$14:$S$300,T$48,0),"") ->  | U77: =IFERROR(VLOOKUP($B77,'LED #4'!$A$14:$S$300,U$48,0),"") -> 
B78: 0.270 | C78: =IFERROR(VLOOKUP($B78,'LED #1'!$A$14:$S$300,C$48,0),"") ->  | D78: =IFERROR(VLOOKUP($B78,'LED #1'!$A$14:$S$300,D$48,0),"") ->  | E78: =IFERROR(VLOOKUP($B78,'LED #1'!$A$14:$S$300,E$48,0),"") ->  | F78: =IFERROR(VLOOKUP($B78,'LED #1'!$A$14:$S$300,F$48,0),"") ->  | H78: =IFERROR(VLOOKUP($B78,'LED #2'!$A$14:$S$300,H$48,0),"") ->  | I78: =IFERROR(VLOOKUP($B78,'LED #2'!$A$14:$S$300,I$48,0),"") ->  | J78: =IFERROR(VLOOKUP($B78,'LED #2'!$A$14:$S$300,J$48,0),"") ->  | K78: =IFERROR(VLOOKUP($B78,'LED #2'!$A$14:$S$300,K$48,0),"") ->  | M78: =IFERROR(VLOOKUP($B78,'LED #3'!$A$14:$S$300,M$48,0),"") -> 141.72 | N78: =IFERROR(VLOOKUP($B78,'LED #3'!$A$14:$S$300,N$48,0),"") -> 141.72 | O78: =IFERROR(VLOOKUP($B78,'LED #3'!$A$14:$S$300,O$48,0),"") -> 2.64 | P78: =IFERROR(VLOOKUP($B78,'LED #3'!$A$14:$S$300,P$48,0),"") -> 198.92 | R78: =IFERROR(VLOOKUP($B78,'LED #4'!$A$14:$S$300,R$48,0),"") ->  | S78: =IFERROR(VLOOKUP($B78,'LED #4'!$A$14:$S$300,S$48,0),"") ->  | T78: =IFERROR(VLOOKUP($B78,'LED #4'!$A$14:$S$300,T$48,0),"") ->  | U78: =IFERROR(VLOOKUP($B78,'LED #4'!$A$14:$S$300,U$48,0),"") -> 
B79: 0.280 | C79: =IFERROR(VLOOKUP($B79,'LED #1'!$A$14:$S$300,C$48,0),"") ->  | D79: =IFERROR(VLOOKUP($B79,'LED #1'!$A$14:$S$300,D$48,0),"") ->  | E79: =IFERROR(VLOOKUP($B79,'LED #1'!$A$14:$S$300,E$48,0),"") ->  | F79: =IFERROR(VLOOKUP($B79,'LED #1'!$A$14:$S$300,F$48,0),"") ->  | H79: =IFERROR(VLOOKUP($B79,'LED #2'!$A$14:$S$300,H$48,0),"") ->  | I79: =IFERROR(VLOOKUP($B79,'LED #2'!$A$14:$S$300,I$48,0),"") ->  | J79: =IFERROR(VLOOKUP($B79,'LED #2'!$A$14:$S$300,J$48,0),"") ->  | K79: =IFERROR(VLOOKUP($B79,'LED #2'!$A$14:$S$300,K$48,0),"") ->  | M79: =IFERROR(VLOOKUP($B79,'LED #3'!$A$14:$S$300,M$48,0),"") -> 146.85 | N79: =IFERROR(VLOOKUP($B79,'LED #3'!$A$14:$S$300,N$48,0),"") -> 146.85 | O79: =IFERROR(VLOOKUP($B79,'LED #3'!$A$14:$S$300,O$48,0),"") -> 2.64 | P79: =IFERROR(VLOOKUP($B79,'LED #3'!$A$14:$S$300,P$48,0),"") -> 198.35 | R79: =IFERROR(VLOOKUP($B79,'LED #4'!$A$14:$S$300,R$48,0),"") ->  | S79: =IFERROR(VLOOKUP($B79,'LED #4'!$A$14:$S$300,S$48,0),"") ->  | T79: =IFERROR(VLOOKUP($B79,'LED #4'!$A$14:$S$300,T$48,0),"") ->  | U79: =IFERROR(VLOOKUP($B79,'LED #4'!$A$14:$S$300,U$48,0),"") -> 
B80: 0.290 | C80: =IFERROR(VLOOKUP($B80,'LED #1'!$A$14:$S$300,C$48,0),"") ->  | D80: =IFERROR(VLOOKUP($B80,'LED #1'!$A$14:$S$300,D$48,0),"") ->  | E80: =IFERROR(VLOOKUP($B80,'LED #1'!$A$14:$S$300,E$48,0),"") ->  | F80: =IFERROR(VLOOKUP($B80,'LED #1'!$A$14:$S$300,F$48,0),"") ->  | H80: =IFERROR(VLOOKUP($B80,'LED #2'!$A$14:$S$300,H$48,0),"") ->  | I80: =IFERROR(VLOOKUP($B80,'LED #2'!$A$14:$S$300,I$48,0),"") ->  | J80: =IFERROR(VLOOKUP($B80,'LED #2'!$A$14:$S$300,J$48,0),"") ->  | K80: =IFERROR(VLOOKUP($B80,'LED #2'!$A$14:$S$300,K$48,0),"") ->  | M80: =IFERROR(VLOOKUP($B80,'LED #3'!$A$14:$S$300,M$48,0),"") -> 151.96 | N80: =IFERROR(VLOOKUP($B80,'LED #3'!$A$14:$S$300,N$48,0),"") -> 151.96 | O80: =IFERROR(VLOOKUP($B80,'LED #3'!$A$14:$S$300,O$48,0),"") -> 2.65 | P80: =IFERROR(VLOOKUP($B80,'LED #3'!$A$14:$S$300,P$48,0),"") -> 197.77 | R80: =IFERROR(VLOOKUP($B80,'LED #4'!$A$14:$S$300,R$48,0),"") ->  | S80: =IFERROR(VLOOKUP($B80,'LED #4'!$A$14:$S$300,S$48,0),"") ->  | T80: =IFERROR(VLOOKUP($B80,'LED #4'!$A$14:$S$300,T$48,0),"") ->  | U80: =IFERROR(VLOOKUP($B80,'LED #4'!$A$14:$S$300,U$48,0),"") -> 
B81: 0.300 | C81: =IFERROR(VLOOKUP($B81,'LED #1'!$A$14:$S$300,C$48,0),"") ->  | D81: =IFERROR(VLOOKUP($B81,'LED #1'!$A$14:$S$300,D$48,0),"") ->  | E81: =IFERROR(VLOOKUP($B81,'LED #1'!$A$14:$S$300,E$48,0),"") ->  | F81: =IFERROR(VLOOKUP($B81,'LED #1'!$A$14:$S$300,F$48,0),"") ->  | H81: =IFERROR(VLOOKUP($B81,'LED #2'!$A$14:$S$300,H$48,0),"") ->  | I81: =IFERROR(VLOOKUP($B81,'LED #2'!$A$14:$S$300,I$48,0),"") ->  | J81: =IFERROR(VLOOKUP($B81,'LED #2'!$A$14:$S$300,J$48,0),"") ->  | K81: =IFERROR(VLOOKUP($B81,'LED #2'!$A$14:$S$300,K$48,0),"") ->  | M81: =IFERROR(VLOOKUP($B81,'LED #3'!$A$14:$S$300,M$48,0),"") -> 157.05 | N81: =IFERROR(VLOOKUP($B81,'LED #3'!$A$14:$S$300,N$48,0),"") -> 157.05 | O81: =IFERROR(VLOOKUP($B81,'LED #3'!$A$14:$S$300,O$48,0),"") -> 2.65 | P81: =IFERROR(VLOOKUP($B81,'LED #3'!$A$14:$S$300,P$48,0),"") -> 197.18 | R81: =IFERROR(VLOOKUP($B81,'LED #4'!$A$14:$S$300,R$48,0),"") ->  | S81: =IFERROR(VLOOKUP($B81,'LED #4'!$A$14:$S$300,S$48,0),"") ->  | T81: =IFERROR(VLOOKUP($B81,'LED #4'!$A$14:$S$300,T$48,0),"") ->  | U81: =IFERROR(VLOOKUP($B81,'LED #4'!$A$14:$S$300,U$48,0),"") -> 
B82: 0.310 | C82: =IFERROR(VLOOKUP($B82,'LED #1'!$A$14:$S$300,C$48,0),"") ->  | D82: =IFERROR(VLOOKUP($B82,'LED #1'!$A$14:$S$300,D$48,0),"") ->  | E82: =IFERROR(VLOOKUP($B82,'LED #1'!$A$14:$S$300,E$48,0),"") ->  | F82: =IFERROR(VLOOKUP($B82,'LED #1'!$A$14:$S$300,F$48,0),"") ->  | H82: =IFERROR(VLOOKUP($B82,'LED #2'!$A$14:$S$300,H$48,0),"") ->  | I82: =IFERROR(VLOOKUP($B82,'LED #2'!$A$14:$S$300,I$48,0),"") ->  | J82: =IFERROR(VLOOKUP($B82,'LED #2'!$A$14:$S$300,J$48,0),"") ->  | K82: =IFERROR(VLOOKUP($B82,'LED #2'!$A$14:$S$300,K$48,0),"") ->  | M82: =IFERROR(VLOOKUP($B82,'LED #3'!$A$14:$S$300,M$48,0),"") -> 162.12 | N82: =IFERROR(VLOOKUP($B82,'LED #3'!$A$14:$S$300,N$48,0),"") -> 162.12 | O82: =IFERROR(VLOOKUP($B82,'LED #3'!$A$14:$S$300,O$48,0),"") -> 2.66 | P82: =IFERROR(VLOOKUP($B82,'LED #3'!$A$14:$S$300,P$48,0),"") -> 196.59 | R82: =IFERROR(VLOOKUP($B82,'LED #4'!$A$14:$S$300,R$48,0),"") ->  | S82: =IFERROR(VLOOKUP($B82,'LED #4'!$A$14:$S$300,S$48,0),"") ->  | T82: =IFERROR(VLOOKUP($B82,'LED #4'!$A$14:$S$300,T$48,0),"") ->  | U82: =IFERROR(VLOOKUP($B82,'LED #4'!$A$14:$S$300,U$48,0),"") -> 
B83: 0.320 | C83: =IFERROR(VLOOKUP($B83,'LED #1'!$A$14:$S$300,C$48,0),"") ->  | D83: =IFERROR(VLOOKUP($B83,'LED #1'!$A$14:$S$300,D$48,0),"") ->  | E83: =IFERROR(VLOOKUP($B83,'LED #1'!$A$14:$S$300,E$48,0),"") ->  | F83: =IFERROR(VLOOKUP($B83,'LED #1'!$A$14:$S$300,F$48,0),"") ->  | H83: =IFERROR(VLOOKUP($B83,'LED #2'!$A$14:$S$300,H$48,0),"") ->  | I83: =IFERROR(VLOOKUP($B83,'LED #2'!$A$14:$S$300,I$48,0),"") ->  | J83: =IFERROR(VLOOKUP($B83,'LED #2'!$A$14:$S$300,J$48,0),"") ->  | K83: =IFERROR(VLOOKUP($B83,'LED #2'!$A$14:$S$300,K$48,0),"") ->  | M83: =IFERROR(VLOOKUP($B83,'LED #3'!$A$14:$S$300,M$48,0),"") -> 167.18 | N83: =IFERROR(VLOOKUP($B83,'LED #3'!$A$14:$S$300,N$48,0),"") -> 167.18 | O83: =IFERROR(VLOOKUP($B83,'LED #3'!$A$14:$S$300,O$48,0),"") -> 2.67 | P83: =IFERROR(VLOOKUP($B83,'LED #3'!$A$14:$S$300,P$48,0),"") -> 196.00 | R83: =IFERROR(VLOOKUP($B83,'LED #4'!$A$14:$S$300,R$48,0),"") ->  | S83: =IFERROR(VLOOKUP($B83,'LED #4'!$A$14:$S$300,S$48,0),"") ->  | T83: =IFERROR(VLOOKUP($B83,'LED #4'!$A$14:$S$300,T$48,0),"") ->  | U83: =IFERROR(VLOOKUP($B83,'LED #4'!$A$14:$S$300,U$48,0),"") -> 
B84: 0.330 | C84: =IFERROR(VLOOKUP($B84,'LED #1'!$A$14:$S$300,C$48,0),"") ->  | D84: =IFERROR(VLOOKUP($B84,'LED #1'!$A$14:$S$300,D$48,0),"") ->  | E84: =IFERROR(VLOOKUP($B84,'LED #1'!$A$14:$S$300,E$48,0),"") ->  | F84: =IFERROR(VLOOKUP($B84,'LED #1'!$A$14:$S$300,F$48,0),"") ->  | H84: =IFERROR(VLOOKUP($B84,'LED #2'!$A$14:$S$300,H$48,0),"") ->  | I84: =IFERROR(VLOOKUP($B84,'LED #2'!$A$14:$S$300,I$48,0),"") ->  | J84: =IFERROR(VLOOKUP($B84,'LED #2'!$A$14:$S$300,J$48,0),"") ->  | K84: =IFERROR(VLOOKUP($B84,'LED #2'!$A$14:$S$300,K$48,0),"") ->  | M84: =IFERROR(VLOOKUP($B84,'LED #3'!$A$14:$S$300,M$48,0),"") -> 172.23 | N84: =IFERROR(VLOOKUP($B84,'LED #3'!$A$14:$S$300,N$48,0),"") -> 172.23 | O84: =IFERROR(VLOOKUP($B84,'LED #3'!$A$14:$S$300,O$48,0),"") -> 2.67 | P84: =IFERROR(VLOOKUP($B84,'LED #3'!$A$14:$S$300,P$48,0),"") -> 195.40 | R84: =IFERROR(VLOOKUP($B84,'LED #4'!$A$14:$S$300,R$48,0),"") ->  | S84: =IFERROR(VLOOKUP($B84,'LED #4'!$A$14:$S$300,S$48,0),"") ->  | T84: =IFERROR(VLOOKUP($B84,'LED #4'!$A$14:$S$300,T$48,0),"") ->  | U84: =IFERROR(VLOOKUP($B84,'LED #4'!$A$14:$S$300,U$48,0),"") -> 
B85: 0.340 | C85: =IFERROR(VLOOKUP($B85,'LED #1'!$A$14:$S$300,C$48,0),"") ->  | D85: =IFERROR(VLOOKUP($B85,'LED #1'!$A$14:$S$300,D$48,0),"") ->  | E85: =IFERROR(VLOOKUP($B85,'LED #1'!$A$14:$S$300,E$48,0),"") ->  | F85: =IFERROR(VLOOKUP($B85,'LED #1'!$A$14:$S$300,F$48,0),"") ->  | H85: =IFERROR(VLOOKUP($B85,'LED #2'!$A$14:$S$300,H$48,0),"") ->  | I85: =IFERROR(VLOOKUP($B85,'LED #2'!$A$14:$S$300,I$48,0),"") ->  | J85: =IFERROR(VLOOKUP($B85,'LED #2'!$A$14:$S$300,J$48,0),"") ->  | K85: =IFERROR(VLOOKUP($B85,'LED #2'!$A$14:$S$300,K$48,0),"") ->  | M85: =IFERROR(VLOOKUP($B85,'LED #3'!$A$14:$S$300,M$48,0),"") -> 177.25 | N85: =IFERROR(VLOOKUP($B85,'LED #3'!$A$14:$S$300,N$48,0),"") -> 177.25 | O85: =IFERROR(VLOOKUP($B85,'LED #3'!$A$14:$S$300,O$48,0),"") -> 2.68 | P85: =IFERROR(VLOOKUP($B85,'LED #3'!$A$14:$S$300,P$48,0),"") -> 194.80 | R85: =IFERROR(VLOOKUP($B85,'LED #4'!$A$14:$S$300,R$48,0),"") ->  | S85: =IFERROR(VLOOKUP($B85,'LED #4'!$A$14:$S$300,S$48,0),"") ->  | T85: =IFERROR(VLOOKUP($B85,'LED #4'!$A$14:$S$300,T$48,0),"") ->  | U85: =IFERROR(VLOOKUP($B85,'LED #4'!$A$14:$S$300,U$48,0),"") -> 
B86: =ROUND(B85+$J$4,3) -> 0.350 | C86: =IFERROR(VLOOKUP($B86,'LED #1'!$A$14:$S$300,C$48,0),"") ->  | D86: =IFERROR(VLOOKUP($B86,'LED #1'!$A$14:$S$300,D$48,0),"") ->  | E86: =IFERROR(VLOOKUP($B86,'LED #1'!$A$14:$S$300,E$48,0),"") ->  | F86: =IFERROR(VLOOKUP($B86,'LED #1'!$A$14:$S$300,F$48,0),"") ->  | H86: =IFERROR(VLOOKUP($B86,'LED #2'!$A$14:$S$300,H$48,0),"") ->  | I86: =IFERROR(VLOOKUP($B86,'LED #2'!$A$14:$S$300,I$48,0),"") ->  | J86: =IFERROR(VLOOKUP($B86,'LED #2'!$A$14:$S$300,J$48,0),"") ->  | K86: =IFERROR(VLOOKUP($B86,'LED #2'!$A$14:$S$300,K$48,0),"") ->  | M86: =IFERROR(VLOOKUP($B86,'LED #3'!$A$14:$S$300,M$48,0),"") -> 182.26 | N86: =IFERROR(VLOOKUP($B86,'LED #3'!$A$14:$S$300,N$48,0),"") -> 182.26 | O86: =IFERROR(VLOOKUP($B86,'LED #3'!$A$14:$S$300,O$48,0),"") -> 2.68 | P86: =IFERROR(VLOOKUP($B86,'LED #3'!$A$14:$S$300,P$48,0),"") -> 194.21 | R86: =IFERROR(VLOOKUP($B86,'LED #4'!$A$14:$S$300,R$48,0),"") ->  | S86: =IFERROR(VLOOKUP($B86,'LED #4'!$A$14:$S$300,S$48,0),"") ->  | T86: =IFERROR(VLOOKUP($B86,'LED #4'!$A$14:$S$300,T$48,0),"") ->  | U86: =IFERROR(VLOOKUP($B86,'LED #4'!$A$14:$S$300,U$48,0),"") -> 
B87: 0.360 | C87: =IFERROR(VLOOKUP($B87,'LED #1'!$A$14:$S$300,C$48,0),"") ->  | D87: =IFERROR(VLOOKUP($B87,'LED #1'!$A$14:$S$300,D$48,0),"") ->  | E87: =IFERROR(VLOOKUP($B87,'LED #1'!$A$14:$S$300,E$48,0),"") ->  | F87: =IFERROR(VLOOKUP($B87,'LED #1'!$A$14:$S$300,F$48,0),"") ->  | H87: =IFERROR(VLOOKUP($B87,'LED #2'!$A$14:$S$300,H$48,0),"") ->  | I87: =IFERROR(VLOOKUP($B87,'LED #2'!$A$14:$S$300,I$48,0),"") ->  | J87: =IFERROR(VLOOKUP($B87,'LED #2'!$A$14:$S$300,J$48,0),"") ->  | K87: =IFERROR(VLOOKUP($B87,'LED #2'!$A$14:$S$300,K$48,0),"") ->  | M87: =IFERROR(VLOOKUP($B87,'LED #3'!$A$14:$S$300,M$48,0),"") -> 187.25 | N87: =IFERROR(VLOOKUP($B87,'LED #3'!$A$14:$S$300,N$48,0),"") -> 187.25 | O87: =IFERROR(VLOOKUP($B87,'LED #3'!$A$14:$S$300,O$48,0),"") -> 2.69 | P87: =IFERROR(VLOOKUP($B87,'LED #3'!$A$14:$S$300,P$48,0),"") -> 193.61 | R87: =IFERROR(VLOOKUP($B87,'LED #4'!$A$14:$S$300,R$48,0),"") ->  | S87: =IFERROR(VLOOKUP($B87,'LED #4'!$A$14:$S$300,S$48,0),"") ->  | T87: =IFERROR(VLOOKUP($B87,'LED #4'!$A$14:$S$300,T$48,0),"") ->  | U87: =IFERROR(VLOOKUP($B87,'LED #4'!$A$14:$S$300,U$48,0),"") -> 
B88: 0.370 | C88: =IFERROR(VLOOKUP($B88,'LED #1'!$A$14:$S$300,C$48,0),"") ->  | D88: =IFERROR(VLOOKUP($B88,'LED #1'!$A$14:$S$300,D$48,0),"") ->  | E88: =IFERROR(VLOOKUP($B88,'LED #1'!$A$14:$S$300,E$48,0),"") ->  | F88: =IFERROR(VLOOKUP($B88,'LED #1'!$A$14:$S$300,F$48,0),"") ->  | H88: =IFERROR(VLOOKUP($B88,'LED #2'!$A$14:$S$300,H$48,0),"") ->  | I88: =IFERROR(VLOOKUP($B88,'LED #2'!$A$14:$S$300,I$48,0),"") ->  | J88: =IFERROR(VLOOKUP($B88,'LED #2'!$A$14:$S$300,J$48,0),"") ->  | K88: =IFERROR(VLOOKUP($B88,'LED #2'!$A$14:$S$300,K$48,0),"") ->  | M88: =IFERROR(VLOOKUP($B88,'LED #3'!$A$14:$S$300,M$48,0),"") -> 192.23 | N88: =IFERROR(VLOOKUP($B88,'LED #3'!$A$14:$S$300,N$48,0),"") -> 192.23 | O88: =IFERROR(VLOOKUP($B88,'LED #3'!$A$14:$S$300,O$48,0),"") -> 2.69 | P88: =IFERROR(VLOOKUP($B88,'LED #3'!$A$14:$S$300,P$48,0),"") -> 193.00 | R88: =IFERROR(VLOOKUP($B88,'LED #4'!$A$14:$S$300,R$48,0),"") ->  | S88: =IFERROR(VLOOKUP($B88,'LED #4'!$A$14:$S$300,S$48,0),"") ->  | T88: =IFERROR(VLOOKUP($B88,'LED #4'!$A$14:$S$300,T$48,0),"") ->  | U88: =IFERROR(VLOOKUP($B88,'LED #4'!$A$14:$S$300,U$48,0),"") -> 
B89: 0.380 | C89: =IFERROR(VLOOKUP($B89,'LED #1'!$A$14:$S$300,C$48,0),"") ->  | D89: =IFERROR(VLOOKUP($B89,'LED #1'!$A$14:$S$300,D$48,0),"") ->  | E89: =IFERROR(VLOOKUP($B89,'LED #1'!$A$14:$S$300,E$48,0),"") ->  | F89: =IFERROR(VLOOKUP($B89,'LED #1'!$A$14:$S$300,F$48,0),"") ->  | H89: =IFERROR(VLOOKUP($B89,'LED #2'!$A$14:$S$300,H$48,0),"") ->  | I89: =IFERROR(VLOOKUP($B89,'LED #2'!$A$14:$S$300,I$48,0),"") ->  | J89: =IFERROR(VLOOKUP($B89,'LED #2'!$A$14:$S$300,J$48,0),"") ->  | K89: =IFERROR(VLOOKUP($B89,'LED #2'!$A$14:$S$300,K$48,0),"") ->  | M89: =IFERROR(VLOOKUP($B89,'LED #3'!$A$14:$S$300,M$48,0),"") -> 197.19 | N89: =IFERROR(VLOOKUP($B89,'LED #3'!$A$14:$S$300,N$48,0),"") -> 197.19 | O89: =IFERROR(VLOOKUP($B89,'LED #3'!$A$14:$S$300,O$48,0),"") -> 2.70 | P89: =IFERROR(VLOOKUP($B89,'LED #3'!$A$14:$S$300,P$48,0),"") -> 192.40 | R89: =IFERROR(VLOOKUP($B89,'LED #4'!$A$14:$S$300,R$48,0),"") ->  | S89: =IFERROR(VLOOKUP($B89,'LED #4'!$A$14:$S$300,S$48,0),"") ->  | T89: =IFERROR(VLOOKUP($B89,'LED #4'!$A$14:$S$300,T$48,0),"") ->  | U89: =IFERROR(VLOOKUP($B89,'LED #4'!$A$14:$S$300,U$48,0),"") -> 
B90: 0.390 | C90: =IFERROR(VLOOKUP($B90,'LED #1'!$A$14:$S$300,C$48,0),"") ->  | D90: =IFERROR(VLOOKUP($B90,'LED #1'!$A$14:$S$300,D$48,0),"") ->  | E90: =IFERROR(VLOOKUP($B90,'LED #1'!$A$14:$S$300,E$48,0),"") ->  | F90: =IFERROR(VLOOKUP($B90,'LED #1'!$A$14:$S$300,F$48,0),"") ->  | H90: =IFERROR(VLOOKUP($B90,'LED #2'!$A$14:$S$300,H$48,0),"") ->  | I90: =IFERROR(VLOOKUP($B90,'LED #2'!$A$14:$S$300,I$48,0),"") ->  | J90: =IFERROR(VLOOKUP($B90,'LED #2'!$A$14:$S$300,J$48,0),"") ->  | K90: =IFERROR(VLOOKUP($B90,'LED #2'!$A$14:$S$300,K$48,0),"") ->  | M90: =IFERROR(VLOOKUP($B90,'LED #3'!$A$14:$S$300,M$48,0),"") -> 202.13 | N90: =IFERROR(VLOOKUP($B90,'LED #3'!$A$14:$S$300,N$48,0),"") -> 202.13 | O90: =IFERROR(VLOOKUP($B90,'LED #3'!$A$14:$S$300,O$48,0),"") -> 2.70 | P90: =IFERROR(VLOOKUP($B90,'LED #3'!$A$14:$S$300,P$48,0),"") -> 191.80 | R90: =IFERROR(VLOOKUP($B90,'LED #4'!$A$14:$S$300,R$48,0),"") ->  | S90: =IFERROR(VLOOKUP($B90,'LED #4'!$A$14:$S$300,S$48,0),"") ->  | T90: =IFERROR(VLOOKUP($B90,'LED #4'!$A$14:$S$300,T$48,0),"") ->  | U90: =IFERROR(VLOOKUP($B90,'LED #4'!$A$14:$S$300,U$48,0),"") -> 
B91: 0.400 | C91: =IFERROR(VLOOKUP($B91,'LED #1'!$A$14:$S$300,C$48,0),"") ->  | D91: =IFERROR(VLOOKUP($B91,'LED #1'!$A$14:$S$300,D$48,0),"") ->  | E91: =IFERROR(VLOOKUP($B91,'LED #1'!$A$14:$S$300,E$48,0),"") ->  | F91: =IFERROR(VLOOKUP($B91,'LED #1'!$A$14:$S$300,F$48,0),"") ->  | H91: =IFERROR(VLOOKUP($B91,'LED #2'!$A$14:$S$300,H$48,0),"") ->  | I91: =IFERROR(VLOOKUP($B91,'LED #2'!$A$14:$S$300,I$48,0),"") ->  | J91: =IFERROR(VLOOKUP($B91,'LED #2'!$A$14:$S$300,J$48,0),"") ->  | K91: =IFERROR(VLOOKUP($B91,'LED #2'!$A$14:$S$300,K$48,0),"") ->  | M91: =IFERROR(VLOOKUP($B91,'LED #3'!$A$14:$S$300,M$48,0),"") -> 207.06 | N91: =IFERROR(VLOOKUP($B91,'LED #3'!$A$14:$S$300,N$48,0),"") -> 207.06 | O91: =IFERROR(VLOOKUP($B91,'LED #3'!$A$14:$S$300,O$48,0),"") -> 2.71 | P91: =IFERROR(VLOOKUP($B91,'LED #3'!$A$14:$S$300,P$48,0),"") -> 191.20 | R91: =IFERROR(VLOOKUP($B91,'LED #4'!$A$14:$S$300,R$48,0),"") ->  | S91: =IFERROR(VLOOKUP($B91,'LED #4'!$A$14:$S$300,S$48,0),"") ->  | T91: =IFERROR(VLOOKUP($B91,'LED #4'!$A$14:$S$300,T$48,0),"") ->  | U91: =IFERROR(VLOOKUP($B91,'LED #4'!$A$14:$S$300,U$48,0),"") -> 
B92: 0.410 | C92: =IFERROR(VLOOKUP($B92,'LED #1'!$A$14:$S$300,C$48,0),"") ->  | D92: =IFERROR(VLOOKUP($B92,'LED #1'!$A$14:$S$300,D$48,0),"") ->  | E92: =IFERROR(VLOOKUP($B92,'LED #1'!$A$14:$S$300,E$48,0),"") ->  | F92: =IFERROR(VLOOKUP($B92,'LED #1'!$A$14:$S$300,F$48,0),"") ->  | H92: =IFERROR(VLOOKUP($B92,'LED #2'!$A$14:$S$300,H$48,0),"") ->  | I92: =IFERROR(VLOOKUP($B92,'LED #2'!$A$14:$S$300,I$48,0),"") ->  | J92: =IFERROR(VLOOKUP($B92,'LED #2'!$A$14:$S$300,J$48,0),"") ->  | K92: =IFERROR(VLOOKUP($B92,'LED #2'!$A$14:$S$300,K$48,0),"") ->  | M92: =IFERROR(VLOOKUP($B92,'LED #3'!$A$14:$S$300,M$48,0),"") -> 211.97 | N92: =IFERROR(VLOOKUP($B92,'LED #3'!$A$14:$S$300,N$48,0),"") -> 211.97 | O92: =IFERROR(VLOOKUP($B92,'LED #3'!$A$14:$S$300,O$48,0),"") -> 2.71 | P92: =IFERROR(VLOOKUP($B92,'LED #3'!$A$14:$S$300,P$48,0),"") -> 190.61 | R92: =IFERROR(VLOOKUP($B92,'LED #4'!$A$14:$S$300,R$48,0),"") ->  | S92: =IFERROR(VLOOKUP($B92,'LED #4'!$A$14:$S$300,S$48,0),"") ->  | T92: =IFERROR(VLOOKUP($B92,'LED #4'!$A$14:$S$300,T$48,0),"") ->  | U92: =IFERROR(VLOOKUP($B92,'LED #4'!$A$14:$S$300,U$48,0),"") -> 
B93: 0.420 | C93: =IFERROR(VLOOKUP($B93,'LED #1'!$A$14:$S$300,C$48,0),"") ->  | D93: =IFERROR(VLOOKUP($B93,'LED #1'!$A$14:$S$300,D$48,0),"") ->  | E93: =IFERROR(VLOOKUP($B93,'LED #1'!$A$14:$S$300,E$48,0),"") ->  | F93: =IFERROR(VLOOKUP($B93,'LED #1'!$A$14:$S$300,F$48,0),"") ->  | H93: =IFERROR(VLOOKUP($B93,'LED #2'!$A$14:$S$300,H$48,0),"") ->  | I93: =IFERROR(VLOOKUP($B93,'LED #2'!$A$14:$S$300,I$48,0),"") ->  | J93: =IFERROR(VLOOKUP($B93,'LED #2'!$A$14:$S$300,J$48,0),"") ->  | K93: =IFERROR(VLOOKUP($B93,'LED #2'!$A$14:$S$300,K$48,0),"") ->  | M93: =IFERROR(VLOOKUP($B93,'LED #3'!$A$14:$S$300,M$48,0),"") -> 216.86 | N93: =IFERROR(VLOOKUP($B93,'LED #3'!$A$14:$S$300,N$48,0),"") -> 216.86 | O93: =IFERROR(VLOOKUP($B93,'LED #3'!$A$14:$S$300,O$48,0),"") -> 2.72 | P93: =IFERROR(VLOOKUP($B93,'LED #3'!$A$14:$S$300,P$48,0),"") -> 190.01 | R93: =IFERROR(VLOOKUP($B93,'LED #4'!$A$14:$S$300,R$48,0),"") ->  | S93: =IFERROR(VLOOKUP($B93,'LED #4'!$A$14:$S$300,S$48,0),"") ->  | T93: =IFERROR(VLOOKUP($B93,'LED #4'!$A$14:$S$300,T$48,0),"") ->  | U93: =IFERROR(VLOOKUP($B93,'LED #4'!$A$14:$S$300,U$48,0),"") -> 
B94: 0.430 | C94: =IFERROR(VLOOKUP($B94,'LED #1'!$A$14:$S$300,C$48,0),"") ->  | D94: =IFERROR(VLOOKUP($B94,'LED #1'!$A$14:$S$300,D$48,0),"") ->  | E94: =IFERROR(VLOOKUP($B94,'LED #1'!$A$14:$S$300,E$48,0),"") ->  | F94: =IFERROR(VLOOKUP($B94,'LED #1'!$A$14:$S$300,F$48,0),"") ->  | H94: =IFERROR(VLOOKUP($B94,'LED #2'!$A$14:$S$300,H$48,0),"") ->  | I94: =IFERROR(VLOOKUP($B94,'LED #2'!$A$14:$S$300,I$48,0),"") ->  | J94: =IFERROR(VLOOKUP($B94,'LED #2'!$A$14:$S$300,J$48,0),"") ->  | K94: =IFERROR(VLOOKUP($B94,'LED #2'!$A$14:$S$300,K$48,0),"") ->  | M94: =IFERROR(VLOOKUP($B94,'LED #3'!$A$14:$S$300,M$48,0),"") -> 221.74 | N94: =IFERROR(VLOOKUP($B94,'LED #3'!$A$14:$S$300,N$48,0),"") -> 221.74 | O94: =IFERROR(VLOOKUP($B94,'LED #3'!$A$14:$S$300,O$48,0),"") -> 2.72 | P94: =IFERROR(VLOOKUP($B94,'LED #3'!$A$14:$S$300,P$48,0),"") -> 189.41 | R94: =IFERROR(VLOOKUP($B94,'LED #4'!$A$14:$S$300,R$48,0),"") ->  | S94: =IFERROR(VLOOKUP($B94,'LED #4'!$A$14:$S$300,S$48,0),"") ->  | T94: =IFERROR(VLOOKUP($B94,'LED #4'!$A$14:$S$300,T$48,0),"") ->  | U94: =IFERROR(VLOOKUP($B94,'LED #4'!$A$14:$S$300,U$48,0),"") -> 
B95: 0.440 | C95: =IFERROR(VLOOKUP($B95,'LED #1'!$A$14:$S$300,C$48,0),"") ->  | D95: =IFERROR(VLOOKUP($B95,'LED #1'!$A$14:$S$300,D$48,0),"") ->  | E95: =IFERROR(VLOOKUP($B95,'LED #1'!$A$14:$S$300,E$48,0),"") ->  | F95: =IFERROR(VLOOKUP($B95,'LED #1'!$A$14:$S$300,F$48,0),"") ->  | H95: =IFERROR(VLOOKUP($B95,'LED #2'!$A$14:$S$300,H$48,0),"") ->  | I95: =IFERROR(VLOOKUP($B95,'LED #2'!$A$14:$S$300,I$48,0),"") ->  | J95: =IFERROR(VLOOKUP($B95,'LED #2'!$A$14:$S$300,J$48,0),"") ->  | K95: =IFERROR(VLOOKUP($B95,'LED #2'!$A$14:$S$300,K$48,0),"") ->  | M95: =IFERROR(VLOOKUP($B95,'LED #3'!$A$14:$S$300,M$48,0),"") -> 226.60 | N95: =IFERROR(VLOOKUP($B95,'LED #3'!$A$14:$S$300,N$48,0),"") -> 226.60 | O95: =IFERROR(VLOOKUP($B95,'LED #3'!$A$14:$S$300,O$48,0),"") -> 2.73 | P95: =IFERROR(VLOOKUP($B95,'LED #3'!$A$14:$S$300,P$48,0),"") -> 188.82 | R95: =IFERROR(VLOOKUP($B95,'LED #4'!$A$14:$S$300,R$48,0),"") ->  | S95: =IFERROR(VLOOKUP($B95,'LED #4'!$A$14:$S$300,S$48,0),"") ->  | T95: =IFERROR(VLOOKUP($B95,'LED #4'!$A$14:$S$300,T$48,0),"") ->  | U95: =IFERROR(VLOOKUP($B95,'LED #4'!$A$14:$S$300,U$48,0),"") -> 
B96: 0.450 | C96: =IFERROR(VLOOKUP($B96,'LED #1'!$A$14:$S$300,C$48,0),"") ->  | D96: =IFERROR(VLOOKUP($B96,'LED #1'!$A$14:$S$300,D$48,0),"") ->  | E96: =IFERROR(VLOOKUP($B96,'LED #1'!$A$14:$S$300,E$48,0),"") ->  | F96: =IFERROR(VLOOKUP($B96,'LED #1'!$A$14:$S$300,F$48,0),"") ->  | H96: =IFERROR(VLOOKUP($B96,'LED #2'!$A$14:$S$300,H$48,0),"") ->  | I96: =IFERROR(VLOOKUP($B96,'LED #2'!$A$14:$S$300,I$48,0),"") ->  | J96: =IFERROR(VLOOKUP($B96,'LED #2'!$A$14:$S$300,J$48,0),"") ->  | K96: =IFERROR(VLOOKUP($B96,'LED #2'!$A$14:$S$300,K$48,0),"") ->  | M96: =IFERROR(VLOOKUP($B96,'LED #3'!$A$14:$S$300,M$48,0),"") -> 231.45 | N96: =IFERROR(VLOOKUP($B96,'LED #3'!$A$14:$S$300,N$48,0),"") -> 231.45 | O96: =IFERROR(VLOOKUP($B96,'LED #3'!$A$14:$S$300,O$48,0),"") -> 2.73 | P96: =IFERROR(VLOOKUP($B96,'LED #3'!$A$14:$S$300,P$48,0),"") -> 188.22 | R96: =IFERROR(VLOOKUP($B96,'LED #4'!$A$14:$S$300,R$48,0),"") ->  | S96: =IFERROR(VLOOKUP($B96,'LED #4'!$A$14:$S$300,S$48,0),"") ->  | T96: =IFERROR(VLOOKUP($B96,'LED #4'!$A$14:$S$300,T$48,0),"") ->  | U96: =IFERROR(VLOOKUP($B96,'LED #4'!$A$14:$S$300,U$48,0),"") -> 
B97: 0.460 | C97: =IFERROR(VLOOKUP($B97,'LED #1'!$A$14:$S$300,C$48,0),"") ->  | D97: =IFERROR(VLOOKUP($B97,'LED #1'!$A$14:$S$300,D$48,0),"") ->  | E97: =IFERROR(VLOOKUP($B97,'LED #1'!$A$14:$S$300,E$48,0),"") ->  | F97: =IFERROR(VLOOKUP($B97,'LED #1'!$A$14:$S$300,F$48,0),"") ->  | H97: =IFERROR(VLOOKUP($B97,'LED #2'!$A$14:$S$300,H$48,0),"") ->  | I97: =IFERROR(VLOOKUP($B97,'LED #2'!$A$14:$S$300,I$48,0),"") ->  | J97: =IFERROR(VLOOKUP($B97,'LED #2'!$A$14:$S$300,J$48,0),"") ->  | K97: =IFERROR(VLOOKUP($B97,'LED #2'!$A$14:$S$300,K$48,0),"") ->  | M97: =IFERROR(VLOOKUP($B97,'LED #3'!$A$14:$S$300,M$48,0),"") -> 236.28 | N97: =IFERROR(VLOOKUP($B97,'LED #3'!$A$14:$S$300,N$48,0),"") -> 236.28 | O97: =IFERROR(VLOOKUP($B97,'LED #3'!$A$14:$S$300,O$48,0),"") -> 2.74 | P97: =IFERROR(VLOOKUP($B97,'LED #3'!$A$14:$S$300,P$48,0),"") -> 187.63 | R97: =IFERROR(VLOOKUP($B97,'LED #4'!$A$14:$S$300,R$48,0),"") ->  | S97: =IFERROR(VLOOKUP($B97,'LED #4'!$A$14:$S$300,S$48,0),"") ->  | T97: =IFERROR(VLOOKUP($B97,'LED #4'!$A$14:$S$300,T$48,0),"") ->  | U97: =IFERROR(VLOOKUP($B97,'LED #4'!$A$14:$S$300,U$48,0),"") -> 
B98: 0.470 | C98: =IFERROR(VLOOKUP($B98,'LED #1'!$A$14:$S$300,C$48,0),"") ->  | D98: =IFERROR(VLOOKUP($B98,'LED #1'!$A$14:$S$300,D$48,0),"") ->  | E98: =IFERROR(VLOOKUP($B98,'LED #1'!$A$14:$S$300,E$48,0),"") ->  | F98: =IFERROR(VLOOKUP($B98,'LED #1'!$A$14:$S$300,F$48,0),"") ->  | H98: =IFERROR(VLOOKUP($B98,'LED #2'!$A$14:$S$300,H$48,0),"") ->  | I98: =IFERROR(VLOOKUP($B98,'LED #2'!$A$14:$S$300,I$48,0),"") ->  | J98: =IFERROR(VLOOKUP($B98,'LED #2'!$A$14:$S$300,J$48,0),"") ->  | K98: =IFERROR(VLOOKUP($B98,'LED #2'!$A$14:$S$300,K$48,0),"") ->  | M98: =IFERROR(VLOOKUP($B98,'LED #3'!$A$14:$S$300,M$48,0),"") -> 241.09 | N98: =IFERROR(VLOOKUP($B98,'LED #3'!$A$14:$S$300,N$48,0),"") -> 241.09 | O98: =IFERROR(VLOOKUP($B98,'LED #3'!$A$14:$S$300,O$48,0),"") -> 2.74 | P98: =IFERROR(VLOOKUP($B98,'LED #3'!$A$14:$S$300,P$48,0),"") -> 187.04 | R98: =IFERROR(VLOOKUP($B98,'LED #4'!$A$14:$S$300,R$48,0),"") ->  | S98: =IFERROR(VLOOKUP($B98,'LED #4'!$A$14:$S$300,S$48,0),"") ->  | T98: =IFERROR(VLOOKUP($B98,'LED #4'!$A$14:$S$300,T$48,0),"") ->  | U98: =IFERROR(VLOOKUP($B98,'LED #4'!$A$14:$S$300,U$48,0),"") -> 
B99: 0.480 | C99: =IFERROR(VLOOKUP($B99,'LED #1'!$A$14:$S$300,C$48,0),"") ->  | D99: =IFERROR(VLOOKUP($B99,'LED #1'!$A$14:$S$300,D$48,0),"") ->  | E99: =IFERROR(VLOOKUP($B99,'LED #1'!$A$14:$S$300,E$48,0),"") ->  | F99: =IFERROR(VLOOKUP($B99,'LED #1'!$A$14:$S$300,F$48,0),"") ->  | H99: =IFERROR(VLOOKUP($B99,'LED #2'!$A$14:$S$300,H$48,0),"") ->  | I99: =IFERROR(VLOOKUP($B99,'LED #2'!$A$14:$S$300,I$48,0),"") ->  | J99: =IFERROR(VLOOKUP($B99,'LED #2'!$A$14:$S$300,J$48,0),"") ->  | K99: =IFERROR(VLOOKUP($B99,'LED #2'!$A$14:$S$300,K$48,0),"") ->  | M99: =IFERROR(VLOOKUP($B99,'LED #3'!$A$14:$S$300,M$48,0),"") -> 245.89 | N99: =IFERROR(VLOOKUP($B99,'LED #3'!$A$14:$S$300,N$48,0),"") -> 245.89 | O99: =IFERROR(VLOOKUP($B99,'LED #3'!$A$14:$S$300,O$48,0),"") -> 2.75 | P99: =IFERROR(VLOOKUP($B99,'LED #3'!$A$14:$S$300,P$48,0),"") -> 186.45 | R99: =IFERROR(VLOOKUP($B99,'LED #4'!$A$14:$S$300,R$48,0),"") ->  | S99: =IFERROR(VLOOKUP($B99,'LED #4'!$A$14:$S$300,S$48,0),"") ->  | T99: =IFERROR(VLOOKUP($B99,'LED #4'!$A$14:$S$300,T$48,0),"") ->  | U99: =IFERROR(VLOOKUP($B99,'LED #4'!$A$14:$S$300,U$48,0),"") -> 
B100: 0.490 | C100: =IFERROR(VLOOKUP($B100,'LED #1'!$A$14:$S$300,C$48,0),"") ->  | D100: =IFERROR(VLOOKUP($B100,'LED #1'!$A$14:$S$300,D$48,0),"") ->  | E100: =IFERROR(VLOOKUP($B100,'LED #1'!$A$14:$S$300,E$48,0),"") ->  | F100: =IFERROR(VLOOKUP($B100,'LED #1'!$A$14:$S$300,F$48,0),"") ->  | H100: =IFERROR(VLOOKUP($B100,'LED #2'!$A$14:$S$300,H$48,0),"") ->  | I100: =IFERROR(VLOOKUP($B100,'LED #2'!$A$14:$S$300,I$48,0),"") ->  | J100: =IFERROR(VLOOKUP($B100,'LED #2'!$A$14:$S$300,J$48,0),"") ->  | K100: =IFERROR(VLOOKUP($B100,'LED #2'!$A$14:$S$300,K$48,0),"") ->  | M100: =IFERROR(VLOOKUP($B100,'LED #3'!$A$14:$S$300,M$48,0),"") -> 250.67 | N100: =IFERROR(VLOOKUP($B100,'LED #3'!$A$14:$S$300,N$48,0),"") -> 250.67 | O100: =IFERROR(VLOOKUP($B100,'LED #3'!$A$14:$S$300,O$48,0),"") -> 2.75 | P100: =IFERROR(VLOOKUP($B100,'LED #3'!$A$14:$S$300,P$48,0),"") -> 185.87 | R100: =IFERROR(VLOOKUP($B100,'LED #4'!$A$14:$S$300,R$48,0),"") ->  | S100: =IFERROR(VLOOKUP($B100,'LED #4'!$A$14:$S$300,S$48,0),"") ->  | T100: =IFERROR(VLOOKUP($B100,'LED #4'!$A$14:$S$300,T$48,0),"") ->  | U100: =IFERROR(VLOOKUP($B100,'LED #4'!$A$14:$S$300,U$48,0),"") -> 
B101: 0.500 | C101: =IFERROR(VLOOKUP($B101,'LED #1'!$A$14:$S$300,C$48,0),"") ->  | D101: =IFERROR(VLOOKUP($B101,'LED #1'!$A$14:$S$300,D$48,0),"") ->  | E101: =IFERROR(VLOOKUP($B101,'LED #1'!$A$14:$S$300,E$48,0),"") ->  | F101: =IFERROR(VLOOKUP($B101,'LED #1'!$A$14:$S$300,F$48,0),"") ->  | H101: =IFERROR(VLOOKUP($B101,'LED #2'!$A$14:$S$300,H$48,0),"") ->  | I101: =IFERROR(VLOOKUP($B101,'LED #2'!$A$14:$S$300,I$48,0),"") ->  | J101: =IFERROR(VLOOKUP($B101,'LED #2'!$A$14:$S$300,J$48,0),"") ->  | K101: =IFERROR(VLOOKUP($B101,'LED #2'!$A$14:$S$300,K$48,0),"") ->  | M101: =IFERROR(VLOOKUP($B101,'LED #3'!$A$14:$S$300,M$48,0),"") -> 255.43 | N101: =IFERROR(VLOOKUP($B101,'LED #3'!$A$14:$S$300,N$48,0),"") -> 255.43 | O101: =IFERROR(VLOOKUP($B101,'LED #3'!$A$14:$S$300,O$48,0),"") -> 2.76 | P101: =IFERROR(VLOOKUP($B101,'LED #3'!$A$14:$S$300,P$48,0),"") -> 185.29 | R101: =IFERROR(VLOOKUP($B101,'LED #4'!$A$14:$S$300,R$48,0),"") ->  | S101: =IFERROR(VLOOKUP($B101,'LED #4'!$A$14:$S$300,S$48,0),"") ->  | T101: =IFERROR(VLOOKUP($B101,'LED #4'!$A$14:$S$300,T$48,0),"") ->  | U101: =IFERROR(VLOOKUP($B101,'LED #4'!$A$14:$S$300,U$48,0),"") -> 
B102: 0.510 | C102: =IFERROR(VLOOKUP($B102,'LED #1'!$A$14:$S$300,C$48,0),"") ->  | D102: =IFERROR(VLOOKUP($B102,'LED #1'!$A$14:$S$300,D$48,0),"") ->  | E102: =IFERROR(VLOOKUP($B102,'LED #1'!$A$14:$S$300,E$48,0),"") ->  | F102: =IFERROR(VLOOKUP($B102,'LED #1'!$A$14:$S$300,F$48,0),"") ->  | H102: =IFERROR(VLOOKUP($B102,'LED #2'!$A$14:$S$300,H$48,0),"") ->  | I102: =IFERROR(VLOOKUP($B102,'LED #2'!$A$14:$S$300,I$48,0),"") ->  | J102: =IFERROR(VLOOKUP($B102,'LED #2'!$A$14:$S$300,J$48,0),"") ->  | K102: =IFERROR(VLOOKUP($B102,'LED #2'!$A$14:$S$300,K$48,0),"") ->  | M102: =IFERROR(VLOOKUP($B102,'LED #3'!$A$14:$S$300,M$48,0),"") -> 260.18 | N102: =IFERROR(VLOOKUP($B102,'LED #3'!$A$14:$S$300,N$48,0),"") -> 260.18 | O102: =IFERROR(VLOOKUP($B102,'LED #3'!$A$14:$S$300,O$48,0),"") -> 2.76 | P102: =IFERROR(VLOOKUP($B102,'LED #3'!$A$14:$S$300,P$48,0),"") -> 184.71 | R102: =IFERROR(VLOOKUP($B102,'LED #4'!$A$14:$S$300,R$48,0),"") ->  | S102: =IFERROR(VLOOKUP($B102,'LED #4'!$A$14:$S$300,S$48,0),"") ->  | T102: =IFERROR(VLOOKUP($B102,'LED #4'!$A$14:$S$300,T$48,0),"") ->  | U102: =IFERROR(VLOOKUP($B102,'LED #4'!$A$14:$S$300,U$48,0),"") -> 
B103: 0.520 | C103: =IFERROR(VLOOKUP($B103,'LED #1'!$A$14:$S$300,C$48,0),"") ->  | D103: =IFERROR(VLOOKUP($B103,'LED #1'!$A$14:$S$300,D$48,0),"") ->  | E103: =IFERROR(VLOOKUP($B103,'LED #1'!$A$14:$S$300,E$48,0),"") ->  | F103: =IFERROR(VLOOKUP($B103,'LED #1'!$A$14:$S$300,F$48,0),"") ->  | H103: =IFERROR(VLOOKUP($B103,'LED #2'!$A$14:$S$300,H$48,0),"") ->  | I103: =IFERROR(VLOOKUP($B103,'LED #2'!$A$14:$S$300,I$48,0),"") ->  | J103: =IFERROR(VLOOKUP($B103,'LED #2'!$A$14:$S$300,J$48,0),"") ->  | K103: =IFERROR(VLOOKUP($B103,'LED #2'!$A$14:$S$300,K$48,0),"") ->  | M103: =IFERROR(VLOOKUP($B103,'LED #3'!$A$14:$S$300,M$48,0),"") -> 264.92 | N103: =IFERROR(VLOOKUP($B103,'LED #3'!$A$14:$S$300,N$48,0),"") -> 264.92 | O103: =IFERROR(VLOOKUP($B103,'LED #3'!$A$14:$S$300,O$48,0),"") -> 2.77 | P103: =IFERROR(VLOOKUP($B103,'LED #3'!$A$14:$S$300,P$48,0),"") -> 184.13 | R103: =IFERROR(VLOOKUP($B103,'LED #4'!$A$14:$S$300,R$48,0),"") ->  | S103: =IFERROR(VLOOKUP($B103,'LED #4'!$A$14:$S$300,S$48,0),"") ->  | T103: =IFERROR(VLOOKUP($B103,'LED #4'!$A$14:$S$300,T$48,0),"") ->  | U103: =IFERROR(VLOOKUP($B103,'LED #4'!$A$14:$S$300,U$48,0),"") -> 
B104: 0.530 | C104: =IFERROR(VLOOKUP($B104,'LED #1'!$A$14:$S$300,C$48,0),"") ->  | D104: =IFERROR(VLOOKUP($B104,'LED #1'!$A$14:$S$300,D$48,0),"") ->  | E104: =IFERROR(VLOOKUP($B104,'LED #1'!$A$14:$S$300,E$48,0),"") ->  | F104: =IFERROR(VLOOKUP($B104,'LED #1'!$A$14:$S$300,F$48,0),"") ->  | H104: =IFERROR(VLOOKUP($B104,'LED #2'!$A$14:$S$300,H$48,0),"") ->  | I104: =IFERROR(VLOOKUP($B104,'LED #2'!$A$14:$S$300,I$48,0),"") ->  | J104: =IFERROR(VLOOKUP($B104,'LED #2'!$A$14:$S$300,J$48,0),"") ->  | K104: =IFERROR(VLOOKUP($B104,'LED #2'!$A$14:$S$300,K$48,0),"") ->  | M104: =IFERROR(VLOOKUP($B104,'LED #3'!$A$14:$S$300,M$48,0),"") -> 269.64 | N104: =IFERROR(VLOOKUP($B104,'LED #3'!$A$14:$S$300,N$48,0),"") -> 269.64 | O104: =IFERROR(VLOOKUP($B104,'LED #3'!$A$14:$S$300,O$48,0),"") -> 2.77 | P104: =IFERROR(VLOOKUP($B104,'LED #3'!$A$14:$S$300,P$48,0),"") -> 183.55 | R104: =IFERROR(VLOOKUP($B104,'LED #4'!$A$14:$S$300,R$48,0),"") ->  | S104: =IFERROR(VLOOKUP($B104,'LED #4'!$A$14:$S$300,S$48,0),"") ->  | T104: =IFERROR(VLOOKUP($B104,'LED #4'!$A$14:$S$300,T$48,0),"") ->  | U104: =IFERROR(VLOOKUP($B104,'LED #4'!$A$14:$S$300,U$48,0),"") -> 
B105: 0.540 | C105: =IFERROR(VLOOKUP($B105,'LED #1'!$A$14:$S$300,C$48,0),"") ->  | D105: =IFERROR(VLOOKUP($B105,'LED #1'!$A$14:$S$300,D$48,0),"") ->  | E105: =IFERROR(VLOOKUP($B105,'LED #1'!$A$14:$S$300,E$48,0),"") ->  | F105: =IFERROR(VLOOKUP($B105,'LED #1'!$A$14:$S$300,F$48,0),"") ->  | H105: =IFERROR(VLOOKUP($B105,'LED #2'!$A$14:$S$300,H$48,0),"") ->  | I105: =IFERROR(VLOOKUP($B105,'LED #2'!$A$14:$S$300,I$48,0),"") ->  | J105: =IFERROR(VLOOKUP($B105,'LED #2'!$A$14:$S$300,J$48,0),"") ->  | K105: =IFERROR(VLOOKUP($B105,'LED #2'!$A$14:$S$300,K$48,0),"") ->  | M105: =IFERROR(VLOOKUP($B105,'LED #3'!$A$14:$S$300,M$48,0),"") -> 274.34 | N105: =IFERROR(VLOOKUP($B105,'LED #3'!$A$14:$S$300,N$48,0),"") -> 274.34 | O105: =IFERROR(VLOOKUP($B105,'LED #3'!$A$14:$S$300,O$48,0),"") -> 2.78 | P105: =IFERROR(VLOOKUP($B105,'LED #3'!$A$14:$S$300,P$48,0),"") -> 182.98 | R105: =IFERROR(VLOOKUP($B105,'LED #4'!$A$14:$S$300,R$48,0),"") ->  | S105: =IFERROR(VLOOKUP($B105,'LED #4'!$A$14:$S$300,S$48,0),"") ->  | T105: =IFERROR(VLOOKUP($B105,'LED #4'!$A$14:$S$300,T$48,0),"") ->  | U105: =IFERROR(VLOOKUP($B105,'LED #4'!$A$14:$S$300,U$48,0),"") -> 
B106: 0.550 | C106: =IFERROR(VLOOKUP($B106,'LED #1'!$A$14:$S$300,C$48,0),"") ->  | D106: =IFERROR(VLOOKUP($B106,'LED #1'!$A$14:$S$300,D$48,0),"") ->  | E106: =IFERROR(VLOOKUP($B106,'LED #1'!$A$14:$S$300,E$48,0),"") ->  | F106: =IFERROR(VLOOKUP($B106,'LED #1'!$A$14:$S$300,F$48,0),"") ->  | H106: =IFERROR(VLOOKUP($B106,'LED #2'!$A$14:$S$300,H$48,0),"") ->  | I106: =IFERROR(VLOOKUP($B106,'LED #2'!$A$14:$S$300,I$48,0),"") ->  | J106: =IFERROR(VLOOKUP($B106,'LED #2'!$A$14:$S$300,J$48,0),"") ->  | K106: =IFERROR(VLOOKUP($B106,'LED #2'!$A$14:$S$300,K$48,0),"") ->  | M106: =IFERROR(VLOOKUP($B106,'LED #3'!$A$14:$S$300,M$48,0),"") -> 279.03 | N106: =IFERROR(VLOOKUP($B106,'LED #3'!$A$14:$S$300,N$48,0),"") -> 279.03 | O106: =IFERROR(VLOOKUP($B106,'LED #3'!$A$14:$S$300,O$48,0),"") -> 2.78 | P106: =IFERROR(VLOOKUP($B106,'LED #3'!$A$14:$S$300,P$48,0),"") -> 182.41 | R106: =IFERROR(VLOOKUP($B106,'LED #4'!$A$14:$S$300,R$48,0),"") ->  | S106: =IFERROR(VLOOKUP($B106,'LED #4'!$A$14:$S$300,S$48,0),"") ->  | T106: =IFERROR(VLOOKUP($B106,'LED #4'!$A$14:$S$300,T$48,0),"") ->  | U106: =IFERROR(VLOOKUP($B106,'LED #4'!$A$14:$S$300,U$48,0),"") -> 
B107: 0.560 | C107: =IFERROR(VLOOKUP($B107,'LED #1'!$A$14:$S$300,C$48,0),"") ->  | D107: =IFERROR(VLOOKUP($B107,'LED #1'!$A$14:$S$300,D$48,0),"") ->  | E107: =IFERROR(VLOOKUP($B107,'LED #1'!$A$14:$S$300,E$48,0),"") ->  | F107: =IFERROR(VLOOKUP($B107,'LED #1'!$A$14:$S$300,F$48,0),"") ->  | H107: =IFERROR(VLOOKUP($B107,'LED #2'!$A$14:$S$300,H$48,0),"") ->  | I107: =IFERROR(VLOOKUP($B107,'LED #2'!$A$14:$S$300,I$48,0),"") ->  | J107: =IFERROR(VLOOKUP($B107,'LED #2'!$A$14:$S$300,J$48,0),"") ->  | K107: =IFERROR(VLOOKUP($B107,'LED #2'!$A$14:$S$300,K$48,0),"") ->  | M107: =IFERROR(VLOOKUP($B107,'LED #3'!$A$14:$S$300,M$48,0),"") -> 283.70 | N107: =IFERROR(VLOOKUP($B107,'LED #3'!$A$14:$S$300,N$48,0),"") -> 283.70 | O107: =IFERROR(VLOOKUP($B107,'LED #3'!$A$14:$S$300,O$48,0),"") -> 2.79 | P107: =IFERROR(VLOOKUP($B107,'LED #3'!$A$14:$S$300,P$48,0),"") -> 181.84 | R107: =IFERROR(VLOOKUP($B107,'LED #4'!$A$14:$S$300,R$48,0),"") ->  | S107: =IFERROR(VLOOKUP($B107,'LED #4'!$A$14:$S$300,S$48,0),"") ->  | T107: =IFERROR(VLOOKUP($B107,'LED #4'!$A$14:$S$300,T$48,0),"") ->  | U107: =IFERROR(VLOOKUP($B107,'LED #4'!$A$14:$S$300,U$48,0),"") -> 
B108: 0.570 | C108: =IFERROR(VLOOKUP($B108,'LED #1'!$A$14:$S$300,C$48,0),"") ->  | D108: =IFERROR(VLOOKUP($B108,'LED #1'!$A$14:$S$300,D$48,0),"") ->  | E108: =IFERROR(VLOOKUP($B108,'LED #1'!$A$14:$S$300,E$48,0),"") ->  | F108: =IFERROR(VLOOKUP($B108,'LED #1'!$A$14:$S$300,F$48,0),"") ->  | H108: =IFERROR(VLOOKUP($B108,'LED #2'!$A$14:$S$300,H$48,0),"") ->  | I108: =IFERROR(VLOOKUP($B108,'LED #2'!$A$14:$S$300,I$48,0),"") ->  | J108: =IFERROR(VLOOKUP($B108,'LED #2'!$A$14:$S$300,J$48,0),"") ->  | K108: =IFERROR(VLOOKUP($B108,'LED #2'!$A$14:$S$300,K$48,0),"") ->  | M108: =IFERROR(VLOOKUP($B108,'LED #3'!$A$14:$S$300,M$48,0),"") -> 288.35 | N108: =IFERROR(VLOOKUP($B108,'LED #3'!$A$14:$S$300,N$48,0),"") -> 288.35 | O108: =IFERROR(VLOOKUP($B108,'LED #3'!$A$14:$S$300,O$48,0),"") -> 2.79 | P108: =IFERROR(VLOOKUP($B108,'LED #3'!$A$14:$S$300,P$48,0),"") -> 181.28 | R108: =IFERROR(VLOOKUP($B108,'LED #4'!$A$14:$S$300,R$48,0),"") ->  | S108: =IFERROR(VLOOKUP($B108,'LED #4'!$A$14:$S$300,S$48,0),"") ->  | T108: =IFERROR(VLOOKUP($B108,'LED #4'!$A$14:$S$300,T$48,0),"") ->  | U108: =IFERROR(VLOOKUP($B108,'LED #4'!$A$14:$S$300,U$48,0),"") -> 
B109: 0.580 | C109: =IFERROR(VLOOKUP($B109,'LED #1'!$A$14:$S$300,C$48,0),"") ->  | D109: =IFERROR(VLOOKUP($B109,'LED #1'!$A$14:$S$300,D$48,0),"") ->  | E109: =IFERROR(VLOOKUP($B109,'LED #1'!$A$14:$S$300,E$48,0),"") ->  | F109: =IFERROR(VLOOKUP($B109,'LED #1'!$A$14:$S$300,F$48,0),"") ->  | H109: =IFERROR(VLOOKUP($B109,'LED #2'!$A$14:$S$300,H$48,0),"") ->  | I109: =IFERROR(VLOOKUP($B109,'LED #2'!$A$14:$S$300,I$48,0),"") ->  | J109: =IFERROR(VLOOKUP($B109,'LED #2'!$A$14:$S$300,J$48,0),"") ->  | K109: =IFERROR(VLOOKUP($B109,'LED #2'!$A$14:$S$300,K$48,0),"") ->  | M109: =IFERROR(VLOOKUP($B109,'LED #3'!$A$14:$S$300,M$48,0),"") -> 293.00 | N109: =IFERROR(VLOOKUP($B109,'LED #3'!$A$14:$S$300,N$48,0),"") -> 293.00 | O109: =IFERROR(VLOOKUP($B109,'LED #3'!$A$14:$S$300,O$48,0),"") -> 2.80 | P109: =IFERROR(VLOOKUP($B109,'LED #3'!$A$14:$S$300,P$48,0),"") -> 180.71 | R109: =IFERROR(VLOOKUP($B109,'LED #4'!$A$14:$S$300,R$48,0),"") ->  | S109: =IFERROR(VLOOKUP($B109,'LED #4'!$A$14:$S$300,S$48,0),"") ->  | T109: =IFERROR(VLOOKUP($B109,'LED #4'!$A$14:$S$300,T$48,0),"") ->  | U109: =IFERROR(VLOOKUP($B109,'LED #4'!$A$14:$S$300,U$48,0),"") -> 
B110: 0.590 | C110: =IFERROR(VLOOKUP($B110,'LED #1'!$A$14:$S$300,C$48,0),"") ->  | D110: =IFERROR(VLOOKUP($B110,'LED #1'!$A$14:$S$300,D$48,0),"") ->  | E110: =IFERROR(VLOOKUP($B110,'LED #1'!$A$14:$S$300,E$48,0),"") ->  | F110: =IFERROR(VLOOKUP($B110,'LED #1'!$A$14:$S$300,F$48,0),"") ->  | H110: =IFERROR(VLOOKUP($B110,'LED #2'!$A$14:$S$300,H$48,0),"") ->  | I110: =IFERROR(VLOOKUP($B110,'LED #2'!$A$14:$S$300,I$48,0),"") ->  | J110: =IFERROR(VLOOKUP($B110,'LED #2'!$A$14:$S$300,J$48,0),"") ->  | K110: =IFERROR(VLOOKUP($B110,'LED #2'!$A$14:$S$300,K$48,0),"") ->  | M110: =IFERROR(VLOOKUP($B110,'LED #3'!$A$14:$S$300,M$48,0),"") -> 297.62 | N110: =IFERROR(VLOOKUP($B110,'LED #3'!$A$14:$S$300,N$48,0),"") -> 297.62 | O110: =IFERROR(VLOOKUP($B110,'LED #3'!$A$14:$S$300,O$48,0),"") -> 2.80 | P110: =IFERROR(VLOOKUP($B110,'LED #3'!$A$14:$S$300,P$48,0),"") -> 180.15 | R110: =IFERROR(VLOOKUP($B110,'LED #4'!$A$14:$S$300,R$48,0),"") ->  | S110: =IFERROR(VLOOKUP($B110,'LED #4'!$A$14:$S$300,S$48,0),"") ->  | T110: =IFERROR(VLOOKUP($B110,'LED #4'!$A$14:$S$300,T$48,0),"") ->  | U110: =IFERROR(VLOOKUP($B110,'LED #4'!$A$14:$S$300,U$48,0),"") -> 
B111: 0.600 | C111: =IFERROR(VLOOKUP($B111,'LED #1'!$A$14:$S$300,C$48,0),"") ->  | D111: =IFERROR(VLOOKUP($B111,'LED #1'!$A$14:$S$300,D$48,0),"") ->  | E111: =IFERROR(VLOOKUP($B111,'LED #1'!$A$14:$S$300,E$48,0),"") ->  | F111: =IFERROR(VLOOKUP($B111,'LED #1'!$A$14:$S$300,F$48,0),"") ->  | H111: =IFERROR(VLOOKUP($B111,'LED #2'!$A$14:$S$300,H$48,0),"") ->  | I111: =IFERROR(VLOOKUP($B111,'LED #2'!$A$14:$S$300,I$48,0),"") ->  | J111: =IFERROR(VLOOKUP($B111,'LED #2'!$A$14:$S$300,J$48,0),"") ->  | K111: =IFERROR(VLOOKUP($B111,'LED #2'!$A$14:$S$300,K$48,0),"") ->  | M111: =IFERROR(VLOOKUP($B111,'LED #3'!$A$14:$S$300,M$48,0),"") -> 302.23 | N111: =IFERROR(VLOOKUP($B111,'LED #3'!$A$14:$S$300,N$48,0),"") -> 302.23 | O111: =IFERROR(VLOOKUP($B111,'LED #3'!$A$14:$S$300,O$48,0),"") -> 2.80 | P111: =IFERROR(VLOOKUP($B111,'LED #3'!$A$14:$S$300,P$48,0),"") -> 179.60 | R111: =IFERROR(VLOOKUP($B111,'LED #4'!$A$14:$S$300,R$48,0),"") ->  | S111: =IFERROR(VLOOKUP($B111,'LED #4'!$A$14:$S$300,S$48,0),"") ->  | T111: =IFERROR(VLOOKUP($B111,'LED #4'!$A$14:$S$300,T$48,0),"") ->  | U111: =IFERROR(VLOOKUP($B111,'LED #4'!$A$14:$S$300,U$48,0),"") -> 
B112: 0.610 | C112: =IFERROR(VLOOKUP($B112,'LED #1'!$A$14:$S$300,C$48,0),"") ->  | D112: =IFERROR(VLOOKUP($B112,'LED #1'!$A$14:$S$300,D$48,0),"") ->  | E112: =IFERROR(VLOOKUP($B112,'LED #1'!$A$14:$S$300,E$48,0),"") ->  | F112: =IFERROR(VLOOKUP($B112,'LED #1'!$A$14:$S$300,F$48,0),"") ->  | H112: =IFERROR(VLOOKUP($B112,'LED #2'!$A$14:$S$300,H$48,0),"") ->  | I112: =IFERROR(VLOOKUP($B112,'LED #2'!$A$14:$S$300,I$48,0),"") ->  | J112: =IFERROR(VLOOKUP($B112,'LED #2'!$A$14:$S$300,J$48,0),"") ->  | K112: =IFERROR(VLOOKUP($B112,'LED #2'!$A$14:$S$300,K$48,0),"") ->  | M112: =IFERROR(VLOOKUP($B112,'LED #3'!$A$14:$S$300,M$48,0),"") -> 306.83 | N112: =IFERROR(VLOOKUP($B112,'LED #3'!$A$14:$S$300,N$48,0),"") -> 306.83 | O112: =IFERROR(VLOOKUP($B112,'LED #3'!$A$14:$S$300,O$48,0),"") -> 2.81 | P112: =IFERROR(VLOOKUP($B112,'LED #3'!$A$14:$S$300,P$48,0),"") -> 179.04 | R112: =IFERROR(VLOOKUP($B112,'LED #4'!$A$14:$S$300,R$48,0),"") ->  | S112: =IFERROR(VLOOKUP($B112,'LED #4'!$A$14:$S$300,S$48,0),"") ->  | T112: =IFERROR(VLOOKUP($B112,'LED #4'!$A$14:$S$300,T$48,0),"") ->  | U112: =IFERROR(VLOOKUP($B112,'LED #4'!$A$14:$S$300,U$48,0),"") -> 
B113: 0.620 | C113: =IFERROR(VLOOKUP($B113,'LED #1'!$A$14:$S$300,C$48,0),"") ->  | D113: =IFERROR(VLOOKUP($B113,'LED #1'!$A$14:$S$300,D$48,0),"") ->  | E113: =IFERROR(VLOOKUP($B113,'LED #1'!$A$14:$S$300,E$48,0),"") ->  | F113: =IFERROR(VLOOKUP($B113,'LED #1'!$A$14:$S$300,F$48,0),"") ->  | H113: =IFERROR(VLOOKUP($B113,'LED #2'!$A$14:$S$300,H$48,0),"") ->  | I113: =IFERROR(VLOOKUP($B113,'LED #2'!$A$14:$S$300,I$48,0),"") ->  | J113: =IFERROR(VLOOKUP($B113,'LED #2'!$A$14:$S$300,J$48,0),"") ->  | K113: =IFERROR(VLOOKUP($B113,'LED #2'!$A$14:$S$300,K$48,0),"") ->  | M113: =IFERROR(VLOOKUP($B113,'LED #3'!$A$14:$S$300,M$48,0),"") -> 311.41 | N113: =IFERROR(VLOOKUP($B113,'LED #3'!$A$14:$S$300,N$48,0),"") -> 311.41 | O113: =IFERROR(VLOOKUP($B113,'LED #3'!$A$14:$S$300,O$48,0),"") -> 2.81 | P113: =IFERROR(VLOOKUP($B113,'LED #3'!$A$14:$S$300,P$48,0),"") -> 178.49 | R113: =IFERROR(VLOOKUP($B113,'LED #4'!$A$14:$S$300,R$48,0),"") ->  | S113: =IFERROR(VLOOKUP($B113,'LED #4'!$A$14:$S$300,S$48,0),"") ->  | T113: =IFERROR(VLOOKUP($B113,'LED #4'!$A$14:$S$300,T$48,0),"") ->  | U113: =IFERROR(VLOOKUP($B113,'LED #4'!$A$14:$S$300,U$48,0),"") -> 
B114: 0.630 | C114: =IFERROR(VLOOKUP($B114,'LED #1'!$A$14:$S$300,C$48,0),"") ->  | D114: =IFERROR(VLOOKUP($B114,'LED #1'!$A$14:$S$300,D$48,0),"") ->  | E114: =IFERROR(VLOOKUP($B114,'LED #1'!$A$14:$S$300,E$48,0),"") ->  | F114: =IFERROR(VLOOKUP($B114,'LED #1'!$A$14:$S$300,F$48,0),"") ->  | H114: =IFERROR(VLOOKUP($B114,'LED #2'!$A$14:$S$300,H$48,0),"") ->  | I114: =IFERROR(VLOOKUP($B114,'LED #2'!$A$14:$S$300,I$48,0),"") ->  | J114: =IFERROR(VLOOKUP($B114,'LED #2'!$A$14:$S$300,J$48,0),"") ->  | K114: =IFERROR(VLOOKUP($B114,'LED #2'!$A$14:$S$300,K$48,0),"") ->  | M114: =IFERROR(VLOOKUP($B114,'LED #3'!$A$14:$S$300,M$48,0),"") -> 315.97 | N114: =IFERROR(VLOOKUP($B114,'LED #3'!$A$14:$S$300,N$48,0),"") -> 315.97 | O114: =IFERROR(VLOOKUP($B114,'LED #3'!$A$14:$S$300,O$48,0),"") -> 2.82 | P114: =IFERROR(VLOOKUP($B114,'LED #3'!$A$14:$S$300,P$48,0),"") -> 177.94 | R114: =IFERROR(VLOOKUP($B114,'LED #4'!$A$14:$S$300,R$48,0),"") ->  | S114: =IFERROR(VLOOKUP($B114,'LED #4'!$A$14:$S$300,S$48,0),"") ->  | T114: =IFERROR(VLOOKUP($B114,'LED #4'!$A$14:$S$300,T$48,0),"") ->  | U114: =IFERROR(VLOOKUP($B114,'LED #4'!$A$14:$S$300,U$48,0),"") -> 
B115: 0.640 | C115: =IFERROR(VLOOKUP($B115,'LED #1'!$A$14:$S$300,C$48,0),"") ->  | D115: =IFERROR(VLOOKUP($B115,'LED #1'!$A$14:$S$300,D$48,0),"") ->  | E115: =IFERROR(VLOOKUP($B115,'LED #1'!$A$14:$S$300,E$48,0),"") ->  | F115: =IFERROR(VLOOKUP($B115,'LED #1'!$A$14:$S$300,F$48,0),"") ->  | H115: =IFERROR(VLOOKUP($B115,'LED #2'!$A$14:$S$300,H$48,0),"") ->  | I115: =IFERROR(VLOOKUP($B115,'LED #2'!$A$14:$S$300,I$48,0),"") ->  | J115: =IFERROR(VLOOKUP($B115,'LED #2'!$A$14:$S$300,J$48,0),"") ->  | K115: =IFERROR(VLOOKUP($B115,'LED #2'!$A$14:$S$300,K$48,0),"") ->  | M115: =IFERROR(VLOOKUP($B115,'LED #3'!$A$14:$S$300,M$48,0),"") -> 320.52 | N115: =IFERROR(VLOOKUP($B115,'LED #3'!$A$14:$S$300,N$48,0),"") -> 320.52 | O115: =IFERROR(VLOOKUP($B115,'LED #3'!$A$14:$S$300,O$48,0),"") -> 2.82 | P115: =IFERROR(VLOOKUP($B115,'LED #3'!$A$14:$S$300,P$48,0),"") -> 177.40 | R115: =IFERROR(VLOOKUP($B115,'LED #4'!$A$14:$S$300,R$48,0),"") ->  | S115: =IFERROR(VLOOKUP($B115,'LED #4'!$A$14:$S$300,S$48,0),"") ->  | T115: =IFERROR(VLOOKUP($B115,'LED #4'!$A$14:$S$300,T$48,0),"") ->  | U115: =IFERROR(VLOOKUP($B115,'LED #4'!$A$14:$S$300,U$48,0),"") -> 
B116: 0.650 | C116: =IFERROR(VLOOKUP($B116,'LED #1'!$A$14:$S$300,C$48,0),"") ->  | D116: =IFERROR(VLOOKUP($B116,'LED #1'!$A$14:$S$300,D$48,0),"") ->  | E116: =IFERROR(VLOOKUP($B116,'LED #1'!$A$14:$S$300,E$48,0),"") ->  | F116: =IFERROR(VLOOKUP($B116,'LED #1'!$A$14:$S$300,F$48,0),"") ->  | H116: =IFERROR(VLOOKUP($B116,'LED #2'!$A$14:$S$300,H$48,0),"") ->  | I116: =IFERROR(VLOOKUP($B116,'LED #2'!$A$14:$S$300,I$48,0),"") ->  | J116: =IFERROR(VLOOKUP($B116,'LED #2'!$A$14:$S$300,J$48,0),"") ->  | K116: =IFERROR(VLOOKUP($B116,'LED #2'!$A$14:$S$300,K$48,0),"") ->  | M116: =IFERROR(VLOOKUP($B116,'LED #3'!$A$14:$S$300,M$48,0),"") -> 325.05 | N116: =IFERROR(VLOOKUP($B116,'LED #3'!$A$14:$S$300,N$48,0),"") -> 325.05 | O116: =IFERROR(VLOOKUP($B116,'LED #3'!$A$14:$S$300,O$48,0),"") -> 2.83 | P116: =IFERROR(VLOOKUP($B116,'LED #3'!$A$14:$S$300,P$48,0),"") -> 176.86 | R116: =IFERROR(VLOOKUP($B116,'LED #4'!$A$14:$S$300,R$48,0),"") ->  | S116: =IFERROR(VLOOKUP($B116,'LED #4'!$A$14:$S$300,S$48,0),"") ->  | T116: =IFERROR(VLOOKUP($B116,'LED #4'!$A$14:$S$300,T$48,0),"") ->  | U116: =IFERROR(VLOOKUP($B116,'LED #4'!$A$14:$S$300,U$48,0),"") -> 
B117: 0.660 | C117: =IFERROR(VLOOKUP($B117,'LED #1'!$A$14:$S$300,C$48,0),"") ->  | D117: =IFERROR(VLOOKUP($B117,'LED #1'!$A$14:$S$300,D$48,0),"") ->  | E117: =IFERROR(VLOOKUP($B117,'LED #1'!$A$14:$S$300,E$48,0),"") ->  | F117: =IFERROR(VLOOKUP($B117,'LED #1'!$A$14:$S$300,F$48,0),"") ->  | H117: =IFERROR(VLOOKUP($B117,'LED #2'!$A$14:$S$300,H$48,0),"") ->  | I117: =IFERROR(VLOOKUP($B117,'LED #2'!$A$14:$S$300,I$48,0),"") ->  | J117: =IFERROR(VLOOKUP($B117,'LED #2'!$A$14:$S$300,J$48,0),"") ->  | K117: =IFERROR(VLOOKUP($B117,'LED #2'!$A$14:$S$300,K$48,0),"") ->  | M117: =IFERROR(VLOOKUP($B117,'LED #3'!$A$14:$S$300,M$48,0),"") -> 329.57 | N117: =IFERROR(VLOOKUP($B117,'LED #3'!$A$14:$S$300,N$48,0),"") -> 329.57 | O117: =IFERROR(VLOOKUP($B117,'LED #3'!$A$14:$S$300,O$48,0),"") -> 2.83 | P117: =IFERROR(VLOOKUP($B117,'LED #3'!$A$14:$S$300,P$48,0),"") -> 176.32 | R117: =IFERROR(VLOOKUP($B117,'LED #4'!$A$14:$S$300,R$48,0),"") ->  | S117: =IFERROR(VLOOKUP($B117,'LED #4'!$A$14:$S$300,S$48,0),"") ->  | T117: =IFERROR(VLOOKUP($B117,'LED #4'!$A$14:$S$300,T$48,0),"") ->  | U117: =IFERROR(VLOOKUP($B117,'LED #4'!$A$14:$S$300,U$48,0),"") -> 
B118: =ROUND(B117+$J$4,3) -> 0.670 | C118: =IFERROR(VLOOKUP($B118,'LED #1'!$A$14:$S$300,C$48,0),"") ->  | D118: =IFERROR(VLOOKUP($B118,'LED #1'!$A$14:$S$300,D$48,0),"") ->  | E118: =IFERROR(VLOOKUP($B118,'LED #1'!$A$14:$S$300,E$48,0),"") ->  | F118: =IFERROR(VLOOKUP($B118,'LED #1'!$A$14:$S$300,F$48,0),"") ->  | H118: =IFERROR(VLOOKUP($B118,'LED #2'!$A$14:$S$300,H$48,0),"") ->  | I118: =IFERROR(VLOOKUP($B118,'LED #2'!$A$14:$S$300,I$48,0),"") ->  | J118: =IFERROR(VLOOKUP($B118,'LED #2'!$A$14:$S$300,J$48,0),"") ->  | K118: =IFERROR(VLOOKUP($B118,'LED #2'!$A$14:$S$300,K$48,0),"") ->  | M118: =IFERROR(VLOOKUP($B118,'LED #3'!$A$14:$S$300,M$48,0),"") -> 334.08 | N118: =IFERROR(VLOOKUP($B118,'LED #3'!$A$14:$S$300,N$48,0),"") -> 334.08 | O118: =IFERROR(VLOOKUP($B118,'LED #3'!$A$14:$S$300,O$48,0),"") -> 2.84 | P118: =IFERROR(VLOOKUP($B118,'LED #3'!$A$14:$S$300,P$48,0),"") -> 175.78 | R118: =IFERROR(VLOOKUP($B118,'LED #4'!$A$14:$S$300,R$48,0),"") ->  | S118: =IFERROR(VLOOKUP($B118,'LED #4'!$A$14:$S$300,S$48,0),"") ->  | T118: =IFERROR(VLOOKUP($B118,'LED #4'!$A$14:$S$300,T$48,0),"") ->  | U118: =IFERROR(VLOOKUP($B118,'LED #4'!$A$14:$S$300,U$48,0),"") -> 
B119: 0.680 | C119: =IFERROR(VLOOKUP($B119,'LED #1'!$A$14:$S$300,C$48,0),"") ->  | D119: =IFERROR(VLOOKUP($B119,'LED #1'!$A$14:$S$300,D$48,0),"") ->  | E119: =IFERROR(VLOOKUP($B119,'LED #1'!$A$14:$S$300,E$48,0),"") ->  | F119: =IFERROR(VLOOKUP($B119,'LED #1'!$A$14:$S$300,F$48,0),"") ->  | H119: =IFERROR(VLOOKUP($B119,'LED #2'!$A$14:$S$300,H$48,0),"") ->  | I119: =IFERROR(VLOOKUP($B119,'LED #2'!$A$14:$S$300,I$48,0),"") ->  | J119: =IFERROR(VLOOKUP($B119,'LED #2'!$A$14:$S$300,J$48,0),"") ->  | K119: =IFERROR(VLOOKUP($B119,'LED #2'!$A$14:$S$300,K$48,0),"") ->  | M119: =IFERROR(VLOOKUP($B119,'LED #3'!$A$14:$S$300,M$48,0),"") -> 338.57 | N119: =IFERROR(VLOOKUP($B119,'LED #3'!$A$14:$S$300,N$48,0),"") -> 338.57 | O119: =IFERROR(VLOOKUP($B119,'LED #3'!$A$14:$S$300,O$48,0),"") -> 2.84 | P119: =IFERROR(VLOOKUP($B119,'LED #3'!$A$14:$S$300,P$48,0),"") -> 175.25 | R119: =IFERROR(VLOOKUP($B119,'LED #4'!$A$14:$S$300,R$48,0),"") ->  | S119: =IFERROR(VLOOKUP($B119,'LED #4'!$A$14:$S$300,S$48,0),"") ->  | T119: =IFERROR(VLOOKUP($B119,'LED #4'!$A$14:$S$300,T$48,0),"") ->  | U119: =IFERROR(VLOOKUP($B119,'LED #4'!$A$14:$S$300,U$48,0),"") -> 
B120: 0.690 | C120: =IFERROR(VLOOKUP($B120,'LED #1'!$A$14:$S$300,C$48,0),"") ->  | D120: =IFERROR(VLOOKUP($B120,'LED #1'!$A$14:$S$300,D$48,0),"") ->  | E120: =IFERROR(VLOOKUP($B120,'LED #1'!$A$14:$S$300,E$48,0),"") ->  | F120: =IFERROR(VLOOKUP($B120,'LED #1'!$A$14:$S$300,F$48,0),"") ->  | H120: =IFERROR(VLOOKUP($B120,'LED #2'!$A$14:$S$300,H$48,0),"") ->  | I120: =IFERROR(VLOOKUP($B120,'LED #2'!$A$14:$S$300,I$48,0),"") ->  | J120: =IFERROR(VLOOKUP($B120,'LED #2'!$A$14:$S$300,J$48,0),"") ->  | K120: =IFERROR(VLOOKUP($B120,'LED #2'!$A$14:$S$300,K$48,0),"") ->  | M120: =IFERROR(VLOOKUP($B120,'LED #3'!$A$14:$S$300,M$48,0),"") -> 343.04 | N120: =IFERROR(VLOOKUP($B120,'LED #3'!$A$14:$S$300,N$48,0),"") -> 343.04 | O120: =IFERROR(VLOOKUP($B120,'LED #3'!$A$14:$S$300,O$48,0),"") -> 2.85 | P120: =IFERROR(VLOOKUP($B120,'LED #3'!$A$14:$S$300,P$48,0),"") -> 174.71 | R120: =IFERROR(VLOOKUP($B120,'LED #4'!$A$14:$S$300,R$48,0),"") ->  | S120: =IFERROR(VLOOKUP($B120,'LED #4'!$A$14:$S$300,S$48,0),"") ->  | T120: =IFERROR(VLOOKUP($B120,'LED #4'!$A$14:$S$300,T$48,0),"") ->  | U120: =IFERROR(VLOOKUP($B120,'LED #4'!$A$14:$S$300,U$48,0),"") -> 
B121: 0.700 | C121: =IFERROR(VLOOKUP($B121,'LED #1'!$A$14:$S$300,C$48,0),"") ->  | D121: =IFERROR(VLOOKUP($B121,'LED #1'!$A$14:$S$300,D$48,0),"") ->  | E121: =IFERROR(VLOOKUP($B121,'LED #1'!$A$14:$S$300,E$48,0),"") ->  | F121: =IFERROR(VLOOKUP($B121,'LED #1'!$A$14:$S$300,F$48,0),"") ->  | H121: =IFERROR(VLOOKUP($B121,'LED #2'!$A$14:$S$300,H$48,0),"") ->  | I121: =IFERROR(VLOOKUP($B121,'LED #2'!$A$14:$S$300,I$48,0),"") ->  | J121: =IFERROR(VLOOKUP($B121,'LED #2'!$A$14:$S$300,J$48,0),"") ->  | K121: =IFERROR(VLOOKUP($B121,'LED #2'!$A$14:$S$300,K$48,0),"") ->  | M121: =IFERROR(VLOOKUP($B121,'LED #3'!$A$14:$S$300,M$48,0),"") -> 347.50 | N121: =IFERROR(VLOOKUP($B121,'LED #3'!$A$14:$S$300,N$48,0),"") -> 347.50 | O121: =IFERROR(VLOOKUP($B121,'LED #3'!$A$14:$S$300,O$48,0),"") -> 2.85 | P121: =IFERROR(VLOOKUP($B121,'LED #3'!$A$14:$S$300,P$48,0),"") -> 174.19 | R121: =IFERROR(VLOOKUP($B121,'LED #4'!$A$14:$S$300,R$48,0),"") ->  | S121: =IFERROR(VLOOKUP($B121,'LED #4'!$A$14:$S$300,S$48,0),"") ->  | T121: =IFERROR(VLOOKUP($B121,'LED #4'!$A$14:$S$300,T$48,0),"") ->  | U121: =IFERROR(VLOOKUP($B121,'LED #4'!$A$14:$S$300,U$48,0),"") -> 
B122: 0.710 | C122: =IFERROR(VLOOKUP($B122,'LED #1'!$A$14:$S$300,C$48,0),"") ->  | D122: =IFERROR(VLOOKUP($B122,'LED #1'!$A$14:$S$300,D$48,0),"") ->  | E122: =IFERROR(VLOOKUP($B122,'LED #1'!$A$14:$S$300,E$48,0),"") ->  | F122: =IFERROR(VLOOKUP($B122,'LED #1'!$A$14:$S$300,F$48,0),"") ->  | H122: =IFERROR(VLOOKUP($B122,'LED #2'!$A$14:$S$300,H$48,0),"") ->  | I122: =IFERROR(VLOOKUP($B122,'LED #2'!$A$14:$S$300,I$48,0),"") ->  | J122: =IFERROR(VLOOKUP($B122,'LED #2'!$A$14:$S$300,J$48,0),"") ->  | K122: =IFERROR(VLOOKUP($B122,'LED #2'!$A$14:$S$300,K$48,0),"") ->  | M122: =IFERROR(VLOOKUP($B122,'LED #3'!$A$14:$S$300,M$48,0),"") -> 351.95 | N122: =IFERROR(VLOOKUP($B122,'LED #3'!$A$14:$S$300,N$48,0),"") -> 351.95 | O122: =IFERROR(VLOOKUP($B122,'LED #3'!$A$14:$S$300,O$48,0),"") -> 2.85 | P122: =IFERROR(VLOOKUP($B122,'LED #3'!$A$14:$S$300,P$48,0),"") -> 173.66 | R122: =IFERROR(VLOOKUP($B122,'LED #4'!$A$14:$S$300,R$48,0),"") ->  | S122: =IFERROR(VLOOKUP($B122,'LED #4'!$A$14:$S$300,S$48,0),"") ->  | T122: =IFERROR(VLOOKUP($B122,'LED #4'!$A$14:$S$300,T$48,0),"") ->  | U122: =IFERROR(VLOOKUP($B122,'LED #4'!$A$14:$S$300,U$48,0),"") -> 
B123: 0.720 | C123: =IFERROR(VLOOKUP($B123,'LED #1'!$A$14:$S$300,C$48,0),"") ->  | D123: =IFERROR(VLOOKUP($B123,'LED #1'!$A$14:$S$300,D$48,0),"") ->  | E123: =IFERROR(VLOOKUP($B123,'LED #1'!$A$14:$S$300,E$48,0),"") ->  | F123: =IFERROR(VLOOKUP($B123,'LED #1'!$A$14:$S$300,F$48,0),"") ->  | H123: =IFERROR(VLOOKUP($B123,'LED #2'!$A$14:$S$300,H$48,0),"") ->  | I123: =IFERROR(VLOOKUP($B123,'LED #2'!$A$14:$S$300,I$48,0),"") ->  | J123: =IFERROR(VLOOKUP($B123,'LED #2'!$A$14:$S$300,J$48,0),"") ->  | K123: =IFERROR(VLOOKUP($B123,'LED #2'!$A$14:$S$300,K$48,0),"") ->  | M123: =IFERROR(VLOOKUP($B123,'LED #3'!$A$14:$S$300,M$48,0),"") -> 356.38 | N123: =IFERROR(VLOOKUP($B123,'LED #3'!$A$14:$S$300,N$48,0),"") -> 356.38 | O123: =IFERROR(VLOOKUP($B123,'LED #3'!$A$14:$S$300,O$48,0),"") -> 2.86 | P123: =IFERROR(VLOOKUP($B123,'LED #3'!$A$14:$S$300,P$48,0),"") -> 173.14 | R123: =IFERROR(VLOOKUP($B123,'LED #4'!$A$14:$S$300,R$48,0),"") ->  | S123: =IFERROR(VLOOKUP($B123,'LED #4'!$A$14:$S$300,S$48,0),"") ->  | T123: =IFERROR(VLOOKUP($B123,'LED #4'!$A$14:$S$300,T$48,0),"") ->  | U123: =IFERROR(VLOOKUP($B123,'LED #4'!$A$14:$S$300,U$48,0),"") -> 
B124: 0.730 | C124: =IFERROR(VLOOKUP($B124,'LED #1'!$A$14:$S$300,C$48,0),"") ->  | D124: =IFERROR(VLOOKUP($B124,'LED #1'!$A$14:$S$300,D$48,0),"") ->  | E124: =IFERROR(VLOOKUP($B124,'LED #1'!$A$14:$S$300,E$48,0),"") ->  | F124: =IFERROR(VLOOKUP($B124,'LED #1'!$A$14:$S$300,F$48,0),"") ->  | H124: =IFERROR(VLOOKUP($B124,'LED #2'!$A$14:$S$300,H$48,0),"") ->  | I124: =IFERROR(VLOOKUP($B124,'LED #2'!$A$14:$S$300,I$48,0),"") ->  | J124: =IFERROR(VLOOKUP($B124,'LED #2'!$A$14:$S$300,J$48,0),"") ->  | K124: =IFERROR(VLOOKUP($B124,'LED #2'!$A$14:$S$300,K$48,0),"") ->  | M124: =IFERROR(VLOOKUP($B124,'LED #3'!$A$14:$S$300,M$48,0),"") -> 360.79 | N124: =IFERROR(VLOOKUP($B124,'LED #3'!$A$14:$S$300,N$48,0),"") -> 360.79 | O124: =IFERROR(VLOOKUP($B124,'LED #3'!$A$14:$S$300,O$48,0),"") -> 2.86 | P124: =IFERROR(VLOOKUP($B124,'LED #3'!$A$14:$S$300,P$48,0),"") -> 172.62 | R124: =IFERROR(VLOOKUP($B124,'LED #4'!$A$14:$S$300,R$48,0),"") ->  | S124: =IFERROR(VLOOKUP($B124,'LED #4'!$A$14:$S$300,S$48,0),"") ->  | T124: =IFERROR(VLOOKUP($B124,'LED #4'!$A$14:$S$300,T$48,0),"") ->  | U124: =IFERROR(VLOOKUP($B124,'LED #4'!$A$14:$S$300,U$48,0),"") -> 
B125: 0.740 | C125: =IFERROR(VLOOKUP($B125,'LED #1'!$A$14:$S$300,C$48,0),"") ->  | D125: =IFERROR(VLOOKUP($B125,'LED #1'!$A$14:$S$300,D$48,0),"") ->  | E125: =IFERROR(VLOOKUP($B125,'LED #1'!$A$14:$S$300,E$48,0),"") ->  | F125: =IFERROR(VLOOKUP($B125,'LED #1'!$A$14:$S$300,F$48,0),"") ->  | H125: =IFERROR(VLOOKUP($B125,'LED #2'!$A$14:$S$300,H$48,0),"") ->  | I125: =IFERROR(VLOOKUP($B125,'LED #2'!$A$14:$S$300,I$48,0),"") ->  | J125: =IFERROR(VLOOKUP($B125,'LED #2'!$A$14:$S$300,J$48,0),"") ->  | K125: =IFERROR(VLOOKUP($B125,'LED #2'!$A$14:$S$300,K$48,0),"") ->  | M125: =IFERROR(VLOOKUP($B125,'LED #3'!$A$14:$S$300,M$48,0),"") -> 365.19 | N125: =IFERROR(VLOOKUP($B125,'LED #3'!$A$14:$S$300,N$48,0),"") -> 365.19 | O125: =IFERROR(VLOOKUP($B125,'LED #3'!$A$14:$S$300,O$48,0),"") -> 2.87 | P125: =IFERROR(VLOOKUP($B125,'LED #3'!$A$14:$S$300,P$48,0),"") -> 172.10 | R125: =IFERROR(VLOOKUP($B125,'LED #4'!$A$14:$S$300,R$48,0),"") ->  | S125: =IFERROR(VLOOKUP($B125,'LED #4'!$A$14:$S$300,S$48,0),"") ->  | T125: =IFERROR(VLOOKUP($B125,'LED #4'!$A$14:$S$300,T$48,0),"") ->  | U125: =IFERROR(VLOOKUP($B125,'LED #4'!$A$14:$S$300,U$48,0),"") -> 
B126: 0.750 | C126: =IFERROR(VLOOKUP($B126,'LED #1'!$A$14:$S$300,C$48,0),"") ->  | D126: =IFERROR(VLOOKUP($B126,'LED #1'!$A$14:$S$300,D$48,0),"") ->  | E126: =IFERROR(VLOOKUP($B126,'LED #1'!$A$14:$S$300,E$48,0),"") ->  | F126: =IFERROR(VLOOKUP($B126,'LED #1'!$A$14:$S$300,F$48,0),"") ->  | H126: =IFERROR(VLOOKUP($B126,'LED #2'!$A$14:$S$300,H$48,0),"") ->  | I126: =IFERROR(VLOOKUP($B126,'LED #2'!$A$14:$S$300,I$48,0),"") ->  | J126: =IFERROR(VLOOKUP($B126,'LED #2'!$A$14:$S$300,J$48,0),"") ->  | K126: =IFERROR(VLOOKUP($B126,'LED #2'!$A$14:$S$300,K$48,0),"") ->  | M126: =IFERROR(VLOOKUP($B126,'LED #3'!$A$14:$S$300,M$48,0),"") -> 369.58 | N126: =IFERROR(VLOOKUP($B126,'LED #3'!$A$14:$S$300,N$48,0),"") -> 369.58 | O126: =IFERROR(VLOOKUP($B126,'LED #3'!$A$14:$S$300,O$48,0),"") -> 2.87 | P126: =IFERROR(VLOOKUP($B126,'LED #3'!$A$14:$S$300,P$48,0),"") -> 171.59 | R126: =IFERROR(VLOOKUP($B126,'LED #4'!$A$14:$S$300,R$48,0),"") ->  | S126: =IFERROR(VLOOKUP($B126,'LED #4'!$A$14:$S$300,S$48,0),"") ->  | T126: =IFERROR(VLOOKUP($B126,'LED #4'!$A$14:$S$300,T$48,0),"") ->  | U126: =IFERROR(VLOOKUP($B126,'LED #4'!$A$14:$S$300,U$48,0),"") -> 
B127: 0.760 | C127: =IFERROR(VLOOKUP($B127,'LED #1'!$A$14:$S$300,C$48,0),"") ->  | D127: =IFERROR(VLOOKUP($B127,'LED #1'!$A$14:$S$300,D$48,0),"") ->  | E127: =IFERROR(VLOOKUP($B127,'LED #1'!$A$14:$S$300,E$48,0),"") ->  | F127: =IFERROR(VLOOKUP($B127,'LED #1'!$A$14:$S$300,F$48,0),"") ->  | H127: =IFERROR(VLOOKUP($B127,'LED #2'!$A$14:$S$300,H$48,0),"") ->  | I127: =IFERROR(VLOOKUP($B127,'LED #2'!$A$14:$S$300,I$48,0),"") ->  | J127: =IFERROR(VLOOKUP($B127,'LED #2'!$A$14:$S$300,J$48,0),"") ->  | K127: =IFERROR(VLOOKUP($B127,'LED #2'!$A$14:$S$300,K$48,0),"") ->  | M127: =IFERROR(VLOOKUP($B127,'LED #3'!$A$14:$S$300,M$48,0),"") -> 373.95 | N127: =IFERROR(VLOOKUP($B127,'LED #3'!$A$14:$S$300,N$48,0),"") -> 373.95 | O127: =IFERROR(VLOOKUP($B127,'LED #3'!$A$14:$S$300,O$48,0),"") -> 2.88 | P127: =IFERROR(VLOOKUP($B127,'LED #3'!$A$14:$S$300,P$48,0),"") -> 171.08 | R127: =IFERROR(VLOOKUP($B127,'LED #4'!$A$14:$S$300,R$48,0),"") ->  | S127: =IFERROR(VLOOKUP($B127,'LED #4'!$A$14:$S$300,S$48,0),"") ->  | T127: =IFERROR(VLOOKUP($B127,'LED #4'!$A$14:$S$300,T$48,0),"") ->  | U127: =IFERROR(VLOOKUP($B127,'LED #4'!$A$14:$S$300,U$48,0),"") -> 
B128: 0.770 | C128: =IFERROR(VLOOKUP($B128,'LED #1'!$A$14:$S$300,C$48,0),"") ->  | D128: =IFERROR(VLOOKUP($B128,'LED #1'!$A$14:$S$300,D$48,0),"") ->  | E128: =IFERROR(VLOOKUP($B128,'LED #1'!$A$14:$S$300,E$48,0),"") ->  | F128: =IFERROR(VLOOKUP($B128,'LED #1'!$A$14:$S$300,F$48,0),"") ->  | H128: =IFERROR(VLOOKUP($B128,'LED #2'!$A$14:$S$300,H$48,0),"") ->  | I128: =IFERROR(VLOOKUP($B128,'LED #2'!$A$14:$S$300,I$48,0),"") ->  | J128: =IFERROR(VLOOKUP($B128,'LED #2'!$A$14:$S$300,J$48,0),"") ->  | K128: =IFERROR(VLOOKUP($B128,'LED #2'!$A$14:$S$300,K$48,0),"") ->  | M128: =IFERROR(VLOOKUP($B128,'LED #3'!$A$14:$S$300,M$48,0),"") -> 378.31 | N128: =IFERROR(VLOOKUP($B128,'LED #3'!$A$14:$S$300,N$48,0),"") -> 378.31 | O128: =IFERROR(VLOOKUP($B128,'LED #3'!$A$14:$S$300,O$48,0),"") -> 2.88 | P128: =IFERROR(VLOOKUP($B128,'LED #3'!$A$14:$S$300,P$48,0),"") -> 170.57 | R128: =IFERROR(VLOOKUP($B128,'LED #4'!$A$14:$S$300,R$48,0),"") ->  | S128: =IFERROR(VLOOKUP($B128,'LED #4'!$A$14:$S$300,S$48,0),"") ->  | T128: =IFERROR(VLOOKUP($B128,'LED #4'!$A$14:$S$300,T$48,0),"") ->  | U128: =IFERROR(VLOOKUP($B128,'LED #4'!$A$14:$S$300,U$48,0),"") -> 
B129: 0.780 | C129: =IFERROR(VLOOKUP($B129,'LED #1'!$A$14:$S$300,C$48,0),"") ->  | D129: =IFERROR(VLOOKUP($B129,'LED #1'!$A$14:$S$300,D$48,0),"") ->  | E129: =IFERROR(VLOOKUP($B129,'LED #1'!$A$14:$S$300,E$48,0),"") ->  | F129: =IFERROR(VLOOKUP($B129,'LED #1'!$A$14:$S$300,F$48,0),"") ->  | H129: =IFERROR(VLOOKUP($B129,'LED #2'!$A$14:$S$300,H$48,0),"") ->  | I129: =IFERROR(VLOOKUP($B129,'LED #2'!$A$14:$S$300,I$48,0),"") ->  | J129: =IFERROR(VLOOKUP($B129,'LED #2'!$A$14:$S$300,J$48,0),"") ->  | K129: =IFERROR(VLOOKUP($B129,'LED #2'!$A$14:$S$300,K$48,0),"") ->  | M129: =IFERROR(VLOOKUP($B129,'LED #3'!$A$14:$S$300,M$48,0),"") -> 382.65 | N129: =IFERROR(VLOOKUP($B129,'LED #3'!$A$14:$S$300,N$48,0),"") -> 382.65 | O129: =IFERROR(VLOOKUP($B129,'LED #3'!$A$14:$S$300,O$48,0),"") -> 2.88 | P129: =IFERROR(VLOOKUP($B129,'LED #3'!$A$14:$S$300,P$48,0),"") -> 170.06 | R129: =IFERROR(VLOOKUP($B129,'LED #4'!$A$14:$S$300,R$48,0),"") ->  | S129: =IFERROR(VLOOKUP($B129,'LED #4'!$A$14:$S$300,S$48,0),"") ->  | T129: =IFERROR(VLOOKUP($B129,'LED #4'!$A$14:$S$300,T$48,0),"") ->  | U129: =IFERROR(VLOOKUP($B129,'LED #4'!$A$14:$S$300,U$48,0),"") -> 
B130: 0.790 | C130: =IFERROR(VLOOKUP($B130,'LED #1'!$A$14:$S$300,C$48,0),"") ->  | D130: =IFERROR(VLOOKUP($B130,'LED #1'!$A$14:$S$300,D$48,0),"") ->  | E130: =IFERROR(VLOOKUP($B130,'LED #1'!$A$14:$S$300,E$48,0),"") ->  | F130: =IFERROR(VLOOKUP($B130,'LED #1'!$A$14:$S$300,F$48,0),"") ->  | H130: =IFERROR(VLOOKUP($B130,'LED #2'!$A$14:$S$300,H$48,0),"") ->  | I130: =IFERROR(VLOOKUP($B130,'LED #2'!$A$14:$S$300,I$48,0),"") ->  | J130: =IFERROR(VLOOKUP($B130,'LED #2'!$A$14:$S$300,J$48,0),"") ->  | K130: =IFERROR(VLOOKUP($B130,'LED #2'!$A$14:$S$300,K$48,0),"") ->  | M130: =IFERROR(VLOOKUP($B130,'LED #3'!$A$14:$S$300,M$48,0),"") -> 386.98 | N130: =IFERROR(VLOOKUP($B130,'LED #3'!$A$14:$S$300,N$48,0),"") -> 386.98 | O130: =IFERROR(VLOOKUP($B130,'LED #3'!$A$14:$S$300,O$48,0),"") -> 2.89 | P130: =IFERROR(VLOOKUP($B130,'LED #3'!$A$14:$S$300,P$48,0),"") -> 169.56 | R130: =IFERROR(VLOOKUP($B130,'LED #4'!$A$14:$S$300,R$48,0),"") ->  | S130: =IFERROR(VLOOKUP($B130,'LED #4'!$A$14:$S$300,S$48,0),"") ->  | T130: =IFERROR(VLOOKUP($B130,'LED #4'!$A$14:$S$300,T$48,0),"") ->  | U130: =IFERROR(VLOOKUP($B130,'LED #4'!$A$14:$S$300,U$48,0),"") -> 
B131: 0.800 | C131: =IFERROR(VLOOKUP($B131,'LED #1'!$A$14:$S$300,C$48,0),"") ->  | D131: =IFERROR(VLOOKUP($B131,'LED #1'!$A$14:$S$300,D$48,0),"") ->  | E131: =IFERROR(VLOOKUP($B131,'LED #1'!$A$14:$S$300,E$48,0),"") ->  | F131: =IFERROR(VLOOKUP($B131,'LED #1'!$A$14:$S$300,F$48,0),"") ->  | H131: =IFERROR(VLOOKUP($B131,'LED #2'!$A$14:$S$300,H$48,0),"") ->  | I131: =IFERROR(VLOOKUP($B131,'LED #2'!$A$14:$S$300,I$48,0),"") ->  | J131: =IFERROR(VLOOKUP($B131,'LED #2'!$A$14:$S$300,J$48,0),"") ->  | K131: =IFERROR(VLOOKUP($B131,'LED #2'!$A$14:$S$300,K$48,0),"") ->  | M131: =IFERROR(VLOOKUP($B131,'LED #3'!$A$14:$S$300,M$48,0),"") -> 391.29 | N131: =IFERROR(VLOOKUP($B131,'LED #3'!$A$14:$S$300,N$48,0),"") -> 391.29 | O131: =IFERROR(VLOOKUP($B131,'LED #3'!$A$14:$S$300,O$48,0),"") -> 2.89 | P131: =IFERROR(VLOOKUP($B131,'LED #3'!$A$14:$S$300,P$48,0),"") -> 169.06 | R131: =IFERROR(VLOOKUP($B131,'LED #4'!$A$14:$S$300,R$48,0),"") ->  | S131: =IFERROR(VLOOKUP($B131,'LED #4'!$A$14:$S$300,S$48,0),"") ->  | T131: =IFERROR(VLOOKUP($B131,'LED #4'!$A$14:$S$300,T$48,0),"") ->  | U131: =IFERROR(VLOOKUP($B131,'LED #4'!$A$14:$S$300,U$48,0),"") -> 
B132: 0.810 | C132: =IFERROR(VLOOKUP($B132,'LED #1'!$A$14:$S$300,C$48,0),"") ->  | D132: =IFERROR(VLOOKUP($B132,'LED #1'!$A$14:$S$300,D$48,0),"") ->  | E132: =IFERROR(VLOOKUP($B132,'LED #1'!$A$14:$S$300,E$48,0),"") ->  | F132: =IFERROR(VLOOKUP($B132,'LED #1'!$A$14:$S$300,F$48,0),"") ->  | H132: =IFERROR(VLOOKUP($B132,'LED #2'!$A$14:$S$300,H$48,0),"") ->  | I132: =IFERROR(VLOOKUP($B132,'LED #2'!$A$14:$S$300,I$48,0),"") ->  | J132: =IFERROR(VLOOKUP($B132,'LED #2'!$A$14:$S$300,J$48,0),"") ->  | K132: =IFERROR(VLOOKUP($B132,'LED #2'!$A$14:$S$300,K$48,0),"") ->  | M132: =IFERROR(VLOOKUP($B132,'LED #3'!$A$14:$S$300,M$48,0),"") -> 395.59 | N132: =IFERROR(VLOOKUP($B132,'LED #3'!$A$14:$S$300,N$48,0),"") -> 395.59 | O132: =IFERROR(VLOOKUP($B132,'LED #3'!$A$14:$S$300,O$48,0),"") -> 2.90 | P132: =IFERROR(VLOOKUP($B132,'LED #3'!$A$14:$S$300,P$48,0),"") -> 168.56 | R132: =IFERROR(VLOOKUP($B132,'LED #4'!$A$14:$S$300,R$48,0),"") ->  | S132: =IFERROR(VLOOKUP($B132,'LED #4'!$A$14:$S$300,S$48,0),"") ->  | T132: =IFERROR(VLOOKUP($B132,'LED #4'!$A$14:$S$300,T$48,0),"") ->  | U132: =IFERROR(VLOOKUP($B132,'LED #4'!$A$14:$S$300,U$48,0),"") -> 
B133: 0.820 | C133: =IFERROR(VLOOKUP($B133,'LED #1'!$A$14:$S$300,C$48,0),"") ->  | D133: =IFERROR(VLOOKUP($B133,'LED #1'!$A$14:$S$300,D$48,0),"") ->  | E133: =IFERROR(VLOOKUP($B133,'LED #1'!$A$14:$S$300,E$48,0),"") ->  | F133: =IFERROR(VLOOKUP($B133,'LED #1'!$A$14:$S$300,F$48,0),"") ->  | H133: =IFERROR(VLOOKUP($B133,'LED #2'!$A$14:$S$300,H$48,0),"") ->  | I133: =IFERROR(VLOOKUP($B133,'LED #2'!$A$14:$S$300,I$48,0),"") ->  | J133: =IFERROR(VLOOKUP($B133,'LED #2'!$A$14:$S$300,J$48,0),"") ->  | K133: =IFERROR(VLOOKUP($B133,'LED #2'!$A$14:$S$300,K$48,0),"") ->  | M133: =IFERROR(VLOOKUP($B133,'LED #3'!$A$14:$S$300,M$48,0),"") -> 399.88 | N133: =IFERROR(VLOOKUP($B133,'LED #3'!$A$14:$S$300,N$48,0),"") -> 399.88 | O133: =IFERROR(VLOOKUP($B133,'LED #3'!$A$14:$S$300,O$48,0),"") -> 2.90 | P133: =IFERROR(VLOOKUP($B133,'LED #3'!$A$14:$S$300,P$48,0),"") -> 168.07 | R133: =IFERROR(VLOOKUP($B133,'LED #4'!$A$14:$S$300,R$48,0),"") ->  | S133: =IFERROR(VLOOKUP($B133,'LED #4'!$A$14:$S$300,S$48,0),"") ->  | T133: =IFERROR(VLOOKUP($B133,'LED #4'!$A$14:$S$300,T$48,0),"") ->  | U133: =IFERROR(VLOOKUP($B133,'LED #4'!$A$14:$S$300,U$48,0),"") -> 
B134: 0.830 | C134: =IFERROR(VLOOKUP($B134,'LED #1'!$A$14:$S$300,C$48,0),"") ->  | D134: =IFERROR(VLOOKUP($B134,'LED #1'!$A$14:$S$300,D$48,0),"") ->  | E134: =IFERROR(VLOOKUP($B134,'LED #1'!$A$14:$S$300,E$48,0),"") ->  | F134: =IFERROR(VLOOKUP($B134,'LED #1'!$A$14:$S$300,F$48,0),"") ->  | H134: =IFERROR(VLOOKUP($B134,'LED #2'!$A$14:$S$300,H$48,0),"") ->  | I134: =IFERROR(VLOOKUP($B134,'LED #2'!$A$14:$S$300,I$48,0),"") ->  | J134: =IFERROR(VLOOKUP($B134,'LED #2'!$A$14:$S$300,J$48,0),"") ->  | K134: =IFERROR(VLOOKUP($B134,'LED #2'!$A$14:$S$300,K$48,0),"") ->  | M134: =IFERROR(VLOOKUP($B134,'LED #3'!$A$14:$S$300,M$48,0),"") -> 404.15 | N134: =IFERROR(VLOOKUP($B134,'LED #3'!$A$14:$S$300,N$48,0),"") -> 404.15 | O134: =IFERROR(VLOOKUP($B134,'LED #3'!$A$14:$S$300,O$48,0),"") -> 2.91 | P134: =IFERROR(VLOOKUP($B134,'LED #3'!$A$14:$S$300,P$48,0),"") -> 167.58 | R134: =IFERROR(VLOOKUP($B134,'LED #4'!$A$14:$S$300,R$48,0),"") ->  | S134: =IFERROR(VLOOKUP($B134,'LED #4'!$A$14:$S$300,S$48,0),"") ->  | T134: =IFERROR(VLOOKUP($B134,'LED #4'!$A$14:$S$300,T$48,0),"") ->  | U134: =IFERROR(VLOOKUP($B134,'LED #4'!$A$14:$S$300,U$48,0),"") -> 
B135: 0.840 | C135: =IFERROR(VLOOKUP($B135,'LED #1'!$A$14:$S$300,C$48,0),"") ->  | D135: =IFERROR(VLOOKUP($B135,'LED #1'!$A$14:$S$300,D$48,0),"") ->  | E135: =IFERROR(VLOOKUP($B135,'LED #1'!$A$14:$S$300,E$48,0),"") ->  | F135: =IFERROR(VLOOKUP($B135,'LED #1'!$A$14:$S$300,F$48,0),"") ->  | H135: =IFERROR(VLOOKUP($B135,'LED #2'!$A$14:$S$300,H$48,0),"") ->  | I135: =IFERROR(VLOOKUP($B135,'LED #2'!$A$14:$S$300,I$48,0),"") ->  | J135: =IFERROR(VLOOKUP($B135,'LED #2'!$A$14:$S$300,J$48,0),"") ->  | K135: =IFERROR(VLOOKUP($B135,'LED #2'!$A$14:$S$300,K$48,0),"") ->  | M135: =IFERROR(VLOOKUP($B135,'LED #3'!$A$14:$S$300,M$48,0),"") -> 408.41 | N135: =IFERROR(VLOOKUP($B135,'LED #3'!$A$14:$S$300,N$48,0),"") -> 408.41 | O135: =IFERROR(VLOOKUP($B135,'LED #3'!$A$14:$S$300,O$48,0),"") -> 2.91 | P135: =IFERROR(VLOOKUP($B135,'LED #3'!$A$14:$S$300,P$48,0),"") -> 167.09 | R135: =IFERROR(VLOOKUP($B135,'LED #4'!$A$14:$S$300,R$48,0),"") ->  | S135: =IFERROR(VLOOKUP($B135,'LED #4'!$A$14:$S$300,S$48,0),"") ->  | T135: =IFERROR(VLOOKUP($B135,'LED #4'!$A$14:$S$300,T$48,0),"") ->  | U135: =IFERROR(VLOOKUP($B135,'LED #4'!$A$14:$S$300,U$48,0),"") -> 
B136: 0.850 | C136: =IFERROR(VLOOKUP($B136,'LED #1'!$A$14:$S$300,C$48,0),"") ->  | D136: =IFERROR(VLOOKUP($B136,'LED #1'!$A$14:$S$300,D$48,0),"") ->  | E136: =IFERROR(VLOOKUP($B136,'LED #1'!$A$14:$S$300,E$48,0),"") ->  | F136: =IFERROR(VLOOKUP($B136,'LED #1'!$A$14:$S$300,F$48,0),"") ->  | H136: =IFERROR(VLOOKUP($B136,'LED #2'!$A$14:$S$300,H$48,0),"") ->  | I136: =IFERROR(VLOOKUP($B136,'LED #2'!$A$14:$S$300,I$48,0),"") ->  | J136: =IFERROR(VLOOKUP($B136,'LED #2'!$A$14:$S$300,J$48,0),"") ->  | K136: =IFERROR(VLOOKUP($B136,'LED #2'!$A$14:$S$300,K$48,0),"") ->  | M136: =IFERROR(VLOOKUP($B136,'LED #3'!$A$14:$S$300,M$48,0),"") -> 412.65 | N136: =IFERROR(VLOOKUP($B136,'LED #3'!$A$14:$S$300,N$48,0),"") -> 412.65 | O136: =IFERROR(VLOOKUP($B136,'LED #3'!$A$14:$S$300,O$48,0),"") -> 2.91 | P136: =IFERROR(VLOOKUP($B136,'LED #3'!$A$14:$S$300,P$48,0),"") -> 166.60 | R136: =IFERROR(VLOOKUP($B136,'LED #4'!$A$14:$S$300,R$48,0),"") ->  | S136: =IFERROR(VLOOKUP($B136,'LED #4'!$A$14:$S$300,S$48,0),"") ->  | T136: =IFERROR(VLOOKUP($B136,'LED #4'!$A$14:$S$300,T$48,0),"") ->  | U136: =IFERROR(VLOOKUP($B136,'LED #4'!$A$14:$S$300,U$48,0),"") -> 
B137: 0.860 | C137: =IFERROR(VLOOKUP($B137,'LED #1'!$A$14:$S$300,C$48,0),"") ->  | D137: =IFERROR(VLOOKUP($B137,'LED #1'!$A$14:$S$300,D$48,0),"") ->  | E137: =IFERROR(VLOOKUP($B137,'LED #1'!$A$14:$S$300,E$48,0),"") ->  | F137: =IFERROR(VLOOKUP($B137,'LED #1'!$A$14:$S$300,F$48,0),"") ->  | H137: =IFERROR(VLOOKUP($B137,'LED #2'!$A$14:$S$300,H$48,0),"") ->  | I137: =IFERROR(VLOOKUP($B137,'LED #2'!$A$14:$S$300,I$48,0),"") ->  | J137: =IFERROR(VLOOKUP($B137,'LED #2'!$A$14:$S$300,J$48,0),"") ->  | K137: =IFERROR(VLOOKUP($B137,'LED #2'!$A$14:$S$300,K$48,0),"") ->  | M137: =IFERROR(VLOOKUP($B137,'LED #3'!$A$14:$S$300,M$48,0),"") -> 416.88 | N137: =IFERROR(VLOOKUP($B137,'LED #3'!$A$14:$S$300,N$48,0),"") -> 416.88 | O137: =IFERROR(VLOOKUP($B137,'LED #3'!$A$14:$S$300,O$48,0),"") -> 2.92 | P137: =IFERROR(VLOOKUP($B137,'LED #3'!$A$14:$S$300,P$48,0),"") -> 166.12 | R137: =IFERROR(VLOOKUP($B137,'LED #4'!$A$14:$S$300,R$48,0),"") ->  | S137: =IFERROR(VLOOKUP($B137,'LED #4'!$A$14:$S$300,S$48,0),"") ->  | T137: =IFERROR(VLOOKUP($B137,'LED #4'!$A$14:$S$300,T$48,0),"") ->  | U137: =IFERROR(VLOOKUP($B137,'LED #4'!$A$14:$S$300,U$48,0),"") -> 
B138: 0.870 | C138: =IFERROR(VLOOKUP($B138,'LED #1'!$A$14:$S$300,C$48,0),"") ->  | D138: =IFERROR(VLOOKUP($B138,'LED #1'!$A$14:$S$300,D$48,0),"") ->  | E138: =IFERROR(VLOOKUP($B138,'LED #1'!$A$14:$S$300,E$48,0),"") ->  | F138: =IFERROR(VLOOKUP($B138,'LED #1'!$A$14:$S$300,F$48,0),"") ->  | H138: =IFERROR(VLOOKUP($B138,'LED #2'!$A$14:$S$300,H$48,0),"") ->  | I138: =IFERROR(VLOOKUP($B138,'LED #2'!$A$14:$S$300,I$48,0),"") ->  | J138: =IFERROR(VLOOKUP($B138,'LED #2'!$A$14:$S$300,J$48,0),"") ->  | K138: =IFERROR(VLOOKUP($B138,'LED #2'!$A$14:$S$300,K$48,0),"") ->  | M138: =IFERROR(VLOOKUP($B138,'LED #3'!$A$14:$S$300,M$48,0),"") -> 421.09 | N138: =IFERROR(VLOOKUP($B138,'LED #3'!$A$14:$S$300,N$48,0),"") -> 421.09 | O138: =IFERROR(VLOOKUP($B138,'LED #3'!$A$14:$S$300,O$48,0),"") -> 2.92 | P138: =IFERROR(VLOOKUP($B138,'LED #3'!$A$14:$S$300,P$48,0),"") -> 165.64 | R138: =IFERROR(VLOOKUP($B138,'LED #4'!$A$14:$S$300,R$48,0),"") ->  | S138: =IFERROR(VLOOKUP($B138,'LED #4'!$A$14:$S$300,S$48,0),"") ->  | T138: =IFERROR(VLOOKUP($B138,'LED #4'!$A$14:$S$300,T$48,0),"") ->  | U138: =IFERROR(VLOOKUP($B138,'LED #4'!$A$14:$S$300,U$48,0),"") -> 
B139: 0.880 | C139: =IFERROR(VLOOKUP($B139,'LED #1'!$A$14:$S$300,C$48,0),"") ->  | D139: =IFERROR(VLOOKUP($B139,'LED #1'!$A$14:$S$300,D$48,0),"") ->  | E139: =IFERROR(VLOOKUP($B139,'LED #1'!$A$14:$S$300,E$48,0),"") ->  | F139: =IFERROR(VLOOKUP($B139,'LED #1'!$A$14:$S$300,F$48,0),"") ->  | H139: =IFERROR(VLOOKUP($B139,'LED #2'!$A$14:$S$300,H$48,0),"") ->  | I139: =IFERROR(VLOOKUP($B139,'LED #2'!$A$14:$S$300,I$48,0),"") ->  | J139: =IFERROR(VLOOKUP($B139,'LED #2'!$A$14:$S$300,J$48,0),"") ->  | K139: =IFERROR(VLOOKUP($B139,'LED #2'!$A$14:$S$300,K$48,0),"") ->  | M139: =IFERROR(VLOOKUP($B139,'LED #3'!$A$14:$S$300,M$48,0),"") -> 425.30 | N139: =IFERROR(VLOOKUP($B139,'LED #3'!$A$14:$S$300,N$48,0),"") -> 425.30 | O139: =IFERROR(VLOOKUP($B139,'LED #3'!$A$14:$S$300,O$48,0),"") -> 2.93 | P139: =IFERROR(VLOOKUP($B139,'LED #3'!$A$14:$S$300,P$48,0),"") -> 165.16 | R139: =IFERROR(VLOOKUP($B139,'LED #4'!$A$14:$S$300,R$48,0),"") ->  | S139: =IFERROR(VLOOKUP($B139,'LED #4'!$A$14:$S$300,S$48,0),"") ->  | T139: =IFERROR(VLOOKUP($B139,'LED #4'!$A$14:$S$300,T$48,0),"") ->  | U139: =IFERROR(VLOOKUP($B139,'LED #4'!$A$14:$S$300,U$48,0),"") -> 
B140: 0.890 | C140: =IFERROR(VLOOKUP($B140,'LED #1'!$A$14:$S$300,C$48,0),"") ->  | D140: =IFERROR(VLOOKUP($B140,'LED #1'!$A$14:$S$300,D$48,0),"") ->  | E140: =IFERROR(VLOOKUP($B140,'LED #1'!$A$14:$S$300,E$48,0),"") ->  | F140: =IFERROR(VLOOKUP($B140,'LED #1'!$A$14:$S$300,F$48,0),"") ->  | H140: =IFERROR(VLOOKUP($B140,'LED #2'!$A$14:$S$300,H$48,0),"") ->  | I140: =IFERROR(VLOOKUP($B140,'LED #2'!$A$14:$S$300,I$48,0),"") ->  | J140: =IFERROR(VLOOKUP($B140,'LED #2'!$A$14:$S$300,J$48,0),"") ->  | K140: =IFERROR(VLOOKUP($B140,'LED #2'!$A$14:$S$300,K$48,0),"") ->  | M140: =IFERROR(VLOOKUP($B140,'LED #3'!$A$14:$S$300,M$48,0),"") -> 429.48 | N140: =IFERROR(VLOOKUP($B140,'LED #3'!$A$14:$S$300,N$48,0),"") -> 429.48 | O140: =IFERROR(VLOOKUP($B140,'LED #3'!$A$14:$S$300,O$48,0),"") -> 2.93 | P140: =IFERROR(VLOOKUP($B140,'LED #3'!$A$14:$S$300,P$48,0),"") -> 164.69 | R140: =IFERROR(VLOOKUP($B140,'LED #4'!$A$14:$S$300,R$48,0),"") ->  | S140: =IFERROR(VLOOKUP($B140,'LED #4'!$A$14:$S$300,S$48,0),"") ->  | T140: =IFERROR(VLOOKUP($B140,'LED #4'!$A$14:$S$300,T$48,0),"") ->  | U140: =IFERROR(VLOOKUP($B140,'LED #4'!$A$14:$S$300,U$48,0),"") -> 
B141: 0.900 | C141: =IFERROR(VLOOKUP($B141,'LED #1'!$A$14:$S$300,C$48,0),"") ->  | D141: =IFERROR(VLOOKUP($B141,'LED #1'!$A$14:$S$300,D$48,0),"") ->  | E141: =IFERROR(VLOOKUP($B141,'LED #1'!$A$14:$S$300,E$48,0),"") ->  | F141: =IFERROR(VLOOKUP($B141,'LED #1'!$A$14:$S$300,F$48,0),"") ->  | H141: =IFERROR(VLOOKUP($B141,'LED #2'!$A$14:$S$300,H$48,0),"") ->  | I141: =IFERROR(VLOOKUP($B141,'LED #2'!$A$14:$S$300,I$48,0),"") ->  | J141: =IFERROR(VLOOKUP($B141,'LED #2'!$A$14:$S$300,J$48,0),"") ->  | K141: =IFERROR(VLOOKUP($B141,'LED #2'!$A$14:$S$300,K$48,0),"") ->  | M141: =IFERROR(VLOOKUP($B141,'LED #3'!$A$14:$S$300,M$48,0),"") -> 433.66 | N141: =IFERROR(VLOOKUP($B141,'LED #3'!$A$14:$S$300,N$48,0),"") -> 433.66 | O141: =IFERROR(VLOOKUP($B141,'LED #3'!$A$14:$S$300,O$48,0),"") -> 2.93 | P141: =IFERROR(VLOOKUP($B141,'LED #3'!$A$14:$S$300,P$48,0),"") -> 164.21 | R141: =IFERROR(VLOOKUP($B141,'LED #4'!$A$14:$S$300,R$48,0),"") ->  | S141: =IFERROR(VLOOKUP($B141,'LED #4'!$A$14:$S$300,S$48,0),"") ->  | T141: =IFERROR(VLOOKUP($B141,'LED #4'!$A$14:$S$300,T$48,0),"") ->  | U141: =IFERROR(VLOOKUP($B141,'LED #4'!$A$14:$S$300,U$48,0),"") -> 
B142: 0.910 | C142: =IFERROR(VLOOKUP($B142,'LED #1'!$A$14:$S$300,C$48,0),"") ->  | D142: =IFERROR(VLOOKUP($B142,'LED #1'!$A$14:$S$300,D$48,0),"") ->  | E142: =IFERROR(VLOOKUP($B142,'LED #1'!$A$14:$S$300,E$48,0),"") ->  | F142: =IFERROR(VLOOKUP($B142,'LED #1'!$A$14:$S$300,F$48,0),"") ->  | H142: =IFERROR(VLOOKUP($B142,'LED #2'!$A$14:$S$300,H$48,0),"") ->  | I142: =IFERROR(VLOOKUP($B142,'LED #2'!$A$14:$S$300,I$48,0),"") ->  | J142: =IFERROR(VLOOKUP($B142,'LED #2'!$A$14:$S$300,J$48,0),"") ->  | K142: =IFERROR(VLOOKUP($B142,'LED #2'!$A$14:$S$300,K$48,0),"") ->  | M142: =IFERROR(VLOOKUP($B142,'LED #3'!$A$14:$S$300,M$48,0),"") -> 437.82 | N142: =IFERROR(VLOOKUP($B142,'LED #3'!$A$14:$S$300,N$48,0),"") -> 437.82 | O142: =IFERROR(VLOOKUP($B142,'LED #3'!$A$14:$S$300,O$48,0),"") -> 2.94 | P142: =IFERROR(VLOOKUP($B142,'LED #3'!$A$14:$S$300,P$48,0),"") -> 163.74 | R142: =IFERROR(VLOOKUP($B142,'LED #4'!$A$14:$S$300,R$48,0),"") ->  | S142: =IFERROR(VLOOKUP($B142,'LED #4'!$A$14:$S$300,S$48,0),"") ->  | T142: =IFERROR(VLOOKUP($B142,'LED #4'!$A$14:$S$300,T$48,0),"") ->  | U142: =IFERROR(VLOOKUP($B142,'LED #4'!$A$14:$S$300,U$48,0),"") -> 
B143: 0.920 | C143: =IFERROR(VLOOKUP($B143,'LED #1'!$A$14:$S$300,C$48,0),"") ->  | D143: =IFERROR(VLOOKUP($B143,'LED #1'!$A$14:$S$300,D$48,0),"") ->  | E143: =IFERROR(VLOOKUP($B143,'LED #1'!$A$14:$S$300,E$48,0),"") ->  | F143: =IFERROR(VLOOKUP($B143,'LED #1'!$A$14:$S$300,F$48,0),"") ->  | H143: =IFERROR(VLOOKUP($B143,'LED #2'!$A$14:$S$300,H$48,0),"") ->  | I143: =IFERROR(VLOOKUP($B143,'LED #2'!$A$14:$S$300,I$48,0),"") ->  | J143: =IFERROR(VLOOKUP($B143,'LED #2'!$A$14:$S$300,J$48,0),"") ->  | K143: =IFERROR(VLOOKUP($B143,'LED #2'!$A$14:$S$300,K$48,0),"") ->  | M143: =IFERROR(VLOOKUP($B143,'LED #3'!$A$14:$S$300,M$48,0),"") -> 441.96 | N143: =IFERROR(VLOOKUP($B143,'LED #3'!$A$14:$S$300,N$48,0),"") -> 441.96 | O143: =IFERROR(VLOOKUP($B143,'LED #3'!$A$14:$S$300,O$48,0),"") -> 2.94 | P143: =IFERROR(VLOOKUP($B143,'LED #3'!$A$14:$S$300,P$48,0),"") -> 163.28 | R143: =IFERROR(VLOOKUP($B143,'LED #4'!$A$14:$S$300,R$48,0),"") ->  | S143: =IFERROR(VLOOKUP($B143,'LED #4'!$A$14:$S$300,S$48,0),"") ->  | T143: =IFERROR(VLOOKUP($B143,'LED #4'!$A$14:$S$300,T$48,0),"") ->  | U143: =IFERROR(VLOOKUP($B143,'LED #4'!$A$14:$S$300,U$48,0),"") -> 
B144: 0.930 | C144: =IFERROR(VLOOKUP($B144,'LED #1'!$A$14:$S$300,C$48,0),"") ->  | D144: =IFERROR(VLOOKUP($B144,'LED #1'!$A$14:$S$300,D$48,0),"") ->  | E144: =IFERROR(VLOOKUP($B144,'LED #1'!$A$14:$S$300,E$48,0),"") ->  | F144: =IFERROR(VLOOKUP($B144,'LED #1'!$A$14:$S$300,F$48,0),"") ->  | H144: =IFERROR(VLOOKUP($B144,'LED #2'!$A$14:$S$300,H$48,0),"") ->  | I144: =IFERROR(VLOOKUP($B144,'LED #2'!$A$14:$S$300,I$48,0),"") ->  | J144: =IFERROR(VLOOKUP($B144,'LED #2'!$A$14:$S$300,J$48,0),"") ->  | K144: =IFERROR(VLOOKUP($B144,'LED #2'!$A$14:$S$300,K$48,0),"") ->  | M144: =IFERROR(VLOOKUP($B144,'LED #3'!$A$14:$S$300,M$48,0),"") -> 446.09 | N144: =IFERROR(VLOOKUP($B144,'LED #3'!$A$14:$S$300,N$48,0),"") -> 446.09 | O144: =IFERROR(VLOOKUP($B144,'LED #3'!$A$14:$S$300,O$48,0),"") -> 2.95 | P144: =IFERROR(VLOOKUP($B144,'LED #3'!$A$14:$S$300,P$48,0),"") -> 162.81 | R144: =IFERROR(VLOOKUP($B144,'LED #4'!$A$14:$S$300,R$48,0),"") ->  | S144: =IFERROR(VLOOKUP($B144,'LED #4'!$A$14:$S$300,S$48,0),"") ->  | T144: =IFERROR(VLOOKUP($B144,'LED #4'!$A$14:$S$300,T$48,0),"") ->  | U144: =IFERROR(VLOOKUP($B144,'LED #4'!$A$14:$S$300,U$48,0),"") -> 
B145: 0.940 | C145: =IFERROR(VLOOKUP($B145,'LED #1'!$A$14:$S$300,C$48,0),"") ->  | D145: =IFERROR(VLOOKUP($B145,'LED #1'!$A$14:$S$300,D$48,0),"") ->  | E145: =IFERROR(VLOOKUP($B145,'LED #1'!$A$14:$S$300,E$48,0),"") ->  | F145: =IFERROR(VLOOKUP($B145,'LED #1'!$A$14:$S$300,F$48,0),"") ->  | H145: =IFERROR(VLOOKUP($B145,'LED #2'!$A$14:$S$300,H$48,0),"") ->  | I145: =IFERROR(VLOOKUP($B145,'LED #2'!$A$14:$S$300,I$48,0),"") ->  | J145: =IFERROR(VLOOKUP($B145,'LED #2'!$A$14:$S$300,J$48,0),"") ->  | K145: =IFERROR(VLOOKUP($B145,'LED #2'!$A$14:$S$300,K$48,0),"") ->  | M145: =IFERROR(VLOOKUP($B145,'LED #3'!$A$14:$S$300,M$48,0),"") -> 450.21 | N145: =IFERROR(VLOOKUP($B145,'LED #3'!$A$14:$S$300,N$48,0),"") -> 450.21 | O145: =IFERROR(VLOOKUP($B145,'LED #3'!$A$14:$S$300,O$48,0),"") -> 2.95 | P145: =IFERROR(VLOOKUP($B145,'LED #3'!$A$14:$S$300,P$48,0),"") -> 162.35 | R145: =IFERROR(VLOOKUP($B145,'LED #4'!$A$14:$S$300,R$48,0),"") ->  | S145: =IFERROR(VLOOKUP($B145,'LED #4'!$A$14:$S$300,S$48,0),"") ->  | T145: =IFERROR(VLOOKUP($B145,'LED #4'!$A$14:$S$300,T$48,0),"") ->  | U145: =IFERROR(VLOOKUP($B145,'LED #4'!$A$14:$S$300,U$48,0),"") -> 
B146: 0.950 | C146: =IFERROR(VLOOKUP($B146,'LED #1'!$A$14:$S$300,C$48,0),"") ->  | D146: =IFERROR(VLOOKUP($B146,'LED #1'!$A$14:$S$300,D$48,0),"") ->  | E146: =IFERROR(VLOOKUP($B146,'LED #1'!$A$14:$S$300,E$48,0),"") ->  | F146: =IFERROR(VLOOKUP($B146,'LED #1'!$A$14:$S$300,F$48,0),"") ->  | H146: =IFERROR(VLOOKUP($B146,'LED #2'!$A$14:$S$300,H$48,0),"") ->  | I146: =IFERROR(VLOOKUP($B146,'LED #2'!$A$14:$S$300,I$48,0),"") ->  | J146: =IFERROR(VLOOKUP($B146,'LED #2'!$A$14:$S$300,J$48,0),"") ->  | K146: =IFERROR(VLOOKUP($B146,'LED #2'!$A$14:$S$300,K$48,0),"") ->  | M146: =IFERROR(VLOOKUP($B146,'LED #3'!$A$14:$S$300,M$48,0),"") -> 454.32 | N146: =IFERROR(VLOOKUP($B146,'LED #3'!$A$14:$S$300,N$48,0),"") -> 454.32 | O146: =IFERROR(VLOOKUP($B146,'LED #3'!$A$14:$S$300,O$48,0),"") -> 2.95 | P146: =IFERROR(VLOOKUP($B146,'LED #3'!$A$14:$S$300,P$48,0),"") -> 161.89 | R146: =IFERROR(VLOOKUP($B146,'LED #4'!$A$14:$S$300,R$48,0),"") ->  | S146: =IFERROR(VLOOKUP($B146,'LED #4'!$A$14:$S$300,S$48,0),"") ->  | T146: =IFERROR(VLOOKUP($B146,'LED #4'!$A$14:$S$300,T$48,0),"") ->  | U146: =IFERROR(VLOOKUP($B146,'LED #4'!$A$14:$S$300,U$48,0),"") -> 
B147: 0.960 | C147: =IFERROR(VLOOKUP($B147,'LED #1'!$A$14:$S$300,C$48,0),"") ->  | D147: =IFERROR(VLOOKUP($B147,'LED #1'!$A$14:$S$300,D$48,0),"") ->  | E147: =IFERROR(VLOOKUP($B147,'LED #1'!$A$14:$S$300,E$48,0),"") ->  | F147: =IFERROR(VLOOKUP($B147,'LED #1'!$A$14:$S$300,F$48,0),"") ->  | H147: =IFERROR(VLOOKUP($B147,'LED #2'!$A$14:$S$300,H$48,0),"") ->  | I147: =IFERROR(VLOOKUP($B147,'LED #2'!$A$14:$S$300,I$48,0),"") ->  | J147: =IFERROR(VLOOKUP($B147,'LED #2'!$A$14:$S$300,J$48,0),"") ->  | K147: =IFERROR(VLOOKUP($B147,'LED #2'!$A$14:$S$300,K$48,0),"") ->  | M147: =IFERROR(VLOOKUP($B147,'LED #3'!$A$14:$S$300,M$48,0),"") -> 458.41 | N147: =IFERROR(VLOOKUP($B147,'LED #3'!$A$14:$S$300,N$48,0),"") -> 458.41 | O147: =IFERROR(VLOOKUP($B147,'LED #3'!$A$14:$S$300,O$48,0),"") -> 2.96 | P147: =IFERROR(VLOOKUP($B147,'LED #3'!$A$14:$S$300,P$48,0),"") -> 161.43 | R147: =IFERROR(VLOOKUP($B147,'LED #4'!$A$14:$S$300,R$48,0),"") ->  | S147: =IFERROR(VLOOKUP($B147,'LED #4'!$A$14:$S$300,S$48,0),"") ->  | T147: =IFERROR(VLOOKUP($B147,'LED #4'!$A$14:$S$300,T$48,0),"") ->  | U147: =IFERROR(VLOOKUP($B147,'LED #4'!$A$14:$S$300,U$48,0),"") -> 
B148: 0.970 | C148: =IFERROR(VLOOKUP($B148,'LED #1'!$A$14:$S$300,C$48,0),"") ->  | D148: =IFERROR(VLOOKUP($B148,'LED #1'!$A$14:$S$300,D$48,0),"") ->  | E148: =IFERROR(VLOOKUP($B148,'LED #1'!$A$14:$S$300,E$48,0),"") ->  | F148: =IFERROR(VLOOKUP($B148,'LED #1'!$A$14:$S$300,F$48,0),"") ->  | H148: =IFERROR(VLOOKUP($B148,'LED #2'!$A$14:$S$300,H$48,0),"") ->  | I148: =IFERROR(VLOOKUP($B148,'LED #2'!$A$14:$S$300,I$48,0),"") ->  | J148: =IFERROR(VLOOKUP($B148,'LED #2'!$A$14:$S$300,J$48,0),"") ->  | K148: =IFERROR(VLOOKUP($B148,'LED #2'!$A$14:$S$300,K$48,0),"") ->  | M148: =IFERROR(VLOOKUP($B148,'LED #3'!$A$14:$S$300,M$48,0),"") -> 462.48 | N148: =IFERROR(VLOOKUP($B148,'LED #3'!$A$14:$S$300,N$48,0),"") -> 462.48 | O148: =IFERROR(VLOOKUP($B148,'LED #3'!$A$14:$S$300,O$48,0),"") -> 2.96 | P148: =IFERROR(VLOOKUP($B148,'LED #3'!$A$14:$S$300,P$48,0),"") -> 160.98 | R148: =IFERROR(VLOOKUP($B148,'LED #4'!$A$14:$S$300,R$48,0),"") ->  | S148: =IFERROR(VLOOKUP($B148,'LED #4'!$A$14:$S$300,S$48,0),"") ->  | T148: =IFERROR(VLOOKUP($B148,'LED #4'!$A$14:$S$300,T$48,0),"") ->  | U148: =IFERROR(VLOOKUP($B148,'LED #4'!$A$14:$S$300,U$48,0),"") -> 
B149: 0.980 | C149: =IFERROR(VLOOKUP($B149,'LED #1'!$A$14:$S$300,C$48,0),"") ->  | D149: =IFERROR(VLOOKUP($B149,'LED #1'!$A$14:$S$300,D$48,0),"") ->  | E149: =IFERROR(VLOOKUP($B149,'LED #1'!$A$14:$S$300,E$48,0),"") ->  | F149: =IFERROR(VLOOKUP($B149,'LED #1'!$A$14:$S$300,F$48,0),"") ->  | H149: =IFERROR(VLOOKUP($B149,'LED #2'!$A$14:$S$300,H$48,0),"") ->  | I149: =IFERROR(VLOOKUP($B149,'LED #2'!$A$14:$S$300,I$48,0),"") ->  | J149: =IFERROR(VLOOKUP($B149,'LED #2'!$A$14:$S$300,J$48,0),"") ->  | K149: =IFERROR(VLOOKUP($B149,'LED #2'!$A$14:$S$300,K$48,0),"") ->  | M149: =IFERROR(VLOOKUP($B149,'LED #3'!$A$14:$S$300,M$48,0),"") -> 466.55 | N149: =IFERROR(VLOOKUP($B149,'LED #3'!$A$14:$S$300,N$48,0),"") -> 466.55 | O149: =IFERROR(VLOOKUP($B149,'LED #3'!$A$14:$S$300,O$48,0),"") -> 2.97 | P149: =IFERROR(VLOOKUP($B149,'LED #3'!$A$14:$S$300,P$48,0),"") -> 160.53 | R149: =IFERROR(VLOOKUP($B149,'LED #4'!$A$14:$S$300,R$48,0),"") ->  | S149: =IFERROR(VLOOKUP($B149,'LED #4'!$A$14:$S$300,S$48,0),"") ->  | T149: =IFERROR(VLOOKUP($B149,'LED #4'!$A$14:$S$300,T$48,0),"") ->  | U149: =IFERROR(VLOOKUP($B149,'LED #4'!$A$14:$S$300,U$48,0),"") -> 
B150: 0.990 | C150: =IFERROR(VLOOKUP($B150,'LED #1'!$A$14:$S$300,C$48,0),"") ->  | D150: =IFERROR(VLOOKUP($B150,'LED #1'!$A$14:$S$300,D$48,0),"") ->  | E150: =IFERROR(VLOOKUP($B150,'LED #1'!$A$14:$S$300,E$48,0),"") ->  | F150: =IFERROR(VLOOKUP($B150,'LED #1'!$A$14:$S$300,F$48,0),"") ->  | H150: =IFERROR(VLOOKUP($B150,'LED #2'!$A$14:$S$300,H$48,0),"") ->  | I150: =IFERROR(VLOOKUP($B150,'LED #2'!$A$14:$S$300,I$48,0),"") ->  | J150: =IFERROR(VLOOKUP($B150,'LED #2'!$A$14:$S$300,J$48,0),"") ->  | K150: =IFERROR(VLOOKUP($B150,'LED #2'!$A$14:$S$300,K$48,0),"") ->  | M150: =IFERROR(VLOOKUP($B150,'LED #3'!$A$14:$S$300,M$48,0),"") -> 470.60 | N150: =IFERROR(VLOOKUP($B150,'LED #3'!$A$14:$S$300,N$48,0),"") -> 470.60 | O150: =IFERROR(VLOOKUP($B150,'LED #3'!$A$14:$S$300,O$48,0),"") -> 2.97 | P150: =IFERROR(VLOOKUP($B150,'LED #3'!$A$14:$S$300,P$48,0),"") -> 160.08 | R150: =IFERROR(VLOOKUP($B150,'LED #4'!$A$14:$S$300,R$48,0),"") ->  | S150: =IFERROR(VLOOKUP($B150,'LED #4'!$A$14:$S$300,S$48,0),"") ->  | T150: =IFERROR(VLOOKUP($B150,'LED #4'!$A$14:$S$300,T$48,0),"") ->  | U150: =IFERROR(VLOOKUP($B150,'LED #4'!$A$14:$S$300,U$48,0),"") -> 
B151: 1.000 | C151: =IFERROR(VLOOKUP($B151,'LED #1'!$A$14:$S$300,C$48,0),"") ->  | D151: =IFERROR(VLOOKUP($B151,'LED #1'!$A$14:$S$300,D$48,0),"") ->  | E151: =IFERROR(VLOOKUP($B151,'LED #1'!$A$14:$S$300,E$48,0),"") ->  | F151: =IFERROR(VLOOKUP($B151,'LED #1'!$A$14:$S$300,F$48,0),"") ->  | H151: =IFERROR(VLOOKUP($B151,'LED #2'!$A$14:$S$300,H$48,0),"") ->  | I151: =IFERROR(VLOOKUP($B151,'LED #2'!$A$14:$S$300,I$48,0),"") ->  | J151: =IFERROR(VLOOKUP($B151,'LED #2'!$A$14:$S$300,J$48,0),"") ->  | K151: =IFERROR(VLOOKUP($B151,'LED #2'!$A$14:$S$300,K$48,0),"") ->  | M151: =IFERROR(VLOOKUP($B151,'LED #3'!$A$14:$S$300,M$48,0),"") -> 474.64 | N151: =IFERROR(VLOOKUP($B151,'LED #3'!$A$14:$S$300,N$48,0),"") -> 474.64 | O151: =IFERROR(VLOOKUP($B151,'LED #3'!$A$14:$S$300,O$48,0),"") -> 2.97 | P151: =IFERROR(VLOOKUP($B151,'LED #3'!$A$14:$S$300,P$48,0),"") -> 159.63 | R151: =IFERROR(VLOOKUP($B151,'LED #4'!$A$14:$S$300,R$48,0),"") ->  | S151: =IFERROR(VLOOKUP($B151,'LED #4'!$A$14:$S$300,S$48,0),"") ->  | T151: =IFERROR(VLOOKUP($B151,'LED #4'!$A$14:$S$300,T$48,0),"") ->  | U151: =IFERROR(VLOOKUP($B151,'LED #4'!$A$14:$S$300,U$48,0),"") -> 
B152: 1.010 | C152: =IFERROR(VLOOKUP($B152,'LED #1'!$A$14:$S$300,C$48,0),"") ->  | D152: =IFERROR(VLOOKUP($B152,'LED #1'!$A$14:$S$300,D$48,0),"") ->  | E152: =IFERROR(VLOOKUP($B152,'LED #1'!$A$14:$S$300,E$48,0),"") ->  | F152: =IFERROR(VLOOKUP($B152,'LED #1'!$A$14:$S$300,F$48,0),"") ->  | H152: =IFERROR(VLOOKUP($B152,'LED #2'!$A$14:$S$300,H$48,0),"") ->  | I152: =IFERROR(VLOOKUP($B152,'LED #2'!$A$14:$S$300,I$48,0),"") ->  | J152: =IFERROR(VLOOKUP($B152,'LED #2'!$A$14:$S$300,J$48,0),"") ->  | K152: =IFERROR(VLOOKUP($B152,'LED #2'!$A$14:$S$300,K$48,0),"") ->  | M152: =IFERROR(VLOOKUP($B152,'LED #3'!$A$14:$S$300,M$48,0),"") -> 478.66 | N152: =IFERROR(VLOOKUP($B152,'LED #3'!$A$14:$S$300,N$48,0),"") -> 478.66 | O152: =IFERROR(VLOOKUP($B152,'LED #3'!$A$14:$S$300,O$48,0),"") -> 2.98 | P152: =IFERROR(VLOOKUP($B152,'LED #3'!$A$14:$S$300,P$48,0),"") -> 159.18 | R152: =IFERROR(VLOOKUP($B152,'LED #4'!$A$14:$S$300,R$48,0),"") ->  | S152: =IFERROR(VLOOKUP($B152,'LED #4'!$A$14:$S$300,S$48,0),"") ->  | T152: =IFERROR(VLOOKUP($B152,'LED #4'!$A$14:$S$300,T$48,0),"") ->  | U152: =IFERROR(VLOOKUP($B152,'LED #4'!$A$14:$S$300,U$48,0),"") -> 

Sheet Graph
B4: Y-Value | D4: Scale Range
B5: Unit | C5: Decimal | D5: min | E5: max
B6: Flux | C6: 3 | D6: 0 | E6: 150
G34: X-Value | I34: Scale Range
G35: Unit | H35: Decimal | I35: min | J35: max
G36: IF | H36: 4 | I36: 0 | J36: 0.3
B38: IF | C38: =Table!D7 -> STW8A12D-E2 | E38: =Table!I7 -> STW8A2PD-B2 | G38: =Table!N7 -> SZ5-M4-Wx-C7 | I38: =Table!S7 -> STW0L8SA-E1H1C100
C39: =VLOOKUP($G$36,tblindex!$E$3:$F$11,2,0) -> 1 | D39: =VLOOKUP($B$6,tblindex!$E$3:$F$11,2,0) -> 2 | E39: =C39 -> 1 | F39: 2 | G39: 1 | H39: 2 | I39: 1 | J39: 2
B40: =Table!B53 -> 0.020 | C40: =VLOOKUP($B40,'LED #1'!$A$15:$I$114,C$39,0) -> 0.020 | D40: =VLOOKUP($B40,'LED #1'!$A$15:$I$114,D$39,0) -> 11.180 | E40: =VLOOKUP($B40,'LED #2'!$A$15:$I$114,E$39,0) -> 0.020 | F40: =VLOOKUP($B40,'LED #2'!$A$15:$I$114,F$39,0) -> 10.969 | G40: =VLOOKUP($B40,'LED #3'!$A$15:$I$114,G$39,0) -> 0.020 | H40: =VLOOKUP($B40,'LED #3'!$A$15:$I$114,H$39,0) -> 7.863 | I40: =VLOOKUP($B40,'LED #4'!$A$15:$I$114,I$39,0) -> 0.020 | J40: =VLOOKUP($B40,'LED #4'!$A$15:$I$114,J$39,0) -> 117.214
B41: =Table!B54 -> 0.030 | C41: =VLOOKUP($B41,'LED #1'!$A$15:$I$114,C$39,0) -> 0.030 | D41: =VLOOKUP($B41,'LED #1'!$A$15:$I$114,D$39,0) -> 16.430 | E41: =VLOOKUP($B41,'LED #2'!$A$15:$I$114,E$39,0) -> 0.030 | F41: =VLOOKUP($B41,'LED #2'!$A$15:$I$114,F$39,0) -> 16.365 | G41: =VLOOKUP($B41,'LED #3'!$A$15:$I$114,G$39,0) -> 0.030 | H41: =VLOOKUP($B41,'LED #3'!$A$15:$I$114,H$39,0) -> 13.434 | I41: =VLOOKUP($B41,'LED #4'!$A$15:$I$114,I$39,0) -> 0.030 | J41: =VLOOKUP($B41,'LED #4'!$A$15:$I$114,J$39,0) -> 164.966
B42: =Table!B55 -> 0.040 | C42: =VLOOKUP($B42,'LED #1'!$A$15:$I$114,C$39,0) -> 0.040 | D42: =VLOOKUP($B42,'LED #1'!$A$15:$I$114,D$39,0) -> 21.589 | E42: =VLOOKUP($B42,'LED #2'!$A$15:$I$114,E$39,0) -> 0.040 | F42: =VLOOKUP($B42,'LED #2'!$A$15:$I$114,F$39,0) -> 21.665 | G42: =VLOOKUP($B42,'LED #3'!$A$15:$I$114,G$39,0) -> 0.040 | H42: =VLOOKUP($B42,'LED #3'!$A$15:$I$114,H$39,0) -> 18.985 | I42: =VLOOKUP($B42,'LED #4'!$A$15:$I$114,I$39,0) -> 0.040 | J42: =VLOOKUP($B42,'LED #4'!$A$15:$I$114,J$39,0) -> 211.357
B43: =Table!B56 -> 0.050 | C43: =VLOOKUP($B43,'LED #1'!$A$15:$I$114,C$39,0) -> 0.050 | D43: =VLOOKUP($B43,'LED #1'!$A$15:$I$114,D$39,0) -> 26.659 | E43: =VLOOKUP($B43,'LED #2'!$A$15:$I$114,E$39,0) -> 0.050 | F43: =VLOOKUP($B43,'LED #2'!$A$15:$I$114,F$39,0) -> 26.869 | G43: =VLOOKUP($B43,'LED #3'!$A$15:$I$114,G$39,0) -> 0.050 | H43: =VLOOKUP($B43,'LED #3'!$A$15:$I$114,H$39,0) -> 24.519 | I43: =VLOOKUP($B43,'LED #4'!$A$15:$I$114,I$39,0) -> 0.050 | J43: =VLOOKUP($B43,'LED #4'!$A$15:$I$114,J$39,0) -> 256.426
B44: =Table!B57 -> 0.060 | C44: =VLOOKUP($B44,'LED #1'!$A$15:$I$114,C$39,0) -> 0.060 | D44: =VLOOKUP($B44,'LED #1'!$A$15:$I$114,D$39,0) -> 31.641 | E44: =VLOOKUP($B44,'LED #2'!$A$15:$I$114,E$39,0) -> 0.060 | F44: =VLOOKUP($B44,'LED #2'!$A$15:$I$114,F$39,0) -> 31.979 | G44: =VLOOKUP($B44,'LED #3'!$A$15:$I$114,G$39,0) -> 0.060 | H44: =VLOOKUP($B44,'LED #3'!$A$15:$I$114,H$39,0) -> 30.034 | I44: =VLOOKUP($B44,'LED #4'!$A$15:$I$114,I$39,0) -> 0.060 | J44: =VLOOKUP($B44,'LED #4'!$A$15:$I$114,J$39,0) -> 300.212
B45: =Table!B58 -> 0.070 | C45: =VLOOKUP($B45,'LED #1'!$A$15:$I$114,C$39,0) -> 0.070 | D45: =VLOOKUP($B45,'LED #1'!$A$15:$I$114,D$39,0) -> 36.537 | E45: =VLOOKUP($B45,'LED #2'!$A$15:$I$114,E$39,0) -> 0.070 | F45: =VLOOKUP($B45,'LED #2'!$A$15:$I$114,F$39,0) -> 36.998 | G45: =VLOOKUP($B45,'LED #3'!$A$15:$I$114,G$39,0) -> 0.070 | H45: =VLOOKUP($B45,'LED #3'!$A$15:$I$114,H$39,0) -> 35.530 | I45: =VLOOKUP($B45,'LED #4'!$A$15:$I$114,I$39,0) -> 0.070 | J45: =VLOOKUP($B45,'LED #4'!$A$15:$I$114,J$39,0) -> 342.750
B46: =Table!B59 -> 0.080 | C46: =VLOOKUP($B46,'LED #1'!$A$15:$I$114,C$39,0) -> 0.080 | D46: =VLOOKUP($B46,'LED #1'!$A$15:$I$114,D$39,0) -> 41.348 | E46: =VLOOKUP($B46,'LED #2'!$A$15:$I$114,E$39,0) -> 0.080 | F46: =VLOOKUP($B46,'LED #2'!$A$15:$I$114,F$39,0) -> 41.927 | G46: =VLOOKUP($B46,'LED #3'!$A$15:$I$114,G$39,0) -> 0.080 | H46: =VLOOKUP($B46,'LED #3'!$A$15:$I$114,H$39,0) -> 41.009 | I46: =VLOOKUP($B46,'LED #4'!$A$15:$I$114,I$39,0) -> 0.080 | J46: =VLOOKUP($B46,'LED #4'!$A$15:$I$114,J$39,0) -> 384.076
B47: =Table!B60 -> 0.090 | C47: =VLOOKUP($B47,'LED #1'!$A$15:$I$114,C$39,0) -> 0.090 | D47: =VLOOKUP($B47,'LED #1'!$A$15:$I$114,D$39,0) -> 46.076 | E47: =VLOOKUP($B47,'LED #2'!$A$15:$I$114,E$39,0) -> 0.090 | F47: =VLOOKUP($B47,'LED #2'!$A$15:$I$114,F$39,0) -> 46.766 | G47: =VLOOKUP($B47,'LED #3'!$A$15:$I$114,G$39,0) -> 0.090 | H47: =VLOOKUP($B47,'LED #3'!$A$15:$I$114,H$39,0) -> 46.469 | I47: =VLOOKUP($B47,'LED #4'!$A$15:$I$114,I$39,0) -> 0.090 | J47: =VLOOKUP($B47,'LED #4'!$A$15:$I$114,J$39,0) -> 424.225
B48: =Table!B61 -> 0.100 | C48: =VLOOKUP($B48,'LED #1'!$A$15:$I$114,C$39,0) -> 0.100 | D48: =VLOOKUP($B48,'LED #1'!$A$15:$I$114,D$39,0) -> 50.722 | E48: =VLOOKUP($B48,'LED #2'!$A$15:$I$114,E$39,0) -> 0.100 | F48: =VLOOKUP($B48,'LED #2'!$A$15:$I$114,F$39,0) -> 51.519 | G48: =VLOOKUP($B48,'LED #3'!$A$15:$I$114,G$39,0) -> 0.100 | H48: =VLOOKUP($B48,'LED #3'!$A$15:$I$114,H$39,0) -> 51.911 | I48: =VLOOKUP($B48,'LED #4'!$A$15:$I$114,I$39,0) -> 0.100 | J48: =VLOOKUP($B48,'LED #4'!$A$15:$I$114,J$39,0) -> 463.229
B49: =Table!B62 -> 0.110 | C49: =VLOOKUP($B49,'LED #1'!$A$15:$I$114,C$39,0) -> 0.110 | D49: =VLOOKUP($B49,'LED #1'!$A$15:$I$114,D$39,0) -> 55.287 | E49: =VLOOKUP($B49,'LED #2'!$A$15:$I$114,E$39,0) -> 0.110 | F49: =VLOOKUP($B49,'LED #2'!$A$15:$I$114,F$39,0) -> 56.187 | G49: =VLOOKUP($B49,'LED #3'!$A$15:$I$114,G$39,0) -> 0.110 | H49: =VLOOKUP($B49,'LED #3'!$A$15:$I$114,H$39,0) -> 57.336 | I49: =VLOOKUP($B49,'LED #4'!$A$15:$I$114,I$39,0) -> 0.110 | J49: =VLOOKUP($B49,'LED #4'!$A$15:$I$114,J$39,0) -> 501.123
B50: =Table!B63 -> 0.120 | C50: =VLOOKUP($B50,'LED #1'!$A$15:$I$114,C$39,0) -> 0.120 | D50: =VLOOKUP($B50,'LED #1'!$A$15:$I$114,D$39,0) -> 59.773 | E50: =VLOOKUP($B50,'LED #2'!$A$15:$I$114,E$39,0) -> 0.120 | F50: =VLOOKUP($B50,'LED #2'!$A$15:$I$114,F$39,0) -> 60.770 | G50: =VLOOKUP($B50,'LED #3'!$A$15:$I$114,G$39,0) -> 0.120 | H50: =VLOOKUP($B50,'LED #3'!$A$15:$I$114,H$39,0) -> 62.742 | I50: =VLOOKUP($B50,'LED #4'!$A$15:$I$114,I$39,0) -> 0.120 | J50: =VLOOKUP($B50,'LED #4'!$A$15:$I$114,J$39,0) -> 537.937
B51: =Table!B64 -> 0.130 | C51: =VLOOKUP($B51,'LED #1'!$A$15:$I$114,C$39,0) -> 0.13 | D51: =VLOOKUP($B51,'LED #1'!$A$15:$I$114,D$39,0) -> 64.18171446 | E51: =VLOOKUP($B51,'LED #2'!$A$15:$I$114,E$39,0) -> 0.13 | F51: =VLOOKUP($B51,'LED #2'!$A$15:$I$114,F$39,0) -> 65.27150625 | G51: =VLOOKUP($B51,'LED #3'!$A$15:$I$114,G$39,0) -> 0.13 | H51: =VLOOKUP($B51,'LED #3'!$A$15:$I$114,H$39,0) -> 68.13030771 | I51: =VLOOKUP($B51,'LED #4'!$A$15:$I$114,I$39,0) -> 0.13 | J51: =VLOOKUP($B51,'LED #4'!$A$15:$I$114,J$39,0) -> 573.702
B52: =Table!B65 -> 0.140 | C52: =VLOOKUP($B52,'LED #1'!$A$15:$I$114,C$39,0) -> 0.14 | D52: =VLOOKUP($B52,'LED #1'!$A$15:$I$114,D$39,0) -> 68.51385742 | E52: =VLOOKUP($B52,'LED #2'!$A$15:$I$114,E$39,0) -> 0.14 | F52: =VLOOKUP($B52,'LED #2'!$A$15:$I$114,F$39,0) -> 69.69177656 | G52: =VLOOKUP($B52,'LED #3'!$A$15:$I$114,G$39,0) -> 0.14 | H52: =VLOOKUP($B52,'LED #3'!$A$15:$I$114,H$39,0) -> 73.5008047 | I52: =VLOOKUP($B52,'LED #4'!$A$15:$I$114,I$39,0) -> 0.14 | J52: =VLOOKUP($B52,'LED #4'!$A$15:$I$114,J$39,0) -> 608.449
B53: =Table!B66 -> 0.150 | C53: =VLOOKUP($B53,'LED #1'!$A$15:$I$114,C$39,0) -> 0.15 | D53: =VLOOKUP($B53,'LED #1'!$A$15:$I$114,D$39,0) -> 72.77095779 | E53: =VLOOKUP($B53,'LED #2'!$A$15:$I$114,E$39,0) -> 0.15 | F53: =VLOOKUP($B53,'LED #2'!$A$15:$I$114,F$39,0) -> 74.03259377 | G53: =VLOOKUP($B53,'LED #3'!$A$15:$I$114,G$39,0) -> 0.15 | H53: =VLOOKUP($B53,'LED #3'!$A$15:$I$114,H$39,0) -> 78.8535084 | I53: =VLOOKUP($B53,'LED #4'!$A$15:$I$114,I$39,0) -> 0.15 | J53: =VLOOKUP($B53,'LED #4'!$A$15:$I$114,J$39,0) -> 642.205
B54: =Table!B67 -> 0.160 | C54: =VLOOKUP($B54,'LED #1'!$A$15:$I$114,C$39,0) -> 0.16 | D54: =VLOOKUP($B54,'LED #1'!$A$15:$I$114,D$39,0) -> 76.95431545 | E54: =VLOOKUP($B54,'LED #2'!$A$15:$I$114,E$39,0) -> 0.16 | F54: =VLOOKUP($B54,'LED #2'!$A$15:$I$114,F$39,0) -> 78.29538602 | G54: =VLOOKUP($B54,'LED #3'!$A$15:$I$114,G$39,0) -> 0.16 | H54: =VLOOKUP($B54,'LED #3'!$A$15:$I$114,H$39,0) -> 84.18847778 | I54: =VLOOKUP($B54,'LED #4'!$A$15:$I$114,I$39,0) -> 0.16 | J54: =VLOOKUP($B54,'LED #4'!$A$15:$I$114,J$39,0) -> 675.000
B55: =Table!B68 -> 0.170 | C55: =VLOOKUP($B55,'LED #1'!$A$15:$I$114,C$39,0) -> 0.17 | D55: =VLOOKUP($B55,'LED #1'!$A$15:$I$114,D$39,0) -> 81.06520781 | E55: =VLOOKUP($B55,'LED #2'!$A$15:$I$114,E$39,0) -> 0.17 | F55: =VLOOKUP($B55,'LED #2'!$A$15:$I$114,F$39,0) -> 82.48155579 | G55: =VLOOKUP($B55,'LED #3'!$A$15:$I$114,G$39,0) -> 0.17 | H55: =VLOOKUP($B55,'LED #3'!$A$15:$I$114,H$39,0) -> 89.50577158 | I55: =VLOOKUP($B55,'LED #4'!$A$15:$I$114,I$39,0) -> 0.17 | J55: =VLOOKUP($B55,'LED #4'!$A$15:$I$114,J$39,0) -> 706.860
B56: =Table!B69 -> 0.180 | C56: =VLOOKUP($B56,'LED #1'!$A$15:$I$114,C$39,0) -> 0.18 | D56: =VLOOKUP($B56,'LED #1'!$A$15:$I$114,D$39,0) -> 85.10489013 | E56: =VLOOKUP($B56,'LED #2'!$A$15:$I$114,E$39,0) -> 0.18 | F56: =VLOOKUP($B56,'LED #2'!$A$15:$I$114,F$39,0) -> 86.59248034 | G56: =VLOOKUP($B56,'LED #3'!$A$15:$I$114,G$39,0) -> 0.18 | H56: =VLOOKUP($B56,'LED #3'!$A$15:$I$114,H$39,0) -> 94.80544838 | I56: =VLOOKUP($B56,'LED #4'!$A$15:$I$114,I$39,0) -> 0.18 | J56: =VLOOKUP($B56,'LED #4'!$A$15:$I$114,J$39,0) -> 737.813
B57: =Table!B70 -> 0.190 | C57: =VLOOKUP($B57,'LED #1'!$A$15:$I$114,C$39,0) -> 0.19 | D57: =VLOOKUP($B57,'LED #1'!$A$15:$I$114,D$39,0) -> 89.07459593 | E57: =VLOOKUP($B57,'LED #2'!$A$15:$I$114,E$39,0) -> 0.19 | F57: =VLOOKUP($B57,'LED #2'!$A$15:$I$114,F$39,0) -> 90.62951219 | G57: =VLOOKUP($B57,'LED #3'!$A$15:$I$114,G$39,0) -> 0.19 | H57: =VLOOKUP($B57,'LED #3'!$A$15:$I$114,H$39,0) -> 100.0875665 | I57: =VLOOKUP($B57,'LED #4'!$A$15:$I$114,I$39,0) -> 0.19 | J57: =VLOOKUP($B57,'LED #4'!$A$15:$I$114,J$39,0) -> 767.884
B58: =Table!B71 -> 0.200 | C58: =VLOOKUP($B58,'LED #1'!$A$15:$I$114,C$39,0) -> 0.2 | D58: =VLOOKUP($B58,'LED #1'!$A$15:$I$114,D$39,0) -> 92.97553736 | E58: =VLOOKUP($B58,'LED #2'!$A$15:$I$114,E$39,0) -> 0.2 | F58: =VLOOKUP($B58,'LED #2'!$A$15:$I$114,F$39,0) -> 94.59397954 | G58: =VLOOKUP($B58,'LED #3'!$A$15:$I$114,G$39,0) -> 0.2 | H58: =VLOOKUP($B58,'LED #3'!$A$15:$I$114,H$39,0) -> 105.3521842 | I58: =VLOOKUP($B58,'LED #4'!$A$15:$I$114,I$39,0) -> 0.20 | J58: =VLOOKUP($B58,'LED #4'!$A$15:$I$114,J$39,0) -> 797.098
B59: =Table!B72 -> 0.210 | C59: =VLOOKUP($B59,'LED #1'!$A$15:$I$114,C$39,0) ->  | D59: =VLOOKUP($B59,'LED #1'!$A$15:$I$114,D$39,0) ->  | E59: =VLOOKUP($B59,'LED #2'!$A$15:$I$114,E$39,0) ->  | F59: =VLOOKUP($B59,'LED #2'!$A$15:$I$114,F$39,0) ->  | G59: =VLOOKUP($B59,'LED #3'!$A$15:$I$114,G$39,0) -> 0.21 | H59: =VLOOKUP($B59,'LED #3'!$A$15:$I$114,H$39,0) -> 110.5993594 | I59: =VLOOKUP($B59,'LED #4'!$A$15:$I$114,I$39,0) ->  | J59: =VLOOKUP($B59,'LED #4'!$A$15:$I$114,J$39,0) -> 
B60: =Table!B73 -> 0.220 | C60: =VLOOKUP($B60,'LED #1'!$A$15:$I$114,C$39,0) ->  | D60: =VLOOKUP($B60,'LED #1'!$A$15:$I$114,D$39,0) ->  | E60: =VLOOKUP($B60,'LED #2'!$A$15:$I$114,E$39,0) ->  | F60: =VLOOKUP($B60,'LED #2'!$A$15:$I$114,F$39,0) ->  | G60: =VLOOKUP($B60,'LED #3'!$A$15:$I$114,G$39,0) -> 0.22 | H60: =VLOOKUP($B60,'LED #3'!$A$15:$I$114,H$39,0) -> 115.8291499 | I60: =VLOOKUP($B60,'LED #4'!$A$15:$I$114,I$39,0) ->  | J60: =VLOOKUP($B60,'LED #4'!$A$15:$I$114,J$39,0) -> 
B61: =Table!B74 -> 0.230 | C61: =VLOOKUP($B61,'LED #1'!$A$15:$I$114,C$39,0) ->  | D61: =VLOOKUP($B61,'LED #1'!$A$15:$I$114,D$39,0) ->  | E61: =VLOOKUP($B61,'LED #2'!$A$15:$I$114,E$39,0) ->  | F61: =VLOOKUP($B61,'LED #2'!$A$15:$I$114,F$39,0) ->  | G61: =VLOOKUP($B61,'LED #3'!$A$15:$I$114,G$39,0) -> 0.23 | H61: =VLOOKUP($B61,'LED #3'!$A$15:$I$114,H$39,0) -> 121.0416133 | I61: =VLOOKUP($B61,'LED #4'!$A$15:$I$114,I$39,0) ->  | J61: =VLOOKUP($B61,'LED #4'!$A$15:$I$114,J$39,0) -> 
B62: =Table!B75 -> 0.240 | C62: =VLOOKUP($B62,'LED #1'!$A$15:$I$114,C$39,0) ->  | D62: =VLOOKUP($B62,'LED #1'!$A$15:$I$114,D$39,0) ->  | E62: =VLOOKUP($B62,'LED #2'!$A$15:$I$114,E$39,0) ->  | F62: =VLOOKUP($B62,'LED #2'!$A$15:$I$114,F$39,0) ->  | G62: =VLOOKUP($B62,'LED #3'!$A$15:$I$114,G$39,0) -> 0.24 | H62: =VLOOKUP($B62,'LED #3'!$A$15:$I$114,H$39,0) -> 126.2368071 | I62: =VLOOKUP($B62,'LED #4'!$A$15:$I$114,I$39,0) ->  | J62: =VLOOKUP($B62,'LED #4'!$A$15:$I$114,J$39,0) -> 
B63: =Table!B76 -> 0.250 | C63: =VLOOKUP($B63,'LED #1'!$A$15:$I$114,C$39,0) ->  | D63: =VLOOKUP($B63,'LED #1'!$A$15:$I$114,D$39,0) ->  | E63: =VLOOKUP($B63,'LED #2'!$A$15:$I$114,E$39,0) ->  | F63: =VLOOKUP($B63,'LED #2'!$A$15:$I$114,F$39,0) ->  | G63: =VLOOKUP($B63,'LED #3'!$A$15:$I$114,G$39,0) -> 0.25 | H63: =VLOOKUP($B63,'LED #3'!$A$15:$I$114,H$39,0) -> 131.4147883 | I63: =VLOOKUP($B63,'LED #4'!$A$15:$I$114,I$39,0) ->  | J63: =VLOOKUP($B63,'LED #4'!$A$15:$I$114,J$39,0) -> 
B64: =Table!B77 -> 0.260 | C64: =VLOOKUP($B64,'LED #1'!$A$15:$I$114,C$39,0) ->  | D64: =VLOOKUP($B64,'LED #1'!$A$15:$I$114,D$39,0) ->  | E64: =VLOOKUP($B64,'LED #2'!$A$15:$I$114,E$39,0) ->  | F64: =VLOOKUP($B64,'LED #2'!$A$15:$I$114,F$39,0) ->  | G64: =VLOOKUP($B64,'LED #3'!$A$15:$I$114,G$39,0) -> 0.26 | H64: =VLOOKUP($B64,'LED #3'!$A$15:$I$114,H$39,0) -> 136.5756141 | I64: =VLOOKUP($B64,'LED #4'!$A$15:$I$114,I$39,0) ->  | J64: =VLOOKUP($B64,'LED #4'!$A$15:$I$114,J$39,0) -> 
B65: =Table!B78 -> 0.270 | C65: =VLOOKUP($B65,'LED #1'!$A$15:$I$114,C$39,0) ->  | D65: =VLOOKUP($B65,'LED #1'!$A$15:$I$114,D$39,0) ->  | E65: =VLOOKUP($B65,'LED #2'!$A$15:$I$114,E$39,0) ->  | F65: =VLOOKUP($B65,'LED #2'!$A$15:$I$114,F$39,0) ->  | G65: =VLOOKUP($B65,'LED #3'!$A$15:$I$114,G$39,0) -> 0.27 | H65: =VLOOKUP($B65,'LED #3'!$A$15:$I$114,H$39,0) -> 141.7193413 | I65: =VLOOKUP($B65,'LED #4'!$A$15:$I$114,I$39,0) ->  | J65: =VLOOKUP($B65,'LED #4'!$A$15:$I$114,J$39,0) -> 
B66: =Table!B79 -> 0.280 | C66: =VLOOKUP($B66,'LED #1'!$A$15:$I$114,C$39,0) ->  | D66: =VLOOKUP($B66,'LED #1'!$A$15:$I$114,D$39,0) ->  | E66: =VLOOKUP($B66,'LED #2'!$A$15:$I$114,E$39,0) ->  | F66: =VLOOKUP($B66,'LED #2'!$A$15:$I$114,F$39,0) ->  | G66: =VLOOKUP($B66,'LED #3'!$A$15:$I$114,G$39,0) -> 0.28 | H66: =VLOOKUP($B66,'LED #3'!$A$15:$I$114,H$39,0) -> 146.8460266 | I66: =VLOOKUP($B66,'LED #4'!$A$15:$I$114,I$39,0) ->  | J66: =VLOOKUP($B66,'LED #4'!$A$15:$I$114,J$39,0) -> 
B67: =Table!B80 -> 0.290 | C67: =VLOOKUP($B67,'LED #1'!$A$15:$I$114,C$39,0) ->  | D67: =VLOOKUP($B67,'LED #1'!$A$15:$I$114,D$39,0) ->  | E67: =VLOOKUP($B67,'LED #2'!$A$15:$I$114,E$39,0) ->  | F67: =VLOOKUP($B67,'LED #2'!$A$15:$I$114,F$39,0) ->  | G67: =VLOOKUP($B67,'LED #3'!$A$15:$I$114,G$39,0) -> 0.29 | H67: =VLOOKUP($B67,'LED #3'!$A$15:$I$114,H$39,0) -> 151.9557263 | I67: =VLOOKUP($B67,'LED #4'!$A$15:$I$114,I$39,0) ->  | J67: =VLOOKUP($B67,'LED #4'!$A$15:$I$114,J$39,0) -> 
B68: =Table!B81 -> 0.300 | C68: =VLOOKUP($B68,'LED #1'!$A$15:$I$114,C$39,0) ->  | D68: =VLOOKUP($B68,'LED #1'!$A$15:$I$114,D$39,0) ->  | E68: =VLOOKUP($B68,'LED #2'!$A$15:$I$114,E$39,0) ->  | F68: =VLOOKUP($B68,'LED #2'!$A$15:$I$114,F$39,0) ->  | G68: =VLOOKUP($B68,'LED #3'!$A$15:$I$114,G$39,0) -> 0.3 | H68: =VLOOKUP($B68,'LED #3'!$A$15:$I$114,H$39,0) -> 157.0484968 | I68: =VLOOKUP($B68,'LED #4'!$A$15:$I$114,I$39,0) ->  | J68: =VLOOKUP($B68,'LED #4'!$A$15:$I$114,J$39,0) -> 
B69: =Table!B82 -> 0.310 | C69: =VLOOKUP($B69,'LED #1'!$A$15:$I$114,C$39,0) ->  | D69: =VLOOKUP($B69,'LED #1'!$A$15:$I$114,D$39,0) ->  | E69: =VLOOKUP($B69,'LED #2'!$A$15:$I$114,E$39,0) ->  | F69: =VLOOKUP($B69,'LED #2'!$A$15:$I$114,F$39,0) ->  | G69: =VLOOKUP($B69,'LED #3'!$A$15:$I$114,G$39,0) -> 0.31 | H69: =VLOOKUP($B69,'LED #3'!$A$15:$I$114,H$39,0) -> 162.1243943 | I69: =VLOOKUP($B69,'LED #4'!$A$15:$I$114,I$39,0) ->  | J69: =VLOOKUP($B69,'LED #4'!$A$15:$I$114,J$39,0) -> 
B70: =Table!B83 -> 0.320 | C70: =VLOOKUP($B70,'LED #1'!$A$15:$I$114,C$39,0) ->  | D70: =VLOOKUP($B70,'LED #1'!$A$15:$I$114,D$39,0) ->  | E70: =VLOOKUP($B70,'LED #2'!$A$15:$I$114,E$39,0) ->  | F70: =VLOOKUP($B70,'LED #2'!$A$15:$I$114,F$39,0) ->  | G70: =VLOOKUP($B70,'LED #3'!$A$15:$I$114,G$39,0) -> 0.32 | H70: =VLOOKUP($B70,'LED #3'!$A$15:$I$114,H$39,0) -> 167.1834744 | I70: =VLOOKUP($B70,'LED #4'!$A$15:$I$114,I$39,0) ->  | J70: =VLOOKUP($B70,'LED #4'!$A$15:$I$114,J$39,0) -> 
B71: =Table!B84 -> 0.330 | C71: =VLOOKUP($B71,'LED #1'!$A$15:$I$114,C$39,0) ->  | D71: =VLOOKUP($B71,'LED #1'!$A$15:$I$114,D$39,0) ->  | E71: =VLOOKUP($B71,'LED #2'!$A$15:$I$114,E$39,0) ->  | F71: =VLOOKUP($B71,'LED #2'!$A$15:$I$114,F$39,0) ->  | G71: =VLOOKUP($B71,'LED #3'!$A$15:$I$114,G$39,0) -> 0.33 | H71: =VLOOKUP($B71,'LED #3'!$A$15:$I$114,H$39,0) -> 172.2257931 | I71: =VLOOKUP($B71,'LED #4'!$A$15:$I$114,I$39,0) ->  | J71: =VLOOKUP($B71,'LED #4'!$A$15:$I$114,J$39,0) -> 
B72: =Table!B85 -> 0.340 | C72: =VLOOKUP($B72,'LED #1'!$A$15:$I$114,C$39,0) ->  | D72: =VLOOKUP($B72,'LED #1'!$A$15:$I$114,D$39,0) ->  | E72: =VLOOKUP($B72,'LED #2'!$A$15:$I$114,E$39,0) ->  | F72: =VLOOKUP($B72,'LED #2'!$A$15:$I$114,F$39,0) ->  | G72: =VLOOKUP($B72,'LED #3'!$A$15:$I$114,G$39,0) -> 0.34 | H72: =VLOOKUP($B72,'LED #3'!$A$15:$I$114,H$39,0) -> 177.2514058 | I72: =VLOOKUP($B72,'LED #4'!$A$15:$I$114,I$39,0) ->  | J72: =VLOOKUP($B72,'LED #4'!$A$15:$I$114,J$39,0) -> 
B73: =Table!B86 -> 0.350 | C73: =VLOOKUP($B73,'LED #1'!$A$15:$I$114,C$39,0) ->  | D73: =VLOOKUP($B73,'LED #1'!$A$15:$I$114,D$39,0) ->  | E73: =VLOOKUP($B73,'LED #2'!$A$15:$I$114,E$39,0) ->  | F73: =VLOOKUP($B73,'LED #2'!$A$15:$I$114,F$39,0) ->  | G73: =VLOOKUP($B73,'LED #3'!$A$15:$I$114,G$39,0) -> 0.35 | H73: =VLOOKUP($B73,'LED #3'!$A$15:$I$114,H$39,0) -> 182.2603679 | I73: =VLOOKUP($B73,'LED #4'!$A$15:$I$114,I$39,0) ->  | J73: =VLOOKUP($B73,'LED #4'!$A$15:$I$114,J$39,0) -> 
B74: =Table!B87 -> 0.360 | C74: =VLOOKUP($B74,'LED #1'!$A$15:$I$114,C$39,0) ->  | D74: =VLOOKUP($B74,'LED #1'!$A$15:$I$114,D$39,0) ->  | E74: =VLOOKUP($B74,'LED #2'!$A$15:$I$114,E$39,0) ->  | F74: =VLOOKUP($B74,'LED #2'!$A$15:$I$114,F$39,0) ->  | G74: =VLOOKUP($B74,'LED #3'!$A$15:$I$114,G$39,0) -> 0.36 | H74: =VLOOKUP($B74,'LED #3'!$A$15:$I$114,H$39,0) -> 187.2527345 | I74: =VLOOKUP($B74,'LED #4'!$A$15:$I$114,I$39,0) ->  | J74: =VLOOKUP($B74,'LED #4'!$A$15:$I$114,J$39,0) -> 
B75: =Table!B88 -> 0.370 | C75: =VLOOKUP($B75,'LED #1'!$A$15:$I$114,C$39,0) ->  | D75: =VLOOKUP($B75,'LED #1'!$A$15:$I$114,D$39,0) ->  | E75: =VLOOKUP($B75,'LED #2'!$A$15:$I$114,E$39,0) ->  | F75: =VLOOKUP($B75,'LED #2'!$A$15:$I$114,F$39,0) ->  | G75: =VLOOKUP($B75,'LED #3'!$A$15:$I$114,G$39,0) -> 0.37 | H75: =VLOOKUP($B75,'LED #3'!$A$15:$I$114,H$39,0) -> 192.2285606 | I75: =VLOOKUP($B75,'LED #4'!$A$15:$I$114,I$39,0) ->  | J75: =VLOOKUP($B75,'LED #4'!$A$15:$I$114,J$39,0) -> 
B76: =Table!B89 -> 0.380 | C76: =VLOOKUP($B76,'LED #1'!$A$15:$I$114,C$39,0) ->  | D76: =VLOOKUP($B76,'LED #1'!$A$15:$I$114,D$39,0) ->  | E76: =VLOOKUP($B76,'LED #2'!$A$15:$I$114,E$39,0) ->  | F76: =VLOOKUP($B76,'LED #2'!$A$15:$I$114,F$39,0) ->  | G76: =VLOOKUP($B76,'LED #3'!$A$15:$I$114,G$39,0) -> 0.38 | H76: =VLOOKUP($B76,'LED #3'!$A$15:$I$114,H$39,0) -> 197.1879011 | I76: =VLOOKUP($B76,'LED #4'!$A$15:$I$114,I$39,0) ->  | J76: =VLOOKUP($B76,'LED #4'!$A$15:$I$114,J$39,0) -> 
B77: =Table!B90 -> 0.390 | C77: =VLOOKUP($B77,'LED #1'!$A$15:$I$114,C$39,0) ->  | D77: =VLOOKUP($B77,'LED #1'!$A$15:$I$114,D$39,0) ->  | E77: =VLOOKUP($B77,'LED #2'!$A$15:$I$114,E$39,0) ->  | F77: =VLOOKUP($B77,'LED #2'!$A$15:$I$114,F$39,0) ->  | G77: =VLOOKUP($B77,'LED #3'!$A$15:$I$114,G$39,0) -> 0.39 | H77: =VLOOKUP($B77,'LED #3'!$A$15:$I$114,H$39,0) -> 202.1308105 | I77: =VLOOKUP($B77,'LED #4'!$A$15:$I$114,I$39,0) ->  | J77: =VLOOKUP($B77,'LED #4'!$A$15:$I$114,J$39,0) -> 
B78: =Table!B91 -> 0.400 | C78: =VLOOKUP($B78,'LED #1'!$A$15:$I$114,C$39,0) ->  | D78: =VLOOKUP($B78,'LED #1'!$A$15:$I$114,D$39,0) ->  | E78: =VLOOKUP($B78,'LED #2'!$A$15:$I$114,E$39,0) ->  | F78: =VLOOKUP($B78,'LED #2'!$A$15:$I$114,F$39,0) ->  | G78: =VLOOKUP($B78,'LED #3'!$A$15:$I$114,G$39,0) -> 0.4 | H78: =VLOOKUP($B78,'LED #3'!$A$15:$I$114,H$39,0) -> 207.0573433 | I78: =VLOOKUP($B78,'LED #4'!$A$15:$I$114,I$39,0) ->  | J78: =VLOOKUP($B78,'LED #4'!$A$15:$I$114,J$39,0) -> 
B79: =Table!B92 -> 0.410 | C79: =VLOOKUP($B79,'LED #1'!$A$15:$I$114,C$39,0) ->  | D79: =VLOOKUP($B79,'LED #1'!$A$15:$I$114,D$39,0) ->  | E79: =VLOOKUP($B79,'LED #2'!$A$15:$I$114,E$39,0) ->  | F79: =VLOOKUP($B79,'LED #2'!$A$15:$I$114,F$39,0) ->  | G79: =VLOOKUP($B79,'LED #3'!$A$15:$I$114,G$39,0) -> 0.41 | H79: =VLOOKUP($B79,'LED #3'!$A$15:$I$114,H$39,0) -> 211.9675537 | I79: =VLOOKUP($B79,'LED #4'!$A$15:$I$114,I$39,0) ->  | J79: =VLOOKUP($B79,'LED #4'!$A$15:$I$114,J$39,0) -> 
B80: =Table!B93 -> 0.420 | C80: =VLOOKUP($B80,'LED #1'!$A$15:$I$114,C$39,0) ->  | D80: =VLOOKUP($B80,'LED #1'!$A$15:$I$114,D$39,0) ->  | E80: =VLOOKUP($B80,'LED #2'!$A$15:$I$114,E$39,0) ->  | F80: =VLOOKUP($B80,'LED #2'!$A$15:$I$114,F$39,0) ->  | G80: =VLOOKUP($B80,'LED #3'!$A$15:$I$114,G$39,0) -> 0.42 | H80: =VLOOKUP($B80,'LED #3'!$A$15:$I$114,H$39,0) -> 216.8614959 | I80: =VLOOKUP($B80,'LED #4'!$A$15:$I$114,I$39,0) ->  | J80: =VLOOKUP($B80,'LED #4'!$A$15:$I$114,J$39,0) -> 
B81: =Table!B94 -> 0.430 | C81: =VLOOKUP($B81,'LED #1'!$A$15:$I$114,C$39,0) ->  | D81: =VLOOKUP($B81,'LED #1'!$A$15:$I$114,D$39,0) ->  | E81: =VLOOKUP($B81,'LED #2'!$A$15:$I$114,E$39,0) ->  | F81: =VLOOKUP($B81,'LED #2'!$A$15:$I$114,F$39,0) ->  | G81: =VLOOKUP($B81,'LED #3'!$A$15:$I$114,G$39,0) -> 0.43 | H81: =VLOOKUP($B81,'LED #3'!$A$15:$I$114,H$39,0) -> 221.7392236 | I81: =VLOOKUP($B81,'LED #4'!$A$15:$I$114,I$39,0) ->  | J81: =VLOOKUP($B81,'LED #4'!$A$15:$I$114,J$39,0) -> 
B82: =Table!B95 -> 0.440 | C82: =VLOOKUP($B82,'LED #1'!$A$15:$I$114,C$39,0) ->  | D82: =VLOOKUP($B82,'LED #1'!$A$15:$I$114,D$39,0) ->  | E82: =VLOOKUP($B82,'LED #2'!$A$15:$I$114,E$39,0) ->  | F82: =VLOOKUP($B82,'LED #2'!$A$15:$I$114,F$39,0) ->  | G82: =VLOOKUP($B82,'LED #3'!$A$15:$I$114,G$39,0) -> 0.44 | H82: =VLOOKUP($B82,'LED #3'!$A$15:$I$114,H$39,0) -> 226.6007907 | I82: =VLOOKUP($B82,'LED #4'!$A$15:$I$114,I$39,0) ->  | J82: =VLOOKUP($B82,'LED #4'!$A$15:$I$114,J$39,0) -> 
B83: =Table!B96 -> 0.450 | C83: =VLOOKUP($B83,'LED #1'!$A$15:$I$114,C$39,0) ->  | D83: =VLOOKUP($B83,'LED #1'!$A$15:$I$114,D$39,0) ->  | E83: =VLOOKUP($B83,'LED #2'!$A$15:$I$114,E$39,0) ->  | F83: =VLOOKUP($B83,'LED #2'!$A$15:$I$114,F$39,0) ->  | G83: =VLOOKUP($B83,'LED #3'!$A$15:$I$114,G$39,0) -> 0.45 | H83: =VLOOKUP($B83,'LED #3'!$A$15:$I$114,H$39,0) -> 231.4462507 | I83: =VLOOKUP($B83,'LED #4'!$A$15:$I$114,I$39,0) ->  | J83: =VLOOKUP($B83,'LED #4'!$A$15:$I$114,J$39,0) -> 
B84: =Table!B97 -> 0.460 | C84: =VLOOKUP($B84,'LED #1'!$A$15:$I$114,C$39,0) ->  | D84: =VLOOKUP($B84,'LED #1'!$A$15:$I$114,D$39,0) ->  | E84: =VLOOKUP($B84,'LED #2'!$A$15:$I$114,E$39,0) ->  | F84: =VLOOKUP($B84,'LED #2'!$A$15:$I$114,F$39,0) ->  | G84: =VLOOKUP($B84,'LED #3'!$A$15:$I$114,G$39,0) -> 0.46 | H84: =VLOOKUP($B84,'LED #3'!$A$15:$I$114,H$39,0) -> 236.275657 | I84: =VLOOKUP($B84,'LED #4'!$A$15:$I$114,I$39,0) ->  | J84: =VLOOKUP($B84,'LED #4'!$A$15:$I$114,J$39,0) -> 
B85: =Table!B98 -> 0.470 | C85: =VLOOKUP($B85,'LED #1'!$A$15:$I$114,C$39,0) ->  | D85: =VLOOKUP($B85,'LED #1'!$A$15:$I$114,D$39,0) ->  | E85: =VLOOKUP($B85,'LED #2'!$A$15:$I$114,E$39,0) ->  | F85: =VLOOKUP($B85,'LED #2'!$A$15:$I$114,F$39,0) ->  | G85: =VLOOKUP($B85,'LED #3'!$A$15:$I$114,G$39,0) -> 0.47 | H85: =VLOOKUP($B85,'LED #3'!$A$15:$I$114,H$39,0) -> 241.0890627 | I85: =VLOOKUP($B85,'LED #4'!$A$15:$I$114,I$39,0) ->  | J85: =VLOOKUP($B85,'LED #4'!$A$15:$I$114,J$39,0) -> 
B86: =Table!B99 -> 0.480 | C86: =VLOOKUP($B86,'LED #1'!$A$15:$I$114,C$39,0) ->  | D86: =VLOOKUP($B86,'LED #1'!$A$15:$I$114,D$39,0) ->  | E86: =VLOOKUP($B86,'LED #2'!$A$15:$I$114,E$39,0) ->  | F86: =VLOOKUP($B86,'LED #2'!$A$15:$I$114,F$39,0) ->  | G86: =VLOOKUP($B86,'LED #3'!$A$15:$I$114,G$39,0) -> 0.48 | H86: =VLOOKUP($B86,'LED #3'!$A$15:$I$114,H$39,0) -> 245.8865208 | I86: =VLOOKUP($B86,'LED #4'!$A$15:$I$114,I$39,0) ->  | J86: =VLOOKUP($B86,'LED #4'!$A$15:$I$114,J$39,0) -> 
B87: =Table!B100 -> 0.490 | C87: =VLOOKUP($B87,'LED #1'!$A$15:$I$114,C$39,0) ->  | D87: =VLOOKUP($B87,'LED #1'!$A$15:$I$114,D$39,0) ->  | E87: =VLOOKUP($B87,'LED #2'!$A$15:$I$114,E$39,0) ->  | F87: =VLOOKUP($B87,'LED #2'!$A$15:$I$114,F$39,0) ->  | G87: =VLOOKUP($B87,'LED #3'!$A$15:$I$114,G$39,0) -> 0.49 | H87: =VLOOKUP($B87,'LED #3'!$A$15:$I$114,H$39,0) -> 250.6680842 | I87: =VLOOKUP($B87,'LED #4'!$A$15:$I$114,I$39,0) ->  | J87: =VLOOKUP($B87,'LED #4'!$A$15:$I$114,J$39,0) -> 
B88: =Table!B101 -> 0.500 | C88: =VLOOKUP($B88,'LED #1'!$A$15:$I$114,C$39,0) ->  | D88: =VLOOKUP($B88,'LED #1'!$A$15:$I$114,D$39,0) ->  | E88: =VLOOKUP($B88,'LED #2'!$A$15:$I$114,E$39,0) ->  | F88: =VLOOKUP($B88,'LED #2'!$A$15:$I$114,F$39,0) ->  | G88: =VLOOKUP($B88,'LED #3'!$A$15:$I$114,G$39,0) -> 0.5 | H88: =VLOOKUP($B88,'LED #3'!$A$15:$I$114,H$39,0) -> 255.4338056 | I88: =VLOOKUP($B88,'LED #4'!$A$15:$I$114,I$39,0) ->  | J88: =VLOOKUP($B88,'LED #4'!$A$15:$I$114,J$39,0) -> 
B89: =Table!B102 -> 0.510 | C89: =VLOOKUP($B89,'LED #1'!$A$15:$I$114,C$39,0) ->  | D89: =VLOOKUP($B89,'LED #1'!$A$15:$I$114,D$39,0) ->  | E89: =VLOOKUP($B89,'LED #2'!$A$15:$I$114,E$39,0) ->  | F89: =VLOOKUP($B89,'LED #2'!$A$15:$I$114,F$39,0) ->  | G89: =VLOOKUP($B89,'LED #3'!$A$15:$I$114,G$39,0) -> 0.51 | H89: =VLOOKUP($B89,'LED #3'!$A$15:$I$114,H$39,0) -> 260.1837374 | I89: =VLOOKUP($B89,'LED #4'!$A$15:$I$114,I$39,0) ->  | J89: =VLOOKUP($B89,'LED #4'!$A$15:$I$114,J$39,0) -> 
B90: =Table!B103 -> 0.520 | C90: =VLOOKUP($B90,'LED #1'!$A$15:$I$114,C$39,0) ->  | D90: =VLOOKUP($B90,'LED #1'!$A$15:$I$114,D$39,0) ->  | E90: =VLOOKUP($B90,'LED #2'!$A$15:$I$114,E$39,0) ->  | F90: =VLOOKUP($B90,'LED #2'!$A$15:$I$114,F$39,0) ->  | G90: =VLOOKUP($B90,'LED #3'!$A$15:$I$114,G$39,0) -> 0.52 | H90: =VLOOKUP($B90,'LED #3'!$A$15:$I$114,H$39,0) -> 264.917932 | I90: =VLOOKUP($B90,'LED #4'!$A$15:$I$114,I$39,0) ->  | J90: =VLOOKUP($B90,'LED #4'!$A$15:$I$114,J$39,0) -> 
B91: =Table!B104 -> 0.530 | C91: =VLOOKUP($B91,'LED #1'!$A$15:$I$114,C$39,0) ->  | D91: =VLOOKUP($B91,'LED #1'!$A$15:$I$114,D$39,0) ->  | E91: =VLOOKUP($B91,'LED #2'!$A$15:$I$114,E$39,0) ->  | F91: =VLOOKUP($B91,'LED #2'!$A$15:$I$114,F$39,0) ->  | G91: =VLOOKUP($B91,'LED #3'!$A$15:$I$114,G$39,0) -> 0.53 | H91: =VLOOKUP($B91,'LED #3'!$A$15:$I$114,H$39,0) -> 269.6364414 | I91: =VLOOKUP($B91,'LED #4'!$A$15:$I$114,I$39,0) ->  | J91: =VLOOKUP($B91,'LED #4'!$A$15:$I$114,J$39,0) -> 
B92: =Table!B105 -> 0.540 | C92: =VLOOKUP($B92,'LED #1'!$A$15:$I$114,C$39,0) ->  | D92: =VLOOKUP($B92,'LED #1'!$A$15:$I$114,D$39,0) ->  | E92: =VLOOKUP($B92,'LED #2'!$A$15:$I$114,E$39,0) ->  | F92: =VLOOKUP($B92,'LED #2'!$A$15:$I$114,F$39,0) ->  | G92: =VLOOKUP($B92,'LED #3'!$A$15:$I$114,G$39,0) -> 0.54 | H92: =VLOOKUP($B92,'LED #3'!$A$15:$I$114,H$39,0) -> 274.3393177 | I92: =VLOOKUP($B92,'LED #4'!$A$15:$I$114,I$39,0) ->  | J92: =VLOOKUP($B92,'LED #4'!$A$15:$I$114,J$39,0) -> 
B93: =Table!B106 -> 0.550 | C93: =VLOOKUP($B93,'LED #1'!$A$15:$I$114,C$39,0) ->  | D93: =VLOOKUP($B93,'LED #1'!$A$15:$I$114,D$39,0) ->  | E93: =VLOOKUP($B93,'LED #2'!$A$15:$I$114,E$39,0) ->  | F93: =VLOOKUP($B93,'LED #2'!$A$15:$I$114,F$39,0) ->  | G93: =VLOOKUP($B93,'LED #3'!$A$15:$I$114,G$39,0) -> 0.55 | H93: =VLOOKUP($B93,'LED #3'!$A$15:$I$114,H$39,0) -> 279.0266126 | I93: =VLOOKUP($B93,'LED #4'!$A$15:$I$114,I$39,0) ->  | J93: =VLOOKUP($B93,'LED #4'!$A$15:$I$114,J$39,0) -> 
B94: =Table!B107 -> 0.560 | C94: =VLOOKUP($B94,'LED #1'!$A$15:$I$114,C$39,0) ->  | D94: =VLOOKUP($B94,'LED #1'!$A$15:$I$114,D$39,0) ->  | E94: =VLOOKUP($B94,'LED #2'!$A$15:$I$114,E$39,0) ->  | F94: =VLOOKUP($B94,'LED #2'!$A$15:$I$114,F$39,0) ->  | G94: =VLOOKUP($B94,'LED #3'!$A$15:$I$114,G$39,0) -> 0.56 | H94: =VLOOKUP($B94,'LED #3'!$A$15:$I$114,H$39,0) -> 283.6983779 | I94: =VLOOKUP($B94,'LED #4'!$A$15:$I$114,I$39,0) ->  | J94: =VLOOKUP($B94,'LED #4'!$A$15:$I$114,J$39,0) -> 
B95: =Table!B108 -> 0.570 | C95: =VLOOKUP($B95,'LED #1'!$A$15:$I$114,C$39,0) ->  | D95: =VLOOKUP($B95,'LED #1'!$A$15:$I$114,D$39,0) ->  | E95: =VLOOKUP($B95,'LED #2'!$A$15:$I$114,E$39,0) ->  | F95: =VLOOKUP($B95,'LED #2'!$A$15:$I$114,F$39,0) ->  | G95: =VLOOKUP($B95,'LED #3'!$A$15:$I$114,G$39,0) -> 0.57 | H95: =VLOOKUP($B95,'LED #3'!$A$15:$I$114,H$39,0) -> 288.3546648 | I95: =VLOOKUP($B95,'LED #4'!$A$15:$I$114,I$39,0) ->  | J95: =VLOOKUP($B95,'LED #4'!$A$15:$I$114,J$39,0) -> 
B96: =Table!B109 -> 0.580 | C96: =VLOOKUP($B96,'LED #1'!$A$15:$I$114,C$39,0) ->  | D96: =VLOOKUP($B96,'LED #1'!$A$15:$I$114,D$39,0) ->  | E96: =VLOOKUP($B96,'LED #2'!$A$15:$I$114,E$39,0) ->  | F96: =VLOOKUP($B96,'LED #2'!$A$15:$I$114,F$39,0) ->  | G96: =VLOOKUP($B96,'LED #3'!$A$15:$I$114,G$39,0) -> 0.58 | H96: =VLOOKUP($B96,'LED #3'!$A$15:$I$114,H$39,0) -> 292.9955248 | I96: =VLOOKUP($B96,'LED #4'!$A$15:$I$114,I$39,0) ->  | J96: =VLOOKUP($B96,'LED #4'!$A$15:$I$114,J$39,0) -> 
B97: =Table!B110 -> 0.590 | C97: =VLOOKUP($B97,'LED #1'!$A$15:$I$114,C$39,0) ->  | D97: =VLOOKUP($B97,'LED #1'!$A$15:$I$114,D$39,0) ->  | E97: =VLOOKUP($B97,'LED #2'!$A$15:$I$114,E$39,0) ->  | F97: =VLOOKUP($B97,'LED #2'!$A$15:$I$114,F$39,0) ->  | G97: =VLOOKUP($B97,'LED #3'!$A$15:$I$114,G$39,0) -> 0.59 | H97: =VLOOKUP($B97,'LED #3'!$A$15:$I$114,H$39,0) -> 297.6210088 | I97: =VLOOKUP($B97,'LED #4'!$A$15:$I$114,I$39,0) ->  | J97: =VLOOKUP($B97,'LED #4'!$A$15:$I$114,J$39,0) -> 
B98: =Table!B111 -> 0.600 | C98: =VLOOKUP($B98,'LED #1'!$A$15:$I$114,C$39,0) ->  | D98: =VLOOKUP($B98,'LED #1'!$A$15:$I$114,D$39,0) ->  | E98: =VLOOKUP($B98,'LED #2'!$A$15:$I$114,E$39,0) ->  | F98: =VLOOKUP($B98,'LED #2'!$A$15:$I$114,F$39,0) ->  | G98: =VLOOKUP($B98,'LED #3'!$A$15:$I$114,G$39,0) -> 0.6 | H98: =VLOOKUP($B98,'LED #3'!$A$15:$I$114,H$39,0) -> 302.231168 | I98: =VLOOKUP($B98,'LED #4'!$A$15:$I$114,I$39,0) ->  | J98: =VLOOKUP($B98,'LED #4'!$A$15:$I$114,J$39,0) -> 
B99: =Table!B112 -> 0.610 | C99: =VLOOKUP($B99,'LED #1'!$A$15:$I$114,C$39,0) ->  | D99: =VLOOKUP($B99,'LED #1'!$A$15:$I$114,D$39,0) ->  | E99: =VLOOKUP($B99,'LED #2'!$A$15:$I$114,E$39,0) ->  | F99: =VLOOKUP($B99,'LED #2'!$A$15:$I$114,F$39,0) ->  | G99: =VLOOKUP($B99,'LED #3'!$A$15:$I$114,G$39,0) -> 0.61 | H99: =VLOOKUP($B99,'LED #3'!$A$15:$I$114,H$39,0) -> 306.826053 | I99: =VLOOKUP($B99,'LED #4'!$A$15:$I$114,I$39,0) ->  | J99: =VLOOKUP($B99,'LED #4'!$A$15:$I$114,J$39,0) -> 
B100: =Table!B113 -> 0.620 | C100: =VLOOKUP($B100,'LED #1'!$A$15:$I$114,C$39,0) ->  | D100: =VLOOKUP($B100,'LED #1'!$A$15:$I$114,D$39,0) ->  | E100: =VLOOKUP($B100,'LED #2'!$A$15:$I$114,E$39,0) ->  | F100: =VLOOKUP($B100,'LED #2'!$A$15:$I$114,F$39,0) ->  | G100: =VLOOKUP($B100,'LED #3'!$A$15:$I$114,G$39,0) -> 0.62 | H100: =VLOOKUP($B100,'LED #3'!$A$15:$I$114,H$39,0) -> 311.4057144 | I100: =VLOOKUP($B100,'LED #4'!$A$15:$I$114,I$39,0) ->  | J100: =VLOOKUP($B100,'LED #4'!$A$15:$I$114,J$39,0) -> 
B101: =Table!B114 -> 0.630 | C101: =VLOOKUP($B101,'LED #1'!$A$15:$I$114,C$39,0) ->  | D101: =VLOOKUP($B101,'LED #1'!$A$15:$I$114,D$39,0) ->  | E101: =VLOOKUP($B101,'LED #2'!$A$15:$I$114,E$39,0) ->  | F101: =VLOOKUP($B101,'LED #2'!$A$15:$I$114,F$39,0) ->  | G101: =VLOOKUP($B101,'LED #3'!$A$15:$I$114,G$39,0) -> 0.63 | H101: =VLOOKUP($B101,'LED #3'!$A$15:$I$114,H$39,0) -> 315.9702027 | I101: =VLOOKUP($B101,'LED #4'!$A$15:$I$114,I$39,0) ->  | J101: =VLOOKUP($B101,'LED #4'!$A$15:$I$114,J$39,0) -> 
B102: =Table!B115 -> 0.640 | C102: =VLOOKUP($B102,'LED #1'!$A$15:$I$114,C$39,0) ->  | D102: =VLOOKUP($B102,'LED #1'!$A$15:$I$114,D$39,0) ->  | E102: =VLOOKUP($B102,'LED #2'!$A$15:$I$114,E$39,0) ->  | F102: =VLOOKUP($B102,'LED #2'!$A$15:$I$114,F$39,0) ->  | G102: =VLOOKUP($B102,'LED #3'!$A$15:$I$114,G$39,0) -> 0.64 | H102: =VLOOKUP($B102,'LED #3'!$A$15:$I$114,H$39,0) -> 320.5195681 | I102: =VLOOKUP($B102,'LED #4'!$A$15:$I$114,I$39,0) ->  | J102: =VLOOKUP($B102,'LED #4'!$A$15:$I$114,J$39,0) -> 
B103: =Table!B116 -> 0.650 | C103: =VLOOKUP($B103,'LED #1'!$A$15:$I$114,C$39,0) ->  | D103: =VLOOKUP($B103,'LED #1'!$A$15:$I$114,D$39,0) ->  | E103: =VLOOKUP($B103,'LED #2'!$A$15:$I$114,E$39,0) ->  | F103: =VLOOKUP($B103,'LED #2'!$A$15:$I$114,F$39,0) ->  | G103: =VLOOKUP($B103,'LED #3'!$A$15:$I$114,G$39,0) -> 0.65 | H103: =VLOOKUP($B103,'LED #3'!$A$15:$I$114,H$39,0) -> 325.0538608 | I103: =VLOOKUP($B103,'LED #4'!$A$15:$I$114,I$39,0) ->  | J103: =VLOOKUP($B103,'LED #4'!$A$15:$I$114,J$39,0) -> 
B104: =Table!B117 -> 0.660 | C104: =VLOOKUP($B104,'LED #1'!$A$15:$I$114,C$39,0) ->  | D104: =VLOOKUP($B104,'LED #1'!$A$15:$I$114,D$39,0) ->  | E104: =VLOOKUP($B104,'LED #2'!$A$15:$I$114,E$39,0) ->  | F104: =VLOOKUP($B104,'LED #2'!$A$15:$I$114,F$39,0) ->  | G104: =VLOOKUP($B104,'LED #3'!$A$15:$I$114,G$39,0) -> 0.66 | H104: =VLOOKUP($B104,'LED #3'!$A$15:$I$114,H$39,0) -> 329.5731307 | I104: =VLOOKUP($B104,'LED #4'!$A$15:$I$114,I$39,0) ->  | J104: =VLOOKUP($B104,'LED #4'!$A$15:$I$114,J$39,0) -> 
B105: =Table!B118 -> 0.670 | C105: =VLOOKUP($B105,'LED #1'!$A$15:$I$114,C$39,0) ->  | D105: =VLOOKUP($B105,'LED #1'!$A$15:$I$114,D$39,0) ->  | E105: =VLOOKUP($B105,'LED #2'!$A$15:$I$114,E$39,0) ->  | F105: =VLOOKUP($B105,'LED #2'!$A$15:$I$114,F$39,0) ->  | G105: =VLOOKUP($B105,'LED #3'!$A$15:$I$114,G$39,0) -> 0.67 | H105: =VLOOKUP($B105,'LED #3'!$A$15:$I$114,H$39,0) -> 334.0774276 | I105: =VLOOKUP($B105,'LED #4'!$A$15:$I$114,I$39,0) ->  | J105: =VLOOKUP($B105,'LED #4'!$A$15:$I$114,J$39,0) -> 
B106: =Table!B119 -> 0.680 | C106: =VLOOKUP($B106,'LED #1'!$A$15:$I$114,C$39,0) ->  | D106: =VLOOKUP($B106,'LED #1'!$A$15:$I$114,D$39,0) ->  | E106: =VLOOKUP($B106,'LED #2'!$A$15:$I$114,E$39,0) ->  | F106: =VLOOKUP($B106,'LED #2'!$A$15:$I$114,F$39,0) ->  | G106: =VLOOKUP($B106,'LED #3'!$A$15:$I$114,G$39,0) -> 0.68 | H106: =VLOOKUP($B106,'LED #3'!$A$15:$I$114,H$39,0) -> 338.566801 | I106: =VLOOKUP($B106,'LED #4'!$A$15:$I$114,I$39,0) ->  | J106: =VLOOKUP($B106,'LED #4'!$A$15:$I$114,J$39,0) -> 
B107: =Table!B120 -> 0.690 | C107: =VLOOKUP($B107,'LED #1'!$A$15:$I$114,C$39,0) ->  | D107: =VLOOKUP($B107,'LED #1'!$A$15:$I$114,D$39,0) ->  | E107: =VLOOKUP($B107,'LED #2'!$A$15:$I$114,E$39,0) ->  | F107: =VLOOKUP($B107,'LED #2'!$A$15:$I$114,F$39,0) ->  | G107: =VLOOKUP($B107,'LED #3'!$A$15:$I$114,G$39,0) -> 0.69 | H107: =VLOOKUP($B107,'LED #3'!$A$15:$I$114,H$39,0) -> 343.0413005 | I107: =VLOOKUP($B107,'LED #4'!$A$15:$I$114,I$39,0) ->  | J107: =VLOOKUP($B107,'LED #4'!$A$15:$I$114,J$39,0) -> 
B108: =Table!B121 -> 0.700 | C108: =VLOOKUP($B108,'LED #1'!$A$15:$I$114,C$39,0) ->  | D108: =VLOOKUP($B108,'LED #1'!$A$15:$I$114,D$39,0) ->  | E108: =VLOOKUP($B108,'LED #2'!$A$15:$I$114,E$39,0) ->  | F108: =VLOOKUP($B108,'LED #2'!$A$15:$I$114,F$39,0) ->  | G108: =VLOOKUP($B108,'LED #3'!$A$15:$I$114,G$39,0) -> 0.7 | H108: =VLOOKUP($B108,'LED #3'!$A$15:$I$114,H$39,0) -> 347.5009752 | I108: =VLOOKUP($B108,'LED #4'!$A$15:$I$114,I$39,0) ->  | J108: =VLOOKUP($B108,'LED #4'!$A$15:$I$114,J$39,0) -> 
B109: =Table!B122 -> 0.710 | C109: =VLOOKUP($B109,'LED #1'!$A$15:$I$114,C$39,0) ->  | D109: =VLOOKUP($B109,'LED #1'!$A$15:$I$114,D$39,0) ->  | E109: =VLOOKUP($B109,'LED #2'!$A$15:$I$114,E$39,0) ->  | F109: =VLOOKUP($B109,'LED #2'!$A$15:$I$114,F$39,0) ->  | G109: =VLOOKUP($B109,'LED #3'!$A$15:$I$114,G$39,0) -> 0.71 | H109: =VLOOKUP($B109,'LED #3'!$A$15:$I$114,H$39,0) -> 351.9458744 | I109: =VLOOKUP($B109,'LED #4'!$A$15:$I$114,I$39,0) ->  | J109: =VLOOKUP($B109,'LED #4'!$A$15:$I$114,J$39,0) -> 
B110: =Table!B123 -> 0.720 | C110: =VLOOKUP($B110,'LED #1'!$A$15:$I$114,C$39,0) ->  | D110: =VLOOKUP($B110,'LED #1'!$A$15:$I$114,D$39,0) ->  | E110: =VLOOKUP($B110,'LED #2'!$A$15:$I$114,E$39,0) ->  | F110: =VLOOKUP($B110,'LED #2'!$A$15:$I$114,F$39,0) ->  | G110: =VLOOKUP($B110,'LED #3'!$A$15:$I$114,G$39,0) -> 0.72 | H110: =VLOOKUP($B110,'LED #3'!$A$15:$I$114,H$39,0) -> 356.3760469 | I110: =VLOOKUP($B110,'LED #4'!$A$15:$I$114,I$39,0) ->  | J110: =VLOOKUP($B110,'LED #4'!$A$15:$I$114,J$39,0) -> 
B111: =Table!B124 -> 0.730 | C111: =VLOOKUP($B111,'LED #1'!$A$15:$I$114,C$39,0) ->  | D111: =VLOOKUP($B111,'LED #1'!$A$15:$I$114,D$39,0) ->  | E111: =VLOOKUP($B111,'LED #2'!$A$15:$I$114,E$39,0) ->  | F111: =VLOOKUP($B111,'LED #2'!$A$15:$I$114,F$39,0) ->  | G111: =VLOOKUP($B111,'LED #3'!$A$15:$I$114,G$39,0) -> 0.73 | H111: =VLOOKUP($B111,'LED #3'!$A$15:$I$114,H$39,0) -> 360.7915416 | I111: =VLOOKUP($B111,'LED #4'!$A$15:$I$114,I$39,0) ->  | J111: =VLOOKUP($B111,'LED #4'!$A$15:$I$114,J$39,0) -> 
B112: =Table!B125 -> 0.740 | C112: =VLOOKUP($B112,'LED #1'!$A$15:$I$114,C$39,0) ->  | D112: =VLOOKUP($B112,'LED #1'!$A$15:$I$114,D$39,0) ->  | E112: =VLOOKUP($B112,'LED #2'!$A$15:$I$114,E$39,0) ->  | F112: =VLOOKUP($B112,'LED #2'!$A$15:$I$114,F$39,0) ->  | G112: =VLOOKUP($B112,'LED #3'!$A$15:$I$114,G$39,0) -> 0.74 | H112: =VLOOKUP($B112,'LED #3'!$A$15:$I$114,H$39,0) -> 365.1924071 | I112: =VLOOKUP($B112,'LED #4'!$A$15:$I$114,I$39,0) ->  | J112: =VLOOKUP($B112,'LED #4'!$A$15:$I$114,J$39,0) -> 
B113: =Table!B126 -> 0.750 | C113: =VLOOKUP($B113,'LED #1'!$A$15:$I$114,C$39,0) ->  | D113: =VLOOKUP($B113,'LED #1'!$A$15:$I$114,D$39,0) ->  | E113: =VLOOKUP($B113,'LED #2'!$A$15:$I$114,E$39,0) ->  | F113: =VLOOKUP($B113,'LED #2'!$A$15:$I$114,F$39,0) ->  | G113: =VLOOKUP($B113,'LED #3'!$A$15:$I$114,G$39,0) -> 0.75 | H113: =VLOOKUP($B113,'LED #3'!$A$15:$I$114,H$39,0) -> 369.5786919 | I113: =VLOOKUP($B113,'LED #4'!$A$15:$I$114,I$39,0) ->  | J113: =VLOOKUP($B113,'LED #4'!$A$15:$I$114,J$39,0) -> 
B114: =Table!B127 -> 0.760 | C114: =VLOOKUP($B114,'LED #1'!$A$15:$I$114,C$39,0) ->  | D114: =VLOOKUP($B114,'LED #1'!$A$15:$I$114,D$39,0) ->  | E114: =VLOOKUP($B114,'LED #2'!$A$15:$I$114,E$39,0) ->  | F114: =VLOOKUP($B114,'LED #2'!$A$15:$I$114,F$39,0) ->  | G114: =VLOOKUP($B114,'LED #3'!$A$15:$I$114,G$39,0) -> 0.76 | H114: =VLOOKUP($B114,'LED #3'!$A$15:$I$114,H$39,0) -> 373.9504442 | I114: =VLOOKUP($B114,'LED #4'!$A$15:$I$114,I$39,0) ->  | J114: =VLOOKUP($B114,'LED #4'!$A$15:$I$114,J$39,0) -> 
B115: =Table!B128 -> 0.770 | C115: =VLOOKUP($B115,'LED #1'!$A$15:$I$114,C$39,0) ->  | D115: =VLOOKUP($B115,'LED #1'!$A$15:$I$114,D$39,0) ->  | E115: =VLOOKUP($B115,'LED #2'!$A$15:$I$114,E$39,0) ->  | F115: =VLOOKUP($B115,'LED #2'!$A$15:$I$114,F$39,0) ->  | G115: =VLOOKUP($B115,'LED #3'!$A$15:$I$114,G$39,0) -> 0.77 | H115: =VLOOKUP($B115,'LED #3'!$A$15:$I$114,H$39,0) -> 378.3077122 | I115: =VLOOKUP($B115,'LED #4'!$A$15:$I$114,I$39,0) ->  | J115: =VLOOKUP($B115,'LED #4'!$A$15:$I$114,J$39,0) -> 
B116: =Table!B129 -> 0.780 | C116: =VLOOKUP($B116,'LED #1'!$A$15:$I$114,C$39,0) ->  | D116: =VLOOKUP($B116,'LED #1'!$A$15:$I$114,D$39,0) ->  | E116: =VLOOKUP($B116,'LED #2'!$A$15:$I$114,E$39,0) ->  | F116: =VLOOKUP($B116,'LED #2'!$A$15:$I$114,F$39,0) ->  | G116: =VLOOKUP($B116,'LED #3'!$A$15:$I$114,G$39,0) -> 0.78 | H116: =VLOOKUP($B116,'LED #3'!$A$15:$I$114,H$39,0) -> 382.6505439 | I116: =VLOOKUP($B116,'LED #4'!$A$15:$I$114,I$39,0) ->  | J116: =VLOOKUP($B116,'LED #4'!$A$15:$I$114,J$39,0) -> 
B117: =Table!B130 -> 0.790 | C117: =VLOOKUP($B117,'LED #1'!$A$15:$I$114,C$39,0) ->  | D117: =VLOOKUP($B117,'LED #1'!$A$15:$I$114,D$39,0) ->  | E117: =VLOOKUP($B117,'LED #2'!$A$15:$I$114,E$39,0) ->  | F117: =VLOOKUP($B117,'LED #2'!$A$15:$I$114,F$39,0) ->  | G117: =VLOOKUP($B117,'LED #3'!$A$15:$I$114,G$39,0) -> 0.79 | H117: =VLOOKUP($B117,'LED #3'!$A$15:$I$114,H$39,0) -> 386.9789872 | I117: =VLOOKUP($B117,'LED #4'!$A$15:$I$114,I$39,0) ->  | J117: =VLOOKUP($B117,'LED #4'!$A$15:$I$114,J$39,0) -> 
B118: =Table!B131 -> 0.800 | C118: =VLOOKUP($B118,'LED #1'!$A$15:$I$114,C$39,0) ->  | D118: =VLOOKUP($B118,'LED #1'!$A$15:$I$114,D$39,0) ->  | E118: =VLOOKUP($B118,'LED #2'!$A$15:$I$114,E$39,0) ->  | F118: =VLOOKUP($B118,'LED #2'!$A$15:$I$114,F$39,0) ->  | G118: =VLOOKUP($B118,'LED #3'!$A$15:$I$114,G$39,0) -> 0.8 | H118: =VLOOKUP($B118,'LED #3'!$A$15:$I$114,H$39,0) -> 391.2930897 | I118: =VLOOKUP($B118,'LED #4'!$A$15:$I$114,I$39,0) ->  | J118: =VLOOKUP($B118,'LED #4'!$A$15:$I$114,J$39,0) -> 
B119: =Table!B132 -> 0.810 | C119: =VLOOKUP($B119,'LED #1'!$A$15:$I$114,C$39,0) ->  | D119: =VLOOKUP($B119,'LED #1'!$A$15:$I$114,D$39,0) ->  | E119: =VLOOKUP($B119,'LED #2'!$A$15:$I$114,E$39,0) ->  | F119: =VLOOKUP($B119,'LED #2'!$A$15:$I$114,F$39,0) ->  | G119: =VLOOKUP($B119,'LED #3'!$A$15:$I$114,G$39,0) -> 0.81 | H119: =VLOOKUP($B119,'LED #3'!$A$15:$I$114,H$39,0) -> 395.5928988 | I119: =VLOOKUP($B119,'LED #4'!$A$15:$I$114,I$39,0) ->  | J119: =VLOOKUP($B119,'LED #4'!$A$15:$I$114,J$39,0) -> 
B120: =Table!B133 -> 0.820 | C120: =VLOOKUP($B120,'LED #1'!$A$15:$I$114,C$39,0) ->  | D120: =VLOOKUP($B120,'LED #1'!$A$15:$I$114,D$39,0) ->  | E120: =VLOOKUP($B120,'LED #2'!$A$15:$I$114,E$39,0) ->  | F120: =VLOOKUP($B120,'LED #2'!$A$15:$I$114,F$39,0) ->  | G120: =VLOOKUP($B120,'LED #3'!$A$15:$I$114,G$39,0) -> 0.82 | H120: =VLOOKUP($B120,'LED #3'!$A$15:$I$114,H$39,0) -> 399.8784621 | I120: =VLOOKUP($B120,'LED #4'!$A$15:$I$114,I$39,0) ->  | J120: =VLOOKUP($B120,'LED #4'!$A$15:$I$114,J$39,0) -> 
B121: =Table!B134 -> 0.830 | C121: =VLOOKUP($B121,'LED #1'!$A$15:$I$114,C$39,0) ->  | D121: =VLOOKUP($B121,'LED #1'!$A$15:$I$114,D$39,0) ->  | E121: =VLOOKUP($B121,'LED #2'!$A$15:$I$114,E$39,0) ->  | F121: =VLOOKUP($B121,'LED #2'!$A$15:$I$114,F$39,0) ->  | G121: =VLOOKUP($B121,'LED #3'!$A$15:$I$114,G$39,0) -> 0.83 | H121: =VLOOKUP($B121,'LED #3'!$A$15:$I$114,H$39,0) -> 404.1498266 | I121: =VLOOKUP($B121,'LED #4'!$A$15:$I$114,I$39,0) ->  | J121: =VLOOKUP($B121,'LED #4'!$A$15:$I$114,J$39,0) -> 
B122: =Table!B135 -> 0.840 | C122: =VLOOKUP($B122,'LED #1'!$A$15:$I$114,C$39,0) ->  | D122: =VLOOKUP($B122,'LED #1'!$A$15:$I$114,D$39,0) ->  | E122: =VLOOKUP($B122,'LED #2'!$A$15:$I$114,E$39,0) ->  | F122: =VLOOKUP($B122,'LED #2'!$A$15:$I$114,F$39,0) ->  | G122: =VLOOKUP($B122,'LED #3'!$A$15:$I$114,G$39,0) -> 0.84 | H122: =VLOOKUP($B122,'LED #3'!$A$15:$I$114,H$39,0) -> 408.4070395 | I122: =VLOOKUP($B122,'LED #4'!$A$15:$I$114,I$39,0) ->  | J122: =VLOOKUP($B122,'LED #4'!$A$15:$I$114,J$39,0) -> 
B123: =Table!B136 -> 0.850 | C123: =VLOOKUP($B123,'LED #1'!$A$15:$I$114,C$39,0) ->  | D123: =VLOOKUP($B123,'LED #1'!$A$15:$I$114,D$39,0) ->  | E123: =VLOOKUP($B123,'LED #2'!$A$15:$I$114,E$39,0) ->  | F123: =VLOOKUP($B123,'LED #2'!$A$15:$I$114,F$39,0) ->  | G123: =VLOOKUP($B123,'LED #3'!$A$15:$I$114,G$39,0) -> 0.85 | H123: =VLOOKUP($B123,'LED #3'!$A$15:$I$114,H$39,0) -> 412.6501475 | I123: =VLOOKUP($B123,'LED #4'!$A$15:$I$114,I$39,0) ->  | J123: =VLOOKUP($B123,'LED #4'!$A$15:$I$114,J$39,0) -> 
B124: =Table!B137 -> 0.860 | C124: =VLOOKUP($B124,'LED #1'!$A$15:$I$114,C$39,0) ->  | D124: =VLOOKUP($B124,'LED #1'!$A$15:$I$114,D$39,0) ->  | E124: =VLOOKUP($B124,'LED #2'!$A$15:$I$114,E$39,0) ->  | F124: =VLOOKUP($B124,'LED #2'!$A$15:$I$114,F$39,0) ->  | G124: =VLOOKUP($B124,'LED #3'!$A$15:$I$114,G$39,0) -> 0.86 | H124: =VLOOKUP($B124,'LED #3'!$A$15:$I$114,H$39,0) -> 416.8791975 | I124: =VLOOKUP($B124,'LED #4'!$A$15:$I$114,I$39,0) ->  | J124: =VLOOKUP($B124,'LED #4'!$A$15:$I$114,J$39,0) -> 
B125: =Table!B138 -> 0.870 | C125: =VLOOKUP($B125,'LED #1'!$A$15:$I$114,C$39,0) ->  | D125: =VLOOKUP($B125,'LED #1'!$A$15:$I$114,D$39,0) ->  | E125: =VLOOKUP($B125,'LED #2'!$A$15:$I$114,E$39,0) ->  | F125: =VLOOKUP($B125,'LED #2'!$A$15:$I$114,F$39,0) ->  | G125: =VLOOKUP($B125,'LED #3'!$A$15:$I$114,G$39,0) -> 0.87 | H125: =VLOOKUP($B125,'LED #3'!$A$15:$I$114,H$39,0) -> 421.094236 | I125: =VLOOKUP($B125,'LED #4'!$A$15:$I$114,I$39,0) ->  | J125: =VLOOKUP($B125,'LED #4'!$A$15:$I$114,J$39,0) -> 
B126: =Table!B139 -> 0.880 | C126: =VLOOKUP($B126,'LED #1'!$A$15:$I$114,C$39,0) ->  | D126: =VLOOKUP($B126,'LED #1'!$A$15:$I$114,D$39,0) ->  | E126: =VLOOKUP($B126,'LED #2'!$A$15:$I$114,E$39,0) ->  | F126: =VLOOKUP($B126,'LED #2'!$A$15:$I$114,F$39,0) ->  | G126: =VLOOKUP($B126,'LED #3'!$A$15:$I$114,G$39,0) -> 0.88 | H126: =VLOOKUP($B126,'LED #3'!$A$15:$I$114,H$39,0) -> 425.2953094 | I126: =VLOOKUP($B126,'LED #4'!$A$15:$I$114,I$39,0) ->  | J126: =VLOOKUP($B126,'LED #4'!$A$15:$I$114,J$39,0) -> 
B127: =Table!B140 -> 0.890 | C127: =VLOOKUP($B127,'LED #1'!$A$15:$I$114,C$39,0) ->  | D127: =VLOOKUP($B127,'LED #1'!$A$15:$I$114,D$39,0) ->  | E127: =VLOOKUP($B127,'LED #2'!$A$15:$I$114,E$39,0) ->  | F127: =VLOOKUP($B127,'LED #2'!$A$15:$I$114,F$39,0) ->  | G127: =VLOOKUP($B127,'LED #3'!$A$15:$I$114,G$39,0) -> 0.89 | H127: =VLOOKUP($B127,'LED #3'!$A$15:$I$114,H$39,0) -> 429.482464 | I127: =VLOOKUP($B127,'LED #4'!$A$15:$I$114,I$39,0) ->  | J127: =VLOOKUP($B127,'LED #4'!$A$15:$I$114,J$39,0) -> 
B128: =Table!B141 -> 0.900 | C128: =VLOOKUP($B128,'LED #1'!$A$15:$I$114,C$39,0) ->  | D128: =VLOOKUP($B128,'LED #1'!$A$15:$I$114,D$39,0) ->  | E128: =VLOOKUP($B128,'LED #2'!$A$15:$I$114,E$39,0) ->  | F128: =VLOOKUP($B128,'LED #2'!$A$15:$I$114,F$39,0) ->  | G128: =VLOOKUP($B128,'LED #3'!$A$15:$I$114,G$39,0) -> 0.9 | H128: =VLOOKUP($B128,'LED #3'!$A$15:$I$114,H$39,0) -> 433.655746 | I128: =VLOOKUP($B128,'LED #4'!$A$15:$I$114,I$39,0) ->  | J128: =VLOOKUP($B128,'LED #4'!$A$15:$I$114,J$39,0) -> 
B129: =Table!B142 -> 0.910 | C129: =VLOOKUP($B129,'LED #1'!$A$15:$I$114,C$39,0) ->  | D129: =VLOOKUP($B129,'LED #1'!$A$15:$I$114,D$39,0) ->  | E129: =VLOOKUP($B129,'LED #2'!$A$15:$I$114,E$39,0) ->  | F129: =VLOOKUP($B129,'LED #2'!$A$15:$I$114,F$39,0) ->  | G129: =VLOOKUP($B129,'LED #3'!$A$15:$I$114,G$39,0) -> 0.91 | H129: =VLOOKUP($B129,'LED #3'!$A$15:$I$114,H$39,0) -> 437.8152012 | I129: =VLOOKUP($B129,'LED #4'!$A$15:$I$114,I$39,0) ->  | J129: =VLOOKUP($B129,'LED #4'!$A$15:$I$114,J$39,0) -> 
B130: =Table!B143 -> 0.920 | C130: =VLOOKUP($B130,'LED #1'!$A$15:$I$114,C$39,0) ->  | D130: =VLOOKUP($B130,'LED #1'!$A$15:$I$114,D$39,0) ->  | E130: =VLOOKUP($B130,'LED #2'!$A$15:$I$114,E$39,0) ->  | F130: =VLOOKUP($B130,'LED #2'!$A$15:$I$114,F$39,0) ->  | G130: =VLOOKUP($B130,'LED #3'!$A$15:$I$114,G$39,0) -> 0.92 | H130: =VLOOKUP($B130,'LED #3'!$A$15:$I$114,H$39,0) -> 441.9608755 | I130: =VLOOKUP($B130,'LED #4'!$A$15:$I$114,I$39,0) ->  | J130: =VLOOKUP($B130,'LED #4'!$A$15:$I$114,J$39,0) -> 
B131: =Table!B144 -> 0.930 | C131: =VLOOKUP($B131,'LED #1'!$A$15:$I$114,C$39,0) ->  | D131: =VLOOKUP($B131,'LED #1'!$A$15:$I$114,D$39,0) ->  | E131: =VLOOKUP($B131,'LED #2'!$A$15:$I$114,E$39,0) ->  | F131: =VLOOKUP($B131,'LED #2'!$A$15:$I$114,F$39,0) ->  | G131: =VLOOKUP($B131,'LED #3'!$A$15:$I$114,G$39,0) -> 0.93 | H131: =VLOOKUP($B131,'LED #3'!$A$15:$I$114,H$39,0) -> 446.0928146 | I131: =VLOOKUP($B131,'LED #4'!$A$15:$I$114,I$39,0) ->  | J131: =VLOOKUP($B131,'LED #4'!$A$15:$I$114,J$39,0) -> 
B132: =Table!B145 -> 0.940 | C132: =VLOOKUP($B132,'LED #1'!$A$15:$I$114,C$39,0) ->  | D132: =VLOOKUP($B132,'LED #1'!$A$15:$I$114,D$39,0) ->  | E132: =VLOOKUP($B132,'LED #2'!$A$15:$I$114,E$39,0) ->  | F132: =VLOOKUP($B132,'LED #2'!$A$15:$I$114,F$39,0) ->  | G132: =VLOOKUP($B132,'LED #3'!$A$15:$I$114,G$39,0) -> 0.94 | H132: =VLOOKUP($B132,'LED #3'!$A$15:$I$114,H$39,0) -> 450.2110639 | I132: =VLOOKUP($B132,'LED #4'!$A$15:$I$114,I$39,0) ->  | J132: =VLOOKUP($B132,'LED #4'!$A$15:$I$114,J$39,0) -> 
B133: =Table!B146 -> 0.950 | C133: =VLOOKUP($B133,'LED #1'!$A$15:$I$114,C$39,0) ->  | D133: =VLOOKUP($B133,'LED #1'!$A$15:$I$114,D$39,0) ->  | E133: =VLOOKUP($B133,'LED #2'!$A$15:$I$114,E$39,0) ->  | F133: =VLOOKUP($B133,'LED #2'!$A$15:$I$114,F$39,0) ->  | G133: =VLOOKUP($B133,'LED #3'!$A$15:$I$114,G$39,0) -> 0.95 | H133: =VLOOKUP($B133,'LED #3'!$A$15:$I$114,H$39,0) -> 454.3156688 | I133: =VLOOKUP($B133,'LED #4'!$A$15:$I$114,I$39,0) ->  | J133: =VLOOKUP($B133,'LED #4'!$A$15:$I$114,J$39,0) -> 
B134: =Table!B147 -> 0.960 | C134: =VLOOKUP($B134,'LED #1'!$A$15:$I$114,C$39,0) ->  | D134: =VLOOKUP($B134,'LED #1'!$A$15:$I$114,D$39,0) ->  | E134: =VLOOKUP($B134,'LED #2'!$A$15:$I$114,E$39,0) ->  | F134: =VLOOKUP($B134,'LED #2'!$A$15:$I$114,F$39,0) ->  | G134: =VLOOKUP($B134,'LED #3'!$A$15:$I$114,G$39,0) -> 0.96 | H134: =VLOOKUP($B134,'LED #3'!$A$15:$I$114,H$39,0) -> 458.4066745 | I134: =VLOOKUP($B134,'LED #4'!$A$15:$I$114,I$39,0) ->  | J134: =VLOOKUP($B134,'LED #4'!$A$15:$I$114,J$39,0) -> 
B135: =Table!B148 -> 0.970 | C135: =VLOOKUP($B135,'LED #1'!$A$15:$I$114,C$39,0) ->  | D135: =VLOOKUP($B135,'LED #1'!$A$15:$I$114,D$39,0) ->  | E135: =VLOOKUP($B135,'LED #2'!$A$15:$I$114,E$39,0) ->  | F135: =VLOOKUP($B135,'LED #2'!$A$15:$I$114,F$39,0) ->  | G135: =VLOOKUP($B135,'LED #3'!$A$15:$I$114,G$39,0) -> 0.97 | H135: =VLOOKUP($B135,'LED #3'!$A$15:$I$114,H$39,0) -> 462.4841261 | I135: =VLOOKUP($B135,'LED #4'!$A$15:$I$114,I$39,0) ->  | J135: =VLOOKUP($B135,'LED #4'!$A$15:$I$114,J$39,0) -> 
B136: =Table!B149 -> 0.980 | C136: =VLOOKUP($B136,'LED #1'!$A$15:$I$114,C$39,0) ->  | D136: =VLOOKUP($B136,'LED #1'!$A$15:$I$114,D$39,0) ->  | E136: =VLOOKUP($B136,'LED #2'!$A$15:$I$114,E$39,0) ->  | F136: =VLOOKUP($B136,'LED #2'!$A$15:$I$114,F$39,0) ->  | G136: =VLOOKUP($B136,'LED #3'!$A$15:$I$114,G$39,0) -> 0.98 | H136: =VLOOKUP($B136,'LED #3'!$A$15:$I$114,H$39,0) -> 466.5480685 | I136: =VLOOKUP($B136,'LED #4'!$A$15:$I$114,I$39,0) ->  | J136: =VLOOKUP($B136,'LED #4'!$A$15:$I$114,J$39,0) -> 
B137: =Table!B150 -> 0.990 | C137: =VLOOKUP($B137,'LED #1'!$A$15:$I$114,C$39,0) ->  | D137: =VLOOKUP($B137,'LED #1'!$A$15:$I$114,D$39,0) ->  | E137: =VLOOKUP($B137,'LED #2'!$A$15:$I$114,E$39,0) ->  | F137: =VLOOKUP($B137,'LED #2'!$A$15:$I$114,F$39,0) ->  | G137: =VLOOKUP($B137,'LED #3'!$A$15:$I$114,G$39,0) -> 0.99 | H137: =VLOOKUP($B137,'LED #3'!$A$15:$I$114,H$39,0) -> 470.5985464 | I137: =VLOOKUP($B137,'LED #4'!$A$15:$I$114,I$39,0) ->  | J137: =VLOOKUP($B137,'LED #4'!$A$15:$I$114,J$39,0) -> 
B138: =Table!B151 -> 1.000 | C138: =VLOOKUP($B138,'LED #1'!$A$15:$I$114,C$39,0) ->  | D138: =VLOOKUP($B138,'LED #1'!$A$15:$I$114,D$39,0) ->  | E138: =VLOOKUP($B138,'LED #2'!$A$15:$I$114,E$39,0) ->  | F138: =VLOOKUP($B138,'LED #2'!$A$15:$I$114,F$39,0) ->  | G138: =VLOOKUP($B138,'LED #3'!$A$15:$I$114,G$39,0) -> 1 | H138: =VLOOKUP($B138,'LED #3'!$A$15:$I$114,H$39,0) -> 474.6356044 | I138: =VLOOKUP($B138,'LED #4'!$A$15:$I$114,I$39,0) ->  | J138: =VLOOKUP($B138,'LED #4'!$A$15:$I$114,J$39,0) -> 
B139: =Table!B152 -> 1.010 | C139: =VLOOKUP($B139,'LED #1'!$A$15:$I$114,C$39,0) ->  | D139: =VLOOKUP($B139,'LED #1'!$A$15:$I$114,D$39,0) ->  | E139: =VLOOKUP($B139,'LED #2'!$A$15:$I$114,E$39,0) ->  | F139: =VLOOKUP($B139,'LED #2'!$A$15:$I$114,F$39,0) ->  | G139: =VLOOKUP($B139,'LED #3'!$A$15:$I$114,G$39,0) -> 1.01 | H139: =VLOOKUP($B139,'LED #3'!$A$15:$I$114,H$39,0) -> 478.6592871 | I139: =VLOOKUP($B139,'LED #4'!$A$15:$I$114,I$39,0) ->  | J139: =VLOOKUP($B139,'LED #4'!$A$15:$I$114,J$39,0) -> 

Sheet List (hidden)
A1: Manufacturer | B1: POWER | C1: PKG | D1: CRI | E1: Part-name | F1: CCT | G1: Spec | H1: Rank | I1: Min | J1: Typ | K1: Max | L1: Application | M1: Match Value
A2: SSC | B2: Mid | C2: Y11-3V | D2: 70 | E2: SZ8-Y11-Wx-C7-A | F2: 6500 | G2: Flux | H2: W2 | I2: 68.0 | J2: =+(K2-I2)/2+I2 -> 70.5 | K2: =+I3 -> 73.0 | L2: Lighting | M2: =CONCATENATE(L2,A2,B2,C2,D2,E2,G2,H2) -> LightingSSCMidY11-3V70SZ8-Y11-Wx-C7-AFluxW2
A3: SSC | B3: Mid | C3: Y11-3V | D3: 70 | E3: SZ8-Y11-Wx-C7-A | F3: 6500 | G3: Flux | H3: W3 | I3: 73.0 | J3: 75.0 | K3: 77.0 | L3: Lighting | M3: =CONCATENATE(L3,A3,B3,C3,D3,E3,G3,H3) -> LightingSSCMidY11-3V70SZ8-Y11-Wx-C7-AFluxW3
A4: SSC | B4: Mid | C4: Y11-3V | D4: 70 | E4: SZ8-Y11-Wx-C7-A | F4: 5600 | G4: Flux | H4: W2 | I4: 68.0 | J4: 70.5 | K4: =+I5 -> 73.0 | L4: Lighting | M4: LightingSSCMidY11-3V70SZ8-Y11-Wx-C7-AFluxW2
A5: SSC | B5: Mid | C5: Y11-3V | D5: 70 | E5: SZ8-Y11-Wx-C7-A | F5: 5600 | G5: Flux | H5: W3 | I5: 73.0 | J5: 75.0 | K5: 77.0 | L5: Lighting | M5: LightingSSCMidY11-3V70SZ8-Y11-Wx-C7-AFluxW3
A6: SSC | B6: Mid | C6: Y11-3V | D6: 70 | E6: SZ8-Y11-Wx-C7-A | F6: 5000 | G6: Flux | H6: W2 | I6: 68.0 | J6: 70.5 | K6: =+I7 -> 73.0 | L6: Lighting | M6: LightingSSCMidY11-3V70SZ8-Y11-Wx-C7-AFluxW2
A7: SSC | B7: Mid | C7: Y11-3V | D7: 70 | E7: SZ8-Y11-Wx-C7-A | F7: 5000 | G7: Flux | H7: W3 | I7: 73.0 | J7: 75.0 | K7: 77.0 | L7: Lighting | M7: LightingSSCMidY11-3V70SZ8-Y11-Wx-C7-AFluxW3
A8: SSC | B8: Mid | C8: Y11-3V | D8: 70 | E8: SZ8-Y11-Wx-C7-A | F8: 4500 | G8: Flux | H8: W2 | I8: 68.0 | J8: 70.5 | K8: =+I9 -> 73.0 | L8: Lighting | M8: LightingSSCMidY11-3V70SZ8-Y11-Wx-C7-AFluxW2
A9: SSC | B9: Mid | C9: Y11-3V | D9: 70 | E9: SZ8-Y11-Wx-C7-A | F9: 4500 | G9: Flux | H9: W3 | I9: 73.0 | J9: 75.0 | K9: 77.0 | L9: Lighting | M9: LightingSSCMidY11-3V70SZ8-Y11-Wx-C7-AFluxW3
A10: SSC | B10: Mid | C10: Y11-3V | D10: 70 | E10: SZ8-Y11-Wx-C7-A | F10: 4000 | G10: Flux | H10: W2 | I10: 68.0 | J10: 70.5 | K10: =+I11 -> 73.0 | L10: Lighting | M10: LightingSSCMidY11-3V70SZ8-Y11-Wx-C7-AFluxW2
A11: SSC | B11: Mid | C11: Y11-3V | D11: 70 | E11: SZ8-Y11-Wx-C7-A | F11: 4000 | G11: Flux | H11: W3 | I11: 73.0 | J11: 75.0 | K11: 77.0 | L11: Lighting | M11: LightingSSCMidY11-3V70SZ8-Y11-Wx-C7-AFluxW3
A12: SSC | B12: Mid | C12: Y11-3V | D12: 70 | E12: SZ8-Y11-Wx-C7-A | G12: VF | H12: G | I12: 2.6 | J12: 2.7 | K12: 2.8 | L12: Lighting | M12: LightingSSCMidY11-3V70SZ8-Y11-Wx-C7-AVFG
A13: SSC | B13: Mid | C13: Y11-3V | D13: 70 | E13: SZ8-Y11-Wx-C7-A | G13: VF | H13: H | I13: 2.8 | J13: 2.9 | K13: 3.1 | L13: Lighting | M13: LightingSSCMidY11-3V70SZ8-Y11-Wx-C7-AVFH
A14: SSC | B14: Mid | C14: Y11-3V | D14: 80 | E14: SZ8-Y11-Wx-C8-A | F14: 6500 | G14: Flux | H14: V3 | I14: 60.0 | J14: 62.0 | K14: 64.0 | L14: Lighting | M14: LightingSSCMidY11-3V80SZ8-Y11-Wx-C8-AFluxV3
A15: SSC | B15: Mid | C15: Y11-3V | D15: 80 | E15: SZ8-Y11-Wx-C8-A | F15: 6500 | G15: Flux | H15: W1 | I15: 64.0 | J15: 66.0 | K15: 68.0 | L15: Lighting | M15: LightingSSCMidY11-3V80SZ8-Y11-Wx-C8-AFluxW1
A16: SSC | B16: Mid | C16: Y11-3V | D16: 80 | E16: SZ8-Y11-Wx-C8-A | F16: 5600 | G16: Flux | H16: V3 | I16: 60.0 | J16: 62.0 | K16: 64.0 | L16: Lighting | M16: LightingSSCMidY11-3V80SZ8-Y11-Wx-C8-AFluxV3
A17: SSC | B17: Mid | C17: Y11-3V | D17: 80 | E17: SZ8-Y11-Wx-C8-A | F17: 5600 | G17: Flux | H17: W1 | I17: 64.0 | J17: 66.0 | K17: 68.0 | L17: Lighting | M17: LightingSSCMidY11-3V80SZ8-Y11-Wx-C8-AFluxW1
A18: SSC | B18: Mid | C18: Y11-3V | D18: 80 | E18: SZ8-Y11-Wx-C8-A | F18: 5000 | G18: Flux | H18: V3 | I18: 60.0 | J18: 62.0 | K18: 64.0 | L18: Lighting | M18: LightingSSCMidY11-3V80SZ8-Y11-Wx-C8-AFluxV3
A19: SSC | B19: Mid | C19: Y11-3V | D19: 80 | E19: SZ8-Y11-Wx-C8-A | F19: 5000 | G19: Flux | H19: W1 | I19: 64.0 | J19: 66.0 | K19: 68.0 | L19: Lighting | M19: LightingSSCMidY11-3V80SZ8-Y11-Wx-C8-AFluxW1
A20: SSC | B20: Mid | C20: Y11-3V | D20: 80 | E20: SZ8-Y11-Wx-C8-A | F20: 4500 | G20: Flux | H20: V3 | I20: 60.0 | J20: 62.0 | K20: 64.0 | L20: Lighting | M20: LightingSSCMidY11-3V80SZ8-Y11-Wx-C8-AFluxV3
A21: SSC | B21: Mid | C21: Y11-3V | D21: 80 | E21: SZ8-Y11-Wx-C8-A | F21: 4500 | G21: Flux | H21: W1 | I21: 64.0 | J21: 66.0 | K21: 68.0 | L21: Lighting | M21: LightingSSCMidY11-3V80SZ8-Y11-Wx-C8-AFluxW1
A22: SSC | B22: Mid | C22: Y11-3V | D22: 80 | E22: SZ8-Y11-Wx-C8-A | F22: 4000 | G22: Flux | H22: V3 | I22: 60.0 | J22: 62.0 | K22: 64.0 | L22: Lighting | M22: LightingSSCMidY11-3V80SZ8-Y11-Wx-C8-AFluxV3
A23: SSC | B23: Mid | C23: Y11-3V | D23: 80 | E23: SZ8-Y11-Wx-C8-A | F23: 4000 | G23: Flux | H23: W1 | I23: 64.0 | J23: 66.0 | K23: 68.0 | L23: Lighting | M23: LightingSSCMidY11-3V80SZ8-Y11-Wx-C8-AFluxW1
A24: SSC | B24: Mid | C24: Y11-3V | D24: 80 | E24: SZ8-Y11-Wx-C8-A | F24: 3500 | G24: Flux | H24: V2 | I24: 56.0 | J24: 58.0 | K24: 60.0 | L24: Lighting | M24: LightingSSCMidY11-3V80SZ8-Y11-Wx-C8-AFluxV2
A25: SSC | B25: Mid | C25: Y11-3V | D25: 80 | E25: SZ8-Y11-Wx-C8-A | F25: 3500 | G25: Flux | H25: V3 | I25: 60.0 | J25: 62.0 | K25: 64.0 | L25: Lighting | M25: LightingSSCMidY11-3V80SZ8-Y11-Wx-C8-AFluxV3
A26: SSC | B26: Mid | C26: Y11-3V | D26: 80 | E26: SZ8-Y11-Wx-C8-A | F26: 3000 | G26: Flux | H26: V2 | I26: 56.0 | J26: 58.0 | K26: 60.0 | L26: Lighting | M26: LightingSSCMidY11-3V80SZ8-Y11-Wx-C8-AFluxV2
A27: SSC | B27: Mid | C27: Y11-3V | D27: 80 | E27: SZ8-Y11-Wx-C8-A | F27: 3000 | G27: Flux | H27: V3 | I27: 60.0 | J27: 62.0 | K27: 64.0 | L27: Lighting | M27: LightingSSCMidY11-3V80SZ8-Y11-Wx-C8-AFluxV3
A28: SSC | B28: Mid | C28: Y11-3V | D28: 80 | E28: SZ8-Y11-Wx-C8-A | F28: 2700 | G28: Flux | H28: V2 | I28: 56.0 | J28: 58.0 | K28: 60.0 | L28: Lighting | M28: LightingSSCMidY11-3V80SZ8-Y11-Wx-C8-AFluxV2
A29: SSC | B29: Mid | C29: Y11-3V | D29: 80 | E29: SZ8-Y11-Wx-C8-A | F29: 2700 | G29: Flux | H29: V3 | I29: 60.0 | J29: 62.0 | K29: 64.0 | L29: Lighting | M29: LightingSSCMidY11-3V80SZ8-Y11-Wx-C8-AFluxV3
A30: SSC | B30: Mid | C30: Y11-3V | D30: 80 | E30: SZ8-Y11-Wx-C8-A | G30: VF | H30: G | I30: 2.6 | J30: 2.7 | K30: 2.8 | L30: Lighting | M30: LightingSSCMidY11-3V80SZ8-Y11-Wx-C8-AVFG
A31: SSC | B31: Mid | C31: Y11-3V | D31: 80 | E31: SZ8-Y11-Wx-C8-A | G31: VF | H31: H | I31: 2.8 | J31: 2.9 | K31: 3.1 | L31: Lighting | M31: LightingSSCMidY11-3V80SZ8-Y11-Wx-C8-AVFH
A32: SSC | B32: Mid | C32: Y11-3V | D32: 90 | E32: SZ8-Y11-Wx-C9-A | F32: 6500 | G32: Flux | H32: V2 | I32: 56.0 | J32: 58.0 | K32: 60.0 | L32: Lighting | M32: LightingSSCMidY11-3V90SZ8-Y11-Wx-C9-AFluxV2
A33: SSC | B33: Mid | C33: Y11-3V | D33: 90 | E33: SZ8-Y11-Wx-C9-A | F33: 6500 | G33: Flux | H33: V3 | I33: 60.0 | J33: 62.0 | K33: 64.0 | L33: Lighting | M33: LightingSSCMidY11-3V90SZ8-Y11-Wx-C9-AFluxV3
A34: SSC | B34: Mid | C34: Y11-3V | D34: 90 | E34: SZ8-Y11-Wx-C9-A | F34: 5600 | G34: Flux | H34: V2 | I34: 56.0 | J34: 58.0 | K34: 60.0 | L34: Lighting | M34: LightingSSCMidY11-3V90SZ8-Y11-Wx-C9-AFluxV2
A35: SSC | B35: Mid | C35: Y11-3V | D35: 90 | E35: SZ8-Y11-Wx-C9-A | F35: 5600 | G35: Flux | H35: V3 | I35: 60.0 | J35: 62.0 | K35: 64.0 | L35: Lighting | M35: LightingSSCMidY11-3V90SZ8-Y11-Wx-C9-AFluxV3
A36: SSC | B36: Mid | C36: Y11-3V | D36: 90 | E36: SZ8-Y11-Wx-C9-A | F36: 5000 | G36: Flux | H36: V1 | I36: 52.0 | J36: 54.0 | K36: 56.0 | L36: Lighting | M36: LightingSSCMidY11-3V90SZ8-Y11-Wx-C9-AFluxV1
A37: SSC | B37: Mid | C37: Y11-3V | D37: 90 | E37: SZ8-Y11-Wx-C9-A | F37: 5000 | G37: Flux | H37: V2 | I37: 56.0 | J37: 58.0 | K37: 60.0 | L37: Lighting | M37: LightingSSCMidY11-3V90SZ8-Y11-Wx-C9-AFluxV2
A38: SSC | B38: Mid | C38: Y11-3V | D38: 90 | E38: SZ8-Y11-Wx-C9-A | F38: 4500 | G38: Flux | H38: V1 | I38: 52.0 | J38: 54.0 | K38: 56.0 | L38: Lighting | M38: LightingSSCMidY11-3V90SZ8-Y11-Wx-C9-AFluxV1
A39: SSC | B39: Mid | C39: Y11-3V | D39: 90 | E39: SZ8-Y11-Wx-C9-A | F39: 4500 | G39: Flux | H39: V2 | I39: 56.0 | J39: 58.0 | K39: 60.0 | L39: Lighting | M39: LightingSSCMidY11-3V90SZ8-Y11-Wx-C9-AFluxV2
A40: SSC | B40: Mid | C40: Y11-3V | D40: 90 | E40: SZ8-Y11-Wx-C9-A | F40: 4000 | G40: Flux | H40: V1 | I40: 52.0 | J40: 54.0 | K40: 56.0 | L40: Lighting | M40: LightingSSCMidY11-3V90SZ8-Y11-Wx-C9-AFluxV1
A41: SSC | B41: Mid | C41: Y11-3V | D41: 90 | E41: SZ8-Y11-Wx-C9-A | F41: 4000 | G41: Flux | H41: V2 | I41: 56.0 | J41: 58.0 | K41: 60.0 | L41: Lighting | M41: LightingSSCMidY11-3V90SZ8-Y11-Wx-C9-AFluxV2
A42: SSC | B42: Mid | C42: Y11-3V | D42: 90 | E42: SZ8-Y11-Wx-C9-A | F42: 3500 | G42: Flux | H42: U3 | I42: 49.0 | J42: 50.5 | K42: 52.0 | L42: Lighting | M42: LightingSSCMidY11-3V90SZ8-Y11-Wx-C9-AFluxU3
A43: SSC | B43: Mid | C43: Y11-3V | D43: 90 | E43: SZ8-Y11-Wx-C9-A | F43: 3500 | G43: Flux | H43: V1 | I43: 52.0 | J43: 54.0 | K43: 56.0 | L43: Lighting | M43: LightingSSCMidY11-3V90SZ8-Y11-Wx-C9-AFluxV1
A44: SSC | B44: Mid | C44: Y11-3V | D44: 90 | E44: SZ8-Y11-Wx-C9-A | F44: 3000 | G44: Flux | H44: U3 | I44: 49.0 | J44: 50.5 | K44: 52.0 | L44: Lighting | M44: LightingSSCMidY11-3V90SZ8-Y11-Wx-C9-AFluxU3
A45: SSC | B45: Mid | C45: Y11-3V | D45: 90 | E45: SZ8-Y11-Wx-C9-A | F45: 3000 | G45: Flux | H45: V1 | I45: 52.0 | J45: 54.0 | K45: 56.0 | L45: Lighting | M45: LightingSSCMidY11-3V90SZ8-Y11-Wx-C9-AFluxV1
A46: SSC | B46: Mid | C46: Y11-3V | D46: 90 | E46: SZ8-Y11-Wx-C9-A | F46: 2700 | G46: Flux | H46: U2 | I46: 46.0 | J46: 47.5 | K46: 49.0 | L46: Lighting | M46: LightingSSCMidY11-3V90SZ8-Y11-Wx-C9-AFluxU2
A47: SSC | B47: Mid | C47: Y11-3V | D47: 90 | E47: SZ8-Y11-Wx-C9-A | F47: 2700 | G47: Flux | H47: U3 | I47: 49.0 | J47: 50.5 | K47: 52.0 | L47: Lighting | M47: LightingSSCMidY11-3V90SZ8-Y11-Wx-C9-AFluxU3
A48: SSC | B48: Mid | C48: Y11-3V | D48: 90 | E48: SZ8-Y11-Wx-C9-A | G48: VF | H48: G | I48: 2.6 | J48: 2.7 | K48: 2.8 | L48: Lighting | M48: LightingSSCMidY11-3V90SZ8-Y11-Wx-C9-AVFG
A49: SSC | B49: Mid | C49: Y11-3V | D49: 90 | E49: SZ8-Y11-Wx-C9-A | G49: VF | H49: H | I49: 2.8 | J49: 2.9 | K49: 3.1 | L49: Lighting | M49: LightingSSCMidY11-3V90SZ8-Y11-Wx-C9-AVFH
A50: SSC | B50: Mid | C50: Y11-6V | D50: 80 | E50: SZ8-Y11-Wx-C8-B | F50: 6500 | G50: Flux | H50: V2 | I50: 116.0 | J50: 120.5 | K50: =+I51 -> 125.0 | L50: Lighting | M50: LightingSSCMidY11-6V80SZ8-Y11-Wx-C8-BFluxV2
A51: SSC | B51: Mid | C51: Y11-6V | D51: 80 | E51: SZ8-Y11-Wx-C8-B | F51: 6500 | G51: Flux | H51: V3 | I51: 125.0 | J51: 120.5 | K51: =+I52 -> 116.0 | L51: Lighting | M51: LightingSSCMidY11-6V80SZ8-Y11-Wx-C8-BFluxV3
A52: SSC | B52: Mid | C52: Y11-6V | D52: 80 | E52: SZ8-Y11-Wx-C8-B | F52: 5600 | G52: Flux | H52: V2 | I52: 116.0 | J52: 120.5 | K52: =+I53 -> 125.0 | L52: Lighting | M52: LightingSSCMidY11-6V80SZ8-Y11-Wx-C8-BFluxV2
A53: SSC | B53: Mid | C53: Y11-6V | D53: 80 | E53: SZ8-Y11-Wx-C8-B | F53: 5600 | G53: Flux | H53: V3 | I53: 125.0 | J53: 129.0 | K53: =+I54 -> 133.0 | L53: Lighting | M53: LightingSSCMidY11-6V80SZ8-Y11-Wx-C8-BFluxV3
A54: SSC | B54: Mid | C54: Y11-6V | D54: 80 | E54: SZ8-Y11-Wx-C8-B | F54: 5600 | G54: Flux | H54: W1 | I54: 133.0 | J54: 137.5 | K54: 142.0 | L54: Lighting | M54: LightingSSCMidY11-6V80SZ8-Y11-Wx-C8-BFluxW1
A55: SSC | B55: Mid | C55: Y11-6V | D55: 80 | E55: SZ8-Y11-Wx-C8-B | F55: 5000 | G55: Flux | H55: V2 | I55: 116.0 | J55: 120.5 | K55: =+I56 -> 125.0 | L55: Lighting | M55: LightingSSCMidY11-6V80SZ8-Y11-Wx-C8-BFluxV2
A56: SSC | B56: Mid | C56: Y11-6V | D56: 80 | E56: SZ8-Y11-Wx-C8-B | F56: 5000 | G56: Flux | H56: V3 | I56: 125.0 | J56: 129.0 | K56: =+I57 -> 133.0 | L56: Lighting | M56: LightingSSCMidY11-6V80SZ8-Y11-Wx-C8-BFluxV3
A57: SSC | B57: Mid | C57: Y11-6V | D57: 80 | E57: SZ8-Y11-Wx-C8-B | F57: 5000 | G57: Flux | H57: W1 | I57: 133.0 | J57: 137.5 | K57: 142.0 | L57: Lighting | M57: LightingSSCMidY11-6V80SZ8-Y11-Wx-C8-BFluxW1
A58: SSC | B58: Mid | C58: Y11-6V | D58: 80 | E58: SZ8-Y11-Wx-C8-B | F58: 4500 | G58: Flux | H58: V3 | I58: 125.0 | J58: 129.0 | K58: =+I59 -> 133.0 | L58: Lighting | M58: LightingSSCMidY11-6V80SZ8-Y11-Wx-C8-BFluxV3
A59: SSC | B59: Mid | C59: Y11-6V | D59: 80 | E59: SZ8-Y11-Wx-C8-B | F59: 4500 | G59: Flux | H59: W1 | I59: 133.0 | J59: 137.5 | K59: 142.0 | L59: Lighting | M59: LightingSSCMidY11-6V80SZ8-Y11-Wx-C8-BFluxW1
A60: SSC | B60: Mid | C60: Y11-6V | D60: 80 | E60: SZ8-Y11-Wx-C8-B | F60: 4000 | G60: Flux | H60: V3 | I60: 125.0 | J60: 129.0 | K60: =+I61 -> 133.0 | L60: Lighting | M60: LightingSSCMidY11-6V80SZ8-Y11-Wx-C8-BFluxV3
A61: SSC | B61: Mid | C61: Y11-6V | D61: 80 | E61: SZ8-Y11-Wx-C8-B | F61: 4000 | G61: Flux | H61: W1 | I61: 133.0 | J61: 137.5 | K61: 142.0 | L61: Lighting | M61: LightingSSCMidY11-6V80SZ8-Y11-Wx-C8-BFluxW1
A62: SSC | B62: Mid | C62: Y11-6V | D62: 80 | E62: SZ8-Y11-Wx-C8-B | F62: 3500 | G62: Flux | H62: V3 | I62: 125.0 | J62: 129.0 | K62: =+I63 -> 133.0 | L62: Lighting | M62: LightingSSCMidY11-6V80SZ8-Y11-Wx-C8-BFluxV3
A63: SSC | B63: Mid | C63: Y11-6V | D63: 80 | E63: SZ8-Y11-Wx-C8-B | F63: 3500 | G63: Flux | H63: W1 | I63: 133.0 | J63: 137.5 | K63: 142.0 | L63: Lighting | M63: LightingSSCMidY11-6V80SZ8-Y11-Wx-C8-BFluxW1
A64: SSC | B64: Mid | C64: Y11-6V | D64: 80 | E64: SZ8-Y11-Wx-C8-B | F64: 3000 | G64: Flux | H64: V2 | I64: 116.0 | J64: 120.5 | K64: =+I65 -> 125.0 | L64: Lighting | M64: LightingSSCMidY11-6V80SZ8-Y11-Wx-C8-BFluxV2
A65: SSC | B65: Mid | C65: Y11-6V | D65: 80 | E65: SZ8-Y11-Wx-C8-B | F65: 3000 | G65: Flux | H65: V3 | I65: 125.0 | J65: 120.5 | K65: =+I66 -> 116.0 | L65: Lighting | M65: LightingSSCMidY11-6V80SZ8-Y11-Wx-C8-BFluxV3
A66: SSC | B66: Mid | C66: Y11-6V | D66: 80 | E66: SZ8-Y11-Wx-C8-B | F66: 2700 | G66: Flux | H66: V2 | I66: 116.0 | J66: =+(K66-I66)/2+I66 -> 120.5 | K66: =+I67 -> 125.0 | L66: Lighting | M66: LightingSSCMidY11-6V80SZ8-Y11-Wx-C8-BFluxV2
A67: SSC | B67: Mid | C67: Y11-6V | D67: 80 | E67: SZ8-Y11-Wx-C8-B | F67: 2700 | G67: Flux | H67: V3 | I67: 125.0 | J67: =+(K67-I67)/2+I67 -> 65.3 | K67: =+I68 -> 5.6 | L67: Lighting | M67: =CONCATENATE(L67,A67,B67,C67,D67,E67,G67,H67) -> LightingSSCMidY11-6V80SZ8-Y11-Wx-C8-BFluxV3
A68: SSC | B68: Mid | C68: Y11-6V | D68: 80 | E68: SZ8-Y11-Wx-C8-B | G68: VF | H68: H | I68: 5.6 | J68: =+(K68-I68)/2+I68 -> 5.8 | K68: 5.9 | L68: Lighting | M68: LightingSSCMidY11-6V80SZ8-Y11-Wx-C8-BVFH
A69: SSC | B69: Mid | C69: Y11-6V | D69: 80 | E69: SZ8-Y11-Wx-C8-B | G69: VF | H69: I | I69: 5.9 | J69: =+(K69-I69)/2+I69 -> 6.1 | K69: 6.2 | L69: Lighting | M69: LightingSSCMidY11-6V80SZ8-Y11-Wx-C8-BVFI
A70: SSC | B70: Mid | C70: Y11-6V | D70: 90 | E70: SZ8-Y11-Wx-C9-B | F70: 6500 | G70: Flux | H70: V1 | I70: 109.0 | J70: =+(K70-I70)/2+I70 -> 112.5 | K70: 116.0 | L70: Lighting | M70: LightingSSCMidY11-6V90SZ8-Y11-Wx-C9-BFluxV1
A71: SSC | B71: Mid | C71: Y11-6V | D71: 90 | E71: SZ8-Y11-Wx-C9-B | F71: 6500 | G71: Flux | H71: V2 | I71: 116.0 | J71: 120.5 | K71: 125.0 | L71: Lighting | M71: LightingSSCMidY11-6V90SZ8-Y11-Wx-C9-BFluxV2
A72: SSC | B72: Mid | C72: Y11-6V | D72: 90 | E72: SZ8-Y11-Wx-C9-B | F72: 5600 | G72: Flux | H72: V1 | I72: 109.0 | J72: =+(K72-I72)/2+I72 -> 112.5 | K72: 116.0 | L72: Lighting | M72: LightingSSCMidY11-6V90SZ8-Y11-Wx-C9-BFluxV1
A73: SSC | B73: Mid | C73: Y11-6V | D73: 90 | E73: SZ8-Y11-Wx-C9-B | F73: 5600 | G73: Flux | H73: V2 | I73: 116.0 | J73: 120.5 | K73: 125.0 | L73: Lighting | M73: LightingSSCMidY11-6V90SZ8-Y11-Wx-C9-BFluxV2
A74: SSC | B74: Mid | C74: Y11-6V | D74: 90 | E74: SZ8-Y11-Wx-C9-B | F74: 5000 | G74: Flux | H74: V1 | I74: 109.0 | J74: =+(K74-I74)/2+I74 -> 112.5 | K74: 116.0 | L74: Lighting | M74: LightingSSCMidY11-6V90SZ8-Y11-Wx-C9-BFluxV1
A75: SSC | B75: Mid | C75: Y11-6V | D75: 90 | E75: SZ8-Y11-Wx-C9-B | F75: 5000 | G75: Flux | H75: V2 | I75: 116.0 | J75: 120.5 | K75: 125.0 | L75: Lighting | M75: LightingSSCMidY11-6V90SZ8-Y11-Wx-C9-BFluxV2
A76: SSC | B76: Mid | C76: Y11-6V | D76: 90 | E76: SZ8-Y11-Wx-C9-B | F76: 4500 | G76: Flux | H76: V1 | I76: 109.0 | J76: =+(K76-I76)/2+I76 -> 112.5 | K76: 116.0 | L76: Lighting | M76: LightingSSCMidY11-6V90SZ8-Y11-Wx-C9-BFluxV1
A77: SSC | B77: Mid | C77: Y11-6V | D77: 90 | E77: SZ8-Y11-Wx-C9-B | F77: 4500 | G77: Flux | H77: V2 | I77: 116.0 | J77: 120.5 | K77: 125.0 | L77: Lighting | M77: LightingSSCMidY11-6V90SZ8-Y11-Wx-C9-BFluxV2
A78: SSC | B78: Mid | C78: Y11-6V | D78: 90 | E78: SZ8-Y11-Wx-C9-B | F78: 4000 | G78: Flux | H78: V1 | I78: 109.0 | J78: =+(K78-I78)/2+I78 -> 112.5 | K78: 116.0 | L78: Lighting | M78: LightingSSCMidY11-6V90SZ8-Y11-Wx-C9-BFluxV1
A79: SSC | B79: Mid | C79: Y11-6V | D79: 90 | E79: SZ8-Y11-Wx-C9-B | F79: 4000 | G79: Flux | H79: V2 | I79: 116.0 | J79: 120.5 | K79: 125.0 | L79: Lighting | M79: LightingSSCMidY11-6V90SZ8-Y11-Wx-C9-BFluxV2
A80: SSC | B80: Mid | C80: Y11-6V | D80: 90 | E80: SZ8-Y11-Wx-C9-B | F80: 3500 | G80: Flux | H80: U3 | I80: 102.0 | J80: =+(K80-I80)/2+I80 -> 105.5 | K80: 109.0 | L80: Lighting | M80: LightingSSCMidY11-6V90SZ8-Y11-Wx-C9-BFluxU3
A81: SSC | B81: Mid | C81: Y11-6V | D81: 90 | E81: SZ8-Y11-Wx-C9-B | F81: 3500 | G81: Flux | H81: V1 | I81: 109.0 | J81: =+(K81-I81)/2+I81 -> 112.5 | K81: 116.0 | L81: Lighting | M81: LightingSSCMidY11-6V90SZ8-Y11-Wx-C9-BFluxV1
A82: SSC | B82: Mid | C82: Y11-6V | D82: 90 | E82: SZ8-Y11-Wx-C9-B | F82: 3000 | G82: Flux | H82: U2 | I82: 96.0 | J82: 99.0 | K82: 102.0 | L82: Lighting | M82: LightingSSCMidY11-6V90SZ8-Y11-Wx-C9-BFluxU2
A83: SSC | B83: Mid | C83: Y11-6V | D83: 90 | E83: SZ8-Y11-Wx-C9-B | F83: 3000 | G83: Flux | H83: U3 | I83: 102.0 | J83: 105.5 | K83: 109.0 | L83: Lighting | M83: LightingSSCMidY11-6V90SZ8-Y11-Wx-C9-BFluxU3
A84: SSC | B84: Mid | C84: Y11-6V | D84: 90 | E84: SZ8-Y11-Wx-C9-B | F84: 2700 | G84: Flux | H84: U2 | I84: 96.0 | J84: 99.0 | K84: 102.0 | L84: Lighting | M84: LightingSSCMidY11-6V90SZ8-Y11-Wx-C9-BFluxU2
A85: SSC | B85: Mid | C85: Y11-6V | D85: 90 | E85: SZ8-Y11-Wx-C9-B | F85: 2700 | G85: Flux | H85: U3 | I85: 102.0 | J85: 105.5 | K85: 109.0 | L85: Lighting | M85: LightingSSCMidY11-6V90SZ8-Y11-Wx-C9-BFluxU3
A86: SSC | B86: Mid | C86: Y11-6V | D86: 90 | E86: SZ8-Y11-Wx-C9-B | G86: VF | H86: H | I86: 5.6 | J86: =+(K86-I86)/2+I86 -> 5.8 | K86: 5.9 | L86: Lighting | M86: LightingSSCMidY11-6V90SZ8-Y11-Wx-C9-BVFH
A87: SSC | B87: Mid | C87: Y11-6V | D87: 90 | E87: SZ8-Y11-Wx-C9-B | G87: VF | H87: I | I87: 5.9 | J87: 6.1 | K87: 6.2 | L87: Lighting | M87: LightingSSCMidY11-6V90SZ8-Y11-Wx-C9-BVFI
A88: SSC | B88: Mid | C88: Y11-9V | D88: 70 | E88: SZ8-Y11-Wx-C7-C | F88: 6500 | G88: Flux | H88: W1 | I88: 133.0 | J88: 137.5 | K88: 142.0 | L88: Lighting | M88: LightingSSCMidY11-9V70SZ8-Y11-Wx-C7-CFluxW1
A89: SSC | B89: Mid | C89: Y11-9V | D89: 70 | E89: SZ8-Y11-Wx-C7-C | F89: 6500 | G89: Flux | H89: W2 | I89: 142.0 | J89: 147.0 | K89: 152.0 | L89: Lighting | M89: LightingSSCMidY11-9V70SZ8-Y11-Wx-C7-CFluxW2
A90: SSC | B90: Mid | C90: Y11-9V | D90: 70 | E90: SZ8-Y11-Wx-C7-C | F90: 5600 | G90: Flux | H90: W2 | I90: 142.0 | J90: 147.0 | K90: 152.0 | L90: Lighting | M90: LightingSSCMidY11-9V70SZ8-Y11-Wx-C7-CFluxW2
A91: SSC | B91: Mid | C91: Y11-9V | D91: 70 | E91: SZ8-Y11-Wx-C7-C | F91: 5600 | G91: Flux | H91: W3 | I91: 152.0 | J91: 156.0 | K91: 160.0 | L91: Lighting | M91: LightingSSCMidY11-9V70SZ8-Y11-Wx-C7-CFluxW3
A92: SSC | B92: Mid | C92: Y11-9V | D92: 70 | E92: SZ8-Y11-Wx-C7-C | F92: 5000 | G92: Flux | H92: W2 | I92: 142.0 | J92: 147.0 | K92: 152.0 | L92: Lighting | M92: LightingSSCMidY11-9V70SZ8-Y11-Wx-C7-CFluxW2
A93: SSC | B93: Mid | C93: Y11-9V | D93: 70 | E93: SZ8-Y11-Wx-C7-C | F93: 5000 | G93: Flux | H93: W3 | I93: 152.0 | J93: 156.0 | K93: 160.0 | L93: Lighting | M93: LightingSSCMidY11-9V70SZ8-Y11-Wx-C7-CFluxW3
A94: SSC | B94: Mid | C94: Y11-9V | D94: 70 | E94: SZ8-Y11-Wx-C7-C | G94: VF | H94: H | I94: 8.5 | J94: =+(K94-I94)/2+I94 -> 8.7 | K94: 8.8 | L94: Lighting | M94: LightingSSCMidY11-9V70SZ8-Y11-Wx-C7-CVFH
A95: SSC | B95: Mid | C95: Y11-9V | D95: 70 | E95: SZ8-Y11-Wx-C7-C | G95: VF | H95: I | I95: 8.8 | J95: 9.0 | K95: 9.2 | L95: Lighting | M95: LightingSSCMidY11-9V70SZ8-Y11-Wx-C7-CVFI
A96: SSC | B96: Mid | C96: Y11-9V | D96: 80 | E96: SZ8-Y11-Wx-C8-C | F96: 6500 | G96: Flux | H96: V3 | I96: 125.0 | J96: 129.0 | K96: 133.0 | L96: Lighting | M96: LightingSSCMidY11-9V80SZ8-Y11-Wx-C8-CFluxV3
A97: SSC | B97: Mid | C97: Y11-9V | D97: 80 | E97: SZ8-Y11-Wx-C8-C | F97: 6500 | G97: Flux | H97: W1 | I97: 133.0 | J97: 137.5 | K97: 142.0 | L97: Lighting | M97: LightingSSCMidY11-9V80SZ8-Y11-Wx-C8-CFluxW1
A98: SSC | B98: Mid | C98: Y11-9V | D98: 80 | E98: SZ8-Y11-Wx-C8-C | F98: 5600 | G98: Flux | H98: V3 | I98: 125.0 | J98: 129.0 | K98: 133.0 | L98: Lighting | M98: LightingSSCMidY11-9V80SZ8-Y11-Wx-C8-CFluxV3
A99: SSC | B99: Mid | C99: Y11-9V | D99: 80 | E99: SZ8-Y11-Wx-C8-C | F99: 5600 | G99: Flux | H99: W1 | I99: 133.0 | J99: 137.5 | K99: 142.0 | L99: Lighting | M99: LightingSSCMidY11-9V80SZ8-Y11-Wx-C8-CFluxW1
A100: SSC | B100: Mid | C100: Y11-9V | D100: 80 | E100: SZ8-Y11-Wx-C8-C | F100: 5000 | G100: Flux | H100: V3 | I100: 125.0 | J100: 129.0 | K100: 133.0 | L100: Lighting | M100: LightingSSCMidY11-9V80SZ8-Y11-Wx-C8-CFluxV3
A101: SSC | B101: Mid | C101: Y11-9V | D101: 80 | E101: SZ8-Y11-Wx-C8-C | F101: 5000 | G101: Flux | H101: W1 | I101: 133.0 | J101: 137.5 | K101: 142.0 | L101: Lighting | M101: LightingSSCMidY11-9V80SZ8-Y11-Wx-C8-CFluxW1
A102: SSC | B102: Mid | C102: Y11-9V | D102: 80 | E102: SZ8-Y11-Wx-C8-C | F102: 4500 | G102: Flux | H102: V2 | I102: 116.0 | J102: 120.5 | K102: 125.0 | L102: Lighting | M102: LightingSSCMidY11-9V80SZ8-Y11-Wx-C8-CFluxV2
A103: SSC | B103: Mid | C103: Y11-9V | D103: 80 | E103: SZ8-Y11-Wx-C8-C | F103: 4500 | G103: Flux | H103: V3 | I103: 125.0 | J103: 129.0 | K103: 133.0 | L103: Lighting | M103: LightingSSCMidY11-9V80SZ8-Y11-Wx-C8-CFluxV3
A104: SSC | B104: Mid | C104: Y11-9V | D104: 80 | E104: SZ8-Y11-Wx-C8-C | F104: 4000 | G104: Flux | H104: V2 | I104: 116.0 | J104: 120.5 | K104: 125.0 | L104: Lighting | M104: LightingSSCMidY11-9V80SZ8-Y11-Wx-C8-CFluxV2
A105: SSC | B105: Mid | C105: Y11-9V | D105: 80 | E105: SZ8-Y11-Wx-C8-C | F105: 4000 | G105: Flux | H105: V3 | I105: 125.0 | J105: 129.0 | K105: 133.0 | L105: Lighting | M105: LightingSSCMidY11-9V80SZ8-Y11-Wx-C8-CFluxV3
A106: SSC | B106: Mid | C106: Y11-9V | D106: 80 | E106: SZ8-Y11-Wx-C8-C | F106: 3500 | G106: Flux | H106: V2 | I106: 116.0 | J106: 120.5 | K106: 125.0 | L106: Lighting | M106: LightingSSCMidY11-9V80SZ8-Y11-Wx-C8-CFluxV2
A107: SSC | B107: Mid | C107: Y11-9V | D107: 80 | E107: SZ8-Y11-Wx-C8-C | F107: 3500 | G107: Flux | H107: V3 | I107: 125.0 | J107: 129.0 | K107: 133.0 | L107: Lighting | M107: LightingSSCMidY11-9V80SZ8-Y11-Wx-C8-CFluxV3
A108: SSC | B108: Mid | C108: Y11-9V | D108: 80 | E108: SZ8-Y11-Wx-C8-C | F108: 3000 | G108: Flux | H108: V1 | I108: 109.0 | J108: 112.5 | K108: 116.0 | L108: Lighting | M108: LightingSSCMidY11-9V80SZ8-Y11-Wx-C8-CFluxV1
A109: SSC | B109: Mid | C109: Y11-9V | D109: 80 | E109: SZ8-Y11-Wx-C8-C | F109: 3000 | G109: Flux | H109: V2 | I109: 116.0 | J109: 120.5 | K109: 125.0 | L109: Lighting | M109: LightingSSCMidY11-9V80SZ8-Y11-Wx-C8-CFluxV2
A110: SSC | B110: Mid | C110: Y11-9V | D110: 80 | E110: SZ8-Y11-Wx-C8-C | F110: 3000 | G110: Flux | H110: V3 | I110: 125.0 | J110: 129.0 | K110: 133.0 | L110: Lighting | M110: LightingSSCMidY11-9V80SZ8-Y11-Wx-C8-CFluxV3
A111: SSC | B111: Mid | C111: Y11-9V | D111: 80 | E111: SZ8-Y11-Wx-C8-C | F111: 2700 | G111: Flux | H111: V1 | I111: 109.0 | J111: 112.5 | K111: 116.0 | L111: Lighting | M111: LightingSSCMidY11-9V80SZ8-Y11-Wx-C8-CFluxV1
A112: SSC | B112: Mid | C112: Y11-9V | D112: 80 | E112: SZ8-Y11-Wx-C8-C | F112: 2700 | G112: Flux | H112: V2 | I112: 116.0 | J112: 120.5 | K112: 125.0 | L112: Lighting | M112: LightingSSCMidY11-9V80SZ8-Y11-Wx-C8-CFluxV2
A113: SSC | B113: Mid | C113: Y11-9V | D113: 80 | E113: SZ8-Y11-Wx-C8-C | G113: VF | H113: H | I113: 8.5 | J113: 8.7 | K113: 8.8 | L113: Lighting | M113: LightingSSCMidY11-9V80SZ8-Y11-Wx-C8-CVFH
A114: SSC | B114: Mid | C114: Y11-9V | D114: 80 | E114: SZ8-Y11-Wx-C8-C | G114: VF | H114: I | I114: 8.8 | J114: 9.0 | K114: 9.2 | L114: Lighting | M114: LightingSSCMidY11-9V80SZ8-Y11-Wx-C8-CVFI
A115: SSC | B115: Mid | C115: Y11-9V | D115: 90 | E115: SZ8-Y11-Wx-C9-C | F115: 4500 | G115: Flux | H115: U3 | I115: 102.0 | J115: 105.5 | K115: 109.0 | L115: Lighting | M115: LightingSSCMidY11-9V90SZ8-Y11-Wx-C9-CFluxU3
A116: SSC | B116: Mid | C116: Y11-9V | D116: 90 | E116: SZ8-Y11-Wx-C9-C | F116: 4500 | G116: Flux | H116: V1 | I116: 109.0 | J116: 112.5 | K116: 116.0 | L116: Lighting | M116: LightingSSCMidY11-9V90SZ8-Y11-Wx-C9-CFluxV1
A117: SSC | B117: Mid | C117: Y11-9V | D117: 90 | E117: SZ8-Y11-Wx-C9-C | F117: 4500 | G117: Flux | H117: V2 | I117: 116.0 | J117: 120.5 | K117: 125.0 | L117: Lighting | M117: LightingSSCMidY11-9V90SZ8-Y11-Wx-C9-CFluxV2
A118: SSC | B118: Mid | C118: Y11-9V | D118: 90 | E118: SZ8-Y11-Wx-C9-C | F118: 4000 | G118: Flux | H118: U3 | I118: 102.0 | J118: 105.5 | K118: 109.0 | L118: Lighting | M118: LightingSSCMidY11-9V90SZ8-Y11-Wx-C9-CFluxU3
A119: SSC | B119: Mid | C119: Y11-9V | D119: 90 | E119: SZ8-Y11-Wx-C9-C | F119: 4000 | G119: Flux | H119: V1 | I119: 109.0 | J119: 112.5 | K119: 116.0 | L119: Lighting | M119: LightingSSCMidY11-9V90SZ8-Y11-Wx-C9-CFluxV1
A120: SSC | B120: Mid | C120: Y11-9V | D120: 90 | E120: SZ8-Y11-Wx-C9-C | F120: 4000 | G120: Flux | H120: V2 | I120: 116.0 | J120: 120.5 | K120: 125.0 | L120: Lighting | M120: LightingSSCMidY11-9V90SZ8-Y11-Wx-C9-CFluxV2
A121: SSC | B121: Mid | C121: Y11-9V | D121: 90 | E121: SZ8-Y11-Wx-C9-C | F121: 3500 | G121: Flux | H121: U2 | I121: 96.0 | J121: 99.0 | K121: 102.0 | L121: Lighting | M121: LightingSSCMidY11-9V90SZ8-Y11-Wx-C9-CFluxU2
A122: SSC | B122: Mid | C122: Y11-9V | D122: 90 | E122: SZ8-Y11-Wx-C9-C | F122: 3500 | G122: Flux | H122: U3 | I122: 102.0 | J122: 105.5 | K122: 109.0 | L122: Lighting | M122: LightingSSCMidY11-9V90SZ8-Y11-Wx-C9-CFluxU3
A123: SSC | B123: Mid | C123: Y11-9V | D123: 90 | E123: SZ8-Y11-Wx-C9-C | F123: 3000 | G123: Flux | H123: U2 | I123: 96.0 | J123: 99.0 | K123: 102.0 | L123: Lighting | M123: LightingSSCMidY11-9V90SZ8-Y11-Wx-C9-CFluxU2
A124: SSC | B124: Mid | C124: Y11-9V | D124: 90 | E124: SZ8-Y11-Wx-C9-C | F124: 3000 | G124: Flux | H124: U3 | I124: 102.0 | J124: 105.5 | K124: 109.0 | L124: Lighting | M124: LightingSSCMidY11-9V90SZ8-Y11-Wx-C9-CFluxU3
A125: SSC | B125: Mid | C125: Y11-9V | D125: 90 | E125: SZ8-Y11-Wx-C9-C | F125: 2700 | G125: Flux | H125: U2 | I125: 96.0 | J125: 99.0 | K125: 102.0 | L125: Lighting | M125: LightingSSCMidY11-9V90SZ8-Y11-Wx-C9-CFluxU2
A126: SSC | B126: Mid | C126: Y11-9V | D126: 90 | E126: SZ8-Y11-Wx-C9-C | F126: 2700 | G126: Flux | H126: U3 | I126: 102.0 | J126: 105.5 | K126: 109.0 | L126: Lighting | M126: LightingSSCMidY11-9V90SZ8-Y11-Wx-C9-CFluxU3
A127: SSC | B127: Mid | C127: Y11-9V | D127: 90 | E127: SZ8-Y11-Wx-C9-C | G127: VF | H127: H | I127: 8.5 | J127: 8.7 | K127: 8.8 | L127: Lighting | M127: LightingSSCMidY11-9V90SZ8-Y11-Wx-C9-CVFH
A128: SSC | B128: Mid | C128: Y11-9V | D128: 90 | E128: SZ8-Y11-Wx-C9-C | G128: VF | H128: I | I128: 8.8 | J128: 9.0 | K128: 9.2 | L128: Lighting | M128: LightingSSCMidY11-9V90SZ8-Y11-Wx-C9-CVFI
A129: SSC | B129: High | C129: Y19 | D129: 70 | E129: SZ8-Y19-Wx-C7 | F129: 6500 | G129: Flux | H129: W3 | I129: 271.0 | J129: =+(K129-I129)/2+I129 -> 278.0 | K129: 285.0 | L129: Lighting | M129: =CONCATENATE(L129,A129,B129,C129,D129,E129,G129,H129) -> LightingSSCHighY1970SZ8-Y19-Wx-C7FluxW3
A130: SSC | B130: High | C130: Y19 | D130: 70 | E130: SZ8-Y19-Wx-C7 | F130: 6500 | G130: Flux | H130: W4 | I130: 285.0 | J130: 292.0 | K130: 299.0 | L130: Lighting | M130: LightingSSCHighY1970SZ8-Y19-Wx-C7FluxW4
A131: SSC | B131: High | C131: Y19 | D131: 70 | E131: SZ8-Y19-Wx-C7 | F131: 6500 | G131: Flux | H131: W5 | I131: 299.0 | J131: 306.0 | K131: 313.0 | L131: Lighting | M131: LightingSSCHighY1970SZ8-Y19-Wx-C7FluxW5
A132: SSC | B132: High | C132: Y19 | D132: 70 | E132: SZ8-Y19-Wx-C7 | F132: 5600 | G132: Flux | H132: W3 | I132: 271.0 | J132: 278.0 | K132: 285.0 | L132: Lighting | M132: LightingSSCHighY1970SZ8-Y19-Wx-C7FluxW3
A133: SSC | B133: High | C133: Y19 | D133: 70 | E133: SZ8-Y19-Wx-C7 | F133: 5600 | G133: Flux | H133: W4 | I133: 285.0 | J133: 292.0 | K133: 299.0 | L133: Lighting | M133: LightingSSCHighY1970SZ8-Y19-Wx-C7FluxW4
A134: SSC | B134: High | C134: Y19 | D134: 70 | E134: SZ8-Y19-Wx-C7 | F134: 5600 | G134: Flux | H134: W5 | I134: 299.0 | J134: 306.0 | K134: 313.0 | L134: Lighting | M134: LightingSSCHighY1970SZ8-Y19-Wx-C7FluxW5
A135: SSC | B135: High | C135: Y19 | D135: 70 | E135: SZ8-Y19-Wx-C7 | F135: 5000 | G135: Flux | H135: W3 | I135: 271.0 | J135: 278.0 | K135: 285.0 | L135: Lighting | M135: LightingSSCHighY1970SZ8-Y19-Wx-C7FluxW3
A136: SSC | B136: High | C136: Y19 | D136: 70 | E136: SZ8-Y19-Wx-C7 | F136: 5000 | G136: Flux | H136: W4 | I136: 285.0 | J136: 292.0 | K136: 299.0 | L136: Lighting | M136: LightingSSCHighY1970SZ8-Y19-Wx-C7FluxW4
A137: SSC | B137: High | C137: Y19 | D137: 70 | E137: SZ8-Y19-Wx-C7 | F137: 5000 | G137: Flux | H137: W5 | I137: 299.0 | J137: 306.0 | K137: 313.0 | L137: Lighting | M137: LightingSSCHighY1970SZ8-Y19-Wx-C7FluxW5
A138: SSC | B138: High | C138: Y19 | D138: 70 | E138: SZ8-Y19-Wx-C7 | F138: 4500 | G138: Flux | H138: W3 | I138: 271.0 | J138: 278.0 | K138: 285.0 | L138: Lighting | M138: LightingSSCHighY1970SZ8-Y19-Wx-C7FluxW3
A139: SSC | B139: High | C139: Y19 | D139: 70 | E139: SZ8-Y19-Wx-C7 | F139: 4500 | G139: Flux | H139: W4 | I139: 285.0 | J139: 292.0 | K139: 299.0 | L139: Lighting | M139: LightingSSCHighY1970SZ8-Y19-Wx-C7FluxW4
A140: SSC | B140: High | C140: Y19 | D140: 70 | E140: SZ8-Y19-Wx-C7 | F140: 4500 | G140: Flux | H140: W5 | I140: 299.0 | J140: 306.0 | K140: 313.0 | L140: Lighting | M140: LightingSSCHighY1970SZ8-Y19-Wx-C7FluxW5
A141: SSC | B141: High | C141: Y19 | D141: 70 | E141: SZ8-Y19-Wx-C7 | F141: 4000 | G141: Flux | H141: W3 | I141: 271.0 | J141: 278.0 | K141: 285.0 | L141: Lighting | M141: LightingSSCHighY1970SZ8-Y19-Wx-C7FluxW3
A142: SSC | B142: High | C142: Y19 | D142: 70 | E142: SZ8-Y19-Wx-C7 | F142: 4000 | G142: Flux | H142: W4 | I142: 285.0 | J142: 292.0 | K142: 299.0 | L142: Lighting | M142: LightingSSCHighY1970SZ8-Y19-Wx-C7FluxW4
A143: SSC | B143: High | C143: Y19 | D143: 70 | E143: SZ8-Y19-Wx-C7 | F143: 4000 | G143: Flux | H143: W5 | I143: 299.0 | J143: 306.0 | K143: 313.0 | L143: Lighting | M143: LightingSSCHighY1970SZ8-Y19-Wx-C7FluxW5
A144: SSC | B144: High | C144: Y19 | D144: 70 | E144: SZ8-Y19-Wx-C7 | F144: 3500 | G144: Flux | H144: W3 | I144: 271.0 | J144: =+(K144-I144)/2+I144 -> 278.0 | K144: 285.0 | L144: Lighting | M144: LightingSSCHighY1970SZ8-Y19-Wx-C7FluxW3
A145: SSC | B145: High | C145: Y19 | D145: 70 | E145: SZ8-Y19-Wx-C7 | F145: 3500 | G145: Flux | H145: W4 | I145: 285.0 | J145: 292.0 | K145: 299.0 | L145: Lighting | M145: LightingSSCHighY1970SZ8-Y19-Wx-C7FluxW4
A146: SSC | B146: High | C146: Y19 | D146: 70 | E146: SZ8-Y19-Wx-C7 | F146: 3000 | G146: Flux | H146: W2 | I146: 254.0 | J146: 262.5 | K146: 271.0 | L146: Lighting | M146: LightingSSCHighY1970SZ8-Y19-Wx-C7FluxW2
A147: SSC | B147: High | C147: Y19 | D147: 70 | E147: SZ8-Y19-Wx-C7 | F147: 3000 | G147: Flux | H147: W3 | I147: 271.0 | J147: 278.0 | K147: 285.0 | L147: Lighting | M147: LightingSSCHighY1970SZ8-Y19-Wx-C7FluxW3
A148: SSC | B148: High | C148: Y19 | D148: 70 | E148: SZ8-Y19-Wx-C7 | F148: 3000 | G148: Flux | H148: W4 | I148: 285.0 | J148: 292.0 | K148: 299.0 | L148: Lighting | M148: LightingSSCHighY1970SZ8-Y19-Wx-C7FluxW4
A149: SSC | B149: High | C149: Y19 | D149: 70 | E149: SZ8-Y19-Wx-C7 | F149: 2700 | G149: Flux | H149: W2 | I149: 254.0 | J149: 262.5 | K149: 271.0 | L149: Lighting | M149: LightingSSCHighY1970SZ8-Y19-Wx-C7FluxW2
A150: SSC | B150: High | C150: Y19 | D150: 70 | E150: SZ8-Y19-Wx-C7 | F150: 2700 | G150: Flux | H150: W3 | I150: 271.0 | J150: 278.0 | K150: 285.0 | L150: Lighting | M150: LightingSSCHighY1970SZ8-Y19-Wx-C7FluxW3
A151: SSC | B151: High | C151: Y19 | D151: 70 | E151: SZ8-Y19-Wx-C7 | G151: VF | H151: G | I151: 2.8 | J151: 2.9 | K151: 3.0 | L151: Lighting | M151: LightingSSCHighY1970SZ8-Y19-Wx-C7VFG
A152: SSC | B152: High | C152: Y19 | D152: 70 | E152: SZ8-Y19-Wx-C7 | G152: VF | H152: H | I152: 3.0 | J152: 3.1 | K152: 3.3 | L152: Lighting | M152: LightingSSCHighY1970SZ8-Y19-Wx-C7VFH
A153: SSC | B153: High | C153: Y19 | D153: 80 | E153: SZ8-Y19-Wx-C8 | F153: Cool | G153: Flux | H153: V3 | I153: 223.0 | J153: 230.0 | K153: 237.0 | L153: Lighting | M153: LightingSSCHighY1980SZ8-Y19-Wx-C8FluxV3
A154: SSC | B154: High | C154: Y19 | D154: 80 | E154: SZ8-Y19-Wx-C8 | F154: Cool | G154: Flux | H154: W1 | I154: 237.0 | J154: 245.5 | K154: 254.0 | L154: Lighting | M154: LightingSSCHighY1980SZ8-Y19-Wx-C8FluxW1
A155: SSC | B155: High | C155: Y19 | D155: 80 | E155: SZ8-Y19-Wx-C8 | F155: Cool | G155: Flux | H155: W2 | I155: 254.0 | J155: 262.5 | K155: 271.0 | L155: Lighting | M155: LightingSSCHighY1980SZ8-Y19-Wx-C8FluxW2
A156: SSC | B156: High | C156: Y19 | D156: 80 | E156: SZ8-Y19-Wx-C8 | F156: 6500 | G156: Flux | H156: W1 | I156: 237.0 | J156: 245.5 | K156: 254.0 | L156: Lighting | M156: LightingSSCHighY1980SZ8-Y19-Wx-C8FluxW1
A157: SSC | B157: High | C157: Y19 | D157: 80 | E157: SZ8-Y19-Wx-C8 | F157: 6500 | G157: Flux | H157: W2 | I157: 254.0 | J157: 262.5 | K157: 271.0 | L157: Lighting | M157: LightingSSCHighY1980SZ8-Y19-Wx-C8FluxW2
A158: SSC | B158: High | C158: Y19 | D158: 80 | E158: SZ8-Y19-Wx-C8 | F158: 5600 | G158: Flux | H158: W2 | I158: 254.0 | J158: 262.5 | K158: 271.0 | L158: Lighting | M158: LightingSSCHighY1980SZ8-Y19-Wx-C8FluxW2
A159: SSC | B159: High | C159: Y19 | D159: 80 | E159: SZ8-Y19-Wx-C8 | F159: 5600 | G159: Flux | H159: W3 | I159: 271.0 | J159: 278.0 | K159: 285.0 | L159: Lighting | M159: LightingSSCHighY1980SZ8-Y19-Wx-C8FluxW3
A160: SSC | B160: High | C160: Y19 | D160: 80 | E160: SZ8-Y19-Wx-C8 | F160: 5000 | G160: Flux | H160: W2 | I160: 254.0 | J160: 262.5 | K160: 271.0 | L160: Lighting | M160: LightingSSCHighY1980SZ8-Y19-Wx-C8FluxW2
A161: SSC | B161: High | C161: Y19 | D161: 80 | E161: SZ8-Y19-Wx-C8 | F161: 5000 | G161: Flux | H161: W3 | I161: 271.0 | J161: 278.0 | K161: 285.0 | L161: Lighting | M161: LightingSSCHighY1980SZ8-Y19-Wx-C8FluxW3
A162: SSC | B162: High | C162: Y19 | D162: 80 | E162: SZ8-Y19-Wx-C8 | F162: 4500 | G162: Flux | H162: W1 | I162: 237.0 | J162: 245.5 | K162: 254.0 | L162: Lighting | M162: LightingSSCHighY1980SZ8-Y19-Wx-C8FluxW1
A163: SSC | B163: High | C163: Y19 | D163: 80 | E163: SZ8-Y19-Wx-C8 | F163: 4500 | G163: Flux | H163: W2 | I163: 254.0 | J163: 262.5 | K163: 271.0 | L163: Lighting | M163: LightingSSCHighY1980SZ8-Y19-Wx-C8FluxW2
A164: SSC | B164: High | C164: Y19 | D164: 80 | E164: SZ8-Y19-Wx-C8 | F164: 4000 | G164: Flux | H164: W1 | I164: 237.0 | J164: 245.5 | K164: 254.0 | L164: Lighting | M164: LightingSSCHighY1980SZ8-Y19-Wx-C8FluxW1
A165: SSC | B165: High | C165: Y19 | D165: 80 | E165: SZ8-Y19-Wx-C8 | F165: 4000 | G165: Flux | H165: W2 | I165: 254.0 | J165: 262.5 | K165: 271.0 | L165: Lighting | M165: LightingSSCHighY1980SZ8-Y19-Wx-C8FluxW2
A166: SSC | B166: High | C166: Y19 | D166: 80 | E166: SZ8-Y19-Wx-C8 | F166: 3500 | G166: Flux | H166: W1 | I166: 237.0 | J166: 245.5 | K166: 254.0 | L166: Lighting | M166: LightingSSCHighY1980SZ8-Y19-Wx-C8FluxW1
A167: SSC | B167: High | C167: Y19 | D167: 80 | E167: SZ8-Y19-Wx-C8 | F167: 3500 | G167: Flux | H167: W2 | I167: 254.0 | J167: 262.5 | K167: 271.0 | L167: Lighting | M167: LightingSSCHighY1980SZ8-Y19-Wx-C8FluxW2
A168: SSC | B168: High | C168: Y19 | D168: 80 | E168: SZ8-Y19-Wx-C8 | F168: 3000 | G168: Flux | H168: W1 | I168: 237.0 | J168: 245.5 | K168: 254.0 | L168: Lighting | M168: LightingSSCHighY1980SZ8-Y19-Wx-C8FluxW1
A169: SSC | B169: High | C169: Y19 | D169: 80 | E169: SZ8-Y19-Wx-C8 | F169: 3000 | G169: Flux | H169: W2 | I169: 254.0 | J169: 262.5 | K169: 271.0 | L169: Lighting | M169: LightingSSCHighY1980SZ8-Y19-Wx-C8FluxW2
A170: SSC | B170: High | C170: Y19 | D170: 80 | E170: SZ8-Y19-Wx-C8 | F170: 2700 | G170: Flux | H170: V3 | I170: 223.0 | J170: 230.0 | K170: 237.0 | L170: Lighting | M170: LightingSSCHighY1980SZ8-Y19-Wx-C8FluxV3
A171: SSC | B171: High | C171: Y19 | D171: 80 | E171: SZ8-Y19-Wx-C8 | F171: 2700 | G171: Flux | H171: W1 | I171: 237.0 | J171: 245.5 | K171: 254.0 | L171: Lighting | M171: LightingSSCHighY1980SZ8-Y19-Wx-C8FluxW1
A172: SSC | B172: High | C172: Y19 | D172: 80 | E172: SZ8-Y19-Wx-C8 | G172: VF | H172: G | I172: 2.8 | J172: 2.9 | K172: 3.0 | L172: Lighting | M172: LightingSSCHighY1980SZ8-Y19-Wx-C8VFG
A173: SSC | B173: High | C173: Y19 | D173: 80 | E173: SZ8-Y19-Wx-C8 | G173: VF | H173: H | I173: 3.0 | J173: 3.1 | K173: 3.3 | L173: Lighting | M173: LightingSSCHighY1980SZ8-Y19-Wx-C8VFH
A174: SSC | B174: High | C174: Y19 | D174: 90 | E174: SZ8-Y19-Wx-C9 | F174: 6500 | G174: Flux | H174: V3 | I174: 223.0 | J174: 230.0 | K174: 237.0 | L174: Lighting | M174: LightingSSCHighY1990SZ8-Y19-Wx-C9FluxV3
A175: SSC | B175: High | C175: Y19 | D175: 90 | E175: SZ8-Y19-Wx-C9 | F175: 6500 | G175: Flux | H175: W1 | I175: 237.0 | J175: 245.5 | K175: 254.0 | L175: Lighting | M175: LightingSSCHighY1990SZ8-Y19-Wx-C9FluxW1
A176: SSC | B176: High | C176: Y19 | D176: 90 | E176: SZ8-Y19-Wx-C9 | F176: 5600 | G176: Flux | H176: V3 | I176: 223.0 | J176: 230.0 | K176: 237.0 | L176: Lighting | M176: LightingSSCHighY1990SZ8-Y19-Wx-C9FluxV3
A177: SSC | B177: High | C177: Y19 | D177: 90 | E177: SZ8-Y19-Wx-C9 | F177: 5600 | G177: Flux | H177: W1 | I177: 237.0 | J177: 245.5 | K177: 254.0 | L177: Lighting | M177: LightingSSCHighY1990SZ8-Y19-Wx-C9FluxW1
A178: SSC | B178: High | C178: Y19 | D178: 90 | E178: SZ8-Y19-Wx-C9 | F178: 5000 | G178: Flux | H178: V3 | I178: 223.0 | J178: 230.0 | K178: 237.0 | L178: Lighting | M178: LightingSSCHighY1990SZ8-Y19-Wx-C9FluxV3
A179: SSC | B179: High | C179: Y19 | D179: 90 | E179: SZ8-Y19-Wx-C9 | F179: 5000 | G179: Flux | H179: W1 | I179: 237.0 | J179: 245.5 | K179: 254.0 | L179: Lighting | M179: LightingSSCHighY1990SZ8-Y19-Wx-C9FluxW1
A180: SSC | B180: High | C180: Y19 | D180: 90 | E180: SZ8-Y19-Wx-C9 | F180: 4500 | G180: Flux | H180: V3 | I180: 223.0 | J180: 230.0 | K180: 237.0 | L180: Lighting | M180: LightingSSCHighY1990SZ8-Y19-Wx-C9FluxV3
A181: SSC | B181: High | C181: Y19 | D181: 90 | E181: SZ8-Y19-Wx-C9 | F181: 4500 | G181: Flux | H181: W1 | I181: 237.0 | J181: 245.5 | K181: 254.0 | L181: Lighting | M181: =CONCATENATE(L181,A181,B181,C181,D181,E181,G181,H181) -> LightingSSCHighY1990SZ8-Y19-Wx-C9FluxW1
A182: SSC | B182: High | C182: Y19 | D182: 90 | E182: SZ8-Y19-Wx-C9 | F182: 4000 | G182: Flux | H182: V3 | I182: 223.0 | J182: 230.0 | K182: 237.0 | L182: Lighting | M182: LightingSSCHighY1990SZ8-Y19-Wx-C9FluxV3
A183: SSC | B183: High | C183: Y19 | D183: 90 | E183: SZ8-Y19-Wx-C9 | F183: 4000 | G183: Flux | H183: W1 | I183: 237.0 | J183: 245.5 | K183: 254.0 | L183: Lighting | M183: LightingSSCHighY1990SZ8-Y19-Wx-C9FluxW1
A184: SSC | B184: High | C184: Y19 | D184: 90 | E184: SZ8-Y19-Wx-C9 | F184: 3500 | G184: Flux | H184: V1 | I184: 195.0 | J184: 201.5 | K184: 208.0 | L184: Lighting | M184: LightingSSCHighY1990SZ8-Y19-Wx-C9FluxV1
A185: SSC | B185: High | C185: Y19 | D185: 90 | E185: SZ8-Y19-Wx-C9 | F185: 3500 | G185: Flux | H185: V2 | I185: 208.0 | J185: 215.5 | K185: 223.0 | L185: Lighting | M185: LightingSSCHighY1990SZ8-Y19-Wx-C9FluxV2
A186: SSC | B186: High | C186: Y19 | D186: 90 | E186: SZ8-Y19-Wx-C9 | F186: 3000 | G186: Flux | H186: U3 | I186: 182.0 | J186: 188.5 | K186: 195.0 | L186: Lighting | M186: LightingSSCHighY1990SZ8-Y19-Wx-C9FluxU3
A187: SSC | B187: High | C187: Y19 | D187: 90 | E187: SZ8-Y19-Wx-C9 | F187: 3000 | G187: Flux | H187: V1 | I187: 195.0 | J187: 201.5 | K187: 208.0 | L187: Lighting | M187: LightingSSCHighY1990SZ8-Y19-Wx-C9FluxV1
A188: SSC | B188: High | C188: Y19 | D188: 90 | E188: SZ8-Y19-Wx-C9 | F188: 2700 | G188: Flux | H188: U3 | I188: 182.0 | J188: 188.5 | K188: 195.0 | L188: Lighting | M188: LightingSSCHighY1990SZ8-Y19-Wx-C9FluxU3
A189: SSC | B189: High | C189: Y19 | D189: 90 | E189: SZ8-Y19-Wx-C9 | F189: 2700 | G189: Flux | H189: V1 | I189: 195.0 | J189: 201.5 | K189: 208.0 | L189: Lighting | M189: LightingSSCHighY1990SZ8-Y19-Wx-C9FluxV1
A190: SSC | B190: High | C190: Y19 | D190: 90 | E190: SZ8-Y19-Wx-C9 | G190: VF | H190: G | I190: 2.8 | J190: 2.9 | K190: 3.0 | L190: Lighting | M190: LightingSSCHighY1990SZ8-Y19-Wx-C9VFG
A191: SSC | B191: High | C191: Y19 | D191: 90 | E191: SZ8-Y19-Wx-C9 | G191: VF | H191: H | I191: 3.0 | J191: 3.1 | K191: 3.3 | L191: Lighting | M191: LightingSSCHighY1990SZ8-Y19-Wx-C9VFH
A192: SSC | B192: High | C192: Y22 | D192: 70 | E192: SZ8-Y22-Wx-C7-x | F192: 6500 | G192: Flux | H192: W4 | I192: 285.0 | J192: 292.0 | K192: 299.0 | L192: Lighting | M192: LightingSSCHighY2270SZ8-Y22-Wx-C7-xFluxW4
A193: SSC | B193: High | C193: Y22 | D193: 70 | E193: SZ8-Y22-Wx-C7-x | F193: 6500 | G193: Flux | H193: W5 | I193: 299.0 | J193: 306.0 | K193: 313.0 | L193: Lighting | M193: LightingSSCHighY2270SZ8-Y22-Wx-C7-xFluxW5
A194: SSC | B194: High | C194: Y22 | D194: 70 | E194: SZ8-Y22-Wx-C7-x | F194: 6500 | G194: Flux | H194: W6 | I194: 313.0 | J194: 320.0 | K194: 327.0 | L194: Lighting | M194: LightingSSCHighY2270SZ8-Y22-Wx-C7-xFluxW6
A195: SSC | B195: High | C195: Y22 | D195: 70 | E195: SZ8-Y22-Wx-C7-x | F195: 5700 | G195: Flux | H195: W5 | I195: 299.0 | J195: 306.0 | K195: 313.0 | L195: Lighting | M195: LightingSSCHighY2270SZ8-Y22-Wx-C7-xFluxW5
A196: SSC | B196: High | C196: Y22 | D196: 70 | E196: SZ8-Y22-Wx-C7-x | F196: 5700 | G196: Flux | H196: W6 | I196: 313.0 | J196: 320.0 | K196: 327.0 | L196: Lighting | M196: LightingSSCHighY2270SZ8-Y22-Wx-C7-xFluxW6
A197: SSC | B197: High | C197: Y22 | D197: 70 | E197: SZ8-Y22-Wx-C7-x | F197: 5000 | G197: Flux | H197: W5 | I197: 299.0 | J197: 306.0 | K197: 313.0 | L197: Lighting | M197: LightingSSCHighY2270SZ8-Y22-Wx-C7-xFluxW5
A198: SSC | B198: High | C198: Y22 | D198: 70 | E198: SZ8-Y22-Wx-C7-x | F198: 5000 | G198: Flux | H198: W6 | I198: 313.0 | J198: 320.0 | K198: 327.0 | L198: Lighting | M198: LightingSSCHighY2270SZ8-Y22-Wx-C7-xFluxW6
A199: SSC | B199: High | C199: Y22 | D199: 70 | E199: SZ8-Y22-Wx-C7-x | F199: 5000 | G199: Flux | H199: W7 | I199: 327.0 | J199: 334.0 | K199: 341.0 | L199: Lighting | M199: LightingSSCHighY2270SZ8-Y22-Wx-C7-xFluxW7
A200: SSC | B200: High | C200: Y22 | D200: 70 | E200: SZ8-Y22-Wx-C7-x | F200: 4000 | G200: Flux | H200: W5 | I200: 299.0 | J200: 306.0 | K200: 313.0 | L200: Lighting | M200: LightingSSCHighY2270SZ8-Y22-Wx-C7-xFluxW5
... 3320 more rows

Sheet CBlists (hidden)
A1: Manufacturer | E1: Application | K1: 2 | L1: 343 | M1: 2948
A2: SSC | E2: Lighting | K2: 3 | L2: 344 | M2: 2949
A3: Cree | E3: Horticulture | K3: 4 | L3: 345 | M3: 2950
A4: Osram | E4: UV | K4: 5 | L4: 346 | M4: 2951
A5: Nichia | K5: 6 | L5: 347 | M5: 2952
A6: Samsung | K6: 7 | L6: 348 | M6: 2953
A7: SVC | K7: 8 | L7: 349 | M7: 2954
K8: 9 | L8: 350 | M8: 2955
K9: 10 | L9: 351 | M9: 2956
K10: 11 | L10: 352 | M10: 2957
K11: 12 | L11: 375 | M11: 2958
K12: 13 | L12: 376 | M12: 2959
K13: 14 | L13: 377 | M13: 2960
K14: 15 | L14: 378 | M14: 2961
K15: 16 | L15: 379 | M15: 2962
K16: 17 | L16: 380 | M16: 2963
K17: 18 | L17: 381 | M17: 2964
K18: 19 | L18: 382 | M18: 2965
K19: 20 | L19: 383 | M19: 2966
K20: 21 | L20: 384 | M20: 2967
K21: 22 | L21: 404 | M21: 2968
K22: 23 | L22: 405 | M22: 2969
K23: 24 | L23: 406 | M23: 2970
K24: 25 | L24: 407 | M24: 2971
K25: 26 | L25: 408 | M25: 2972
K26: 27 | L26: 409 | M26: 2973
K27: 28 | L27: 410 | M27: 2974
K28: 29 | L28: 411 | M28: 2975
K29: 30 | L29: 412 | M29: 2976
K30: 31 | L30: 413 | M30: 2977
K31: 32 | L31: 678 | M31: 2978
K32: 33 | L32: 681 | M32: 2979
K33: 34 | L33: 683 | M33: 2980
K34: 35 | L34: 685 | M34: 2981
K35: 36 | L35: 694 | M35: 2982
K36: 37 | L36: 695 | M36: 2983
K37: 38 | L37: 696 | M37: 2984
K38: 39 | L38: 697 | M38: 2985
K39: 40 | L39: 698 | M39: 2986
K40: 41 | L40: 699 | M40: 2987
K41: 42 | L41: 700 | M41: 2988
K42: 43 | L42: 701 | M42: 2989
K43: 44 | L43: 702 | M43: 2990
K44: 45 | L44: 703 | M44: 2991
K45: 46 | L45: 704 | M45: 2992
K46: 47 | L46: 963 | M46: 2993
K47: 48 | L47: 964 | M47: 2994
K48: 49 | L48: 965 | M48: 2995
K49: 50 | L49: 966 | M49: 2996
K50: 51 | L50: 967 | M50: 2997
K51: 52 | L51: 968 | M51: 2998
K52: 53 | L52: 969 | M52: 2999
K53: 54 | L53: 970 | M53: 3000
K54: 55 | L54: 971 | M54: 3001
K55: 56 | L55: 972 | M55: 3002
K56: 57 | L56: 973 | M56: 3003
K57: 58 | L57: 974 | M57: 3004
K58: 59 | L58: 975 | M58: 3005
K59: 60 | L59: 976 | M59: 3006
K60: 61 | L60: 977 | M60: 3007
K61: 62 | L61: 978 | M61: 3008
K62: 63 | L62: 1652 | M62: 3009
K63: 64 | L63: 1653 | M63: 3010
K64: 65 | L64: 1654 | M64: 3011
K65: 66 | L65: 1655 | M65: 3012
K66: 67 | L66: 1656 | M66: 3013
K67: 68 | L67: 1657 | M67: 3014
K68: 69 | L68: 1658 | M68: 3015
K69: 70 | L69: 1659 | M69: 3016
K70: 71 | L70: 1685 | M70: 3017
K71: 72 | L71: 1686 | M71: 3018
K72: 73 | L72: 1690 | M72: 3019
K73: 74 | L73: 1691 | M73: 3020
K74: 75 | L74: 1692 | M74: 3021
K75: 76 | L75: 1698 | M75: 3022
K76: 77 | L76: 1699 | M76: 3023
K77: 78 | L77: 1700 | M77: 3024
K78: 79 | L78: 1701 | M78: 3025
K79: 80 | L79: 1702 | M79: 3026
K80: 81 | L80: 1708 | M80: 3027
K81: 82 | L81: 1709 | M81: 3028
K82: 83 | L82: 1710 | M82: 3029
K83: 84 | L83: 1711 | M83: 3030
K84: 85 | L84: 1712 | M84: 3031
K85: 86 | L85: 1719 | M85: 3032
K86: 87 | L86: 1720 | M86: 3033
K87: 88 | L87: 1721 | M87: 3034
K88: 89 | L88: 1722 | M88: 3035
K89: 90 | L89: 1723 | M89: 3036
K90: 91 | L90: 1724 | M90: 3037
K91: 92 | L91: 1727 | M91: 3038
K92: 93 | L92: 1728 | M92: 3039
K93: 94 | L93: 1729 | M93: 3040
K94: 95 | L94: 1730 | M94: 3041
K95: 96 | L95: 1735 | M95: 3042
K96: 97 | L96: 1736 | M96: 3043
K97: 98 | L97: 1737 | M97: 3044
K98: 99 | L98: 1902 | M98: 3045
K99: 100 | L99: 1905 | M99: 3046
K100: 101 | L100: 1908 | M100: 3047
K101: 102 | L101: 1909 | M101: 3048
K102: 103 | L102: 1912 | M102: 3049
K103: 104 | L103: 1913 | M103: 3050
K104: 105 | L104: 1916 | M104: 3051
K105: 106 | L105: 1917 | M105: 3052
K106: 107 | L106: 1920 | M106: 3053
K107: 108 | L107: 1921 | M107: 3054
K108: 109 | L108: 1924 | M108: 3055
K109: 110 | L109: 1925 | M109: 3056
K110: 111 | L110: 1928 | M110: 3057
K111: 112 | L111: 1929 | M111: 3058
K112: 113 | L112: 1933 | M112: 3059
K113: 114 | L113: 1934 | M113: 3060
K114: 115 | L114: 1935 | M114: 3061
K115: 116 | L115: 1938 | M115: 3062
K116: 117 | L116: 1939 | M116: 3063
K117: 118 | L117: 1942 | M117: 3064
K118: 119 | L118: 1943 | M118: 3065
K119: 120 | L119: 1946 | M119: 3066
K120: 121 | L120: 1947 | M120: 3067
K121: 122 | L121: 1949 | M121: 3068
K122: 123 | L122: 1951 | M122: 3069
K123: 124 | L123: 1953 | M123: 3070
K124: 125 | L124: 1955 | M124: 3071
K125: 126 | L125: 1959 | M125: 3072
K126: 127 | L126: 1960 | M126: 3073
K127: 128 | L127: 1961 | M127: 3074
K128: 129 | L128: 2270 | M128: 3075
K129: 130 | L129: 2271 | M129: 3076
K130: 131 | L130: 2272 | M130: 3077
K131: 132 | L131: 2273 | M131: 3078
K132: 133 | L132: 2274 | M132: 3079
K133: 134 | L133: 2275 | M133: 3080
K134: 135 | L134: 2276 | M134: 3081
K135: 136 | L135: 2277 | M135: 3082
K136: 137 | L136: 2278 | M136: 3083
K137: 138 | L137: 2279 | M137: 3084
K138: 139 | L138: 2280 | M138: 3085
K139: 140 | L139: 2281 | M139: 3086
K140: 141 | L140: 2282 | M140: 3087
K141: 142 | L141: 2283 | M141: 3088
K142: 143 | L142: 2284 | M142: 3089
K143: 144 | L143: 2285 | M143: 3090
K144: 145 | L144: 2286 | M144: 3091
K145: 146 | L145: 2287 | M145: 3092
K146: 147 | L146: 2288 | M146: 3093
K147: 148 | L147: 2289 | M147: 3094
K148: 149 | L148: 2290 | M148: 3095
K149: 150 | L149: 2291 | M149: 3096
K150: 151 | L150: 2292 | M150: 3097
K151: 152 | L151: 2293 | M151: 3098
K152: 153 | L152: 2294 | M152: 3099
K153: 154 | L153: 2295 | M153: 3100
K154: 155 | L154: 2299 | M154: 3101
K155: 156 | L155: 2303 | M155: 3102
K156: 157 | L156: 2307 | M156: 3103
K157: 158 | L157: 2314 | M157: 3104
K158: 159 | L158: 2318 | M158: 3105
K159: 160 | L159: 2324 | M159: 3106
K160: 161 | L160: 2327 | M160: 3107
K161: 162 | L161: 2328 | M161: 3108
K162: 163 | L162: 2355 | M162: 3109
K163: 164 | L163: 2356 | M163: 3110
K164: 165 | L164: 2357 | M164: 3111
K165: 166 | L165: 2364 | M165: 3112
K166: 167 | L166: 2365 | M166: 3113
K167: 168 | L167: 2366 | M167: 3114
K168: 169 | L168: 2370 | M168: 3115
K169: 170 | L169: 2371 | M169: 3116
K170: 171 | L170: 2372 | M170: 3117
K171: 172 | L171: 2379 | M171: 3118
K172: 173 | L172: 2380 | M172: 3119
K173: 174 | L173: 2381 | M173: 3120
K174: 175 | L174: 2386 | M174: 3121
K175: 176 | L175: 2387 | M175: 3122
K176: 177 | L176: 2391 | M176: 3123
K177: 178 | L177: 2392 | M177: 3124
K178: 179 | L178: 2393 | M178: 3125
K179: 180 | L179: 2400 | M179: 3126
K180: 181 | L180: 2401 | M180: 3127
K181: 182 | L181: 2402 | M181: 3128
K182: 183 | L182: 2406 | M182: 3129
K183: 184 | L183: 2407 | M183: 3130
K184: 185 | L184: 2408 | M184: 3131
K185: 186 | L185: 2415 | M185: 3132
K186: 187 | L186: 2416 | M186: 3133
K187: 188 | L187: 2417 | M187: 3134
K188: 189 | L188: 2424 | M188: 3135
K189: 190 | L189: 2425 | M189: 3136
K190: 191 | L190: 2426 | M190: 3137
K191: 192 | L191: 2430 | M191: 3138
K192: 193 | L192: 2431 | M192: 3139
K193: 194 | L193: 2432 | M193: 3140
K194: 195 | L194: 2439 | M194: 3141
K195: 196 | L195: 2440 | M195: 3142
K196: 197 | L196: 2441 | M196: 3143
K197: 198 | L197: 2445 | M197: 3144
K198: 199 | L198: 2446 | M198: 3145
K199: 200 | L199: 2447 | M199: 3146
K200: 201 | L200: 2454 | M200: 3147
... 2666 more rows

Sheet Parameter (hidden)
B1: Forward Current | G1: @Current | O1: @Temperature
G2: Relative Flux | K2: Relative VF | O2: Relative Flux | S2: Relative VF
A3: Part-name | B3: min | C3: typ | D3: max | E3: Rth | F3: Size | G3: y0 | H3: A1 | I3: t1 | J3: R-Square | K3: y0 | L3: A1 | M3: t1 | N3: R-Square | O3: y0 | P3: A1 | Q3: t1 | R3: R-Square | S3: y0 | T3: A1 | U3: t1 | V3: R-Square | W3: Rev. Date | X3: RF@C check | Y3: RVf@C check | Z3: RF@T check | AA3: RVf@T check
A4: CUD1AF4D | C4: 600 | D4: 700 | E4: 15.1 | F4: 6.35 x 6.35 x 1.8 | G4: 8.973 | H4: (9.048) | I4: 4743.467 | J4: 1.000 | K4: 1.000 | L4: (0.327) | M4: 50.396 | N4: 2.004 | O4: 1.000 | P4: (268.815) | Q4: 1.000 | R4: 1.000 | S4: 0.842 | T4: 0.272 | U4: 45.979 | V4: 0.997 | W4: 2021-07-22 | X4: =G4+H4*EXP(-C4/I4) -> 1.00000 | Y4: =K4+L4*EXP(-C4/M4) -> 1.00000 | Z4: =O4+P4*EXP(-25/Q4) -> 1.00000 | AA4: =S4+T4*EXP(-25/U4) -> 1.00000
A5: CUD1GF1A | B5: 4 | C5: 20 | D5: 30 | E5: 21.5 | F5: 3.5 x 3.5 x 1.2 | G5: 19.043 | H5: (19.007) | I5: 384.202 | J5: 1.000 | K5: 1.036 | L5: (0.249) | M5: 10.281 | N5: 0.999 | O5: 3.641 | P5: (2.382) | Q5: (241.893) | R5: 1.000 | S5: 0.635 | T5: 0.532 | U5: 66.436 | V5: 0.999 | W5: 2021-07-22 | X5: 1.00000 | Y5: 1.00000 | Z5: 1.00000 | AA5: 1.00000
A6: CUD5GF1B | C6: 100 | D6: 200 | E6: 31.0 | F6: 3.5 x 3.5 x 1.2 | G6: 10.655 | H6: (10.646) | I6: 1023.069 | J6: 5.000 | K6: 1.010 | L6: (0.097) | M6: 44.587 | N6: 0.998 | O6: 2.547 | P6: (1.431) | Q6: (321.966) | R6: 1.000 | S6: 0.921 | T6: 0.108 | U6: 78.938 | V6: 0.998 | W6: 2021-07-22 | X6: 1.00000 | Y6: 1.00000 | Z6: 1.00000 | AA6: 1.00000
A7: CUD73F4A | B7: 60 | C7: 300 | D7: 400 | E7: 10.0 | F7: 5.0 x 5.0 x 1.52 | G7: 3.905 | H7: (3.934) | I7: 989.459 | J7: 1.000 | K7: 1.042 | L7: (0.245) | M7: 169.715 | N7: 0.998 | O7: 1.934 | P7: (0.843) | Q7: (245.838) | R7: 1.000 | S7: 0.801 | T7: 0.234 | U7: 154.089 | V7: 1.000 | W7: 2021-09-10 | X7: 1.00000 | Y7: 1.00000 | Z7: 1.00000 | AA7: 1.00000
A8: CUD7GF1A | B8: 6 | C8: 30 | D8: 60 | E8: 21.5 | F8: 3.5 x 3.5 x 1.2 | G8: 16.265 | H8: (16.282) | I8: 465.097 | J8: 1.000 | K8: 1.102 | L8: (0.242) | M8: 34.478 | N8: 0.999 | O8: 2.371 | P8: (1.270) | Q8: (326.277) | R8: 1.000 | S8: 0.784 | T8: 0.250 | U8: 168.242 | V8: 1.000 | W8: 2021-07-22 | X8: 1.00000 | Y8: 1.00000 | Z8: 1.00000 | AA8: 1.00000
A9: CUD7GF1B | B9: 20 | C9: 100 | D9: 250 | E9: 19.0 | F9: 3.5 x 3.5 x 1.2 | G9: 11.214 | H9: (11.325) | I9: 968.665 | J9: 1.000 | K9: 1.127 | L9: (0.248) | M9: 149.553 | N9: 0.997 | O9: 2.098 | P9: (1.021) | Q9: (342.574) | R9: 1.000 | S9: 0.800 | T9: 0.231 | U9: 174.630 | V9: 0.999 | W9: 2021-07-22 | X9: 1.00000 | Y9: 1.00000 | Z9: 1.00000 | AA9: 1.00000
A10: CUD7QF1A | B10: 4 | C10: 20 | D10: 60 | E10: 44.7 | F10: 3 x 3 x 1.05 | G10: 33.909 | H10: (33.897) | I10: 675.582 | J10: 1.000 | K10: 1.057 | L10: (0.190) | M10: 16.601 | N10: 0.999 | O10: 2.960 | P10: (1.809) | Q10: (310.615) | R10: 1.000 | S10: 0.962 | T10: 0.067 | U10: 43.594 | V10: 0.998 | W10: 2021-07-22 | X10: 1.00000 | Y10: 1.00000 | Z10: 1.00000 | AA10: 1.00000
A11: CUD7W9560A | B11: 10 | C11: 100 | D11: 200 | E11: 10.0 | F11: 0.95 X 0.6 | G11: (240244.594) | H11: 240244.491 | I11: (21776900.000) | J11: 0.998 | K11: 1.041 | L11: (0.420) | M11: 43.083 | N11: 0.952 | O11: 0.622 | P11: 0.555 | Q11: 65.367 | R11: 1.000 | S11: 1328.927 | T11: (1327.908) | U11: (1793530.000) | V11: 0.998 | W11: 2022-06-01 | X11: 1.00000 | Y11: 1.00000 | Z11: 1.00000 | AA11: 1.00000
A12: CUD8AF1C | B12: 6 | C12: 30 | D12: 60 | E12: 22.0 | F12: 6.35 x 6.35 x 1.8 | G12: 15.179 | H12: (15.178) | I12: 440.331 | J12: 1.000 | K12: 1.283 | L12: (0.454) | M12: 63.793 | N12: 0.999 | O12: 1.865 | P12: (0.791) | Q12: (279.981) | R12: 1.000 | S12: 0.940 | T12: 0.086 | U12: 69.474 | V12: 0.999 | W12: 2021-07-22 | X12: 1.00000 | Y12: 1.00000 | Z12: 1.00000 | AA12: 1.00000
A13: CUD8AF4D | B13: 120 | C13: 600 | D13: 800 | E13: 15.1 | F13: 6.35 x 6.35 x 1.8 | G13: 1.765 | H13: (1.764) | I13: 718.351 | J13: 0.996 | K13: 1.049 | L13: (0.264) | M13: 357.231 | N13: 0.995 | O13: 1.999 | P13: (0.910) | Q13: (270.219) | R13: 1.000 | S13: 0.973 | T13: 0.039 | U13: 72.818 | V13: 0.999 | W13: 2021-07-22 | X13: 1.00000 | Y13: 1.00000 | Z13: 1.00000 | AA13: 1.00000
A14: CUN06A1B | B14: 100 | C14: 500 | D14: 700 | E14: 3.5 | F14: 3.5 x 3.5 x 2.0 | G14: 6.461 | H14: (6.474) | I14: 2937.634 | J14: 1.000 | K14: 1.041 | L14: (0.168) | M14: 354.856 | N14: 1.000 | O14: 1.042 | P14: (0.024) | Q14: (46.475) | R14: 0.980 | S14: 0.949 | T14: 0.100 | U14: 36.823 | V14: 0.970 | W14: 2021-07-12 | X14: 1.00000 | Y14: 1.00000 | Z14: 1.00000 | AA14: 1.00000
A15: CUN06A1G | B15: 200 | C15: 1000 | D15: 1400 | E15: 3.9 | F15: 3.5 x 3.5 x 2.0 | G15: 4.920 | H15: (4.915) | I15: 4418.628 | J15: 0.999 | K15: 1.017 | L15: (0.147) | M15: 459.134 | N15: 1.000 | O15: 1.082 | P15: (0.051) | Q15: (52.648) | R15: 0.990 | S15: 0.957 | T15: 0.083 | U15: 37.496 | V15: 0.979 | W15: 2021-07-21 | X15: 1.00000 | Y15: 1.00000 | Z15: 1.00000 | AA15: 1.00000
A16: CUN06B1B | B16: 100 | C16: 500 | D16: 700 | E16: 3.5 | F16: 3.5 x 3.5 x 2.83 | G16: 4.944 | H16: (4.933) | I16: 2234.807 | J16: 1.000 | K16: 1.044 | L16: (0.184) | M16: 347.661 | N16: 1.000 | O16: 1.066 | P16: (0.045) | Q16: (64.521) | R16: 0.995 | S16: 0.895 | T16: 0.140 | U16: 84.710 | V16: 0.997 | W16: 2021-07-22 | X16: 1.00000 | Y16: 1.00000 | Z16: 1.00000 | AA16: 1.00000
A17: CUN06B1G | B17: 200 | C17: 1000 | D17: 1400 | E17: 3.9 | F17: 3.5 x 3.5 x 2.83 | G17: 3.774 | H17: (3.764) | I17: 3277.957 | J17: 0.999 | K17: 1.018 | L17: (0.148) | M17: 470.020 | N17: 1.000 | O17: 1.082 | P17: (0.052) | Q17: (53.421) | R17: 0.993 | S17: 0.909 | T17: 0.119 | U17: 93.770 | V17: 0.998 | W17: 2021-07-22 | X17: 1.00000 | Y17: 1.00000 | Z17: 1.00000 | AA17: 1.00000
A18: CUN0GB1A | B18: 200 | C18: 1000 | D18: 1400 | E18: 3.9 | F18: 3.5 x 3.5 x 2.5 | G18: 5.422 | H18: (5.427) | I18: 4886.204 | J18: 1.000 | K18: 1.034 | L18: (0.168) | M18: 623.150 | N18: 1.000 | O18: 1.480 | P18: (0.444) | Q18: (326.247) | R18: 1.000 | S18: 0.953 | T18: 0.109 | U18: 29.439 | V18: 1.000 | W18: 2021-07-22 | X18: 1.00000 | Y18: 1.00000 | Z18: 1.00000 | AA18: 1.00000
A19: CUN0GF1A | B19: 200 | C19: 1000 | D19: 1400 | E19: 3.9 | F19: 3.5 x 3.5 x 1.1 | G19: 5.518 | H19: (5.521) | I19: 4987.260 | J19: 1.000 | K19: 1.038 | L19: (0.172) | M19: 667.677 | N19: 1.000 | O19: 1.198 | P19: (0.168) | Q19: (152.276) | R19: 0.997 | S19: 0.952 | T19: 0.110 | U19: 30.201 | V19: 1.000 | W19: 2021-07-22 | X19: 1.00000 | Y19: 1.00000 | Z19: 1.00000 | AA19: 1.00000
A20: CUN0HF4A | B20: 500 | C20: 3000 | D20: 4000 | E20: 1.2 | F20: 6.8 x 6.8 x 1 | G20: 3.620 | H20: (3.618) | I20: 9291.170 | J20: 0.999 | K20: 1.001 | L20: (0.127) | M20: 607.940 | N20: 1.000 | O20: 1.268 | P20: (0.231) | Q20: (168.859) | R20: 0.999 | S20: 0.960 | T20: 0.071 | U20: 43.159 | V20: 0.991 | W20: 2021-07-22 | X20: 1.00000 | Y20: 1.00000 | Z20: 1.00000 | AA20: 1.00000
A21: CUN0LF1B | B21: 50 | C21: 180 | D21: 250 | E21: 17.4 | F21: 3.5 x 2.8 x 0.7 | G21: 2.555 | H21: (2.590) | I21: 352.778 | J21: 0.998 | K21: 1.073 | L21: (0.172) | M21: 210.571 | N21: 0.999 | O21: 1.753 | P21: (0.708) | Q21: (403.691) | R21: 1.000 | S21: 0.957 | T21: 0.079 | U21: 41.605 | V21: 0.986 | W21: 2021-07-22 | X21: 1.00000 | Y21: 1.00000 | Z21: 1.00000 | AA21: 1.00000
A22: CUN26A1B | B22: 100 | C22: 500 | D22: 700 | E22: 3.9 | F22: 3.5 x 3.5 x 2.0 | G22: 4.548 | H22: (4.536) | I22: 2036.193 | J22: 1.000 | K22: 1.038 | L22: (0.178) | M22: 320.594 | N22: 1.000 | O22: (0.185) | P22: 1.174 | Q22: (2724.259) | R22: 1.000 | S22: 0.941 | T22: 0.212 | U22: 19.547 | V22: 0.995 | W22: 2021-07-21 | X22: 1.00000 | Y22: 1.00000 | Z22: 1.00000 | AA22: 1.00000
A23: CUN26B1B | B23: 100 | C23: 500 | D23: 700 | E23: 3.9 | F23: 3.5 x 3.5 x 2.83 | G23: 3.639 | H23: (3.628) | I23: 1571.277 | J23: 0.999 | K23: 1.025 | L23: (0.140) | M23: 292.326 | N23: 1.000 | O23: 0.789 | P23: 0.197 | Q23: (358.029) | R23: 1.000 | S23: 0.928 | T23: 0.185 | U23: 26.591 | V23: 1.000 | W23: 2021-07-22 | X23: 1.00000 | Y23: 1.00000 | Z23: 1.00000 | AA23: 1.00000
A24: CUN66A1B | B24: 100 | C24: 500 | D24: 700 | E24: 3.8 | F24: 3.5 x 3.5 x 2.0 | G24: 4.509 | H24: (4.511) | I24: 1989.961 | J24: 1.000 | K24: 1.000 | L24: 0.173 | M24: 83.957 | N24: 0.997 | O24: 1.306 | P24: (0.238) | Q24: (99.673) | R24: 0.998 | S24: 0.905 | T24: 0.127 | U24: 85.859 | V24: 0.997 | W24: 2021-07-21 | X24: 1.00000 | Y24: 1.00000 | Z24: 1.00000 | AA24: 1.00000
A25: CUN66A1F | B25: 50 | C25: 250 | D25: 350 | E25: 6.7 | F25: 3.5 x 3.5 x 2.0 | G25: 6.952 | H25: (6.970) | I25: 1583.570 | J25: 1.000 | K25: 1.001 | L25: (0.129) | M25: 47.649 | N25: 1.000 | O25: 0.931 | P25: 0.086 | Q25: 112.823 | R25: 0.998 | S25: 0.872 | T25: 0.173 | U25: 83.957 | V25: 0.997 | W25: 2021-07-21 | X25: 1.00000 | Y25: 1.00000 | Z25: 1.00000 | AA25: 1.00000
A26: CUN66A1G | B26: 200 | C26: 1000 | D26: 1200 | E26: 4.6 | F26: 3.5 x 3.5 x 2.0 | G26: 5.004 | H26: (5.011) | I26: 4459.478 | J26: 1.000 | K26: 1.029 | L26: (0.143) | M26: 620.820 | N26: 1.000 | O26: 1.255 | P26: (0.193) | Q26: (89.522) | R26: 0.998 | S26: 0.925 | T26: 0.097 | U26: 96.409 | V26: 0.998 | W26: 2021-07-21 | X26: 1.00000 | Y26: 1.00000 | Z26: 1.00000 | AA26: 1.00000
A27: CUN66B1B | B27: 100 | C27: 500 | D27: 700 | E27: 3.8 | F27: 3.5 x 3.5 x 2.83 | G27: 6.092 | H27: (6.105) | I27: 2757.576 | J27: 1.000 | K27: 1.045 | L27: (0.147) | M27: 418.580 | N27: 1.000 | O27: 1.441 | P27: (0.367) | Q27: (135.663) | R27: 0.999 | S27: 0.968 | T27: 0.114 | U27: 19.525 | V27: 0.999 | W27: 2021-07-21 | X27: 1.00000 | Y27: 1.00000 | Z27: 1.00000 | AA27: 1.00000
A28: CUN66B1G | B28: 200 | C28: 1000 | D28: 1200 | E28: 4.6 | F28: 3.5 x 3.5 x 2.83 | G28: 3.968 | H28: (3.953) | I28: 3489.885 | J28: 1.000 | K28: 1.026 | L28: (0.141) | M28: 591.417 | N28: 1.000 | O28: 1.184 | P28: (0.128) | Q28: (69.265) | R28: 0.996 | S28: 0.969 | T28: 0.063 | U28: 36.129 | V28: 0.999 | W28: 2021-07-21 | X28: 1.00000 | Y28: 1.00000 | Z28: 1.00000 | AA28: 1.00000
A29: CUN6GB1A | B29: 200 | C29: 1000 | D29: 1400 | E29: 5.0 | F29: 3.5 x 3.5 x 2.5 | G29: 3.657 | H29: (3.670) | I29: 3096.703 | J29: 0.999 | K29: 1.078 | L29: (0.197) | M29: 1080.748 | N29: 1.000 | O29: 1.137 | P29: (0.102) | Q29: (84.058) | R29: 0.995 | S29: 0.929 | T29: 0.090 | U29: 108.156 | V29: 0.997 | W29: 2021-07-22 | X29: 1.00000 | Y29: 1.00000 | Z29: 1.00000 | AA29: 1.00000
A30: CUN6GF1A | B30: 200 | C30: 1000 | D30: 1400 | E30: 5.0 | F30: 3.5 x 3.5 x 1.1 | G30: 5.436 | H30: (5.450) | I30: 4859.579 | J30: 1.000 | K30: 1.075 | L30: (0.192) | M30: 1059.464 | N30: 1.000 | O30: 1.158 | P30: (0.121) | Q30: (93.797) | R30: 0.995 | S30: 0.975 | T30: 0.067 | U30: 25.267 | V30: 1.000 | W30: 2021-07-22 | X30: 1.00000 | Y30: 1.00000 | Z30: 1.00000 | AA30: 1.00000
A31: CUN6HF4A | B31: 500 | C31: 3000 | D31: 4000 | E31: 1.7 | F31: 6.8 x 6.8 x 1 | G31: 2.924 | H31: (2.978) | I31: 6868.621 | J31: 0.999 | K31: 1.000 | L31: (0.115) | M31: 389.679 | N31: 1.000 | O31: 1.505 | P31: (0.396) | Q31: (102.699) | R31: 0.998 | S31: 0.977 | T31: 0.054 | U31: 28.901 | V31: 1.000 | W31: 2021-07-22 | X31: 1.00000 | Y31: 1.00000 | Z31: 1.00000 | AA31: 1.00000
A32: CUN6LF1C | B32: 10 | C32: 50 | D32: 70 | E32: 18.0 | F32: 3.5 x 2.8 x 0.7 | G32: 5.266 | H32: (5.256) | I32: 239.615 | J32: 1.000 | K32: 1.162 | L32: (0.226) | M32: 149.018 | N32: 1.000 | O32: 1.334 | P32: (0.269) | Q32: (115.288) | R32: 0.999 | S32: 0.947 | T32: 0.099 | U32: 40.560 | V32: 1.000 | W32: 2021-07-22 | X32: 1.00000 | Y32: 1.00000 | Z32: 1.00000 | AA32: 1.00000
A33: CUN6UB1A | B33: 200 | C33: 700 | D33: 900 | E33: 5.0 | F33: 3.7 x 3.7 x 2.77 | G33: 6.343 | H33: (6.352) | I33: 4046.020 | J33: 1.000 | K33: 1.096 | L33: (0.210) | M33: 896.629 | N33: 1.000 | O33: 1.549 | P33: (0.474) | Q33: (172.258) | R33: 0.999 | S33: 0.908 | T33: 0.113 | U33: 119.970 | V33: 0.998 | W33: 2021-07-21 | X33: 1.00000 | Y33: 1.00000 | Z33: 1.00000 | AA33: 1.00000
A34: CUN6UC1A | B34: 200 | C34: 700 | D34: 900 | E34: 5.0 | F34: 3.7 x 3.7 x 3.33 | G34: 5.603 | H34: (5.614) | I34: 3523.649 | J34: 1.000 | K34: 1.065 | L34: (0.181) | M34: 684.424 | N34: 1.000 | O34: 1.549 | P34: (0.474) | Q34: (172.258) | R34: 0.997 | S34: 0.920 | T34: 0.102 | U34: 102.171 | V34: 0.997 | W34: 2021-07-21 | X34: 1.00000 | Y34: 1.00000 | Z34: 1.00000 | AA34: 1.00000
A35: CUN86A1B | B35: 100 | C35: 500 | D35: 700 | E35: 3.5 | F35: 3.5 x 3.5 x 2.0 | G35: 6.626 | H35: (6.627) | I35: 3052.396 | J35: 1.000 | K35: 1.038 | L35: (0.132) | M35: 400.146 | N35: 1.000 | O35: 1.188 | P35: (0.125) | Q35: (60.594) | R35: 0.995 | S35: 0.901 | T35: 0.136 | U35: 78.272 | V35: 0.997 | W35: 2021-07-21 | X35: 1.00000 | Y35: 1.00000 | Z35: 1.00000 | AA35: 1.00000
A36: CUN86A1G | B36: 200 | C36: 1000 | D36: 1400 | E36: 3.7 | F36: 3.5 x 3.5 x 2.0 | G36: 4.996 | H36: (4.999) | I36: 4466.448 | J36: 1.000 | K36: 1.047 | L36: (0.158) | M36: 827.006 | N36: 1.000 | O36: 1.142 | P36: (0.095) | Q36: (63.346) | R36: 0.995 | S36: 0.913 | T36: 0.116 | U36: 86.542 | V36: 0.997 | W36: 2021-07-21 | X36: =G36+H36*EXP(-C36/I36) -> 1.00000 | Y36: =K36+L36*EXP(-C36/M36) -> 1.00000 | Z36: =O36+P36*EXP(-25/Q36) -> 1.00000 | AA36: =S36+T36*EXP(-25/U36) -> 1.00000
A37: CUN86B1B | B37: 100 | C37: 500 | D37: 700 | E37: 3.5 | F37: 3.5 x 3.5 x 2.83 | G37: 6.079 | H37: (6.080) | I37: 2777.324 | J37: 1.000 | K37: 1.035 | L37: (0.129) | M37: 382.706 | N37: 1.000 | O37: 1.271 | P37: (0.206) | Q37: (91.414) | R37: 0.998 | S37: 0.941 | T37: 0.107 | U37: 42.096 | V37: 0.989 | W37: 2021-07-21 | X37: 1.00000 | Y37: 1.00000 | Z37: 1.00000 | AA37: 1.00000
A38: CUN86B1G | B38: 200 | C38: 1000 | D38: 1400 | E38: 3.7 | F38: 3.5 x 3.5 x 2.83 | G38: 4.573 | H38: (4.577) | I38: 4035.935 | J38: 1.000 | K38: 1.061 | L38: (0.170) | M38: 969.948 | N38: 1.000 | O38: 1.088 | P38: (0.051) | Q38: (45.920) | R38: 0.999 | S38: 0.959 | T38: 0.074 | U38: 42.342 | V38: 1.000 | W38: 2021-07-21 | X38: 1.00000 | Y38: 1.00000 | Z38: 1.00000 | AA38: 1.00000
A39: CUN8GB1A | B39: 200 | C39: 1000 | D39: 1400 | E39: 3.8 | F39: 3.5 x 3.5 x 2.5 | G39: 5.519 | H39: (5.519) | I39: 5001.013 | J39: 1.000 | K39: 1.035 | L39: (0.140) | M39: 712.914 | N39: 1.000 | O39: 2.332 | P39: (1.276) | Q39: (580.881) | R39: 1.000 | S39: 0.917 | T39: 0.107 | U39: 98.539 | V39: 0.995 | W39: 2021-07-22 | X39: 1.00000 | Y39: 1.00000 | Z39: 1.00000 | AA39: 1.00000
A40: CUN8GF1A | B40: 200 | C40: 1000 | D40: 1400 | E40: 3.8 | F40: 3.5 x 3.5 x 1.1 | G40: 5.520 | H40: (5.520) | I40: 5000.127 | J40: 1.000 | K40: 1.034 | L40: (0.139) | M40: 706.139 | N40: 1.000 | O40: 2.800 | P40: (1.743) | Q40: (778.453) | R40: 1.000 | S40: 0.966 | T40: 0.082 | U40: 28.413 | V40: 1.000 | W40: 2021-07-22 | X40: 1.00000 | Y40: 1.00000 | Z40: 1.00000 | AA40: 1.00000
A41: CUN8HF4A | B41: 500 | C41: 3000 | D41: 4000 | E41: 1.5 | F41: 6.8 x 6.8 x 1 | G41: 3.493 | H41: (3.513) | I41: 8746.978 | J41: 0.999 | K41: 1.001 | L41: (0.108) | M41: 610.574 | N41: 1.000 | O41: 1.413 | P41: (0.325) | Q41: (105.042) | R41: 0.999 | S41: 0.973 | T41: 0.049 | U41: 41.955 | V41: 0.991 | W41: 2021-07-22 | X41: 1.00000 | Y41: 1.00000 | Z41: 1.00000 | AA41: 1.00000
A42: CUN8UB1A | B42: 200 | C42: 700 | D42: 1000 | E42: 4.5 | F42: 3.7 x 3.7 x 2.77 | G42: 5.448 | H42: (5.473) | I42: 3375.169 | J42: 1.000 | K42: 1.048 | L42: (0.154) | M42: 595.760 | N42: 1.000 | O42: 1.128 | P42: (0.102) | Q42: (108.409) | R42: 0.998 | S42: 0.930 | T42: 0.088 | U42: 110.148 | V42: 0.998 | W42: 2021-07-21 | X42: 1.00000 | Y42: 1.00000 | Z42: 1.00000 | AA42: 1.00000
A43: CUN8UC1A | B43: 200 | C43: 700 | D43: 1000 | E43: 4.5 | F43: 3.7 x 3.7 x 3.33 | G43: 6.366 | H43: (6.390) | I43: 4011.008 | J43: 1.000 | K43: 1.066 | L43: (0.170) | M43: 739.960 | N43: 1.000 | O43: 1.173 | P43: (0.136) | Q43: (103.709) | R43: 0.997 | S43: 0.917 | T43: 0.106 | U43: 100.101 | V43: 0.997 | W43: 2021-07-21 | X43: 1.00000 | Y43: 1.00000 | Z43: 1.00000 | AA43: 1.00000
A44: CUN96A1B | B44: 100 | C44: 500 | D44: 700 | E44: 3.5 | F44: 3.5 x 3.5 x 2.0 | G44: 6.601 | H44: (6.603) | I44: 3040.219 | J44: 1.000 | K44: 1.042 | L44: (0.156) | M44: 377.934 | N44: 1.000 | O44: 1.107 | P44: (0.078) | Q44: (79.111) | R44: 0.997 | S44: 0.901 | T44: 0.137 | U44: 78.077 | V44: 0.997 | W44: 2021-07-21 | X44: 1.00000 | Y44: 1.00000 | Z44: 1.00000 | AA44: 1.00000
A45: CUN96A1G | B45: 200 | C45: 1000 | D45: 1400 | E45: 3.6 | F45: 3.5 x 3.5 x 2.0 | G45: 4.674 | H45: (4.513) | I45: 4858.847 | J45: 1.000 | K45: 1.052 | L45: (0.184) | M45: 787.928 | N45: 1.000 | O45: 1.080 | P45: (0.052) | Q45: (57.276) | R45: 0.994 | S45: 0.956 | T45: 0.060 | U45: 82.157 | V45: 0.997 | W45: 2021-07-21 | X45: 1.00000 | Y45: 1.00000 | Z45: 1.00000 | AA45: 1.00000
A46: CUN96B1B | B46: 100 | C46: 500 | D46: 700 | E46: 3.5 | F46: 3.5 x 3.5 x 2.83 | G46: 6.070 | H46: (6.068) | I46: 2781.922 | J46: 1.000 | K46: 1.035 | L46: (0.150) | M46: 341.860 | N46: 1.000 | O46: 1.038 | P46: (0.019) | Q46: (36.647) | R46: 1.000 | S46: 0.940 | T46: 0.108 | U46: 41.959 | V46: 1.000 | W46: 2021-07-21 | X46: 1.00000 | Y46: 1.00000 | Z46: 1.00000 | AA46: 1.00000
A47: CUN96B1G | B47: 200 | C47: 1000 | D47: 1400 | E47: 3.6 | F47: 3.5 x 3.5 x 2.83 | G47: 5.514 | H47: (5.513) | I47: 5003.226 | J47: 1.000 | K47: 1.058 | L47: (0.190) | M47: 844.820 | N47: 1.000 | O47: 1.069 | P47: (0.043) | Q47: (52.655) | R47: 1.000 | S47: 0.947 | T47: 0.067 | U47: 103.524 | V47: 1.000 | W47: 2021-07-22 | X47: 1.00000 | Y47: 1.00000 | Z47: 1.00000 | AA47: 1.00000
A48: CUN9GB1A | B48: 200 | C48: 1000 | D48: 1400 | E48: 3.8 | F48: 3.5 x 3.5 x 2.5 | G48: 5.516 | H48: (5.515) | I48: 5000.766 | J48: 1.000 | K48: 1.040 | L48: (0.145) | M48: 785.482 | N48: 1.000 | O48: 2.218 | P48: (1.168) | Q48: (589.614) | R48: 1.000 | S48: 0.925 | T48: 0.103 | U48: 80.381 | V48: 0.993 | W48: 2021-07-22 | X48: 1.00000 | Y48: 1.00000 | Z48: 1.00000 | AA48: 1.00000
A49: CUN9GF1A | B49: 200 | C49: 1000 | D49: 1400 | E49: 3.8 | F49: 3.5 x 3.5 x 1.1 | G49: 5.518 | H49: (5.519) | I49: 4996.439 | J49: 1.000 | K49: 1.035 | L49: (0.140) | M49: 726.167 | N49: 1.000 | O49: 2.642 | P49: (1.591) | Q49: (795.080) | R49: 1.000 | S49: 0.964 | T49: 0.090 | U49: 27.393 | V49: 1.000 | W49: 2021-07-22 | X49: 1.00000 | Y49: 1.00000 | Z49: 1.00000 | AA49: 1.00000
A50: CUN9HF4A | B50: 500 | C50: 3000 | D50: 4000 | E50: 1.2 | F50: 6.8 x 6.8 x 1 | G50: 3.623 | H50: (3.629) | I50: 9244.515 | J50: 0.999 | K50: 1.001 | L50: (0.119) | M50: 549.716 | N50: 1.000 | O50: 1.468 | P50: (0.399) | Q50: (157.381) | R50: 0.999 | S50: 0.966 | T50: 0.062 | U50: 40.538 | V50: 1.000 | W50: 2021-07-22 | X50: 1.00000 | Y50: 1.00000 | Z50: 1.00000 | AA50: 1.00000
A51: CUN9UB1A | B51: 200 | C51: 700 | D51: 1000 | E51: 4.3 | F51: 3.7 x 3.7 x 2.77 | G51: 4.716 | H51: (4.746) | I51: 2860.822 | J51: 1.000 | K51: 1.048 | L51: (0.159) | M51: 589.711 | N51: 1.000 | O51: 1.152 | P51: (0.119) | Q51: (101.624) | R51: 0.997 | S51: 0.931 | T51: 0.086 | U51: 112.032 | V51: 0.998 | W51: 2021-07-21 | X51: 1.00000 | Y51: 1.00000 | Z51: 1.00000 | AA51: 1.00000
A52: CUN9UC1A | B52: 200 | C52: 700 | D52: 1000 | E52: 4.3 | F52: 3.7 x 3.7 x 3.33 | G52: 4.712 | H52: (4.738) | I52: 2868.855 | J52: 1.000 | K52: 1.048 | L52: (0.159) | M52: 590.055 | N52: 1.000 | O52: 1.189 | P52: (0.154) | Q52: (121.492) | R52: 0.998 | S52: 0.931 | T52: 0.086 | U52: 112.823 | V52: 0.998 | W52: 2021-07-21 | X52: 1.00000 | Y52: 1.00000 | Z52: 1.00000 | AA52: 1.00000
A53: GW PSLR31.EM | B53: 10 | C53: 150 | D53: 200 | E53: 12.0 | F53: 3.0 x 3.0 x 0.6 | G53: 4.259 | H53: (4.258) | I53: 560.761 | J53: 1.000 | K53: 1.270 | L53: (0.433) | M53: 316.633 | N53: 0.999 | O53: 1.194 | P53: (0.165) | Q53: (157.560) | R53: 1.000 | S53: 0.823 | T53: 0.199 | U53: 211.430 | V53: 1.000 | W53: 2017-12-19 | X53: 1.00000 | Y53: 1.00000 | Z53: 1.00000 | AA53: 1.00000
A54: JB3030AWT | B54: 20 | C54: 65 | D54: 240 | E54: 14.0 | F54: 3.0 x 3.0 x 0.52 | G54: 12.117 | H54: (12.119) | I54: 753.068 | J54: 1.000 | K54: 1.472 | L54: (0.537) | M54: 503.958 | N54: 1.000 | O54: 1.106 | P54: (0.089) | Q54: (144.228) | R54: 0.999 | S54: (0.291) | T54: 1.301 | U54: 3163.012 | V54: 0.995 | W54: 2017-12-19 | X54: 1.00000 | Y54: 1.00000 | Z54: 1.00000 | AA54: 1.00000
A55: LH351B-R70 | B55: 50 | C55: 350 | D55: 1500 | E55: 4.0 | F55: 3.5 x 3.5 x 1.93 | G55: 6.410 | H55: (6.384) | I55: 2113.288 | J55: 1.000 | K55: 1.200 | L55: (0.278) | M55: 1062.889 | N55: 0.998 | O55: 1.465 | P55: (0.339) | Q55: (268.108) | R55: 0.999 | S55: 0.707 | T55: 0.350 | U55: 479.750 | V55: 0.999 | W55: 2018-06-04 | X55: 1.00000 | Y55: 1.00000 | Z55: =O55+P55*EXP(-85/Q55) -> 1.00000 | AA55: =S55+T55*EXP(-85/U55) -> 1.00000
A56: LH351B-R80 | B56: 50 | C56: 350 | D56: 1500 | E56: 4.0 | F56: 3.5 x 3.5 x 1.93 | G56: 6.410 | H56: (6.384) | I56: 2113.288 | J56: 1.000 | K56: 1.200 | L56: (0.278) | M56: 1062.889 | N56: 0.998 | O56: 1.465 | P56: (0.339) | Q56: (268.108) | R56: 0.999 | S56: 0.707 | T56: 0.350 | U56: 479.750 | V56: 0.999 | W56: 2018-06-04 | X56: 1.00000 | Y56: 1.00000 | Z56: 1.00000 | AA56: 1.00000
A57: LH351B-R90 | B57: 50 | C57: 350 | D57: 1500 | E57: 4.0 | F57: 3.5 x 3.5 x 1.93 | G57: 6.410 | H57: (6.384) | I57: 2113.288 | J57: 1.000 | K57: 1.200 | L57: (0.278) | M57: 1062.889 | N57: 0.998 | O57: 1.465 | P57: (0.339) | Q57: (268.108) | R57: 0.999 | S57: 0.707 | T57: 0.350 | U57: 479.750 | V57: 0.999 | W57: 2018-06-04 | X57: 1.00000 | Y57: 1.00000 | Z57: 1.00000 | AA57: 1.00000
A58: LH351C-R70 | B58: 50 | C58: 700 | D58: 2000 | E58: 3.0 | F58: 3.5 x 3.5 x 2.33 | G58: 4.192 | H58: (4.169) | I58: 2621.989 | J58: 1.000 | K58: 1.190 | L58: (0.295) | M58: 1585.796 | N58: 0.998 | O58: 3.840 | P58: (2.672) | Q58: (1399.157) | R58: 1.000 | S58: 0.947 | T58: 0.112 | U58: 114.752 | V58: 0.999 | W58: 2018-06-06 | X58: 1.00000 | Y58: 1.00000 | Z58: 1.00000 | AA58: 1.00000
A59: LH351C-R80 | B59: 50 | C59: 700 | D59: 2000 | E59: 3.0 | F59: 3.5 x 3.5 x 2.33 | G59: 4.192 | H59: (4.169) | I59: 2621.989 | J59: 1.000 | K59: 1.190 | L59: (0.295) | M59: 1585.796 | N59: 0.998 | O59: 3.840 | P59: (2.672) | Q59: (1399.157) | R59: 1.000 | S59: 0.947 | T59: 0.112 | U59: 114.752 | V59: 0.999 | W59: 2018-06-06 | X59: 1.00000 | Y59: 1.00000 | Z59: 1.00000 | AA59: 1.00000
A60: LH351C-R90 | B60: 50 | C60: 700 | D60: 2000 | E60: 3.0 | F60: 3.5 x 3.5 x 2.33 | G60: 4.192 | H60: (4.169) | I60: 2621.989 | J60: 1.000 | K60: 1.190 | L60: (0.295) | M60: 1585.796 | N60: 0.998 | O60: 3.840 | P60: (2.672) | Q60: (1399.157) | R60: 1.000 | S60: 0.947 | T60: 0.112 | U60: 114.752 | V60: 0.999 | W60: 2018-06-06 | X60: 1.00000 | Y60: 1.00000 | Z60: 1.00000 | AA60: 1.00000
A61: LM301B-R70 | B61: 10 | C61: 65 | D61: 200 | E61: 7.5 | F61: 3.0 x 3.3 x 0.75 | G61: 13.420 | H61: (13.428) | I61: 833.253 | J61: 1.000 | K61: 1.090 | L61: (0.154) | M61: 120.670 | N61: 0.995 | O61: 1.357 | P61: (0.336) | Q61: (403.400) | R61: 0.998 | S61: 0.916 | T61: 0.104 | U61: 117.502 | V61: 0.994 | W61: 2018-08-28 | X61: 1.00000 | Y61: 1.00000 | Z61: =O61+P61*EXP(-25/Q61) -> 1.00000 | AA61: =S61+T61*EXP(-25/U61) -> 1.00000
A62: LM301B-R80 | B62: 10 | C62: 65 | D62: 200 | E62: 7.5 | F62: 3.0 x 3.3 x 0.75 | G62: 13.420 | H62: (13.428) | I62: 833.253 | J62: 1.000 | K62: 1.090 | L62: (0.154) | M62: 120.670 | N62: 0.995 | O62: 1.357 | P62: (0.336) | Q62: (403.400) | R62: 0.998 | S62: 0.916 | T62: 0.104 | U62: 117.502 | V62: 0.994 | W62: 2018-08-28 | X62: 1.00000 | Y62: 1.00000 | Z62: =O62+P62*EXP(-25/Q62) -> 1.00000 | AA62: =S62+T62*EXP(-25/U62) -> 1.00000
A63: LM301B-R90 | B63: 10 | C63: 65 | D63: 200 | E63: 7.5 | F63: 3.0 x 3.3 x 0.75 | G63: 13.420 | H63: (13.428) | I63: 833.253 | J63: 1.000 | K63: 1.090 | L63: (0.154) | M63: 120.670 | N63: 0.995 | O63: 1.357 | P63: (0.336) | Q63: (403.400) | R63: 0.998 | S63: 0.916 | T63: 0.104 | U63: 117.502 | V63: 0.994 | W63: 2018-08-28 | X63: 1.00000 | Y63: 1.00000 | Z63: =O63+P63*EXP(-25/Q63) -> 1.00000 | AA63: =S63+T63*EXP(-25/U63) -> 1.00000
A64: LM561C-R80 | B64: 10 | C64: 65 | D64: 200 | E64: 12.0 | F64: 5.6 x 3.0 x 0.7 | G64: 13.625 | H64: (13.639) | I64: 841.718 | J64: 1.000 | K64: 1.156 | L64: (0.218) | M64: 194.453 | N64: 0.996 | O64: 1.476 | P64: (0.441) | Q64: (325.769) | R64: 1.000 | S64: 0.830 | T64: 0.181 | U64: 390.575 | V64: 1.000 | W64: 2018-09-25 | X64: 1.00000 | Y64: 1.00000 | Z64: =O64+P64*EXP(-25/Q64) -> 1.00000 | AA64: =S64+T64*EXP(-25/U64) -> 1.00000
A65: MHB-B-18V-R70 | B65: 20 | C65: 240 | D65: 350 | E65: 4.0 | F65: 5.0 x 5.0 x 1.51 | G65: 4.116 | H65: (4.116) | I65: 862.506 | J65: 1.000 | K65: 1.175 | L65: (0.316) | M65: 406.681 | N65: 1.000 | O65: 1.569 | P65: (0.408) | Q65: (256.401) | R65: 0.999 | S65: (350.614) | T65: 351.653 | U65: 761852.000 | V65: 0.999 | W65: 2018-07-03 | X65: 1.00000 | Y65: 1.00000 | Z65: =O65+P65*EXP(-85/Q65) -> 1.00000 | AA65: =S65+T65*EXP(-85/U65) -> 1.00000
A66: MHB-B-9V-R70 | B66: 20 | C66: 480 | D66: 700 | E66: 4.0 | F66: 5.0 x 5.0 x 1.51 | G66: 4.008 | H66: (4.013) | I66: 1664.950 | J66: 1.000 | K66: 1.156 | L66: (0.287) | M66: 786.120 | N66: 1.000 | O66: 1.569 | P66: (0.408) | Q66: (256.401) | R66: 0.999 | S66: (729.232) | T66: 730.310 | U66: 794766.900 | V66: 1.000 | W66: 2018-07-03 | X66: 1.00000 | Y66: 1.00000 | Z66: =O66+P66*EXP(-85/Q66) -> 1.00000 | AA66: =S66+T66*EXP(-85/U66) -> 1.00000
A67: NVSL219C-R70 | B67: 20 | C67: 700 | D67: 1800 | E67: 4.2 | F67: 3.5 x 3.5 x 2.0 | G67: 5.790 | H67: (5.750) | I67: 3832.557 | J67: 0.999 | K67: 1.275 | L67: (0.383) | M67: 2096.705 | N67: 0.999 | O67: 1.137 | P67: (0.116) | Q67: (148.804) | R67: 0.999 | S67: (24.928) | T67: 25.949 | U67: 31215.456 | V67: 0.899 | W67: 2018-05-31 | X67: 1.00000 | Y67: 1.00000 | Z67: =O67+P67*EXP(-25/Q67) -> 1.00000 | AA67: =S67+T67*EXP(-25/U67) -> 1.00000
A68: NVSL219C-R80 | B68: 20 | C68: 700 | D68: 1800 | E68: 4.2 | F68: 3.5 x 3.5 x 2.0 | G68: 5.790 | H68: (5.750) | I68: 3832.557 | J68: 0.999 | K68: 1.275 | L68: (0.383) | M68: 2096.705 | N68: 0.999 | O68: 1.137 | P68: (0.116) | Q68: (148.804) | R68: 0.999 | S68: (24.928) | T68: 25.949 | U68: 31215.456 | V68: 0.899 | W68: 2018-05-31 | X68: =G68+H68*EXP(-C68/I68) -> 1.00000 | Y68: =K68+L68*EXP(-C68/M68) -> 1.00000 | Z68: 1.00000 | AA68: 1.00000
A69: NVSL219C-R90 | B69: 20 | C69: 700 | D69: 1800 | E69: 4.2 | F69: 3.5 x 3.5 x 2.0 | G69: 5.790 | H69: (5.750) | I69: 3832.557 | J69: 0.999 | K69: 1.275 | L69: (0.383) | M69: 2096.705 | N69: 0.999 | O69: 1.137 | P69: (0.116) | Q69: (148.804) | R69: 0.999 | S69: (24.928) | T69: 25.949 | U69: 31215.456 | V69: 0.899 | W69: 2018-05-31 | X69: 1.00000 | Y69: 1.00000 | Z69: 1.00000 | AA69: 1.00000
A70: SAW09D0A | B70: 10 | C70: 200 | D70: 250 | E70: 7.0 | F70: 4.0 x 4.0 x 2.2 | G70: 5.858 | H70: (5.847) | I70: 1079.079 | J70: 1.000 | K70: 1.368 | L70: (0.506) | M70: 626.388 | N70: 1.000 | O70: (11587.74) | P70: 11588.77 | Q70: 8612440.000 | R70: 0.999 | S70: 0.701 | T70: 0.421 | U70: 72.543 | V70: 0.997 | W70: 2020-01-30 | X70: 1.00000 | Y70: 1.00000 | Z70: 1.00000 | AA70: 1.00000
A71: SAW0L60A | B71: 20 | C71: 60 | D71: 320 | E71: 1.8 | F71: 5.0 x 5.0 x 0.7 | G71: 25.061 | H71: (25.049) | I71: 1491.147 | J71: 1.000 | K71: 1.299 | L71: (0.349) | M71: 391.899 | N71: 0.997 | O71: (0.437) | P71: 1.475 | Q71: 947.721 | R71: 1.000 | S71: 0.933 | T71: 0.084 | U71: 111.883 | V71: 0.998 | W71: 2018-01-12 | X71: 1.00000 | Y71: 1.00000 | Z71: 1.00000 | AA71: 1.00000
A72: SAW7C22B-IZ | B72: 20 | C72: 150 | D72: 250 | E72: 11.0 | F72: 3.0 x 3.0 x 0.6 | G72: 4.554 | H72: (4.552) | I72: 605.760 | J72: 1.000 | K72: 1.174 | L72: (0.335) | M72: 228.383 | N72: 0.993 | O72: 2.349 | P72: (1.313) | Q72: (930.625) | R72: 0.999 | S72: 0.916 | T72: 0.101 | U72: 142.548 | V72: 1.000 | W72: 2018-05-30 | X72: 1.00000 | Y72: 1.00000 | Z72: 1.00000 | AA72: 1.00000
A73: SAW89D0A | B73: 10 | C73: 200 | D73: 250 | E73: 7.0 | F73: 4.0 x 4.0 x 2.2 | G73: 5.858 | H73: (5.847) | I73: 1079.079 | J73: 1.000 | K73: 1.368 | L73: (0.506) | M73: 626.398 | N73: 1.000 | O73: (11587.74) | P73: 11588.77 | Q73: 8612440.000 | R73: 0.999 | S73: 0.701 | T73: 0.421 | U73: 72.543 | V73: 0.997 | W73: 2020-01-30 | X73: 1.00000 | Y73: 1.00000 | Z73: 1.00000 | AA73: 1.00000
A74: SAW8A32E-E1 | B74: 20 | C74: 100 | D74: 120 | E74: 13.0 | F74: 3.5 x 2.8 x 0.7 | G74: 3.764 | H74: (3.781) | I74: 319.129 | J74: 1.000 | K74: 1.040 | L74: (0.214) | M74: 59.686 | N74: 0.994 | O74: 1.303 | P74: (0.272) | Q74: (231.199) | R74: 0.999 | S74: 0.930 | T74: 0.097 | U74: 75.853 | V74: 0.989 | W74: 2017-10-07 | X74: 1.00000 | Y74: 1.00000 | Z74: 1.00000 | AA74: 1.00000
A75: SAW8A32E-E2 | B75: 20 | C75: 100 | D75: 120 | E75: 17.0 | F75: 3.5 x 2.8 x 0.7 | G75: 4.194 | H75: (4.202) | I75: 364.619 | J75: 1.000 | K75: 1.073 | L75: (0.210) | M75: 94.889 | N75: 1.000 | O75: 1.274 | P75: (0.243) | Q75: (203.052) | R75: 1.000 | S75: 0.894 | T75: 0.125 | U75: 145.920 | V75: 1.000 | W75: 2019-12-11 | X75: 1.00000 | Y75: 1.00000 | Z75: 1.00000 | AA75: 1.00000
A76: SAW8A62E-E1 | B76: 10 | C76: 50 | D76: 60 | E76: 13.0 | F76: 3.5 x 2.8 x 0.7 | G76: 3.837 | H76: (3.822) | I76: 167.925 | J76: 1.000 | K76: 1.122 | L76: (0.256) | M76: 67.088 | N76: 1.000 | O76: 1.226 | P76: (0.199) | Q76: (195.500) | R76: 0.999 | S76: 0.936 | T76: 0.091 | U76: 70.367 | V76: 0.992 | W76: 2017-10-07 | X76: 1.00000 | Y76: 1.00000 | Z76: 1.00000 | AA76: 1.00000
A77: SAW8A62E-E2 | B77: 10 | C77: 50 | D77: 60 | E77: 15.0 | F77: 3.5 x 2.8 x 0.7 | G77: 3.908 | H77: (3.922) | I77: 167.097 | J77: 1.000 | K77: 1.099 | L77: (0.231) | M77: 59.080 | N77: 1.000 | O77: 1.214 | P77: (0.188) | Q77: (195.909) | R77: 1.000 | S77: 0.836 | T77: 0.185 | U77: 211.300 | V77: 1.000 | W77: 2019-07-29 | X77: 1.00000 | Y77: 1.00000 | Z77: 1.00000 | AA77: 1.00000
A78: SAW8C22B-IZ | B78: 20 | C78: 150 | D78: 250 | E78: 11.0 | F78: 3.0 x 3.0 x 0.6 | G78: 4.554 | H78: (4.552) | I78: 605.761 | J78: 1.000 | K78: 1.174 | L78: (0.335) | M78: 228.387 | N78: 0.993 | O78: 2.349 | P78: (1.313) | Q78: (930.685) | R78: 0.999 | S78: 0.916 | T78: 0.101 | U78: 142.548 | V78: 1.000 | W78: 2017-07-03 | X78: 1.00000 | Y78: 1.00000 | Z78: 1.00000 | AA78: 1.00000
A79: SAW8C22B-NZ | B79: 20 | C79: 150 | D79: 250 | E79: 11.0 | F79: 3.0 x 3.0 x 0.6 | G79: 4.554 | H79: (4.552) | I79: 605.758 | J79: 1.000 | K79: 1.174 | L79: (0.335) | M79: 228.383 | N79: 0.993 | O79: 2.349 | P79: (1.313) | Q79: (930.725) | R79: 0.999 | S79: 0.916 | T79: 0.101 | U79: 142.548 | V79: 1.000 | W79: 2018-05-30 | X79: 1.00000 | Y79: 1.00000 | Z79: 1.00000 | AA79: 1.00000
A80: SAW8L60A | B80: 20 | C80: 60 | D80: 320 | E80: 1.8 | F80: 5.0 x 5.0 x 0.7 | G80: 25.061 | H80: (25.049) | I80: 1491.153 | J80: 1.000 | K80: 1.323 | L80: (0.375) | M80: 401.952 | N80: 0.997 | O80: (0.437) | P80: 1.475 | Q80: 947.821 | R80: 1.000 | S80: 0.935 | T80: 0.083 | U80: 106.528 | V80: 0.997 | W80: 2018-01-12 | X80: 1.00000 | Y80: 1.00000 | Z80: 1.00000 | AA80: 1.00000
A81: SAW9A32E-E1 | B81: 20 | C81: 100 | D81: 120 | E81: 13.0 | F81: 3.5 x 2.8 x 0.7 | G81: 2.634 | H81: (2.646) | I81: 207.341 | J81: 1.000 | K81: 1.060 | L81: (0.236) | M81: 73.196 | N81: 0.996 | O81: 1.294 | P81: (0.263) | Q81: (226.688) | R81: 0.999 | S81: 0.920 | T81: 0.104 | U81: 93.330 | V81: 0.987 | W81: 2017-10-07 | X81: 1.00000 | Y81: 1.00000 | Z81: 1.00000 | AA81: 1.00000
A82: SAW9A32E-E2 | B82: 20 | C82: 100 | D82: 120 | E82: 17.0 | F82: 3.5 x 2.8 x 0.7 | G82: 4.181 | H82: (4.190) | I82: 362.893 | J82: 1.000 | K82: 1.074 | L82: (0.210) | M82: 95.538 | N82: 1.000 | O82: 1.272 | P82: (0.243) | Q82: (223.388) | R82: 1.000 | S82: 0.885 | T82: 0.134 | U82: 159.709 | V82: 0.999 | W82: 2019-08-29 | X82: 1.00000 | Y82: 1.00000 | Z82: 1.00000 | AA82: 1.00000
A83: SAW9A62E-E1 | B83: 10 | C83: 50 | D83: 60 | E83: 13.0 | F83: 3.5 x 2.8 x 0.7 | G83: 3.837 | H83: (3.822) | I83: 167.925 | J83: 1.000 | K83: 1.122 | L83: (0.256) | M83: 67.085 | N83: 1.000 | O83: 1.226 | P83: (0.199) | Q83: (195.470) | R83: 0.999 | S83: 0.936 | T83: 0.091 | U83: 70.357 | V83: 0.992 | W83: 2021-02-09 | X83: 1.00000 | Y83: 1.00000 | Z83: 1.00000 | AA83: 1.00000
A84: SAW9A62E-E2 | B84: 10 | C84: 50 | D84: 60 | E84: 15.0 | F84: 3.5 x 2.8 x 0.7 | G84: 3.908 | H84: (3.922) | I84: 167.097 | J84: 1.000 | K84: 1.099 | L84: (0.231) | M84: 59.080 | N84: 1.000 | O84: 1.214 | P84: (0.188) | Q84: (195.889) | R84: 1.000 | S84: 0.836 | T84: 0.185 | U84: 211.300 | V84: 1.000 | W84: 2021-02-09 | X84: 1.00000 | Y84: 1.00000 | Z84: 1.00000 | AA84: 1.00000
A85: SAW9C22B-NZ | B85: 20 | C85: 150 | D85: 250 | E85: 11.0 | F85: 3.0 x 3.0 x 0.6 | G85: 4.095 | H85: (4.092) | I85: 537.115 | J85: 1.000 | K85: 1.190 | L85: (0.349) | M85: 246.980 | N85: 0.996 | O85: 1.722 | P85: (0.694) | Q85: (642.404) | R85: 0.998 | S85: 0.896 | T85: 0.118 | U85: 195.060 | V85: 0.994 | W85: 2017-10-07 | X85: 1.00000 | Y85: 1.00000 | Z85: 1.00000 | AA85: 1.00000
A86: SAWS0661A | B86: 25 | C86: 170 | D86: 260 | E86: 1.5 | F86: 13.5 x 13.5 x 1.45 | G86: 7.411 | H86: (7.413) | I86: 1170.770 | J86: 1.000 | K86: 1.208 | L86: (0.301) | M86: 458.353 | N86: 1.000 | O86: 1.287 | P86: (0.085) | Q86: (69.854) | R86: 1.000 | S86: 0.939 | T86: 0.105 | U86: 156.306 | V86: 1.000 | W86: 2018-02-20 | X86: 1.00000 | Y86: 1.00000 | Z86: =O86+P86*EXP(-85/Q86) -> 1.00000 | AA86: =S86+T86*EXP(-85/U86) -> 1.00000
A87: SAWS1063A | B87: 50 | C87: 290 | D87: 580 | E87: 0.7 | F87: 13.5 x 13.5 x 1.45 | G87: 13.166 | H87: (13.168) | I87: 3664.173 | J87: 1.000 | K87: 1.252 | L87: (0.311) | M87: 1370.300 | N87: 1.000 | O87: 1.281 | P87: (0.082) | Q87: (68.718) | R87: 1.000 | S87: 0.942 | T87: 0.102 | U87: 149.163 | V87: 1.000 | W87: 2018-02-20 | X87: 1.00000 | Y87: 1.00000 | Z87: =O87+P87*EXP(-85/Q87) -> 1.00000 | AA87: =S87+T87*EXP(-85/U87) -> 1.00000
A88: SAWS1564A | B88: 100 | C88: 430 | D88: 860 | E88: 0.5 | F88: 19 x 19 x 1.45 | G88: 10.796 | H88: (10.797) | I88: 4419.605 | J88: 1.000 | K88: 1.257 | L88: (0.322) | M88: 1910.289 | N88: 1.000 | O88: 1.276 | P88: (0.079) | Q88: (68.223) | R88: 1.000 | S88: 0.944 | T88: 0.100 | U88: 146.601 | V88: 1.000 | W88: 2018-02-20 | X88: 1.00000 | Y88: 1.00000 | Z88: 1.00000 | AA88: =S88+T88*EXP(-85/U88) -> 1.00000
A89: SAWS1566A | B89: 150 | C89: 720 | D89: 1440 | E89: 0.3 | F89: 19 x 19 x 1.45 | G89: 10.564 | H89: (10.566) | I89: 7226.328 | J89: 1.000 | K89: 1.221 | L89: (0.294) | M89: 2542.730 | N89: 1.000 | O89: 1.290 | P89: (0.087) | Q89: (70.673) | R89: 1.000 | S89: 0.939 | T89: 0.106 | U89: 157.067 | V89: 1.000 | W89: 2018-02-20 | X89: 1.00000 | Y89: 1.00000 | Z89: 1.00000 | AA89: =S89+T89*EXP(-85/U89) -> 1.00000
A90: SPF05F0B(B) | B90: 10 | C90: 1000 | D90: 2500 | E90: 1.4 | F90: 5.75 x 6.38 x 1.21 | G90: 3.508 | H90: (3.260) | I90: 3812.665 | J90: 1.000 | K90: 1.700 | L90: (1.185) | M90: 1901.758 | N90: 0.998 | O90: 0.901 | P90: 0.135 | Q90: 79.359 | R90: 0.989 | S90: 0.902 | T90: 0.120 | U90: 127.186 | V90: 0.988 | W90: 2022-02-28 | X90: 1.00000 | Y90: 1.00000 | Z90: =O90+P90*EXP(-25/Q90) -> 1.00000 | AA90: =S90+T90*EXP(-25/U90) -> 1.00000
A91: SPF05F0B(G) | B91: 10 | C91: 1000 | D91: 2500 | E91: 1.4 | F91: 5.75 x 6.38 x 1.21 | G91: 1.922 | H91: (1.697) | I91: 1638.085 | J91: 0.996 | K91: 1.546 | L91: (1.189) | M91: 1284.911 | N91: 0.997 | O91: 0.724 | P91: 0.346 | Q91: 110.303 | R91: 1.000 | S91: 0.724 | T91: 0.316 | U91: 181.125 | V91: 0.999 | W91: 2022-02-28 | X91: 1.00000 | Y91: 1.00000 | Z91: 1.00000 | AA91: 1.00000
A92: SPF05F0B(R) | B92: 10 | C92: 1000 | D92: 2500 | E92: 1.4 | F92: 5.75 x 6.38 x 1.21 | G92: 2.377 | H92: (2.397) | I92: 1803.106 | J92: 0.998 | K92: 3.650 | L92: (2.941) | M92: 9576.701 | N92: 0.999 | O92: 1.013 | P92: (0.009) | Q92: (69.109) | R92: 0.931 | S92: 1.012 | T92: (0.009) | U92: (86.796) | V92: 0.938 | W92: 2022-02-28 | X92: 1.00000 | Y92: 1.00000 | Z92: 1.00000 | AA92: 1.00000
A93: SPF05F0B(W) | B93: 10 | C93: 1000 | D93: 2500 | E93: 1.4 | F93: 5.75 x 6.38 x 1.21 | G93: 2.820 | H93: (2.644) | I93: 2679.085 | J93: 0.999 | K93: 1.657 | L93: (1.136) | M93: 1824.296 | N93: 0.997 | O93: 0.902 | P93: 0.131 | Q93: 86.896 | R93: 0.999 | S93: 0.899 | T93: 0.119 | U93: 150.996 | V93: 0.999 | W93: 2022-02-28 | X93: 1.00000 | Y93: 1.00000 | Z93: 1.00000 | AA93: 1.00000
A94: SPF05F0C(B) | B94: 10 | C94: 1400 | D94: 4500 | E94: 0.8 | F94: 5.75 x 6.38 x 1.21 | G94: 3.336 | H94: (3.329) | I94: 3953.604 | J94: 1.000 | K94: 1.415 | L94: (0.668) | M94: 2936.590 | N94: 0.999 | O94: 1.158 | P94: (0.134) | Q94: (150.898) | R94: 0.999 | S94: 0.922 | T94: 0.099 | U94: 104.954 | V94: 1.000 | W94: 2022-02-11 | X94: 1.00000 | Y94: 1.00000 | Z94: 1.00000 | AA94: 1.00000
A95: SPF05F0C(G) | B95: 10 | C95: 1400 | D95: 4500 | E95: 0.8 | F95: 5.75 x 6.38 x 1.21 | G95: 1.896 | H95: (1.847) | I95: 1935.256 | J95: 0.999 | K95: 1.406 | L95: (0.741) | M95: 2326.110 | N95: 0.997 | O95: 0.254 | P95: 0.820 | Q95: 263.727 | R95: 1.000 | S95: 0.871 | T95: 0.172 | U95: 86.689 | V95: 1.000 | W95: 2022-02-11 | X95: 1.00000 | Y95: 1.00000 | Z95: 1.00000 | AA95: 1.00000
A96: SPF05F0C(R) | B96: 10 | C96: 1400 | D96: 4500 | E96: 0.8 | F96: 5.75 x 6.38 x 1.21 | G96: 3.629 | H96: (3.656) | I96: 4242.854 | J96: 1.000 | K96: 1.585 | L96: (0.795) | M96: 4561.508 | N96: 0.999 | O96: 9.794 | P96: (8.645) | Q96: (1462.548) | R96: 1.000 | S96: 0.825 | T96: 0.205 | U96: 154.243 | V96: 1.000 | W96: 2022-02-11 | X96: 1.00000 | Y96: 1.00000 | Z96: 1.00000 | AA96: 1.00000
A97: SPF05F0C(W) | B97: 10 | C97: 1400 | D97: 4500 | E97: 0.8 | F97: 5.75 x 6.38 x 1.21 | G97: 2.702 | H97: (2.748) | I97: 2923.035 | J97: 1.000 | K97: 1.393 | L97: (0.657) | M97: 2724.800 | N97: 0.999 | O97: 1.165 | P97: (0.142) | Q97: (161.567) | R97: 0.999 | S97: 0.909 | T97: 0.112 | U97: 119.391 | V97: 1.000 | W97: 2022-02-11 | X97: 1.00000 | Y97: 1.00000 | Z97: 1.00000 | AA97: 1.00000
A98: SPF0BF0A(B) | B98: 10 | C98: 150 | D98: 180 | E98: 10.0 | F98: 3.45 x 3.45 x 0.9 | G98: 2.978 | H98: (2.970) | I98: 368.890 | J98: 1.000 | K98: 1.396 | L98: (0.686) | M98: 272.737 | N98: 1.000 | O98: 1.257 | P98: (0.226) | Q98: (194.576) | R98: 0.999 | S98: 0.832 | T98: 0.203 | U98: 133.183 | V98: 0.997 | W98: 2022-02-10 | X98: 1.00000 | Y98: 1.00000 | Z98: 1.00000 | AA98: 1.00000
A99: SPF0BF0A(G) | B99: 10 | C99: 150 | D99: 180 | E99: 10.0 | F99: 3.45 x 3.45 x 0.9 | G99: 1.466 | H99: (1.423) | I99: 134.463 | J99: 1.000 | K99: 1.428 | L99: (0.732) | M99: 279.831 | N99: 1.000 | O99: 0.107 | P99: 0.969 | Q99: 306.767 | R99: 1.000 | S99: 0.832 | T99: 0.203 | U99: 133.183 | V99: 0.997 | W99: 2022-02-10 | X99: 1.00000 | Y99: 1.00000 | Z99: 1.00000 | AA99: 1.00000
A100: SPF0BF0A(R) | B100: 10 | C100: 150 | D100: 180 | E100: 10.0 | F100: 3.45 x 3.45 x 0.9 | G100: 3.268 | H100: (3.290) | I100: 403.409 | J100: 1.000 | K100: 1.238 | L100: (0.385) | M100: 310.908 | N100: 1.000 | O100: 1.846 | P100: (0.735) | Q100: (178.166) | R100: 1.000 | S100: 0.832 | T100: 0.203 | U100: 133.183 | V100: 0.997 | W100: 2022-02-10 | X100: =G100+H100*EXP(-C100/I100) -> 1.00000 | Y100: =K100+L100*EXP(-C100/M100) -> 1.00000 | Z100: 1.00000 | AA100: 1.00000
A101: SPF0BF0A(W) | B101: 10 | C101: 150 | D101: 180 | E101: 10.0 | F101: 3.45 x 3.45 x 0.9 | G101: 2.482 | H101: (2.485) | I101: 290.281 | J101: 1.000 | K101: 1.278 | L101: (0.486) | M101: 268.363 | N101: 1.000 | O101: 1.571 | P101: (0.528) | Q101: (315.389) | R101: 1.000 | S101: 0.832 | T101: 0.203 | U101: 133.183 | V101: 0.997 | W101: 2022-02-10 | X101: 1.00000 | Y101: 1.00000 | Z101: 1.00000 | AA101: 1.00000
A102: SPG05F0D | B102: 10 | C102: 1400 | D102: 5000 | E102: 0.8 | F102: 3.65 x 3.90 x 1.21 | G102: 1.925 | H102: (1.846) | I102: 2025.040 | J102: 0.999 | K102: 1.409 | L102: (0.735) | M102: 2388.000 | N102: 0.998 | O102: 0.311 | P102: 0.766 | Q102: 235.004 | R102: 1.000 | S102: 0.873 | T102: 0.171 | U102: 83.340 | V102: 1.000 | W102: 2022-02-10 | X102: 1.00000 | Y102: 1.00000 | Z102: 1.00000 | AA102: 1.00000
A103: STB0C2PB | B103: 20 | C103: 100 | D103: 300 | E103: 10.0 | F103: 3.0 x 3.0 x 0.6 | G103: 21.406 | H103: (21.395) | I103: 2111.855 | J103: 1.000 | K103: 1.513 | L103: (0.568) | M103: 983.819 | N103: 1.000 | O103: 1.135 | P103: (0.116) | Q103: (169.387) | R103: 0.999 | S103: 0.910 | T103: 0.107 | U103: 137.704 | V103: 0.995 | W103: 2021-03-08 | X103: 1.00000 | Y103: 1.00000 | Z103: 1.00000 | AA103: 1.00000
A104: STW0L6PA | B104: 50 | C104: 750 | D104: 1000 | E104: 2.9 | F104: 5.0 x 5.0 x 0.7 | G104: 4.572 | H104: (4.568) | I104: 3042.574 | J104: 1.000 | K104: 1.372 | L104: (0.571) | M104: 1741.571 | N104: 0.999 | O104: 2.313 | P104: (1.275) | Q104: (826.603) | R104: 0.998 | S104: 0.942 | T104: 0.078 | U104: 83.973 | V104: 0.996 | W104: 2018-10-14 | X104: 1.00201 | Y104: 1.00043 | Z104: 0.99796 | AA104: 0.99973
A105: STW0L8PA | B105: 100 | C105: 640 | D105: 800 | E105: 2.0 | F105: 5.0 x 5.0 x 0.7 | G105: 5.872 | H105: (5.861) | I105: 3461.303 | J105: 1.000 | K105: 1.436 | L105: (0.593) | M105: 2090.519 | N105: 1.000 | O105: 1.296 | P105: (0.262) | Q105: (205.274) | R105: 1.000 | S105: 0.945 | T105: 0.068 | U105: 111.472 | V105: 1.000 | W105: 2019-07-23 | X105: 0.99998 | Y105: 0.99994 | Z105: 1.00004 | AA105: 1.00001
A106: STW0L8PA(E1H1C100) | B106: 100 | C106: 640 | D106: 800 | E106: 2.0 | F106: 5.0 x 5.0 x 0.7 | G106: 5.872 | H106: (5.861) | I106: 3461.213 | J106: 1.000 | K106: 1.436 | L106: (0.593) | M106: 2089.509 | N106: 1.000 | O106: 1.296 | P106: (0.262) | Q106: (205.038) | R106: 1.000 | S106: 0.945 | T106: 0.068 | U106: 111.396 | V106: 1.000 | W106: 2020-02-11 | X106: 1.00000 | Y106: 1.00000 | Z106: 1.00000 | AA106: 1.00000
A107: STW0L8SA-E1H1C100 | B107: 30 | C107: 160 | D107: 200 | E107: 2.0 | F107: 5.0 x 5.0 x 0.7 | G107: 2.657 | H107: (2.631) | I107: 345.980 | J107: 1.000 | K107: 1.219 | L107: (0.349) | M107: 344.619 | N107: 1.000 | O107: 1.302 | P107: (0.268) | Q107: (212.312) | R107: 1.000 | S107: 0.945 | T107: 0.069 | U107: 112.126 | V107: 0.999 | W107: 2022-07-01 | X107: 1.00000 | Y107: 1.00000 | Z107: 1.00000 | AA107: 1.00000
A108: STW0LAPA-E2H1C100 | B108: 100 | C108: 640 | D108: 800 | E108: 2.0 | F108: 5.0 x 5.0 x 0.7 | G108: 5.294 | H108: (5.293) | I108: 3061.296 | J108: 1.000 | K108: 1.129 | L108: (0.237) | M108: 1055.420 | N108: 1.000 | O108: 1.291 | P108: (0.258) | Q108: (209.542) | R108: 1.000 | S108: 0.945 | T108: 0.069 | U108: 112.480 | V108: 1.000 | W108: 2022-04-15 | X108: 1.00000 | Y108: 1.00000 | Z108: 1.00000 | AA108: 1.00000
A109: STW7A2PD-E2 | B109: 10 | C109: 65 | D109: 300 | E109: 13.0 | F109: 3.5 x2.8 x 0.7 | G109: 29.507 | H109: (29.486) | I109: 1924.934 | J109: 1.000 | K109: 1.259 | L109: (0.336) | M109: 250.223 | N109: 0.989 | O109: 1.213 | P109: (0.190) | Q109: (214.914) | R109: 1.000 | S109: 0.773 | T109: 0.238 | U109: 569.429 | V109: 1.000 | W109: 2021-02-05 | X109: 1.00000 | Y109: 1.00000 | Z109: 1.00000 | AA109: 1.00000
A110: STW7C12C-E0 | B110: 20 | C110: 65 | D110: 200 | E110: 7.5 | F110: 3.0 x 3.0 x 0.6 | G110: 18.916 | H110: (18.912) | I110: 1201.452 | J110: 1.000 | K110: 1.135 | L110: (0.176) | M110: 241.402 | N110: 1.000 | O110: 1.108 | P110: (0.090) | Q110: (133.840) | R110: 0.999 | S110: 6276.881 | T110: (6275.870) | U110: (14433600.000) | V110: 0.994 | W110: 2019-11-25 | X110: 1.00000 | Y110: 1.00000 | Z110: 1.00000 | AA110: 1.00000
A111: STW7C12H-E00000IZ | B111: 20 | C111: 65 | D111: 200 | E111: 7.5 | F111: 3.0 x 3.0 x 0.6 | G111: 11.626 | H111: (11.640) | I111: 713.433 | J111: 1.000 | K111: 1.089 | L111: (0.138) | M111: 149.075 | N111: 0.992 | O111: 1.129 | P111: (0.110) | Q111: (154.263) | R111: 1.000 | S111: 0.786 | T111: 0.222 | U111: 628.934 | V111: 0.999 | W111: 2022-04-18 | X111: 1.00000 | Y111: 1.00000 | Z111: 1.00000 | AA111: 1.00000
A112: STW7C2PB-E2 | B112: 20 | C112: 65 | D112: 400 | E112: 10.0 | F112: 3.0 x 3.0 x 0.6 | G112: 18.782 | H112: (18.764) | I112: 1208.495 | J112: 1.000 | K112: 1.360 | L112: (0.414) | M112: 465.869 | N112: 0.999 | O112: 1.099 | P112: (0.082) | Q112: (132.817) | R112: 1.000 | S112: 0.871 | T112: 0.143 | U112: 257.377 | V112: 0.999 | W112: 2020-01-06 | X112: 1.00000 | Y112: 1.00011 | Z112: 0.99947 | AA112: 1.00064
A113: STW7C2SB | B113: 20 | C113: 100 | D113: 200 | E113: 10.0 | F113: 3.0 x 3.0 x 0.6 | G113: 5.600 | H113: (5.594) | I113: 511.380 | J113: 1.000 | K113: 1.482 | L113: (0.619) | M113: 400.190 | N113: 1.000 | O113: 1.245 | P113: (0.218) | Q113: (208.790) | R113: 1.000 | S113: 0.888 | T113: 0.137 | U113: 128.940 | V113: 1.000 | W113: 2017-07-03 | X113: 1.00000 | Y113: 1.00000 | Z113: 1.00000 | AA113: 1.00000
A114: STW7C2SB-NT | B114: 20 | C114: 120 | D114: 200 | E114: 10.0 | F114: 3.0 x 3.0 x 0.6 | G114: 6.108 | H114: (6.110) | I114: 669.606 | J114: 1.000 | K114: 1.239 | L114: (0.360) | M114: 294.741 | N114: 0.999 | O114: 1.072 | P114: (0.054) | Q114: (89.840) | R114: 1.000 | S114: 1308.141 | T114: (1307.133) | U114: (4388040.000) | V114: 0.998 | W114: 2020-04-27 | X114: 0.99997 | Y114: 0.99997 | Z114: 0.99997 | AA114: 1.00036
A115: STW7C2SB-NT-E1H1C100 | B115: 20 | C115: 150 | D115: 250 | E115: 11.0 | F115: 3.0 x 3.0 x 0.6 | G115: 4.629 | H115: (4.626) | I115: 617.794 | J115: 1.000 | K115: 1.057 | L115: (0.161) | M115: 143.879 | N115: 0.992 | O115: 1.916 | P115: (0.880) | Q115: (622.809) | R115: 1.000 | S115: 0.903 | T115: 0.116 | U115: 137.195 | V115: 0.999 | W115: 2022-04-18 | X115: 1.00000 | Y115: 1.00000 | Z115: 1.00000 | AA115: 1.00000
A116: STW7Q14D-E3 | B116: 10 | C116: 65 | D116: 200 | E116: 10.0 | F116: 5.6 x 3.0 x 0.65 | G116: 15.894 | H116: (15.896) | I116: 999.021 | J116: 1.000 | K116: 1.502 | L116: (0.576) | M116: 472.880 | N116: 1.000 | O116: 1.448 | P116: (0.428) | Q116: (544.347) | R116: 0.999 | S116: 0.928 | T116: 0.093 | U116: 99.505 | V116: 0.995 | W116: 2017-07-03 | X116: 1.00000 | Y116: 1.00000 | Z116: 1.00000 | AA116: 1.00000
A117: STW8A12D | B117: 20 | C117: 150 | D117: 180 | E117: 35.0 | F117: 3.5 x 2.8 x 0.7 | G117: 3.323 | H117: (3.331) | I117: 416.493 | J117: 1.000 | K117: 1.075 | L117: (0.199) | M117: 153.010 | N117: 0.994 | O117: 0.150 | P117: 0.906 | Q117: 389.310 | R117: 0.999 | S117: 0.934 | T117: 0.091 | U117: 78.497 | V117: 0.990 | W117: 2017-10-07 | X117: 1.00000 | Y117: 1.00000 | Z117: 1.00000 | AA117: 1.00000
A118: STW8A12D-E1 | B118: 10 | C118: 65 | D118: 200 | E118: 25.0 | F118: 3.5 x2.8 x 0.7 | G118: 8.355 | H118: (8.364) | I118: 505.840 | J118: 1.000 | K118: 1.162 | L118: (0.235) | M118: 173.511 | N118: 0.990 | O118: 0.400 | P118: 0.659 | Q118: 265.127 | R118: 1.000 | S118: 0.940 | T118: 0.086 | U118: 68.985 | V118: 1.000 | W118: 2017-07-03 | X118: 1.00000 | Y118: 1.00000 | Z118: 1.00000 | AA118: 1.00000
A119: STW8A12D-E2 | B119: 10 | C119: 65 | D119: 200 | E119: 20.0 | F119: 3.5 x2.8 x 0.7 | G119: 9.216 | H119: (9.204) | I119: 572.277 | J119: 1.000 | K119: 1.404 | L119: (0.485) | M119: 354.298 | N119: 1.000 | O119: 1.229 | P119: (0.198) | Q119: (171.861) | R119: 0.995 | S119: 0.913 | T119: 0.107 | U119: 125.404 | V119: 0.998 | W119: 2017-07-03 | X119: 1.00000 | Y119: 1.00000 | Z119: 1.00000 | AA119: 1.00000
A120: STW8A12D-E3 | B120: 10 | C120: 65 | D120: 200 | E120: 15.0 | F120: 3.5 x2.8 x 0.7 | G120: 8.798 | H120: (8.810) | I120: 532.500 | J120: 1.000 | K120: 1.167 | L120: (0.239) | M120: 181.052 | N120: 0.994 | O120: 0.375 | P120: 0.685 | Q120: 276.310 | R120: 0.999 | S120: 0.935 | T120: 0.093 | U120: 69.970 | V120: 0.980 | W120: 2017-10-07 | X120: 1.00000 | Y120: 1.00000 | Z120: 1.00000 | AA120: 1.00000
A121: STW8A12D-S1 | B121: 10 | C121: 65 | D121: 180 | E121: 30.0 | F121: 3.5 x 2.8 x 0.7 | G121: 9.238 | H121: (9.221) | I121: 576.907 | J121: 1.000 | K121: 1.236 | L121: (0.319) | M121: 218.102 | N121: 0.996 | O121: 0.109 | P121: 0.945 | Q121: 421.061 | R121: 0.999 | S121: 0.927 | T121: 0.098 | U121: 91.282 | V121: 0.991 | W121: 2018-11-06 | X121: 1.00016 | Y121: 0.99941 | Z121: 0.99994 | AA121: 1.00157
A122: STW8A2PD | B122: 10 | C122: 65 | D122: 300 | E122: 15.0 | F122: 3.5 x2.8 x 0.7 | G122: 12.642 | H122: (12.634) | I122: 794.845 | J122: 1.000 | K122: 1.216 | L122: (0.282) | M122: 242.997 | N122: 1.000 | O122: 1.790 | P122: (0.753) | Q122: (522.008) | R122: 0.998 | S122: 0.923 | T122: 0.097 | U122: 108.126 | V122: 1.000 | W122: 2017-07-03 | X122: 1.00000 | Y122: 1.00000 | Z122: =O122+P122*EXP(-25/Q122) -> 1.00000 | AA122: =S122+T122*EXP(-25/U122) -> 1.00000
A123: STW8A2PD-B0 | B123: 10 | C123: 65 | D123: 180 | E123: 15.0 | F123: 3.5 x 2.8 x 0.7 | G123: 6.702 | H123: (6.712) | I123: 398.426 | J123: 1.000 | K123: 1.157 | L123: (0.224) | M123: 183.731 | N123: 0.999 | O123: 1.103 | P123: (0.084) | Q123: (121.859) | R123: 0.998 | S123: (1901.153) | T123: 1902.159 | U123: 7245190.000 | V123: 0.983 | W123: 2021-03-02 | X123: 1.00000 | Y123: 1.00000 | Z123: 1.00000 | AA123: 1.00000
A124: STW8A2PD-B1 | B124: 10 | C124: 65 | D124: 180 | E124: 15.0 | F124: 3.5 x 2.8 x 0.7 | G124: 9.020 | H124: (9.023) | I124: 551.326 | J124: 1.000 | K124: 1.167 | L124: (0.246) | M124: 168.902 | N124: 0.999 | O124: 1.103 | P124: (0.084) | Q124: (121.899) | R124: 0.998 | S124: (1901.153) | T124: 1902.159 | U124: 7250090.000 | V124: 0.983 | W124: 2020-10-07 | X124: 1.00000 | Y124: 1.00000 | Z124: 1.00000 | AA124: 1.00000
A125: STW8A2PD-B1(BT) | B125: 10 | C125: 65 | D125: 200 | E125: 10 | F125: 3.5 x 2.8 x 0.7 | G125: 19.4481 | H125: -19.4413 | I125: 1239.4436 | J125: 1.000 | K125: 1.2561 | L125: -0.3471 | M125: 213.8205 | N125: 0.991 | O125: 1.2213 | P125: -0.1991 | Q125: -236.8710 | R125: 0.999 | S125: 0.9271 | T125: 0.0997 | U125: 79.8823 | V125: 0.986 | W125: 2022-04-18 | X125: 1.00000 | Y125: 1.00000 | Z125: 1.00000 | AA125: 1.00000
A126: STW8A2PD-B2 | B126: 10 | C126: 65 | D126: 200 | E126: 15.0 | F126: 3.5 x 2.8 x 0.7 | G126: 9.020 | H126: (9.023) | I126: 551.322 | J126: 1.000 | K126: 1.185 | L126: (0.253) | M126: 207.082 | N126: 0.999 | O126: 1.110 | P126: (0.091) | Q126: (128.307) | R126: 0.996 | S126: 2834.692 | T126: (2833.681) | U126: (6601600.000) | V126: 0.968 | W126: 2020-10-07 | X126: 1.00000 | Y126: 1.00000 | Z126: 1.00000 | AA126: 1.00000
A127: STW8A2PD-B2(HT) | B127: 10 | C127: 65 | D127: 300 | E127: 13.0 | F127: 3.5 x2.8 x 0.7 | G127: 12.65155 | H127: -12.66363 | I127: 780.36086 | J127: 1.000 | K127: 1.26346 | L127: -0.31253 | M127: 380.55672 | N127: 0.998 | O127: 1.15272 | P127: -0.12566 | Q127: -128.17418 | R127: 0.997 | S127: 1.04199 | T127: -0.03314 | U127: -105.62296 | V127: 0.983 | W127: 2022-08-09 | X127: 1.00000 | Y127: 1.00000 | Z127: 1.00000 | AA127: 1.00000
A128: STW8A2PD-B3 | B128: 10 | C128: 65 | D128: 300 | E128: 13.0 | F128: 3.5 x 2.8 x 0.7 | G128: 12.554 | H128: (12.568) | I128: 772.620 | J128: 1.000 | K128: 1.272 | L128: (0.320) | M128: 404.046 | N128: 0.999 | O128: 1.122 | P128: (0.098) | Q128: (113.510) | R128: 0.997 | S128: 1.058 | T128: (0.050) | U128: (169.108) | V128: 0.912 | W128: 2020-10-07 | X128: 1.00000 | Y128: 1.00000 | Z128: 1.00000 | AA128: 1.00000
A129: STW8A2PD-E1 | B129: 10 | C129: 65 | D129: 300 | E129: 10.0 | F129: 3.5 x 2.8 x 0.7 | G129: 18.339 | H129: (18.329) | I129: 1170.192 | J129: 1.000 | K129: 1.228 | L129: (0.322) | M129: 188.678 | N129: 0.993 | O129: 1.221 | P129: (0.199) | Q129: (236.801) | R129: 0.999 | S129: 0.927 | T129: 0.100 | U129: 79.892 | V129: 0.986 | W129: 2018-11-06 | X129: 1.00000 | Y129: 1.00000 | Z129: 1.00000 | AA129: 1.00000
A130: STW8A2PD-E1(H) | B130: 10 | C130: 65 | D130: 300 | E130: 13.0 | F130: 3.5 x 2.8 x 0.7 | G130: 29.697 | H130: (29.681) | I130: 1928.400 | J130: 1.000 | K130: 1.315 | L130: (0.403) | M130: 262.800 | N130: 0.987 | O130: 1.190 | P130: (0.168) | Q130: (202.007) | R130: 1.000 | S130: 0.861 | T130: 0.152 | U130: 290.058 | V130: 0.998 | W130: 2019-07-30 | X130: 0.99995 | Y130: 0.99998 | Z130: 1.00009 | AA130: 1.00005
A131: STW8A2PD-E1(H)(C) | B131: 10 | C131: 65 | D131: 300 | E131: 13.0 | F131: 3.5 x 2.8 x 0.7 | G131: 29.697 | H131: (29.681) | I131: 1928.300 | J131: 1.000 | K131: 1.315 | L131: (0.403) | M131: 262.710 | N131: 0.987 | O131: 1.190 | P131: (0.168) | Q131: (201.207) | R131: 1.000 | S131: 0.861 | T131: 0.152 | U131: 288.858 | V131: 0.998 | W131: 2020-10-19 | X131: 1.00000 | Y131: 1.00000 | Z131: 1.00000 | AA131: 1.00000
A132: STW8A2PD-E1(H)(S) | B132: 10 | C132: 65 | D132: 300 | E132: 13.0 | F132: 3.5 x 2.8 x 0.7 | G132: 29.697 | H132: (29.681) | I132: 1928.300 | J132: 1.000 | K132: 1.315 | L132: (0.403) | M132: 262.710 | N132: 0.987 | O132: 1.190 | P132: (0.168) | Q132: (201.197) | R132: 1.000 | S132: 0.861 | T132: 0.152 | U132: 288.998 | V132: 0.998 | W132: 2021-02-09 | X132: =G132+H132*EXP(-C132/I132) -> 1.00000 | Y132: =K132+L132*EXP(-C132/M132) -> 1.00000 | Z132: 1.00000 | AA132: 1.00000
A133: STW8A2PD-E1(IZ) | B133: 10 | C133: 65 | D133: 300 | E133: 10.0 | F133: 3.5 x2.8 x 0.7 | G133: 49.629 | H133: (49.592) | I133: 3314.701 | J133: 1.000 | K133: 1.229 | L133: (0.296) | M133: 251.728 | N133: 0.999 | O133: 1.193 | P133: (0.171) | Q133: (202.477) | R133: 1.000 | S133: 0.905 | T133: 0.108 | U133: 192.471 | V133: 0.998 | W133: 2019-11-15 | X133: 1.00000 | Y133: 1.00000 | Z133: 1.00000 | AA133: 1.00000
A134: STW8A2PD-E1H10000 | B134: 10 | C134: 65 | D134: 200 | E134: 13.0 | F134: 3.5 x 2.8 x 0.7 | G134: 9.020 | H134: (9.023) | I134: 551.326 | J134: 1.000 | K134: 1.185 | L134: (0.253) | M134: 207.082 | N134: 0.999 | O134: 1.110 | P134: (0.091) | Q134: (128.317) | R134: 0.996 | S134: 2834.692 | T134: (2833.681) | U134: (6601600.000) | V134: 0.968 | W134: 2021-10-20 | X134: 1.00000 | Y134: 1.00000 | Z134: 1.00000 | AA134: 1.00000
A135: STW8A2PD-E2 | B135: 10 | C135: 65 | D135: 300 | E135: 13.0 | F135: 3.5 x2.8 x 0.7 | G135: 29.507 | H135: (29.486) | I135: 1924.834 | J135: 1.000 | K135: 1.704 | L135: (0.764) | M135: 787.744 | N135: 0.999 | O135: 1.213 | P135: (0.190) | Q135: (222.014) | R135: 1.000 | S135: 0.773 | T135: 0.238 | U135: 586.729 | V135: 1.000 | W135: 2019-12-02 | X135: 1.00005 | Y135: 1.00009 | Z135: 1.00079 | AA135: 1.00029
A136: STW8A2PD-E2H10000 | B136: 10 | C136: 65 | D136: 300 | E136: 13.0 | F136: 3.5 x 2.8 x 0.7 | G136: 12.554 | H136: (12.568) | I136: 772.620 | J136: 1.000 | K136: 1.272 | L136: (0.320) | M136: 404.036 | N136: 0.999 | O136: 1.122 | P136: (0.098) | Q136: (113.510) | R136: 0.997 | S136: 1.058 | T136: (0.050) | U136: (169.088) | V136: 0.912 | W136: 2021-10-20 | X136: 1.00000 | Y136: 1.00000 | Z136: 1.00000 | AA136: 1.00000
A137: STW8A2PD-E3H10000 | B137: 10 | C137: 65 | D137: 300 | E137: 13.0 | F137: 3.5 x 2.8 x 0.7 | G137: 13.406 | H137: (13.374) | I137: 864.531 | J137: 1.000 | K137: 1.111 | L137: (0.180) | M137: 134.134 | N137: 0.977 | O137: 1.189 | P137: (0.167) | Q137: (199.017) | R137: 1.000 | S137: 3188.202 | T137: (3187.194) | U137: (9127420.000) | V137: 0.998 | W137: 2022-05-11 | X137: 1.00000 | Y137: 1.00000 | Z137: 1.00000 | AA137: 1.00000
A138: STW8A2PD-HTH | B138: 10 | C138: 65 | D138: 300 | E138: 15.0 | F138: 3.5 x2.8 x 0.7 | G138: 12.642 | H138: (12.634) | I138: 794.845 | J138: 1.000 | K138: 1.216 | L138: (0.282) | M138: 242.997 | N138: 1.000 | O138: 1.790 | P138: (0.753) | Q138: (522.008) | R138: 0.998 | S138: 0.923 | T138: 0.097 | U138: 108.126 | V138: 1.000 | W138: 2017-07-03 | X138: 1.00000 | Y138: 1.00000 | Z138: 1.00000 | AA138: 1.00000
A139: STW8A2PD-IZ | B139: 10 | C139: 65 | D139: 300 | E139: 15.0 | F139: 3.5 x2.8 x 0.7 | G139: 31.069 | H139: (31.024) | I139: 2076.686 | J139: 1.000 | K139: 1.228 | L139: (0.296) | M139: 249.754 | N139: 0.999 | O139: 0.282 | P139: 0.775 | Q139: 325.902 | R139: 1.000 | S139: 0.897 | T139: 0.119 | U139: 164.194 | V139: 0.999 | W139: 2019-11-14 | X139: 1.00089 | Y139: 0.99947 | Z139: 1.00005 | AA139: 0.99904
A140: STW8A2PD-S1 | B140: 10 | C140: 65 | D140: 200 | E140: 15.0 | F140: 3.5 x 2.8 x 0.7 | G140: 9.063 | H140: (9.053) | I140: 559.516 | J140: 1.000 | K140: 1.249 | L140: (0.337) | M140: 215.867 | N140: 0.996 | O140: 0.039 | P140: 1.013 | Q140: 455.119 | R140: 0.999 | S140: 0.896 | T140: 0.122 | U140: 161.621 | V140: 0.986 | W140: 2018-11-06 | X140: 1.00225 | Y140: 0.99975 | Z140: 0.99766 | AA140: 1.00059
A141: STW8A2SD | B141: 20 | C141: 100 | D141: 150 | E141: 35.0 | F141: 3.5 x2.8 x 0.7 | G141: 6.808 | H141: (6.804) | I141: 632.021 | J141: 1.000 | K141: 1.917 | L141: (1.053) | M141: 724.563 | N141: 0.999 | O141: 0.340 | P141: 0.720 | Q141: 286.927 | R141: 0.999 | S141: 0.928 | T141: 0.097 | U141: 82.424 | V141: 0.989 | W141: 2018-02-20 | X141: 1.00000 | Y141: 1.00000 | Z141: 1.00000 | AA141: 1.00000
A142: STW8A2SD-E1(H) | B142: 20 | C142: 120 | D142: 200 | E142: 25.0 | F142: 3.5 x2.8 x 0.7 | G142: 8.093 | H142: (8.083) | I142: 917.732 | J142: 1.000 | K142: 1.229 | L142: (0.428) | M142: 191.528 | N142: 0.998 | O142: 1.181 | P142: (0.159) | Q142: (192.978) | R142: 1.000 | S142: 0.920 | T142: 0.091 | U142: 200.605 | V142: 0.995 | W142: 2020-09-01 | X142: 1.00000 | Y142: 1.00000 | Z142: 1.00000 | AA142: 1.00000
A143: STW8A32E-E2 | B143: 20 | C143: 100 | D143: 120 | E143: 15.0 | F143: 3.5 x 2.8 x 0.7 | G143: 6.181 | H143: (6.167) | I143: 573.884 | J143: 1.000 | K143: 1.146 | L143: (0.268) | M143: 164.945 | N143: 1.000 | O143: 1.120 | P143: (0.100) | Q143: (139.133) | R143: 0.998 | S143: 0.948 | T143: 0.067 | U143: 101.208 | V143: 0.995 | W143: 2020-10-14 | X143: 1.00000 | Y143: 1.00000 | Z143: 1.00000 | AA143: 1.00000
A144: STW8C12C-E0 | B144: 10 | C144: 65 | D144: 200 | E144: 7.5 | F144: 3.0 x 3.0 x 0.6 | G144: 23.711 | H144: (23.717) | I144: 1500.343 | J144: 1.000 | K144: 1.174 | L144: (0.217) | M144: 299.111 | N144: 1.000 | O144: 1.067 | P144: (0.053) | Q144: (106.585) | R144: 0.997 | S144: (90.354) | T144: 91.365 | U144: 220951.848 | V144: 0.995 | W144: 2019-01-01 | X144: 1.00000 | Y144: 1.00000 | Z144: 1.00000 | AA144: 1.00000
A145: STW8C12C-E0(R9-) | B145: 10 | C145: 65 | D145: 200 | E145: 7.5 | F145: 3.0 x 3.0 x 0.6 | G145: 20.816 | H145: (20.796) | I145: 1346.368 | J145: 1.000 | K145: 1.169 | L145: (0.213) | M145: 283.101 | N145: 1.000 | O145: 1.067 | P145: (0.053) | Q145: (106.585) | R145: 0.997 | S145: (90.354) | T145: 91.365 | U145: 220951.848 | V145: 0.995 | W145: 2019-08-29 | X145: 1.00000 | Y145: 1.00000 | Z145: 1.00000 | AA145: 1.00000
A146: STW8C12C-E0(R9+) | B146: 10 | C146: 65 | D146: 200 | E146: 7.5 | F146: 3.0 x 3.0 x 0.6 | G146: 20.816 | H146: (20.796) | I146: 1346.368 | J146: 1.000 | K146: 1.169 | L146: (0.213) | M146: 283.101 | N146: 1.000 | O146: 1.067 | P146: (0.053) | Q146: (106.585) | R146: 0.997 | S146: (90.354) | T146: 91.365 | U146: 220951.848 | V146: 0.995 | W146: 2019-08-29 | X146: 1.00000 | Y146: 1.00000 | Z146: 1.00000 | AA146: 1.00000
A147: STW8C12E-E00000IZ | B147: 5 | C147: 65 | D147: 200 | E147: 7.5 | F147: 3.30 x 3.00 x 0.75 | G147: 25.021 | H147: (25.023) | I147: 1591.510 | J147: 1.000 | K147: 1.095 | L147: (0.140) | M147: 164.251 | N147: 0.994 | O147: 1.222 | P147: (0.196) | Q147: (206.187) | R147: 1.000 | S147: (0.285) | T147: 1.295 | U147: 3083.325 | V147: 1.000 | W147: 2022-04-11 | X147: 1.00000 | Y147: 1.00000 | Z147: 1.00000 | AA147: 1.00000
A148: STW8C12E-E00000IZR9 | B148: 5 | C148: 65 | D148: 200 | E148: 7.5 | F148: 3.30 x 3.00 x 0.75 | G148: 25.021 | H148: (25.023) | I148: 1591.510 | J148: 1.000 | K148: 1.095 | L148: (0.140) | M148: 164.251 | N148: 0.994 | O148: 1.222 | P148: (0.196) | Q148: (206.187) | R148: 1.000 | S148: (0.285) | T148: 1.295 | U148: 3083.325 | V148: 1.000 | W148: 2022-04-11 | X148: 1.00000 | Y148: 1.00000 | Z148: 1.00000 | AA148: 1.00000
A149: STW8C2PB-E1 | B149: 20 | C149: 65 | D149: 400 | E149: 10.0 | F149: 3.0 x 3.0 x 0.6 | G149: 19.028 | H149: (19.010) | I149: 1226.471 | J149: 1.000 | K149: 1.507 | L149: (0.563) | M149: 622.610 | N149: 0.999 | O149: 1.177 | P149: (0.152) | Q149: (169.436) | R149: 0.997 | S149: 0.888 | T149: 0.124 | U149: 234.138 | V149: 0.999 | W149: 2017-07-03 | X149: 1.00000 | Y149: 1.00000 | Z149: 1.00000 | AA149: 1.00000
A150: STW8C2PB-E2 | B150: 20 | C150: 65 | D150: 400 | E150: 10.0 | F150: 3.0 x 3.0 x 0.6 | G150: 19.264 | H150: (19.263) | I150: 1220.350 | J150: 1.000 | K150: 1.513 | L150: (0.568) | M150: 639.419 | N150: 1.000 | O150: 1.135 | P150: (0.116) | Q150: (169.387) | R150: 0.999 | S150: 0.910 | T150: 0.107 | U150: 137.704 | V150: 0.995 | W150: 2021-03-08 | X150: 1.00000 | Y150: 1.00000 | Z150: 1.00000 | AA150: 1.00000
A151: STW8C2PB-NT-E1H1C100 | B151: 20 | C151: 65 | D151: 400 | E151: 10.0 | F151: 3.0 x 3.0 x 0.6 | G151: 19.264 | H151: (19.263) | I151: 1220.350 | J151: 1.000 | K151: 1.513 | L151: (0.568) | M151: 639.419 | N151: 1.000 | O151: 1.135 | P151: (0.116) | Q151: (169.387) | R151: 0.999 | S151: 0.910 | T151: 0.107 | U151: 137.704 | V151: 0.995 | W151: 2021-03-08 | X151: 1.00000 | Y151: 1.00000 | Z151: 1.00000 | AA151: 1.00000
A152: STW8C2SB | B152: 20 | C152: 100 | D152: 200 | E152: 10.0 | F152: 3.0 x 3.0 x 0.6 | G152: 5.600 | H152: (5.594) | I152: 511.380 | J152: 1.000 | K152: 1.482 | L152: (0.619) | M152: 400.190 | N152: 1.000 | O152: 1.245 | P152: (0.218) | Q152: (208.790) | R152: 1.000 | S152: 0.888 | T152: 0.137 | U152: 128.940 | V152: 1.000 | W152: 2017-07-03 | X152: 1.00000 | Y152: 1.00000 | Z152: 1.00000 | AA152: 1.00000 | AC152: 0.62151 | AD152: 0.55482 | AE152: 65.34585 | AF152: 0.99988
A153: STW8C2SB-NT | B153: 20 | C153: 120 | D153: 200 | E153: 10.0 | F153: 3.0 x 3.0 x 0.6 | G153: 6.108 | H153: (6.110) | I153: 669.606 | J153: 1.000 | K153: 1.239 | L153: (0.360) | M153: 294.741 | N153: 0.999 | O153: 1.137 | P153: (0.113) | Q153: (130.675) | R153: 1.000 | S153: 0.915 | T153: 0.101 | U153: 148.051 | V153: 1.000 | W153: 2020-04-27 | X153: 0.99997 | Y153: 0.99997 | Z153: 0.99998 | AA153: 1.00008
A154: STW8C2SB-NT-E1H1C100 | B154: 20 | C154: 150 | D154: 250 | E154: 11.0 | F154: 3.0 x 3.0 x 0.6 | G154: 4.601 | H154: (4.599) | I154: 613.037 | J154: 1.000 | K154: 1.072 | L154: (0.167) | M154: 179.503 | N154: 0.987 | O154: 1.137 | P154: (0.113) | Q154: (130.775) | R154: 1.000 | S154: 0.915 | T154: 0.101 | U154: 147.251 | V154: 1.000 | W154: 2022-02-22 | X154: 1.00000 | Y154: 1.00000 | Z154: 1.00000 | AA154: 1.00000
A155: STW8F12D-E1 | B155: 10 | C155: 60 | D155: 200 | E155: 30.0 | F155: 4.0 X 1.4 X 0.65 | G155: 11.498 | H155: (11.707) | I155: 550.640 | J155: 1.000 | K155: 1.522 | L155: (0.616) | M155: 363.473 | N155: 0.999 | O155: 1.222 | P155: (0.194) | Q155: (180.987) | R155: 1.000 | S155: 0.931 | T155: 0.088 | U155: 108.260 | V155: 0.999 | W155: 2020-02-07 | X155: 1.00000 | Y155: 1.00041 | Z155: 0.99950 | AA155: 1.00103
A156: STW8F12D-E2 | B156: 10 | C156: 60 | D156: 200 | E156: 28.5 | F156: 4.0 X 1.4 X 0.65 | G156: 13.502 | H156: (13.624) | I156: 698.253 | J156: 1.000 | K156: 1.522 | L156: (0.616) | M156: 365.073 | N156: 0.999 | O156: 1.082 | P156: (0.066) | Q156: (121.510) | R156: 0.998 | S156: 0.931 | T156: 0.088 | U156: 101.560 | V156: 0.999 | W156: 2020-02-07 | X156: 0.99995 | Y156: 1.00003 | Z156: 1.00000 | AA156: 0.99997
A157: STW8L8PA | B157: 10 | C157: 640 | D157: 800 | E157: 2.0 | F157: 5.0 x 5.0 x 0.7 | G157: 5.872 | H157: (5.861) | I157: 3461.303 | J157: 1.000 | K157: 1.436 | L157: (0.593) | M157: 2090.519 | N157: 1.000 | O157: 1.296 | P157: (0.262) | Q157: (205.274) | R157: 1.000 | S157: 0.945 | T157: 0.068 | U157: 111.472 | V157: 1.000 | W157: 2020-02-11 | X157: =G157+H157*EXP(-C157/I157) -> 0.99998 | Y157: =K157+L157*EXP(-C157/M157) -> 0.99994 | Z157: =O157+P157*EXP(-25/Q157) -> 1.00004 | AA157: =S157+T157*EXP(-25/U157) -> 1.00001
A158: STW8Q14D | B158: 10 | C158: 65 | D158: 200 | E158: 15.0 | F158: 5.6 x 3.0 x 0.65 | G158: 15.732 | H158: (15.735) | I158: 986.805 | J158: 1.000 | K158: 1.376 | L158: (0.474) | M158: 279.520 | N158: 0.999 | O158: (0.025) | P158: 1.070 | Q158: 581.499 | R158: 0.996 | S158: 0.935 | T158: 0.085 | U158: 94.829 | V158: 0.994 | W158: 2017-07-03 | X158: 1.00000 | Y158: 1.00000 | Z158: 1.00000 | AA158: 1.00000
A159: STW8Q14D-E3 | B159: 10 | C159: 65 | D159: 200 | E159: 10.0 | F159: 5.6 x 3.0 x 0.65 | G159: 15.894 | H159: (15.896) | I159: 999.021 | J159: 1.000 | K159: 1.502 | L159: (0.576) | M159: 472.880 | N159: 1.000 | O159: 1.448 | P159: (0.428) | Q159: (544.347) | R159: 0.999 | S159: 0.928 | T159: 0.093 | U159: 99.505 | V159: 0.995 | W159: 2017-07-03 | X159: 1.00000 | Y159: 1.00000 | Z159: 1.00000 | AA159: 1.00000
A160: STW8Q14D-E4 | B160: 10 | C160: 65 | D160: 200 | E160: 9.0 | F160: 5.6 x 3.0 x 0.65 | G160: 23.140 | H160: (23.152) | I160: 1455.998 | J160: 1.000 | K160: 1.189 | L160: (0.258) | M160: 211.085 | N160: 0.995 | O160: 1.077 | P160: (0.061) | Q160: (106.910) | R160: 1.000 | S160: 0.706 | T160: 0.304 | U160: 749.148 | V160: 1.000 | W160: 2020-04-17 | X160: 0.99908 | Y160: 0.99903 | Z160: 0.99992 | AA160: 0.99952
A161: STW9A12D | B161: 10 | C161: 150 | D161: 250 | E161: 35.0 | F161: 3.5 x 2.8 x 0.7 | G161: 3.295 | H161: (3.305) | I161: 411.239 | J161: 1.000 | K161: 1.080 | L161: (0.204) | M161: 160.081 | N161: 0.994 | O161: 0.290 | P161: 0.770 | Q161: 310.152 | R161: 1.000 | S161: 0.931 | T161: 0.098 | U161: 71.750 | V161: 0.998 | W161: 2020-10-19 | X161: 1.00000 | Y161: 1.00000 | Z161: 1.00000 | AA161: 1.00000
A162: STW9A12D-E1 | B162: 10 | C162: 65 | D162: 200 | E162: 25.0 | F162: 3.5 x 2.8 x 0.7 | G162: 8.824 | H162: (8.827) | I162: 538.850 | J162: 1.000 | K162: 1.159 | L162: (0.232) | M162: 173.766 | N162: 0.993 | O162: 0.225 | P162: 0.831 | Q162: 354.366 | R162: 0.999 | S162: 0.925 | T162: 0.094 | U162: 106.921 | V162: 0.988 | W162: 2017-10-07 | X162: 1.00000 | Y162: 1.00000 | Z162: 1.00000 | AA162: 1.00000
A163: STW9A12D-E2 | B163: 10 | C163: 65 | D163: 200 | E163: 25.0 | F163: 3.5 x 2.8 x 0.7 | G163: 8.994 | H163: (8.985) | I163: 556.654 | J163: 1.000 | K163: 1.269 | L163: (0.334) | M163: 300.383 | N163: 0.999 | O163: 0.274 | P163: 0.785 | Q163: 324.258 | R163: 1.000 | S163: 0.926 | T163: 0.097 | U163: 89.465 | V163: 0.997 | W163: 2019-12-02 | X163: 1.00000 | Y163: 1.00029 | Z163: 0.99999 | AA163: 1.00004
A164: STW9A12D-E3 | B164: 20 | C164: 65 | D164: 200 | E164: 15.0 | F164: 3.5 x 2.8 x 0.7 | G164: =8.8812 -> 8.881 | H164: (8.876) | I164: 546.858 | J164: 1.000 | K164: 1.277 | L164: (0.341) | M164: 308.951 | N164: 0.999 | O164: 0.296 | P164: 0.763 | Q164: 316.705 | R164: 1.000 | S164: 0.928 | T164: 0.097 | U164: 82.320 | V164: 0.996 | W164: 2020-01-30 | X164: 1.00005 | Y164: 1.00029 | Z164: 1.00061 | AA164: 1.00000
A165: STW9A2PD | B165: 10 | C165: 65 | D165: 300 | E165: 15.0 | F165: 3.5 x 2.8 x 0.7 | G165: 32.433 | H165: (32.384) | I165: 2205.324 | J165: 1.000 | K165: 1.229 | L165: (0.298) | M165: 252.803 | N165: 0.999 | O165: 0.275 | P165: 0.784 | Q165: 329.399 | R165: 1.000 | S165: 0.894 | T165: 0.127 | U165: 167.741 | V165: 0.997 | W165: 2019-06-27 | X165: 0.98951 | Y165: 0.99848 | Z165: 1.00165 | AA165: 1.00300
A166: STW9A2PD-B1 | B166: 10 | C166: 65 | D166: 180 | E166: 15.0 | F166: 3.5 x 2.8 x 0.7 | G166: 8.306 | H166: (8.319) | I166: 500.543 | J166: 1.000 | K166: 1.172 | L166: (0.250) | M166: 173.714 | N166: 0.999 | O166: 1.122 | P166: (0.098) | Q166: (113.510) | R166: 0.997 | S166: 1.058 | T166: (0.050) | U166: (169.088) | V166: 0.912 | W166: 2022-03-18 | X166: 1.00000 | Y166: 1.00000 | Z166: 1.00000 | AA166: 1.00000
A167: STW9A2PD-B2 | B167: 10 | C167: 65 | D167: 200 | E167: 15.0 | F167: 3.5 x 2.8 x 0.7 | G167: 9.840 | H167: (9.855) | I167: 598.042 | J167: 1.000 | K167: 1.194 | L167: (0.262) | M167: 215.356 | N167: 0.998 | O167: 1.277 | P167: (0.249) | Q167: (232.382) | R167: 0.999 | S167: 1.124 | T167: (0.117) | U167: (381.805) | V167: 0.999 | W167: 2022-03-18 | X167: 1.00000 | Y167: 1.00000 | Z167: 1.00000 | AA167: 1.00000
A168: STW9A2PD-B3 | B168: 10 | C168: 65 | D168: 300 | E168: 13.0 | F168: 3.5 x 2.8 x 0.7 | G168: 12.588 | H168: (12.601) | I168: 775.742 | J168: 1.000 | K168: 1.256 | L168: (0.306) | M168: 363.536 | N168: 0.998 | O168: 1.128 | P168: (0.105) | Q168: (126.787) | R168: 0.996 | S168: 1.011 | T168: (0.008) | U168: (71.539) | V168: 0.998 | W168: 2022-03-18 | X168: 1.00000 | Y168: 1.00000 | Z168: 1.00000 | AA168: 1.00000
A169: STW9A2PD-E1 | B169: 10 | C169: 65 | D169: 200 | E169: 13.0 | F169: 3.5 x 2.8 x 0.7 | G169: 45.991 | H169: (45.956) | I169: 3067.847 | J169: 1.000 | K169: 1.399 | L169: (0.516) | M169: 256.636 | N169: 0.994 | O169: 1.175 | P169: (0.155) | Q169: (195.489) | R169: 0.999 | S169: 2.527 | T169: (1.520) | U169: (4311.381) | V169: 0.997 | W169: 2019-06-27 | X169: 0.99875 | Y169: 0.99820 | Z169: 0.99935 | AA169: 0.99829
A170: STW9A2PD-E1(H) | B170: 10 | C170: 65 | D170: 200 | E170: 13.0 | F170: 3.5 x 2.8 x 0.7 | G170: 19.604 | H170: (19.607) | I170: 1237.666 | J170: 1.000 | K170: 1.303 | L170: (0.372) | M170: 316.438 | N170: 0.999 | O170: 1.221 | P170: (0.196) | Q170: (211.388) | R170: 1.000 | S170: 0.791 | T170: 0.219 | U170: 526.076 | V170: 0.998 | W170: 2021-02-05 | X170: 1.00000 | Y170: 1.00000 | Z170: 1.00000 | AA170: 1.00000
A171: STW9A2SD | B171: 20 | C171: 100 | D171: 150 | E171: 25.0 | F171: 3.5 x2.8 x 0.7 | G171: 6.615 | H171: (6.614) | I171: 610.470 | J171: 1.000 | K171: 1.558 | L171: (0.694) | M171: 459.811 | N171: 1.000 | O171: 0.272 | P171: 0.787 | Q171: 319.373 | R171: 1.000 | S171: 0.927 | T171: 0.100 | U171: 78.620 | V171: 0.998 | W171: 2020-07-31 | X171: 0.99975 | Y171: 0.99917 | Z171: 1.00015 | AA171: 1.00015
A172: STW9A2SD-E1(H) | B172: 20 | C172: 65 | D172: 160 | E172: 20.0 | F172: 3.5 x2.8 x 0.7 | G172: 13.721 | H172: (13.722) | I172: 858.314 | J172: 1.000 | K172: 1.179 | L172: (0.281) | M172: 144.898 | N172: 0.991 | O172: 1.055 | P172: (0.041) | Q172: (82.356) | R172: 0.999 | S172: 0.897 | T172: 0.115 | U172: 230.986 | V172: 0.999 | W172: 2021-10-04 | X172: 1.00000 | Y172: 1.00000 | Z172: 1.00000 | AA172: 1.00000
A173: STW9A32E-E2 | B173: 20 | C173: 100 | D173: 120 | E173: 15.0 | F173: 3.5 x 2.8 x 0.7 | G173: 6.181 | H173: (6.167) | I173: 573.884 | J173: 1.000 | K173: 1.146 | L173: (0.268) | M173: 164.945 | N173: 1.000 | O173: 1.064 | P173: (0.053) | Q173: (126.977) | R173: 0.999 | S173: 0.898 | T173: 0.122 | U173: 142.600 | V173: 0.999 | W173: 2020-10-14 | X173: 1.00000 | Y173: 1.00000 | Z173: 1.00000 | AA173: 1.00000
A174: STW9C12C-E0 | B174: 10 | C174: 65 | D174: 200 | E174: 7.5 | F174: 3.0 x 3.0 x 0.6 | G174: 20.816 | H174: (20.796) | I174: 1346.318 | J174: 1.000 | K174: 1.169 | L174: (0.213) | M174: 283.401 | N174: 1.000 | O174: 1.067 | P174: (0.053) | Q174: (106.555) | R174: 0.997 | S174: (90.354) | T174: 91.365 | U174: 221751.848 | V174: 0.995 | W174: 2019-08-29 | X174: 1.00003 | Y174: 0.99996 | Z174: 0.99999 | AA174: 1.00004
A175: STW9C12C-E1 | B175: 10 | C175: 65 | D175: 200 | E175: 7.5 | F175: 3.0 x 3.0 x 0.6 | G175: 20.816 | H175: (20.796) | I175: 1346.368 | J175: 1.000 | K175: 1.063 | L175: (0.132) | M175: 88.873 | N175: 0.985 | O175: 1.067 | P175: (0.053) | Q175: (106.625) | R175: 0.997 | S175: (90.354) | T175: 91.365 | U175: 220851.848 | V175: 0.995 | W175: 2022-03-18 | X175: 1.00000 | Y175: 1.00000 | Z175: 1.00000 | AA175: 1.00000
A176: STW9C2PB-E1 | B176: 10 | C176: 65 | D176: 400 | E176: 10.0 | F176: 3.0 x 3.0 x 0.6 | G176: 21.026 | H176: (21.013) | I176: 1350.742 | J176: 1.000 | K176: 1.492 | L176: (0.548) | M176: 604.679 | N176: 0.999 | O176: 1.602 | P176: (0.569) | Q176: (461.346) | R176: 1.000 | S176: 0.887 | T176: 0.127 | U176: 239.990 | V176: 0.997 | W176: 2019-10-04 | X176: 1.00000 | Y176: 0.99999 | Z176: 1.00055 | AA176: 1.00098
A177: STW9C2PB-E2 | B177: 10 | C177: 65 | D177: 400 | E177: 10.0 | F177: 3.0 x 3.0 x 0.6 | G177: 19.503 | H177: (19.483) | I177: 1259.631 | J177: 1.000 | K177: 1.528 | L177: (0.583) | M177: 657.444 | N177: 0.999 | O177: 1.139 | P177: (0.119) | Q177: (162.039) | R177: 0.999 | S177: 0.874 | T177: 0.139 | U177: 261.024 | V177: 0.996 | W177: 2019-11-27 | X177: 1.00001 | Y177: 0.99996 | Z177: 1.00004 | AA177: 1.00012
A178: STW9C2PB-S | B178: 10 | C178: 65 | D178: 150 | E178: 10.0 | F178: 3.0 x 3.0 x 0.6 | G178: 21.587 | H178: (21.586) | I178: 1374.650 | J178: 1.000 | K178: 1.324 | L178: (0.461) | M178: 281.445 | N178: 0.999 | O178: 1.145 | P178: (0.118) | Q178: (109.780) | R178: 1.000 | S178: 0.849 | T178: 0.163 | U178: 334.978 | V178: 1.000 | W178: 2018-02-20 | X178: 0.99793 | Y178: 0.95775 | Z178: 0.99720 | AA178: 1.00037
A179: STW9C2SB | B179: 20 | C179: 100 | D179: 200 | E179: 10.0 | F179: 3.0 x 3.0 x 0.6 | G179: 5.642 | H179: (5.635) | I179: 516.212 | J179: 1.000 | K179: 1.324 | L179: (0.461) | M179: 282.975 | N179: 0.999 | O179: 4.899 | P179: (3.860) | Q179: (2502.840) | R179: 0.999 | S179: 0.920 | T179: 0.113 | U179: 72.895 | V179: 0.993 | W179: 2017-10-07 | X179: 1.00000 | Y179: 1.00000 | Z179: 1.00000 | AA179: 1.00000
A180: STW9C2SB-NT | B180: 20 | C180: 120 | D180: 200 | E180: 10.0 | F180: 3.0 x 3.0 x 0.6 | G180: 5.836 | H180: (5.832) | I180: 640.353 | J180: 1.000 | K180: 1.239 | L180: (0.360) | M180: 294.741 | N180: 0.999 | O180: 1.137 | P180: (0.113) | Q180: (130.675) | R180: 1.000 | S180: 0.915 | T180: 0.101 | U180: 148.051 | V180: 1.000 | W180: 2020-04-27 | X180: 0.99997 | Y180: 0.99997 | Z180: 0.99998 | AA180: 1.00008
A181: STW9C2SB-S | B181: 20 | C181: 150 | D181: 200 | E181: 10.0 | F181: 3.0 x 3.0 x 0.6 | G181: 6.139 | H181: (6.143) | I181: 840.318 | J181: 1.000 | K181: 1.054 | L181: (0.153) | M181: 142.938 | N181: 0.998 | O181: 1.098 | P181: (0.072) | Q181: (81.837) | R181: 0.999 | S181: 0.826 | T181: 0.191 | U181: 258.125 | V181: 0.998 | W181: 2019-09-18 | X181: 1.00000 | Y181: 1.00000 | Z181: 1.00000 | AA181: 1.00000
A182: STW9F12D-E1 | B182: 10 | C182: 60 | D182: 200 | E182: 30.0 | F182: 4.0 X 1.4 X 0.65 | G182: 11.424 | H182: (11.631) | I182: 547.675 | J182: 1.000 | K182: 1.442 | L182: (0.544) | M182: 288.865 | N182: 1.000 | O182: 1.204 | P182: (0.179) | Q182: (185.575) | R182: 1.000 | S182: 0.915 | T182: 0.101 | U182: 145.295 | V182: 0.999 | W182: 2020-02-07 | X182: 1.00000 | Y182: 1.00053 | Z182: 0.99972 | AA182: 1.00036
A183: STW9Q14D | B183: 10 | C183: 65 | D183: 200 | E183: 15.0 | F183: 5.6 x 3.0 x 0.65 | G183: 15.732 | H183: (15.735) | I183: 986.805 | J183: 1.000 | K183: 1.376 | L183: (0.474) | M183: 279.519 | N183: 0.999 | O183: (0.025) | P183: 1.070 | Q183: 581.499 | R183: 0.996 | S183: 0.935 | T183: 0.085 | U183: 94.830 | V183: 0.994 | W183: 2017-08-31 | X183: 1.00000 | Y183: 1.00000 | Z183: 1.00000 | AA183: 1.00000
A184: STW9Q14D-E3 | B184: 10 | C184: 65 | D184: 200 | E184: 10.0 | F184: 5.6 x 3.0 x 0.65 | G184: 15.894 | H184: (15.896) | I184: 999.021 | J184: 1.000 | K184: 1.502 | L184: (0.576) | M184: 472.880 | N184: 1.000 | O184: 1.448 | P184: (0.428) | Q184: (544.347) | R184: 0.999 | S184: 0.928 | T184: 0.093 | U184: 99.505 | V184: 0.995 | W184: 2017-08-31 | X184: 1.00000 | Y184: 1.00000 | Z184: 1.00000 | AA184: 1.00000
A185: STWHA12D-E1 | B185: 10 | C185: 65 | D185: 200 | E185: 25.0 | F185: 3.5 x 2.8 x 0.7 | G185: 8.994 | H185: (8.985) | I185: 556.654 | J185: 1.000 | K185: 1.269 | L185: (0.334) | M185: 301.883 | N185: 0.999 | O185: 0.274 | P185: 0.785 | Q185: 324.258 | R185: 1.000 | S185: 0.926 | T185: 0.097 | U185: 89.465 | V185: 0.997 | W185: 2019-12-02 | X185: 1.00000 | Y185: 1.00000 | Z185: 0.99999 | AA185: 1.00004
A186: STWSA32E-E0 | B186: 20 | C186: 100 | D186: 120 | E186: 8.0 | F186: 3.5 x 2.8 x 0.7 | G186: 4.428 | H186: (4.434) | I186: 388.477 | J186: 1.000 | K186: 1.147 | L186: (0.285) | M186: 150.618 | N186: 1.000 | O186: 1.220 | P186: (0.191) | Q186: (176.835) | R186: 1.000 | S186: 1.158 | T186: (0.130) | U186: (128.366) | V186: 1.000 | W186: 2020-10-14 | X186: 1.00000 | Y186: 1.00000 | Z186: 1.00000 | AA186: 1.00000
